Workbook

Sheet DropDowns (hidden)
A1: 250 | B1: Rounds and Readings | C1: 250
A2: 104 | B2: Rounds and Readings | C2: 104
A3: 52 | B3: Rounds and Readings | C3: 52
A4: 26 | B4: Rounds and Readings | C4: 26
A5: 12 | B5: Rounds and Readings | C5: 12
A7: 250 | B7: Water Treatment | C7: 250
A8: 104 | B8: Water Treatment | C8: 104
A9: 52 | B9: Water Treatment | C9: 52
A10: 26 | B10: Water Treatment | C10: 26
A11: 12 | B11: Water Treatment | C11: 12

Sheet Equipment List Template (hidden)
I1: Subsystem | J1: Access Doors, Gates, Sally Port | K1: Air Cooled DX (Package / Split System) | L1: Air Handling Unit (Air-cooled DX) | M1: Air-Cooled Chiller | N1: Centrifugal Chiller | O1: Cooling Tower (Induced Draft) | P1: Ice Chiller | Q1: MultiStack (Geothermal) | R1: Water Source Heat Pump | S1: Fan Coil System | T1: Exhaust Fan | U1: HVAC Unique System | V1: Electrical Panels | W1: Emergency Generator | X1: Motor Control Center | Y1: Primary Switch (High) | Z1: Primary Switch (Low) | AA1: Transformer (Dry-Type) | AB1: Uninterruptible Power Supply (UPS) | AC1: Electrical Unique System | AD1: Life Safety | AE1: Backflow Preventor | AF1: Hot Water Boiler | AG1: Condensing Water Heater | AH1: Electric Water Heater | AI1: Plumbing Unique System | AJ1: Steam System | AK1: Pneumatic Compressor | AL1: Rounds and Readings | AM1: Vertical Transportation | AN1: Water Treatment | AO1: Building Exterior / Hardscape (Monthly) | AP1: Fountain Maintenance (Monthly) | AQ1: Fuel Storage Tanks (Quarterly) If applicable | AR1: Landscape Maintenance * | AS1: Account Management and Supervision (Monthly) | AT1: Fee (Monthly)
A2: JCC ID | B2: Facility Name | C2: Address | D2: City / Town | E2: Zip Code | F2: County | G2: Region | H2: Notes | I2: System ID | J2: A1 | K2: H1 | L2: H2 | M2: H3 | N2: H4 | O2: H5 | P2: H6 | Q2: H7 | R2: H8 | S2: H9 | T2: H10 | U2: H11 | V2: E1 | W2: E2 | X2: E3 | Y2: E4 | Z2: E5 | AA2: E6 | AB2: E7 | AC2: E8 | AD2: L1 | AE2: L2 | AF2: P1 | AG2: P2 | AH2: P3 | AI2: P4 | AJ2: P5 | AK2: P6 | AL2: R1 | AM2: V1 | AN2: W1 | AO2: B1 | AP2: F1 | AQ2: F2 | AR2: G1 | AS2: C1 | AT2: C2
A3: 03-C1 | B3: Amador Superior Court | C3: 500 Argonaut Lane | D3: Jackson | E3: 95642 | F3: Amador | G3: NCRO | J3: 1 | K3: 4 | L3: 15 | M3: 0 | N3: 0 | O3: 0 | P3: 0 | Q3: 0 | R3: 0 | S3: 0 | T3: 18 | U3: 0 | V3: 0 | W3: 1 | X3: 0 | Y3: 0 | Z3: 0 | AA3: 0 | AB3: 0 | AC3: 0 | AD3: 1 | AE3: 3 | AF3: 0 | AG3: 1 | AH3: 4 | AI3: 0 | AJ3: 0 | AK3: 0 | AL3: =IF(OR($N3>0,$O3>0),260,52) -> 52 | AM3: 0 | AN3: =IF(OR($N3>0,$O3>0),260,52) -> 52 | AO3: 0 | AP3: 0 | AQ3: 0 | AR3: 0 | AS3: 0 | AT3: 0
A4: 04-A1 | B4: Butte County Courthouse | C4: 1 Court St. | D4: Oroville | E4: 95965 | F4: Butte | G4: NCRO | J4: 1 | K4: 8 | L4: 10 | M4: 0 | N4: 1 | O4: 1 | P4: 0 | Q4: 0 | R4: 0 | S4: 1 | T4: 8 | U4: 0 | V4: 1 | W4: 0 | X4: 0 | Y4: 0 | Z4: 0 | AA4: 0 | AB4: 0 | AC4: 0 | AD4: 1 | AE4: 8 | AF4: 0 | AG4: 1 | AH4: 1 | AI4: 0 | AJ4: 0 | AK4: 0 | AL4: 260 | AM4: 12 | AN4: 260 | AO4: 0 | AP4: 0 | AQ4: 0 | AR4: 0 | AS4: 0 | AT4: 0
A5: 04-F1 | B5: North Butte County Courthouse | C5: 1775 Concord Avenue | D5: Chico | E5: 95928 | F5: Butte | G5: NCRO | J5: 1 | K5: 3 | L5: 4 | M5: 0 | N5: 1 | O5: 0 | P5: 0 | Q5: 0 | R5: 0 | S5: 13 | T5: 9 | U5: 0 | V5: 1 | W5: 1 | X5: 0 | Y5: 0 | Z5: 0 | AA5: 0 | AB5: 0 | AC5: 0 | AD5: 1 | AE5: 6 | AF5: 3 | AG5: 2 | AH5: 0 | AI5: 0 | AJ5: 0 | AK5: 0 | AL5: 260 | AM5: 6 | AN5: 260 | AO5: 0 | AP5: 0 | AQ5: 0 | AR5: 0 | AS5: 0 | AT5: 0
A6: 05-C1 | B6: Calaveras Superior Court | C6: 400 Government Center Drive | D6: San Andreas | E6: 95249 | F6: Calaveras | G6: NCRO | J6: 1 | K6: 7 | L6: 3 | M6: 0 | N6: 2 | O6: 0 | P6: 0 | Q6: 0 | R6: 0 | S6: 0 | T6: 2 | U6: 0 | V6: 2 | W6: 1 | X6: 0 | Y6: 1 | Z6: 0 | AA6: 1 | AB6: 0 | AC6: 0 | AD6: 1 | AE6: 6 | AF6: 2 | AG6: 0 | AH6: 0 | AI6: 0 | AJ6: 0 | AK6: 0 | AL6: 260 | AM6: 6 | AN6: 260 | AO6: 0 | AP6: 0 | AQ6: 0 | AR6: 0 | AS6: 0 | AT6: 0
A7: 09-A1 | B7: Main St. Courthouse | C7: 495 Main St. | D7: Placerville | E7: 95667 | F7: El Dorado | G7: NCRO | J7: 1 | K7: 3 | L7: 3 | M7: 0 | N7: 0 | O7: 0 | P7: 0 | Q7: 0 | R7: 0 | S7: 0 | T7: 0 | U7: 0 | V7: 1 | W7: 0 | X7: 0 | Y7: 0 | Z7: 0 | AA7: 0 | AB7: 0 | AC7: 0 | AD7: 1 | AE7: 2 | AF7: 1 | AG7: 0 | AH7: 3 | AI7: 0 | AJ7: 0 | AK7: 0 | AL7: 52 | AM7: 1 | AN7: 52 | AO7: 0 | AP7: 0 | AQ7: 0 | AR7: 0 | AS7: 0 | AT7: 0
A8: 10-A1 | B8: Fresno County Courthouse | C8: 1100 Van Ness Ave. | D8: Fresno | E8: 93724 | F8: Fresno | G8: NCRO | J8: 1 | K8: 9 | L8: 12 | M8: 0 | N8: 2 | O8: 1 | P8: 0 | Q8: 0 | R8: 0 | S8: 4 | T8: 4 | U8: 0 | V8: 1 | W8: 1 | X8: 0 | Y8: 0 | Z8: 0 | AA8: 0 | AB8: 1 | AC8: 0 | AD8: 1 | AE8: 4 | AF8: 0 | AG8: 0 | AH8: 0 | AI8: 0 | AJ8: 0 | AK8: 14 | AL8: 260 | AM8: 11 | AN8: 260 | AO8: 0 | AP8: 0 | AQ8: 0 | AR8: 0 | AS8: 0 | AT8: 0
A9: 10-O1 | B9: B.F. Sisk Courthouse | C9: 1130 O Street | D9: Fresno | E9: 93721 | F9: Fresno | G9: NCRO | J9: 1 | K9: 15 | L9: 11 | M9: 0 | N9: 2 | O9: 2 | P9: 0 | Q9: 0 | R9: 0 | S9: 1 | T9: 29 | U9: 0 | V9: 3 | W9: 1 | X9: 1 | Y9: 0 | Z9: 0 | AA9: 7 | AB9: 2 | AC9: 0 | AD9: 1 | AE9: 2 | AF9: 3 | AG9: 0 | AH9: 0 | AI9: 0 | AJ9: 0 | AK9: 0 | AL9: 260 | AM9: 8 | AN9: 260 | AO9: 0 | AP9: 0 | AQ9: 1 | AR9: 0 | AS9: 0 | AT9: 0
A10: 16-A5 | B10: Hanford Courthouse | C10: 1640 Kings County Drive | D10: Hanford | E10: 93230 | F10: Kings | G10: NCRO | J10: 1 | K10: 29 | L10: 8 | M10: 0 | N10: 2 | O10: 2 | P10: 0 | Q10: 0 | R10: 11 | S10: 11 | T10: 6 | U10: 0 | V10: 11 | W10: 0 | X10: 0 | Y10: 1 | Z10: 0 | AA10: 17 | AB10: 1 | AC10: 0 | AD10: 1 | AE10: 8 | AF10: 3 | AG10: 0 | AH10: 0 | AI10: 0 | AJ10: 0 | AK10: 0 | AL10: 260 | AM10: 14 | AN10: 260 | AO10: 0 | AP10: 0 | AQ10: 0 | AR10: 0 | AS10: 0 | AT10: 0
A11: 18-C1 | B11: Hall of Justice | C11: 2610 Riverside Drive | D11: Susanville | E11: 96130 | F11: Lassen | G11: NCRO | J11: 1 | K11: 6 | L11: 2 | M11: 0 | N11: 0 | O11: 0 | P11: 0 | Q11: 0 | R11: 0 | S11: 6 | T11: 6 | U11: 0 | V11: 1 | W11: 0 | X11: 1 | Y11: 0 | Z11: 0 | AA11: 2 | AB11: 1 | AC11: 0 | AD11: 1 | AE11: 3 | AF11: 3 | AG11: 0 | AH11: 3 | AI11: 0 | AJ11: 0 | AK11: 0 | AL11: 52 | AM11: 4 | AN11: 52 | AO11: 0 | AP11: 0 | AQ11: 0 | AR11: 0 | AS11: 0 | AT11: 0
A12: 20-F1 | B12: Main Courthouse | C12: 200 South G Street | D12: Madera | E12: 93637 | F12: Madera | G12: NCRO | J12: 1 | K12: 22 | L12: 7 | M12: 0 | N12: 2 | O12: 0 | P12: 0 | Q12: 0 | R12: 0 | S12: 19 | T12: 10 | U12: 0 | V12: 5 | W12: 1 | X12: 0 | Y12: 0 | Z12: 0 | AA12: 17 | AB12: 0 | AC12: 0 | AD12: 1 | AE12: 5 | AF12: 2 | AG12: 1 | AH12: 0 | AI12: 0 | AJ12: 0 | AK12: 0 | AL12: 260 | AM12: 8 | AN12: 260 | AO12: 0 | AP12: 0 | AQ12: 0 | AR12: 0 | AS12: 0 | AT12: 0
A13: 20-F2 | B13: Main Courthouse Parking Garage | C13: 220/224 and 228 South G Street | D13: Madera | E13: 93637 | F13: Madera | G13: NCRO | J13: 1 | K13: 1 | L13: 0 | M13: 0 | N13: 0 | O13: 0 | P13: 0 | Q13: 0 | R13: 0 | S13: 1 | T13: 1 | U13: 0 | V13: 1 | W13: 0 | X13: 0 | Y13: 0 | Z13: 0 | AA13: 1 | AB13: 1 | AC13: 0 | AD13: 1 | AE13: 0 | AF13: 0 | AG13: 0 | AH13: 0 | AI13: 0 | AJ13: 0 | AK13: 0 | AL13: 52 | AM13: 1 | AN13: 52 | AO13: 0 | AP13: 0 | AQ13: 0 | AR13: 0 | AS13: 0 | AT13: 0
A14: 24-A1 | B14: Old Court | C14: 627 W. 21st Street | D14: Merced | E14: 95340 | F14: Merced | G14: NCRO | J14: 1 | K14: 4 | L14: 8 | M14: 0 | N14: 0 | O14: 0 | P14: 0 | Q14: 0 | R14: 0 | S14: 0 | T14: 0 | U14: 0 | V14: 0 | W14: 0 | X14: 0 | Y14: 0 | Z14: 0 | AA14: 0 | AB14: 0 | AC14: 0 | AD14: 1 | AE14: 3 | AF14: 0 | AG14: 0 | AH14: 1 | AI14: 0 | AJ14: 0 | AK14: 0 | AL14: 52 | AM14: 0 | AN14: 52 | AO14: 0 | AP14: 0 | AQ14: 0 | AR14: 0 | AS14: 0 | AT14: 0
A15: 24-A8 | B15: Main Merced Courthouse | C15: 2260 N Street | D15: Merced | E15: 95340 | F15: Merced | G15: NCRO | J15: 1 | K15: 1 | L15: 2 | M15: 0 | N15: 0 | O15: 0 | P15: 0 | Q15: 0 | R15: 0 | S15: 1 | T15: 2 | U15: 0 | V15: 1 | W15: 1 | X15: 0 | Y15: 0 | Z15: 0 | AA15: 0 | AB15: 0 | AC15: 0 | AD15: 1 | AE15: 5 | AF15: 1 | AG15: 0 | AH15: 0 | AI15: 0 | AJ15: 0 | AK15: 0 | AL15: 52 | AM15: 4 | AN15: 52 | AO15: 0 | AP15: 0 | AQ15: 0 | AR15: 0 | AS15: 0 | AT15: 0
A16: 24-G1 | B16: Robert M. Falasco Justice Center | C16: 1159 G Street | D16: Los Banos | E16: 93635 | F16: Merced | G16: NCRO | J16: 1 | K16: 4 | L16: 2 | M16: 0 | N16: 0 | O16: 0 | P16: 0 | Q16: 0 | R16: 0 | S16: 0 | T16: 0 | U16: 0 | V16: 1 | W16: 1 | X16: 0 | Y16: 1 | Z16: 0 | AA16: 0 | AB16: 0 | AC16: 0 | AD16: 1 | AE16: 4 | AF16: 2 | AG16: 0 | AH16: 0 | AI16: 0 | AJ16: 0 | AK16: 0 | AL16: 52 | AM16: 3 | AN16: 52 | AO16: 0 | AP16: 0 | AQ16: 0 | AR16: 0 | AS16: 0 | AT16: 0
A17: 25-A1 | B17: Barclay Justice Center | C17: 205 S. East Street | D17: Alturas | E17: 96101 | F17: Modoc | G17: NCRO | J17: 1 | K17: 8 | L17: 0 | M17: 0 | N17: 0 | O17: 0 | P17: 0 | Q17: 0 | R17: 0 | S17: 0 | T17: 0 | U17: 0 | V17: 2 | W17: 0 | X17: 0 | Y17: 0 | Z17: 0 | AA17: 0 | AB17: 0 | AC17: 0 | AD17: 1 | AE17: 0 | AF17: 0 | AG17: 0 | AH17: 2 | AI17: 0 | AJ17: 0 | AK17: 0 | AL17: 52 | AM17: 0 | AN17: 52 | AO17: 0 | AP17: 0 | AQ17: 0 | AR17: 0 | AS17: 0 | AT17: 0
A18: 26-B2 | B18: Mammoth Lakes Courthouse | C18: 100 Thompsons Way | D18: Mammoth Lakes | E18: 93546 | F18: Mono | G18: NCRO | J18: 1 | K18: 1 | L18: 4 | M18: 0 | N18: 0 | O18: 0 | P18: 0 | Q18: 0 | R18: 0 | S18: 0 | T18: 2 | U18: 0 | V18: 0 | W18: 0 | X18: 0 | Y18: 0 | Z18: 0 | AA18: 0 | AB18: 0 | AC18: 0 | AD18: 1 | AE18: 5 | AF18: 2 | AG18: 1 | AH18: 0 | AI18: 0 | AJ18: 0 | AK18: 0 | AL18: 52 | AM18: 3 | AN18: 52 | AO18: 0 | AP18: 0 | AQ18: 0 | AR18: 0 | AS18: 0 | AT18: 0
A19: 31-H1 | B19: Hon. Howard G. Gibson Courthouse | C19: 10820 Justice Center Drive | D19: Roseville | E19: 95678 | F19: Placer | G19: NCRO | J19: 1 | K19: 12 | L19: 5 | M19: 0 | N19: 0 | O19: 0 | P19: 0 | Q19: 0 | R19: 0 | S19: 2 | T19: 11 | U19: 0 | V19: 1 | W19: 1 | X19: 0 | Y19: 0 | Z19: 0 | AA19: 0 | AB19: 0 | AC19: 0 | AD19: 1 | AE19: 7 | AF19: 2 | AG19: 0 | AH19: 0 | AI19: 0 | AJ19: 0 | AK19: 0 | AL19: 52 | AM19: 7 | AN19: 52 | AO19: 0 | AP19: 0 | AQ19: 0 | AR19: 0 | AS19: 0 | AT19: 0
A20: 34-A1 | B20: Gordon Schaber Sacramento Superior Court | C20: 720 Ninth St. | D20: Sacramento | E20: 95814 | F20: Sacramento | G20: NCRO | J20: 1 | K20: 11 | L20: 12 | M20: 0 | N20: 0 | O20: 0 | P20: 0 | Q20: 0 | R20: 0 | S20: 0 | T20: 11 | U20: 0 | V20: 1 | W20: 1 | X20: 15 | Y20: 0 | Z20: 0 | AA20: 2 | AB20: 0 | AC20: 0 | AD20: 1 | AE20: 7 | AF20: 1 | AG20: 0 | AH20: 0 | AI20: 0 | AJ20: 0 | AK20: 1 | AL20: 52 | AM20: 26 | AN20: 52 | AO20: 0 | AP20: 0 | AQ20: 0 | AR20: 0 | AS20: 0 | AT20: 0
A21: 34-C2 | B21: Juvenile Courthouse | C21: 9605 Kiefer Road | D21: Sacramento | E21: 95827 | F21: Sacramento | G21: NCRO | H21: 4 condensors 2 splits? | J21: 1 | K21: 2 | L21: 3 | M21: 0 | N21: 2 | O21: 2 | P21: 0 | Q21: 0 | R21: 16 | S21: 16 | T21: 4 | U21: 0 | V21: 0 | W21: 1 | X21: 0 | Y21: 0 | Z21: 0 | AA21: 0 | AB21: 2 | AC21: 0 | AD21: 1 | AE21: 7 | AF21: 2 | AG21: 2 | AH21: 0 | AI21: 0 | AJ21: 0 | AK21: 0 | AL21: 260 | AM21: 12 | AN21: 260 | AO21: 0 | AP21: 0 | AQ21: 0 | AR21: 0 | AS21: 0 | AT21: 0
A22: 34-D1 | B22: Carol Miller Justice Center Court Facility | C22: 301 Bicentennial Circle | D22: Sacramento | E22: 95826 | F22: Sacramento | G22: NCRO | H22: 2 move & cools? | J22: 1 | K22: 7 | L22: 2 | M22: 0 | N22: 2 | O22: 1 | P22: 0 | Q22: 0 | R22: 0 | S22: 0 | T22: 3 | U22: 0 | V22: 0 | W22: 1 | X22: 0 | Y22: 1 | Z22: 0 | AA22: 0 | AB22: 0 | AC22: 0 | AD22: 1 | AE22: 6 | AF22: 2 | AG22: 1 | AH22: 1 | AI22: 0 | AJ22: 0 | AK22: 0 | AL22: 260 | AM22: 4 | AN22: 260 | AO22: 0 | AP22: 0 | AQ22: 0 | AR22: 0 | AS22: 0 | AT22: 0
A23: 39-C1 | B23: Manteca Branch Court | C23: 315 E. Center St. | D23: Manteca | E23: 95336 | F23: San Joaquin | G23: NCRO | J23: 1 | K23: 0 | L23: 5 | M23: 0 | N23: 0 | O23: 0 | P23: 0 | Q23: 0 | R23: 0 | S23: 0 | T23: 4 | U23: 0 | V23: 1 | W23: 0 | X23: 0 | Y23: 1 | Z23: 0 | AA23: 0 | AB23: 0 | AC23: 0 | AD23: 1 | AE23: 4 | AF23: 0 | AG23: 11 | AH23: 1 | AI23: 0 | AJ23: 0 | AK23: 0 | AL23: 52 | AM23: 0 | AN23: 52 | AO23: 0 | AP23: 0 | AQ23: 0 | AR23: 0 | AS23: 0 | AT23: 0
A24: 39-D2 | B24: Lodi Branch Dept. 2 | C24: 315 W. Elm St. | D24: Lodi | E24: 95240 | F24: San Joaquin | G24: NCRO | J24: 1 | K24: 0 | L24: 2 | M24: 0 | N24: 0 | O24: 0 | P24: 0 | Q24: 0 | R24: 0 | S24: 0 | T24: 4 | U24: 0 | V24: 1 | W24: 0 | X24: 0 | Y24: 0 | Z24: 0 | AA24: 0 | AB24: 0 | AC24: 0 | AD24: 1 | AE24: 3 | AF24: 0 | AG24: 1 | AH24: 0 | AI24: 0 | AJ24: 0 | AK24: 0 | AL24: 52 | AM24: 0 | AN24: 52 | AO24: 0 | AP24: 0 | AQ24: 0 | AR24: 0 | AS24: 0 | AT24: 0
A25: 39-F1 | B25: Stockton Courthouse | C25: 180 East Weber Avenue | D25: Stockton | E25: 95202 | F25: San Joaquin | G25: NCRO | J25: 1 | K25: 6 | L25: 31 | M25: 0 | N25: 2 | O25: 2 | P25: 0 | Q25: 0 | R25: 44 | S25: 44 | T25: 21 | U25: 0 | V25: 1 | W25: 1 | X25: 0 | Y25: 0 | Z25: 0 | AA25: 2 | AB25: 0 | AC25: 0 | AD25: 1 | AE25: 12 | AF25: 4 | AG25: 3 | AH25: 0 | AI25: 0 | AJ25: 0 | AK25: 0 | AL25: 260 | AM25: 18 | AN25: 260 | AO25: 0 | AP25: 0 | AQ25: 0 | AR25: 0 | AS25: 0 | AT25: 0
A26: 45-A1 | B26: Main Courthouse | C26: 1500 Court St. | D26: Redding | E26: 96001 | F26: Shasta | G26: NCRO | J26: 1 | K26: 3 | L26: 8 | M26: 0 | N26: 1 | O26: 1 | P26: 0 | Q26: 0 | R26: 0 | S26: 0 | T26: 3 | U26: 0 | V26: 0 | W26: 0 | X26: 0 | Y26: 1 | Z26: 0 | AA26: 0 | AB26: 0 | AC26: 0 | AD26: 1 | AE26: 4 | AF26: 1 | AG26: 0 | AH26: 1 | AI26: 0 | AJ26: 0 | AK26: 0 | AL26: 260 | AM26: 3 | AN26: 260 | AO26: 0 | AP26: 0 | AQ26: 0 | AR26: 0 | AS26: 0 | AT26: 0
A27: 45-A7 | B27: Courthouse Annex | C27: 1500 Court St. | D27: Redding | E27: 96001 | F27: Shasta | G27: NCRO | J27: 1 | K27: 2 | L27: 3 | M27: 0 | N27: 1 | O27: 1 | P27: 0 | Q27: 0 | R27: 0 | S27: 0 | T27: 4 | U27: 0 | V27: 0 | W27: 0 | X27: 0 | Y27: 0 | Z27: 0 | AA27: 0 | AB27: 0 | AC27: 0 | AD27: 1 | AE27: 4 | AF27: 0 | AG27: 1 | AH27: 0 | AI27: 0 | AJ27: 0 | AK27: 1 | AL27: 260 | AM27: 3 | AN27: 260 | AO27: 0 | AP27: 0 | AQ27: 0 | AR27: 0 | AS27: 0 | AT27: 0
A28: 50-A1 | B28: Modesto Main Courthouse | C28: 800 11th Street | D28: Modesto | E28: 95354 | F28: Stanislaus | G28: NCRO | J28: 1 | K28: 1 | L28: 3 | M28: 0 | N28: 2 | O28: 1 | P28: 0 | Q28: 0 | R28: 0 | S28: 0 | T28: 4 | U28: 0 | V28: 1 | W28: 0 | X28: 1 | Y28: 0 | Z28: 0 | AA28: 0 | AB28: 0 | AC28: 0 | AD28: 1 | AE28: 4 | AF28: 2 | AG28: 1 | AH28: 0 | AI28: 0 | AJ28: 0 | AK28: 2 | AL28: 260 | AM28: 4 | AN28: 260 | AO28: 0 | AP28: 0 | AQ28: 0 | AR28: 0 | AS28: 0 | AT28: 0
A29: 50-A2 | B29: Hall of Records | C29: 1100 I Street | D29: Modesto | E29: 95353 | F29: Stanislaus | G29: NCRO | J29: 1 | K29: 4 | L29: 5 | M29: 0 | N29: 0 | O29: 1 | P29: 0 | Q29: 0 | R29: 0 | S29: 0 | T29: 3 | U29: 0 | V29: 1 | W29: 0 | X29: 0 | Y29: 1 | Z29: 0 | AA29: 0 | AB29: 0 | AC29: 0 | AD29: 1 | AE29: 0 | AF29: 0 | AG29: 0 | AH29: 0 | AI29: 0 | AJ29: 0 | AK29: 2 | AL29: 260 | AM29: 2 | AN29: 260 | AO29: 0 | AP29: 0 | AQ29: 0 | AR29: 0 | AS29: 0 | AT29: 0
A30: 50-C1 | B30: Ceres Superior Court | C30: 2744 Second St. | D30: Ceres | E30: 95307 | F30: Stanislaus | G30: NCRO | H30: 2 condensors only? | J30: 1 | K30: 2 | L30: 0 | M30: 0 | N30: 0 | O30: 0 | P30: 0 | Q30: 0 | R30: 0 | S30: 0 | T30: 0 | U30: 0 | V30: 0 | W30: 0 | X30: 0 | Y30: 0 | Z30: 0 | AA30: 0 | AB30: 0 | AC30: 0 | AD30: 1 | AE30: 0 | AF30: 0 | AG30: 0 | AH30: 1 | AI30: 0 | AJ30: 0 | AK30: 0 | AL30: 52 | AM30: 0 | AN30: 52 | AO30: 0 | AP30: 0 | AQ30: 0 | AR30: 0 | AS30: 0 | AT30: 0
A31: 50-D1 | B31: Turlock Superior Court | C31: 300 Starr Ave. | D31: Turlock | E31: 95380 | F31: Stanislaus | G31: NCRO | H31: ac unit gas? | J31: 1 | K31: 1 | L31: 3 | M31: 0 | N31: 0 | O31: 0 | P31: 0 | Q31: 0 | R31: 0 | S31: 0 | T31: 0 | U31: 0 | V31: 1 | W31: 0 | X31: 0 | Y31: 0 | Z31: 0 | AA31: 0 | AB31: 0 | AC31: 0 | AD31: 1 | AE31: 1 | AF31: 0 | AG31: 0 | AH31: 1 | AI31: 0 | AJ31: 0 | AK31: 0 | AL31: 52 | AM31: 0 | AN31: 52 | AO31: 0 | AP31: 0 | AQ31: 0 | AR31: 0 | AS31: 0 | AT31: 0
A32: 51-C1 | B32: Sutter County Superior Courthouse | C32: 1175 Civic Center Blvd. | D32: Yuba City | E32: 95993 | F32: Sutter | G32: NCRO | J32: 1 | K32: 4 | L32: 10 | M32: 0 | N32: 2 | O32: 0 | P32: 0 | Q32: 0 | R32: 0 | S32: 4 | T32: 8 | U32: 0 | V32: 11 | W32: 1 | X32: 0 | Y32: 3 | Z32: 0 | AA32: 12 | AB32: 0 | AC32: 0 | AD32: 1 | AE32: 5 | AF32: 2 | AG32: 0 | AH32: 1 | AI32: 0 | AJ32: 0 | AK32: 0 | AL32: 260 | AM32: 5 | AN32: 260 | AO32: 0 | AP32: 0 | AQ32: 0 | AR32: 0 | AS32: 0 | AT32: 0
A33: 52-E1 | B33: Tehama County Courthouse | C33: 1740 Walnut Street | D33: Red Bluff | E33: 96080 | F33: Tehama | G33: NCRO | H33: package units heater? | J33: 1 | K33: 9 | L33: 4 | M33: 0 | N33: 0 | O33: 0 | P33: 0 | Q33: 0 | R33: 0 | S33: 0 | T33: 5 | U33: 0 | V33: 0 | W33: 0 | X33: 0 | Y33: 0 | Z33: 0 | AA33: 0 | AB33: 0 | AC33: 0 | AD33: 1 | AE33: 6 | AF33: 2 | AG33: 0 | AH33: 0 | AI33: 0 | AJ33: 0 | AK33: 0 | AL33: 52 | AM33: 5 | AN33: 52 | AO33: 0 | AP33: 0 | AQ33: 0 | AR33: 0 | AS33: 0 | AT33: 0
A34: 54-I1 | B34: South County Justice Center | C34: 300 East Olive Avenue | D34: Porterville | E34: 93257 | F34: Tulare | G34: NCRO | J34: 1 | K34: 4 | L34: 22 | M34: 1 | N34: 1 | O34: 0 | P34: 0 | Q34: 0 | R34: 0 | S34: 16 | T34: 5 | U34: 0 | V34: 0 | W34: 1 | X34: 0 | Y34: 1 | Z34: 0 | AA34: 0 | AB34: 1 | AC34: 0 | AD34: 1 | AE34: 6 | AF34: 2 | AG34: 2 | AH34: 0 | AI34: 0 | AJ34: 0 | AK34: 0 | AL34: 260 | AM34: 7 | AN34: 260 | AO34: 0 | AP34: 0 | AQ34: 0 | AR34: 0 | AS34: 0 | AT34: 0
A35: 57-A10 | B35: Yolo Superior Court | C35: 1000 Main Street | D35: Woodland | E35: 95695 | F35: Yolo | G35: NCRO | J35: 1 | K35: 0 | L35: 14 | M35: 0 | N35: 2 | O35: 2 | P35: 0 | Q35: 0 | R35: 0 | S35: 10 | T35: 8 | U35: 0 | V35: 5 | W35: 1 | X35: 0 | Y35: 1 | Z35: 0 | AA35: 16 | AB35: 1 | AC35: 0 | AD35: 1 | AE35: 8 | AF35: 2 | AG35: 0 | AH35: 2 | AI35: 0 | AJ35: 0 | AK35: 0 | AL35: 260 | AM35: 8 | AN35: 260 | AO35: 0 | AP35: 0 | AQ35: 0 | AR35: 0 | AS35: 0 | AT35: 0
A36: 65-A2 | B36: 2424 Ventura Street - 5 DCA | C36: 2424 Ventura Street | D36: Fresno | E36: 93721 | F36: Fresno | G36: NCRO | H36: Both Court and JCC have responsibility. JCC performs PMs and court-requested work. (add to list) Dummy Preaction? | J36: 1 | K36: 0 | L36: 2 | M36: 0 | N36: 0 | O36: 0 | P36: 0 | Q36: 0 | R36: 0 | S36: 0 | T36: 3 | U36: 0 | V36: 0 | W36: 1 | X36: 0 | Y36: 1 | Z36: 0 | AA36: 0 | AB36: 0 | AC36: 0 | AD36: 1 | AE36: 2 | AF36: 2 | AG36: 2 | AH36: 0 | AI36: 0 | AJ36: 0 | AK36: 0 | AL36: 52 | AM36: 1 | AN36: 52 | AO36: 0 | AP36: 0 | AQ36: 0 | AR36: 0 | AS36: 0 | AT36: 0

Sheet Master Template (hidden)
B1: JCC ID | C1: Facility Name | D1: Address | F1: City / Town | H1: Zip Code | J1: County | L1: Region | N1: RFP | P1: Proposer
C2: =IFERROR(VLOOKUP($B$2,'Equipment List Template'!$1:$1048576,2,FALSE),"") ->  | D2: =IFERROR(VLOOKUP($B$2,'Equipment List Template'!$1:$1048576,3,FALSE),"") ->  | F2: =IFERROR(VLOOKUP($B$2,'Equipment List Template'!$1:$1048576,4,FALSE),"") ->  | H2: =IFERROR(VLOOKUP($B$2,'Equipment List Template'!$1:$1048576,5,FALSE),"") ->  | J2: =IFERROR(VLOOKUP($B$2,'Equipment List Template'!$1:$1048576,6,FALSE),"") ->  | L2: =IFERROR(VLOOKUP($B$2,'Equipment List Template'!$1:$1048576,7,FALSE),"") ->  | N2: ='Summary Pricing Sheet'!B2 -> RFP-FS-SP-2019-03-JP | P2: ='Summary Pricing Sheet'!B3 -> TBD
D3: Daily Activity | G3: Weekly Activity | J3: Monthly Activity | M3: Quarterly Activity | P3: Annual Activity | U3: Summary | AG3: System | AH3: HVAC | AS3: Electrical | BA3: Plumbing | BE3: Building Systems | BP3: Corporate | BT3: Fixed Price - Facility Total Annual Cost Year 1
B4: System ID | C4: Subsystem | D4: Quantity | E4: Cost | F4: Daily Total | G4: Quantity | H4: Cost | I4: Weekly Total | J4: Monthly Quantity | K4: Cost | L4: Monthly Total | M4: Quarterly Quantity | N4: Cost | O4: Quarterly Total | P4: Annual Quantity | Q4: Cost | R4: Annual PM Total | T4: Number of PM's | U4: Annual Cost | V4: Quantity | W4: Total Annual Cost | AG4: Subsystem | AH4: Air Cooled DX (Package / Split System) | AI4: Air Handling Unit (Air-cooled DX) | AJ4: Air-Cooled Chiller | AK4: Centrifugal Chiller | AL4: Cooling Tower (Induced Draft) | AM4: Ice Chiller | AN4: Multitask (Geothermal) | AO4: Water Source Heat Pump | AP4: Fan Coil System | AQ4: Exhaust Fan | AR4: HVAC Unique System | AS4: Electrical Panels | AT4: Emergency Generator | AU4: Motor Control Center | AV4: Primary Switch (High) | AW4: Primary Switch (Low) | AX4: Transformer (Dry-Type) | AY4: Uninterruptible Power Supply (UPS) | AZ4: Electrical Unique System | BA4: Hot Water Boiler | BB4: Condensing Water Heater | BC4: Electric Water Heater | BD4: Plumbing Unique System | BE4: Steam System | BF4: Pneumatic Compressor | BG4: Vertical Transportation | BH4: Life Safety | BI4: Backflow Preventor | BJ4: Rounds and Readings | BK4: Access Doors, Gates, Sally Port | BL4: Water Treatment | BM4: Building Exterior / Hardscape (Monthly) | BN4: Fountain Maintenance (Monthly) | BO4: Fuel Storage Tanks (Quarterly) If applicable | BP4: Landscape Maintenance * | BQ4: Account Management and Supervision (Monthly) | BR4: Fee (Monthly) | BV4: Snow Removal - (crew hourly rate) | BW4: Unclogging Blocked Toilet - In-custody holding cell (labor) | BX4: Unclogging Blocked Toilet - Public/Court Staff (labor) | BY4: Hourly Rate | BZ4: Markup on Materials | CA4: Markup on Subcontractors/Third-Parties
A5: =$B$2 -> 0 | B5: A1 | C5: Access Doors, Gates, Sally Port | J5: 11 | K5: 0 | L5: =+K5*J5 -> 0 | M5: 0 | N5: 0 | O5: =+N5*M5 -> 0 | P5: 1 | Q5: 0 | R5: =+Q5*P5 -> 0 | S5: 12 | T5: =IF($V5>0,$S5,0) -> 12 | U5: =+R5+O5+L5+I5+F5 -> 0 | V5: =IFERROR(VLOOKUP($A$5,'Equipment List Template'!$1:$1048576,10,FALSE),"0") -> 0 | W5: =+U5*V5 -> 0 | Z5: JCC ID | AA5: Facility Name | AB5: Address | AC5: City / Town | AD5: County | AE5: Region | AF5: Region | AG5: System ID | AH5: H1 | AI5: H2 | AJ5: H3 | AK5: H4 | AL5: H5 | AM5: H6 | AN5: H7 | AO5: H8 | AP5: H9 | AQ5: H10 | AR5: H11 | AS5: E1 | AT5: E2 | AU5: E3 | AV5: E4 | AW5: E5 | AX5: E6 | AY5: E7 | AZ5: E8 | BA5: P1 | BB5: P2 | BC5: P3 | BD5: P4 | BE5: P5 | BF5: P6 | BG5: V1 | BH5: L1 | BI5: L2 | BJ5: R1 | BK5: A1 | BL5: W1 | BM5: B1 | BN5: F1 | BO5: F2 | BP5: G1 | BQ5: C1 | BR5: C2 | BV5: S1 | BW5: I1 | BX5: I2 | BY5: Hr 1 | BZ5: M1 | CA5: Sub1
A6: =$B$2 -> 0 | B6: H1 | C6: Air Cooled DX (Package / Split System) | J6: 0 | K6: 0 | L6: =+K6*J6 -> 0 | M6: 3 | N6: 0 | O6: =+N6*M6 -> 0 | P6: 1 | Q6: 0 | R6: =+Q6*P6 -> 0 | S6: 4 | T6: =IF($V6>0,$S6,0) -> 4 | U6: =+R6+O6+L6+I6+F6 -> 0 | V6: =IFERROR(VLOOKUP($A$5,'Equipment List Template'!$1:$1048576,11,FALSE),"0") -> 0 | W6: =+U6*V6 -> 0 | Z6: =B2 -> 0 | AA6: =IFERROR(VLOOKUP($Z$6,'Equipment List Template'!$1:$1048576,2,FALSE),"") ->  | AB6: =IFERROR(VLOOKUP($Z$6,'Equipment List Template'!$1:$1048576,3,FALSE),"") ->  | AC6: =IFERROR(VLOOKUP($Z$6,'Equipment List Template'!$1:$1048576,4,FALSE),"") ->  | AD6: =IFERROR(VLOOKUP($Z$6,'Equipment List Template'!$1:$1048576,5,FALSE),"") ->  | AE6: =IFERROR(VLOOKUP($Z$6,'Equipment List Template'!$1:$1048576,6,FALSE),"") ->  | AF6: =IFERROR(VLOOKUP($Z$6,'Equipment List Template'!$1:$1048576,7,FALSE),"") ->  | AH6: =+$W5 -> 0 | AI6: =+$W6 -> 0 | AJ6: =+$W7 -> 0 | AK6: =+$W8 -> 0 | AL6: =+$W9 -> 0 | AM6: =+$W10 -> 0 | AN6: =+$W11 -> 0 | AO6: =+$W12 -> 0 | AP6: =+$W13 -> 0 | AQ6: =+$W14 -> 0 | AR6: =+$W15 -> 0 | AS6: =+$W16 -> 0 | AT6: =+$W17 -> 0 | AU6: =+$W18 -> 0 | AV6: =+$W19 -> 0 | AW6: =+$W20 -> 0 | AX6: =+$W21 -> 0 | AY6: =+$W22 -> 0 | AZ6: =+$W23 -> 0 | BA6: =+$W24 -> 0 | BB6: =+$W25 -> 0 | BC6: =+$W26 -> 0 | BD6: =+$W27 -> 0 | BE6: =+$W28 -> 0 | BF6: =+$W29 -> 0 | BG6: =+$W30 -> 0 | BH6: =+$W31 -> 0 | BI6: =+$W32 -> 0 | BJ6: =+$W33 -> 0 | BK6: =+$W34 -> 0 | BL6: =+$W35 -> 0 | BM6: =+$W36 -> 0 | BN6: =+$W37 -> 0 | BO6: =+$W38 -> 0 | BP6: =+$W39 -> 0 | BQ6: =+$W40 -> 0 | BR6: =+$W41 -> 0 | BT6: =+W42 -> 0 | BV6: =+D43 -> 0 | BW6: =+D44 -> 0 | BX6: =+D45 -> 0 | BY6: =+D46 -> 0 | BZ6: =+D47 -> 0 | CA6: =+D48 -> 0
A7: 0 | B7: H2 | C7: Air Handling Unit (Air-cooled DX) | J7: 0 | K7: 0 | L7: 0 | M7: 3 | N7: 0 | O7: 0 | P7: 1 | Q7: 0 | R7: 0 | S7: 4 | T7: 4 | U7: 0 | V7: =IFERROR(VLOOKUP($A$5,'Equipment List Template'!$1:$1048576,12,FALSE),"0") -> 0 | W7: =+U7*V7 -> 0
A8: 0 | B8: H3 | C8: Air-Cooled Chiller | G8: 40 | H8: 0 | I8: =+H8*G8 -> 0 | J8: 8 | K8: 0 | L8: 0 | M8: 3 | N8: 0 | O8: 0 | P8: 1 | Q8: 0 | R8: 0 | S8: 12 | T8: 12 | U8: 0 | V8: =IFERROR(VLOOKUP($A$5,'Equipment List Template'!$1:$1048576,13,FALSE),"0") -> 0 | W8: 0
A9: 0 | B9: H4 | C9: Centrifugal Chiller | J9: 11 | K9: 0 | L9: 0 | M9: 0 | N9: 0 | O9: 0 | P9: 1 | Q9: 0 | R9: 0 | S9: 12 | T9: 12 | U9: 0 | V9: =IFERROR(VLOOKUP($A$5,'Equipment List Template'!$1:$1048576,14,FALSE),"0") -> 0 | W9: 0
A10: 0 | B10: H5 | C10: Cooling Tower (Induced Draft) | J10: 8 | K10: 0 | L10: 0 | M10: 3 | N10: 0 | O10: 0 | P10: 1 | Q10: 0 | R10: 0 | S10: 12 | T10: 12 | U10: 0 | V10: =IFERROR(VLOOKUP($A$5,'Equipment List Template'!$1:$1048576,15,FALSE),"0") -> 0 | W10: 0
A11: 0 | B11: H6 | C11: Ice Chiller | J11: 8 | K11: 0 | L11: 0 | M11: 3 | N11: 0 | O11: 0 | P11: 1 | Q11: 0 | R11: 0 | S11: 12 | T11: 12 | U11: 0 | V11: =IFERROR(VLOOKUP($A$5,'Equipment List Template'!$1:$1048576,16,FALSE),"0") -> 0 | W11: 0
A12: 0 | B12: H7 | C12: MultiStack (Geothermal) | J12: 0 | K12: 0 | L12: 0 | M12: 0 | N12: 0 | O12: 0 | P12: 1 | Q12: 0 | R12: 0 | S12: 1 | T12: 1 | U12: 0 | V12: =IFERROR(VLOOKUP($A$5,'Equipment List Template'!$1:$1048576,17,FALSE),"0") -> 0 | W12: 0
A13: 0 | B13: H8 | C13: Water Source Heat Pump | J13: 8 | K13: 0 | L13: 0 | M13: 3 | N13: 0 | O13: 0 | P13: 1 | Q13: 0 | R13: 0 | S13: 12 | T13: 12 | U13: 0 | V13: =IFERROR(VLOOKUP($A$5,'Equipment List Template'!$1:$1048576,18,FALSE),"0") -> 0 | W13: 0
A14: 0 | B14: H9 | C14: Fan Coil System | J14: 0 | K14: 0 | L14: 0 | M14: 3 | N14: 0 | O14: 0 | P14: 1 | Q14: 0 | R14: 0 | S14: 4 | T14: 4 | U14: 0 | V14: =IFERROR(VLOOKUP($A$5,'Equipment List Template'!$1:$1048576,19,FALSE),"0") -> 0 | W14: 0
A15: 0 | B15: H10 | C15: Exhaust Fan | J15: 0 | K15: 0 | L15: 0 | M15: 3 | N15: 0 | O15: 0 | P15: 1 | Q15: 0 | R15: 0 | S15: 4 | T15: 4 | U15: 0 | V15: =IFERROR(VLOOKUP($A$5,'Equipment List Template'!$1:$1048576,20,FALSE),"0") -> 0 | W15: 0
A16: 0 | B16: H11 | C16: HVAC Unique System | J16: 8 | K16: 0 | L16: 0 | M16: 3 | N16: 0 | O16: 0 | P16: 1 | Q16: 0 | R16: 0 | S16: 12 | T16: 12 | U16: 0 | V16: =IFERROR(VLOOKUP($A$5,'Equipment List Template'!$1:$1048576,21,FALSE),"0") -> 0 | W16: 0
A17: 0 | B17: E1 | C17: Electrical Panels | J17: 0 | K17: 0 | L17: 0 | M17: 3 | N17: 0 | O17: 0 | P17: 1 | Q17: 0 | R17: 0 | S17: 4 | T17: 4 | U17: 0 | V17: =IFERROR(VLOOKUP($A$5,'Equipment List Template'!$1:$1048576,22,FALSE),"0") -> 0 | W17: 0
A18: 0 | B18: E2 | C18: Emergency Generator | J18: 0 | K18: 0 | L18: 0 | M18: 3 | N18: 0 | O18: 0 | P18: 1 | Q18: 0 | R18: 0 | S18: 4 | T18: 4 | U18: 0 | V18: =IFERROR(VLOOKUP($A$5,'Equipment List Template'!$1:$1048576,23,FALSE),"0") -> 0 | W18: 0
A19: 0 | B19: E3 | C19: Motor Control Center | J19: 0 | K19: 0 | L19: 0 | M19: 4 | N19: 0 | O19: 0 | P19: 0 | Q19: 0 | R19: 0 | S19: 4 | T19: 4 | U19: 0 | V19: =IFERROR(VLOOKUP($A$5,'Equipment List Template'!$1:$1048576,24,FALSE),"0") -> 0 | W19: 0
A20: 0 | B20: E4 | C20: Primary Switch (High) | J20: 8 | K20: 0 | L20: 0 | M20: 3 | N20: 0 | O20: 0 | P20: 1 | Q20: 0 | R20: 0 | S20: 12 | T20: 12 | U20: 0 | V20: =IFERROR(VLOOKUP($A$5,'Equipment List Template'!$1:$1048576,25,FALSE),"0") -> 0 | W20: 0
A21: 0 | B21: E5 | C21: Primary Switch (Low) | J21: 8 | K21: 0 | L21: 0 | M21: 3 | N21: 0 | O21: 0 | P21: 1 | Q21: 0 | R21: 0 | S21: 12 | T21: 12 | U21: 0 | V21: =IFERROR(VLOOKUP($A$5,'Equipment List Template'!$1:$1048576,26,FALSE),"0") -> 0 | W21: 0
A22: 0 | B22: E6 | C22: Transformer (Dry-Type) | J22: 0 | K22: 0 | L22: 0 | M22: 3 | N22: 0 | O22: 0 | P22: 1 | Q22: 0 | R22: 0 | S22: 4 | T22: 4 | U22: 0 | V22: =IFERROR(VLOOKUP($A$5,'Equipment List Template'!$1:$1048576,27,FALSE),"0") -> 0 | W22: 0
A23: 0 | B23: E7 | C23: Uninterruptible Power Supply (UPS) | J23: 0 | K23: 0 | L23: 0 | M23: 0 | N23: 0 | O23: 0 | P23: 1 | Q23: 0 | R23: 0 | S23: 1 | T23: 1 | U23: 0 | V23: =IFERROR(VLOOKUP($A$5,'Equipment List Template'!$1:$1048576,28,FALSE),"0") -> 0 | W23: 0
A24: 0 | B24: E8 | C24: Electrical Unique System | J24: 8 | K24: 0 | L24: 0 | M24: 3 | N24: 0 | O24: 0 | P24: 1 | Q24: 0 | R24: 0 | S24: 12 | T24: 12 | U24: 0 | V24: =IFERROR(VLOOKUP($A$5,'Equipment List Template'!$1:$1048576,29,FALSE),"0") -> 0 | W24: 0
A25: 0 | B25: L1 | C25: Life Safety | J25: 0 | K25: 0 | L25: 0 | M25: 3 | N25: 0 | O25: 0 | P25: 1 | Q25: 0 | R25: 0 | S25: 4 | T25: 4 | U25: 0 | V25: =IFERROR(VLOOKUP($A$5,'Equipment List Template'!$1:$1048576,30,FALSE),"0") -> 0 | W25: =+U25*V25 -> 0
A26: 0 | B26: L2 | C26: Backflow Preventor(s) | J26: 0 | K26: 0 | L26: 0 | M26: 0 | N26: 0 | O26: 0 | P26: 1 | Q26: 0 | R26: 0 | S26: 1 | T26: 1 | U26: 0 | V26: =IFERROR(VLOOKUP($A$5,'Equipment List Template'!$1:$1048576,31,FALSE),"0") -> 0 | W26: =+U26*V26 -> 0
A27: 0 | B27: P1 | C27: Hot Water Boiler | J27: 8 | K27: 0 | L27: 0 | M27: 3 | N27: 0 | O27: 0 | P27: 1 | Q27: 0 | R27: 0 | S27: 12 | T27: 12 | U27: 0 | V27: =IFERROR(VLOOKUP($A$5,'Equipment List Template'!$1:$1048576,32,FALSE),"0") -> 0 | W27: 0
A28: 0 | B28: P2 | C28: Condensing Water Heater | J28: 0 | K28: 0 | L28: 0 | M28: 0 | N28: 0 | O28: 0 | P28: 1 | Q28: 0 | R28: 0 | S28: 1 | T28: 1 | U28: 0 | V28: =IFERROR(VLOOKUP($A$5,'Equipment List Template'!$1:$1048576,33,FALSE),"0") -> 0 | W28: 0
A29: 0 | B29: P3 | C29: Electric Water Heater | J29: 0 | K29: 0 | L29: 0 | M29: 0 | N29: 0 | O29: 0 | P29: 1 | Q29: 0 | R29: 0 | S29: 1 | T29: 1 | U29: 0 | V29: =IFERROR(VLOOKUP($A$5,'Equipment List Template'!$1:$1048576,34,FALSE),"0") -> 0 | W29: 0
A30: 0 | B30: P4 | C30: Plumbing Unique System | J30: 0 | K30: 0 | L30: 0 | M30: 3 | N30: 0 | O30: 0 | P30: 1 | Q30: 0 | R30: 0 | S30: 4 | T30: 4 | U30: 0 | V30: =IFERROR(VLOOKUP($A$5,'Equipment List Template'!$1:$1048576,35,FALSE),"0") -> 0 | W30: 0
A31: 0 | B31: P5 | C31: Steam System | J31: 0 | K31: 0 | L31: 0 | M31: 3 | N31: 0 | O31: 0 | P31: 1 | Q31: 0 | R31: 0 | S31: 4 | T31: 4 | U31: 0 | V31: =IFERROR(VLOOKUP($A$5,'Equipment List Template'!$1:$1048576,36,FALSE),"0") -> 0 | W31: 0
A32: 0 | B32: P6 | C32: Pneumatic Compressor | J32: 11 | K32: 0 | L32: 0 | M32: 0 | N32: 0 | O32: 0 | P32: 1 | Q32: 0 | R32: 0 | S32: 12 | T32: 12 | U32: 0 | V32: =IFERROR(VLOOKUP($A$5,'Equipment List Template'!$1:$1048576,37,FALSE),"0") -> 0 | W32: 0
A33: 0 | B33: R1 | C33: Rounds and Readings | D33: =IFERROR(IF(VLOOKUP($A33,'Equipment List Template'!$1:$1048576,38,FALSE)=260,248,0),0) -> 0 | E33: 0 | F33: =+E33*D33 -> 0 | G33: =IFERROR(IF(VLOOKUP($A33,'Equipment List Template'!$1:$1048576,38,FALSE)=52,40,0),0) -> 0 | H33: 0 | I33: =+H33*G33 -> 0 | J33: 12 | K33: 0 | L33: 0 | S33: 12 | T33: 12 | U33: =+R33+O33+L33+I33+F33 -> 0 | V33: 1 | W33: =+U33*V33 -> 0
A34: 0 | B34: V1 | C34: Vertical Transportation | J34: 8 | K34: 0 | L34: =+K34*J34 -> 0 | M34: 3 | N34: 0 | O34: =+N34*M34 -> 0 | P34: 1 | Q34: 0 | R34: =+Q34*P34 -> 0 | S34: 12 | T34: 12 | U34: =+R34+O34+L34 -> 0 | V34: =IFERROR(VLOOKUP($A$5,'Equipment List Template'!$1:$1048576,39,FALSE),"0") -> 0 | W34: =+U34*V34 -> 0
A35: 0 | B35: W1 | C35: Water Treatment | D35: =IFERROR(IF(VLOOKUP($A35,'Equipment List Template'!$1:$1048576,40,FALSE)=260,260,0),0) -> 0 | E35: 0 | F35: =+E35*D35 -> 0 | S35: 0 | T35: 0 | U35: =+R35+O35+L35+I35+F35 -> 0 | V35: 1 | W35: 0
A36: 0 | B36: B1 | C36: Building Exterior / Hardscape (Monthly) | J36: 12 | K36: 0 | L36: =+K36*J36 -> 0 | S36: 12 | T36: 12 | U36: 0 | V36: 1 | W36: 0
A37: 0 | B37: F1 | C37: Fountain Maintenance (Monthly) | J37: 12 | K37: 0 | L37: 0 | S37: 12 | T37: 12 | U37: 0 | V37: 1 | W37: 0
A38: 0 | B38: F2 | C38: Fuel Storage Tanks (Quarterly) If applicable | M38: 4 | N38: 0 | O38: =+N38*M38 -> 0 | S38: 4 | T38: 4 | U38: 0 | V38: 1 | W38: 0
A39: 0 | B39: G1 | C39: Landscape Maintenance * | G39: 40 | H39: 0 | I39: =+H39*G39 -> 0 | S39: 0 | T39: 0 | U39: 0 | V39: 1 | W39: 0
A40: 0 | B40: C1 | C40: Account Management and Supervision (Monthly) | J40: 12 | K40: 0 | L40: =+K40*J40 -> 0 | S40: 12 | T40: 12 | U40: 0 | V40: 1 | W40: 0
A41: 0 | B41: C2 | C41: Fee (Monthly) | J41: 12 | K41: 0 | L41: 0 | S41: 12 | T41: 12 | U41: 0 | V41: 1 | W41: 0
Q42: JCC ID | R42: =B2 -> 0 | U42: Total | W42: =SUM(W6:W41) -> 0
B43: S1 | C43: Snow Removal - (crew hourly rate) | D43: 0 | U43: Total # of PM's | W43: =SUM(T5:T41) -> 269
B44: I1 | C44: Unclogging Blocked Toilet - In-custody cell (labor-only) | D44: 0
B45: I2 | C45: Unclogging Blocked Toilet - Public/Court Staff (labor-only) | D45: 0
B46: Hr 1 | C46: Hourly Rate (All Labor categories) | D46: 0
B47: M1 | C47: Markup on Materials (Percentage) | D47: 0
B48: Sub1 | C48: Markup on Subcontractors/Third-Parties (Percentage) | D48: 0
B50: * Landscape Maintenance varies by location on the number of weeks per year it can be preformed. For the purpose of the RFP, all facilities are pre-established at 40 weeks of service. The actual amount paid by facility will be based upon the actual weeks that service has been performed, validated and invoiced.

Sheet Summary Pricing Sheet
A1: JCC- Facility Operation and Maintenance Service Provider - Summary Pricing Sheet and Systems Matrix
A2: RFP # | B2: RFP-FS-SP-2019-03-JP
A3: Proposer | B3: TBD
H4: System | I4: HVAC | T4: Electrical | AB4: Plumbing | AF4: Building Systems | AQ4: Corporate | AU4: Fixed Price - Facility Total Annual Cost Year 1
H5: Subsystem | I5: Access Doors, Gates, Sally Port | J5: Air Cooled DX (Package / Split System) | K5: Air Handling Unit (Air-cooled DX) | L5: Air-Cooled Chiller | M5: Centrifugal Chiller | N5: Cooling Tower (Induced Draft) | O5: Ice Chiller | P5: MultiStack (Geothermal) | Q5: Water Source Heat Pump | R5: Fan Coil System | S5: Exhaust Fan | T5: HVAC Unique System | U5: Electrical Panels | V5: Emergency Generator | W5: Motor Control Center | X5: Primary Switch (High) | Y5: Primary Switch (Low) | Z5: Transformer (Dry-Type) | AA5: Uninterruptible Power Supply (UPS) | AB5: Electrical Unique System | AC5: Life Safety | AD5: Backflow Preventor | AE5: Hot Water Boiler | AF5: Condensing Water Heater | AG5: Electric Water Heater | AH5: Plumbing Unique System | AI5: Steam System | AJ5: Pneumatic Compressor | AK5: Rounds and Readings | AL5: Vertical Transportation | AM5: Water Treatment | AN5: Building Exterior / Hardscape (Monthly) | AO5: Fountain Maintenance (Monthly) | AP5: Fuel Storage Tanks (Quarterly) If applicable | AQ5: Landscape Maintenance * | AR5: Account Management and Supervision (Monthly) | AS5: Fee (Monthly) | AW5: Snow Removal - (crew hourly rate) | AX5: Unclogging Blocked Toilet - In-custody holding cell (labor) | AY5: Unclogging Blocked Toilet - Public/Court Staff (labor) | AZ5: Hourly Rate | BA5: Markup on Materials | BB5: Markup on Subcontractors/Third-Parties
A6: JCC ID | B6: Facility Name | C6: Address | D6: City / Town | E6: Zip Code | F6: County | G6: Region | H6: System ID | I6: A1 | J6: H1 | K6: H2 | L6: H3 | M6: H4 | N6: H5 | O6: H6 | P6: H7 | Q6: H8 | R6: H9 | S6: H10 | T6: H11 | U6: E1 | V6: E2 | W6: E3 | X6: E4 | Y6: E5 | Z6: E6 | AA6: E7 | AB6: E8 | AC6: L1 | AD6: L2 | AE6: P1 | AF6: P2 | AG6: P3 | AH6: P4 | AI6: P5 | AJ6: P6 | AK6: R1 | AL6: V1 | AM6: W1 | AN6: B1 | AO6: F1 | AP6: F2 | AQ6: G1 | AR6: C1 | AS6: C2 | AW6: S1 | AX6: I1 | AY6: I2 | AZ6: Hr 1 | BA6: M1 | BB6: Sub1
A7: =+'03-C1'!Z$6 -> 03-C1 | B7: =+'03-C1'!AA$6 -> Amador Superior Court | C7: =+'03-C1'!AB$6 -> 500 Argonaut Lane | D7: =+'03-C1'!AC$6 -> Jackson | E7: =+'03-C1'!AD$6 -> 95642 | F7: =+'03-C1'!AE$6 -> Amador | G7: =+'03-C1'!AF$6 -> NCRO | I7: =+'03-C1'!AH$6 -> 0 | J7: =+'03-C1'!AI$6 -> 0 | K7: =+'03-C1'!AJ$6 -> 0 | L7: =+'03-C1'!AK$6 -> 0 | M7: =+'03-C1'!AL$6 -> 0 | N7: =+'03-C1'!AM$6 -> 0 | O7: =+'03-C1'!AN$6 -> 0 | P7: =+'03-C1'!AO$6 -> 0 | Q7: =+'03-C1'!AP$6 -> 0 | R7: =+'03-C1'!AQ$6 -> 0 | S7: =+'03-C1'!AR$6 -> 0 | T7: =+'03-C1'!AS$6 -> 0 | U7: =+'03-C1'!AT$6 -> 0 | V7: =+'03-C1'!AU$6 -> 0 | W7: =+'03-C1'!AV$6 -> 0 | X7: =+'03-C1'!AW$6 -> 0 | Y7: =+'03-C1'!AX$6 -> 0 | Z7: =+'03-C1'!AY$6 -> 0 | AA7: =+'03-C1'!AZ$6 -> 0 | AB7: =+'03-C1'!BA$6 -> 0 | AC7: =+'03-C1'!BB$6 -> 0 | AD7: =+'03-C1'!BC$6 -> 0 | AE7: =+'03-C1'!BD$6 -> 0 | AF7: =+'03-C1'!BE$6 -> 0 | AG7: =+'03-C1'!BF$6 -> 0 | AH7: =+'03-C1'!BG$6 -> 0 | AI7: =+'03-C1'!BH$6 -> 0 | AJ7: =+'03-C1'!BI$6 -> 0 | AK7: =+'03-C1'!BJ$6 -> 0 | AL7: =+'03-C1'!BK$6 -> 0 | AM7: =+'03-C1'!BL$6 -> 0 | AN7: =+'03-C1'!BM$6 -> 0 | AO7: =+'03-C1'!BN$6 -> 0 | AP7: =+'03-C1'!BO$6 -> 0 | AQ7: =+'03-C1'!BP$6 -> 0 | AR7: =+'03-C1'!BQ$6 -> 0 | AS7: =+'03-C1'!BR$6 -> 0 | AU7: =+'03-C1'!BT$6 -> 0 | AW7: =+'03-C1'!BV$6 -> 0 | AX7: =+'03-C1'!BW$6 -> 0 | AY7: =+'03-C1'!BX$6 -> 0 | AZ7: =+'03-C1'!BY$6 -> 0 | BA7: =+'03-C1'!BZ$6 -> 0 | BB7: =+'03-C1'!CA$6 -> 0
A8: =+'04-A1'!Z$6 -> 04-A1 | B8: =+'04-A1'!AA$6 -> Butte County Courthouse | C8: =+'04-A1'!AB$6 -> 1 Court St. | D8: =+'04-A1'!AC$6 -> Oroville | E8: =+'04-A1'!AD$6 -> 95965 | F8: =+'04-A1'!AE$6 -> Butte | G8: =+'04-A1'!AF$6 -> NCRO | I8: =+'04-A1'!AH$6 -> 0 | J8: =+'04-A1'!AI$6 -> 0 | K8: =+'04-A1'!AJ$6 -> 0 | L8: =+'04-A1'!AK$6 -> 0 | M8: =+'04-A1'!AL$6 -> 0 | N8: =+'04-A1'!AM$6 -> 0 | O8: =+'04-A1'!AN$6 -> 0 | P8: =+'04-A1'!AO$6 -> 0 | Q8: =+'04-A1'!AP$6 -> 0 | R8: =+'04-A1'!AQ$6 -> 0 | S8: =+'04-A1'!AR$6 -> 0 | T8: =+'04-A1'!AS$6 -> 0 | U8: =+'04-A1'!AT$6 -> 0 | V8: =+'04-A1'!AU$6 -> 0 | W8: =+'04-A1'!AV$6 -> 0 | X8: =+'04-A1'!AW$6 -> 0 | Y8: =+'04-A1'!AX$6 -> 0 | Z8: =+'04-A1'!AY$6 -> 0 | AA8: =+'04-A1'!AZ$6 -> 0 | AB8: =+'04-A1'!BA$6 -> 0 | AC8: =+'04-A1'!BB$6 -> 0 | AD8: =+'04-A1'!BC$6 -> 0 | AE8: =+'04-A1'!BD$6 -> 0 | AF8: =+'04-A1'!BE$6 -> 0 | AG8: =+'04-A1'!BF$6 -> 0 | AH8: =+'04-A1'!BG$6 -> 0 | AI8: =+'04-A1'!BH$6 -> 0 | AJ8: =+'04-A1'!BI$6 -> 0 | AK8: =+'04-A1'!BJ$6 -> 0 | AL8: =+'04-A1'!BK$6 -> 0 | AM8: =+'04-A1'!BL$6 -> 0 | AN8: =+'04-A1'!BM$6 -> 0 | AO8: =+'04-A1'!BN$6 -> 0 | AP8: =+'04-A1'!BO$6 -> 0 | AQ8: =+'04-A1'!BP$6 -> 0 | AR8: =+'04-A1'!BQ$6 -> 0 | AS8: =+'04-A1'!BR$6 -> 0 | AU8: =+'04-A1'!BT$6 -> 0 | AW8: =+'04-A1'!BV$6 -> 0 | AX8: =+'04-A1'!BW$6 -> 0 | AY8: =+'04-A1'!BX$6 -> 0 | AZ8: =+'04-A1'!BY$6 -> 0 | BA8: =+'04-A1'!BZ$6 -> 0 | BB8: =+'04-A1'!CA$6 -> 0
A9: =+'04-F1'!Z$6 -> 04-F1 | B9: =+'04-F1'!AA$6 -> North Butte County Courthouse | C9: =+'04-F1'!AB$6 -> 1775 Concord Avenue | D9: =+'04-F1'!AC$6 -> Chico | E9: =+'04-F1'!AD$6 -> 95928 | F9: =+'04-F1'!AE$6 -> Butte | G9: =+'04-F1'!AF$6 -> NCRO | I9: =+'04-F1'!AH$6 -> 0 | J9: =+'04-F1'!AI$6 -> 0 | K9: =+'04-F1'!AJ$6 -> 0 | L9: =+'04-F1'!AK$6 -> 0 | M9: =+'04-F1'!AL$6 -> 0 | N9: =+'04-F1'!AM$6 -> 0 | O9: =+'04-F1'!AN$6 -> 0 | P9: =+'04-F1'!AO$6 -> 0 | Q9: =+'04-F1'!AP$6 -> 0 | R9: =+'04-F1'!AQ$6 -> 0 | S9: =+'04-F1'!AR$6 -> 0 | T9: =+'04-F1'!AS$6 -> 0 | U9: =+'04-F1'!AT$6 -> 0 | V9: =+'04-F1'!AU$6 -> 0 | W9: =+'04-F1'!AV$6 -> 0 | X9: =+'04-F1'!AW$6 -> 0 | Y9: =+'04-F1'!AX$6 -> 0 | Z9: =+'04-F1'!AY$6 -> 0 | AA9: =+'04-F1'!AZ$6 -> 0 | AB9: =+'04-F1'!BA$6 -> 0 | AC9: =+'04-F1'!BB$6 -> 0 | AD9: =+'04-F1'!BC$6 -> 0 | AE9: =+'04-F1'!BD$6 -> 0 | AF9: =+'04-F1'!BE$6 -> 0 | AG9: =+'04-F1'!BF$6 -> 0 | AH9: =+'04-F1'!BG$6 -> 0 | AI9: =+'04-F1'!BH$6 -> 0 | AJ9: =+'04-F1'!BI$6 -> 0 | AK9: =+'04-F1'!BJ$6 -> 0 | AL9: =+'04-F1'!BK$6 -> 0 | AM9: =+'04-F1'!BL$6 -> 0 | AN9: =+'04-F1'!BM$6 -> 0 | AO9: =+'04-F1'!BN$6 -> 0 | AP9: =+'04-F1'!BO$6 -> 0 | AQ9: =+'04-F1'!BP$6 -> 0 | AR9: =+'04-F1'!BQ$6 -> 0 | AS9: =+'04-F1'!BR$6 -> 0 | AU9: =+'04-F1'!BT$6 -> 0 | AW9: =+'04-F1'!BV$6 -> 0 | AX9: =+'04-F1'!BW$6 -> 0 | AY9: =+'04-F1'!BX$6 -> 0 | AZ9: =+'04-F1'!BY$6 -> 0 | BA9: =+'04-F1'!BZ$6 -> 0 | BB9: =+'04-F1'!CA$6 -> 0
A10: =+'05-C1'!Z$6 -> 05-C1 | B10: =+'05-C1'!AA$6 -> Calaveras Superior Court | C10: =+'05-C1'!AB$6 -> 400 Government Center Drive | D10: =+'05-C1'!AC$6 -> San Andreas | E10: =+'05-C1'!AD$6 -> 95249 | F10: =+'05-C1'!AE$6 -> Calaveras | G10: =+'05-C1'!AF$6 -> NCRO | I10: =+'05-C1'!AH$6 -> 0 | J10: =+'05-C1'!AI$6 -> 0 | K10: =+'05-C1'!AJ$6 -> 0 | L10: =+'05-C1'!AK$6 -> 0 | M10: =+'05-C1'!AL$6 -> 0 | N10: =+'05-C1'!AM$6 -> 0 | O10: =+'05-C1'!AN$6 -> 0 | P10: =+'05-C1'!AO$6 -> 0 | Q10: =+'05-C1'!AP$6 -> 0 | R10: =+'05-C1'!AQ$6 -> 0 | S10: =+'05-C1'!AR$6 -> 0 | T10: =+'05-C1'!AS$6 -> 0 | U10: =+'05-C1'!AT$6 -> 0 | V10: =+'05-C1'!AU$6 -> 0 | W10: =+'05-C1'!AV$6 -> 0 | X10: =+'05-C1'!AW$6 -> 0 | Y10: =+'05-C1'!AX$6 -> 0 | Z10: =+'05-C1'!AY$6 -> 0 | AA10: =+'05-C1'!AZ$6 -> 0 | AB10: =+'05-C1'!BA$6 -> 0 | AC10: =+'05-C1'!BB$6 -> 0 | AD10: =+'05-C1'!BC$6 -> 0 | AE10: =+'05-C1'!BD$6 -> 0 | AF10: =+'05-C1'!BE$6 -> 0 | AG10: =+'05-C1'!BF$6 -> 0 | AH10: =+'05-C1'!BG$6 -> 0 | AI10: =+'05-C1'!BH$6 -> 0 | AJ10: =+'05-C1'!BI$6 -> 0 | AK10: =+'05-C1'!BJ$6 -> 0 | AL10: =+'05-C1'!BK$6 -> 0 | AM10: =+'05-C1'!BL$6 -> 0 | AN10: =+'05-C1'!BM$6 -> 0 | AO10: =+'05-C1'!BN$6 -> 0 | AP10: =+'05-C1'!BO$6 -> 0 | AQ10: =+'05-C1'!BP$6 -> 0 | AR10: =+'05-C1'!BQ$6 -> 0 | AS10: =+'05-C1'!BR$6 -> 0 | AU10: =+'05-C1'!BT$6 -> 0 | AW10: =+'05-C1'!BV$6 -> 0 | AX10: =+'05-C1'!BW$6 -> 0 | AY10: =+'05-C1'!BX$6 -> 0 | AZ10: =+'05-C1'!BY$6 -> 0 | BA10: =+'05-C1'!BZ$6 -> 0 | BB10: =+'05-C1'!CA$6 -> 0
A11: =+'09-A1'!Z$6 -> 09-A1 | B11: =+'09-A1'!AA$6 -> Main St. Courthouse | C11: =+'09-A1'!AB$6 -> 495 Main St. | D11: =+'09-A1'!AC$6 -> Placerville | E11: =+'09-A1'!AD$6 -> 95667 | F11: =+'09-A1'!AE$6 -> El Dorado | G11: =+'09-A1'!AF$6 -> NCRO | I11: =+'09-A1'!AH$6 -> 0 | J11: =+'09-A1'!AI$6 -> 0 | K11: =+'09-A1'!AJ$6 -> 0 | L11: =+'09-A1'!AK$6 -> 0 | M11: =+'09-A1'!AL$6 -> 0 | N11: =+'09-A1'!AM$6 -> 0 | O11: =+'09-A1'!AN$6 -> 0 | P11: =+'09-A1'!AO$6 -> 0 | Q11: =+'09-A1'!AP$6 -> 0 | R11: =+'09-A1'!AQ$6 -> 0 | S11: =+'09-A1'!AR$6 -> 0 | T11: =+'09-A1'!AS$6 -> 0 | U11: =+'09-A1'!AT$6 -> 0 | V11: =+'09-A1'!AU$6 -> 0 | W11: =+'09-A1'!AV$6 -> 0 | X11: =+'09-A1'!AW$6 -> 0 | Y11: =+'09-A1'!AX$6 -> 0 | Z11: =+'09-A1'!AY$6 -> 0 | AA11: =+'09-A1'!AZ$6 -> 0 | AB11: =+'09-A1'!BA$6 -> 0 | AC11: =+'09-A1'!BB$6 -> 0 | AD11: =+'09-A1'!BC$6 -> 0 | AE11: =+'09-A1'!BD$6 -> 0 | AF11: =+'09-A1'!BE$6 -> 0 | AG11: =+'09-A1'!BF$6 -> 0 | AH11: =+'09-A1'!BG$6 -> 0 | AI11: =+'09-A1'!BH$6 -> 0 | AJ11: =+'09-A1'!BI$6 -> 0 | AK11: =+'09-A1'!BJ$6 -> 0 | AL11: =+'09-A1'!BK$6 -> 0 | AM11: =+'09-A1'!BL$6 -> 0 | AN11: =+'09-A1'!BM$6 -> 0 | AO11: =+'09-A1'!BN$6 -> 0 | AP11: =+'09-A1'!BO$6 -> 0 | AQ11: =+'09-A1'!BP$6 -> 0 | AR11: =+'09-A1'!BQ$6 -> 0 | AS11: =+'09-A1'!BR$6 -> 0 | AU11: =+'09-A1'!BT$6 -> 0 | AW11: =+'09-A1'!BV$6 -> 0 | AX11: =+'09-A1'!BW$6 -> 0 | AY11: =+'09-A1'!BX$6 -> 0 | AZ11: =+'09-A1'!BY$6 -> 0 | BA11: =+'09-A1'!BZ$6 -> 0 | BB11: =+'09-A1'!CA$6 -> 0
A12: =+'10-A1'!Z$6 -> 10-A1 | B12: =+'10-A1'!AA$6 -> Fresno County Courthouse | C12: =+'10-A1'!AB$6 -> 1100 Van Ness Ave. | D12: =+'10-A1'!AC$6 -> Fresno | E12: =+'10-A1'!AD$6 -> 93724 | F12: =+'10-A1'!AE$6 -> Fresno | G12: =+'10-A1'!AF$6 -> NCRO | I12: =+'10-A1'!AH$6 -> 0 | J12: =+'10-A1'!AI$6 -> 0 | K12: =+'10-A1'!AJ$6 -> 0 | L12: =+'10-A1'!AK$6 -> 0 | M12: =+'10-A1'!AL$6 -> 0 | N12: =+'10-A1'!AM$6 -> 0 | O12: =+'10-A1'!AN$6 -> 0 | P12: =+'10-A1'!AO$6 -> 0 | Q12: =+'10-A1'!AP$6 -> 0 | R12: =+'10-A1'!AQ$6 -> 0 | S12: =+'10-A1'!AR$6 -> 0 | T12: =+'10-A1'!AS$6 -> 0 | U12: =+'10-A1'!AT$6 -> 0 | V12: =+'10-A1'!AU$6 -> 0 | W12: =+'10-A1'!AV$6 -> 0 | X12: =+'10-A1'!AW$6 -> 0 | Y12: =+'10-A1'!AX$6 -> 0 | Z12: =+'10-A1'!AY$6 -> 0 | AA12: =+'10-A1'!AZ$6 -> 0 | AB12: =+'10-A1'!BA$6 -> 0 | AC12: =+'10-A1'!BB$6 -> 0 | AD12: =+'10-A1'!BC$6 -> 0 | AE12: =+'10-A1'!BD$6 -> 0 | AF12: =+'10-A1'!BE$6 -> 0 | AG12: =+'10-A1'!BF$6 -> 0 | AH12: =+'10-A1'!BG$6 -> 0 | AI12: =+'10-A1'!BH$6 -> 0 | AJ12: =+'10-A1'!BI$6 -> 0 | AK12: =+'10-A1'!BJ$6 -> 0 | AL12: =+'10-A1'!BK$6 -> 0 | AM12: =+'10-A1'!BL$6 -> 0 | AN12: =+'10-A1'!BM$6 -> 0 | AO12: =+'10-A1'!BN$6 -> 0 | AP12: =+'10-A1'!BO$6 -> 0 | AQ12: =+'10-A1'!BP$6 -> 0 | AR12: =+'10-A1'!BQ$6 -> 0 | AS12: =+'10-A1'!BR$6 -> 0 | AU12: =+'10-A1'!BT$6 -> 0 | AW12: =+'10-A1'!BV$6 -> 0 | AX12: =+'10-A1'!BW$6 -> 0 | AY12: =+'10-A1'!BX$6 -> 0 | AZ12: =+'10-A1'!BY$6 -> 0 | BA12: =+'10-A1'!BZ$6 -> 0 | BB12: =+'10-A1'!CA$6 -> 0
A13: =+'10-O1'!Z$6 -> 10-O1 | B13: =+'10-O1'!AA$6 -> B.F. Sisk Courthouse | C13: =+'10-O1'!AB$6 -> 1130 O Street | D13: =+'10-O1'!AC$6 -> Fresno | E13: =+'10-O1'!AD$6 -> 93721 | F13: =+'10-O1'!AE$6 -> Fresno | G13: =+'10-O1'!AF$6 -> NCRO | I13: =+'10-O1'!AH$6 -> 0 | J13: =+'10-O1'!AI$6 -> 0 | K13: =+'10-O1'!AJ$6 -> 0 | L13: =+'10-O1'!AK$6 -> 0 | M13: =+'10-O1'!AL$6 -> 0 | N13: =+'10-O1'!AM$6 -> 0 | O13: =+'10-O1'!AN$6 -> 0 | P13: =+'10-O1'!AO$6 -> 0 | Q13: =+'10-O1'!AP$6 -> 0 | R13: =+'10-O1'!AQ$6 -> 0 | S13: =+'10-O1'!AR$6 -> 0 | T13: =+'10-O1'!AS$6 -> 0 | U13: =+'10-O1'!AT$6 -> 0 | V13: =+'10-O1'!AU$6 -> 0 | W13: =+'10-O1'!AV$6 -> 0 | X13: =+'10-O1'!AW$6 -> 0 | Y13: =+'10-O1'!AX$6 -> 0 | Z13: =+'10-O1'!AY$6 -> 0 | AA13: =+'10-O1'!AZ$6 -> 0 | AB13: =+'10-O1'!BA$6 -> 0 | AC13: =+'10-O1'!BB$6 -> 0 | AD13: =+'10-O1'!BC$6 -> 0 | AE13: =+'10-O1'!BD$6 -> 0 | AF13: =+'10-O1'!BE$6 -> 0 | AG13: =+'10-O1'!BF$6 -> 0 | AH13: =+'10-O1'!BG$6 -> 0 | AI13: =+'10-O1'!BH$6 -> 0 | AJ13: =+'10-O1'!BI$6 -> 0 | AK13: =+'10-O1'!BJ$6 -> 0 | AL13: =+'10-O1'!BK$6 -> 0 | AM13: =+'10-O1'!BL$6 -> 0 | AN13: =+'10-O1'!BM$6 -> 0 | AO13: =+'10-O1'!BN$6 -> 0 | AP13: =+'10-O1'!BO$6 -> 0 | AQ13: =+'10-O1'!BP$6 -> 0 | AR13: =+'10-O1'!BQ$6 -> 0 | AS13: =+'10-O1'!BR$6 -> 0 | AU13: =+'10-O1'!BT$6 -> 0 | AW13: =+'10-O1'!BV$6 -> 0 | AX13: =+'10-O1'!BW$6 -> 0 | AY13: =+'10-O1'!BX$6 -> 0 | AZ13: =+'10-O1'!BY$6 -> 0 | BA13: =+'10-O1'!BZ$6 -> 0 | BB13: =+'10-O1'!CA$6 -> 0
A14: =+'16-A5'!Z$6 -> 16-A5 | B14: =+'16-A5'!AA$6 -> Hanford Courthouse | C14: =+'16-A5'!AB$6 -> 1640 Kings County Drive | D14: =+'16-A5'!AC$6 -> Hanford | E14: =+'16-A5'!AD$6 -> 93230 | F14: =+'16-A5'!AE$6 -> Kings | G14: =+'16-A5'!AF$6 -> NCRO | I14: =+'16-A5'!AH$6 -> 0 | J14: =+'16-A5'!AI$6 -> 0 | K14: =+'16-A5'!AJ$6 -> 0 | L14: =+'16-A5'!AK$6 -> 0 | M14: =+'16-A5'!AL$6 -> 0 | N14: =+'16-A5'!AM$6 -> 0 | O14: =+'16-A5'!AN$6 -> 0 | P14: =+'16-A5'!AO$6 -> 0 | Q14: =+'16-A5'!AP$6 -> 0 | R14: =+'16-A5'!AQ$6 -> 0 | S14: =+'16-A5'!AR$6 -> 0 | T14: =+'16-A5'!AS$6 -> 0 | U14: =+'16-A5'!AT$6 -> 0 | V14: =+'16-A5'!AU$6 -> 0 | W14: =+'16-A5'!AV$6 -> 0 | X14: =+'16-A5'!AW$6 -> 0 | Y14: =+'16-A5'!AX$6 -> 0 | Z14: =+'16-A5'!AY$6 -> 0 | AA14: =+'16-A5'!AZ$6 -> 0 | AB14: =+'16-A5'!BA$6 -> 0 | AC14: =+'16-A5'!BB$6 -> 0 | AD14: =+'16-A5'!BC$6 -> 0 | AE14: =+'16-A5'!BD$6 -> 0 | AF14: =+'16-A5'!BE$6 -> 0 | AG14: =+'16-A5'!BF$6 -> 0 | AH14: =+'16-A5'!BG$6 -> 0 | AI14: =+'16-A5'!BH$6 -> 0 | AJ14: =+'16-A5'!BI$6 -> 0 | AK14: =+'16-A5'!BJ$6 -> 0 | AL14: =+'16-A5'!BK$6 -> 0 | AM14: =+'16-A5'!BL$6 -> 0 | AN14: =+'16-A5'!BM$6 -> 0 | AO14: =+'16-A5'!BN$6 -> 0 | AP14: =+'16-A5'!BO$6 -> 0 | AQ14: =+'16-A5'!BP$6 -> 0 | AR14: =+'16-A5'!BQ$6 -> 0 | AS14: =+'16-A5'!BR$6 -> 0 | AU14: =+'16-A5'!BT$6 -> 0 | AW14: =+'16-A5'!BV$6 -> 0 | AX14: =+'16-A5'!BW$6 -> 0 | AY14: =+'16-A5'!BX$6 -> 0 | AZ14: =+'16-A5'!BY$6 -> 0 | BA14: =+'16-A5'!BZ$6 -> 0 | BB14: =+'16-A5'!CA$6 -> 0
A15: =+'18-C1'!Z$6 -> 18-C1 | B15: =+'18-C1'!AA$6 -> Hall of Justice | C15: =+'18-C1'!AB$6 -> 2610 Riverside Drive | D15: =+'18-C1'!AC$6 -> Susanville | E15: =+'18-C1'!AD$6 -> 96130 | F15: =+'18-C1'!AE$6 -> Lassen | G15: =+'18-C1'!AF$6 -> NCRO | I15: =+'18-C1'!AH$6 -> 0 | J15: =+'18-C1'!AI$6 -> 0 | K15: =+'18-C1'!AJ$6 -> 0 | L15: =+'18-C1'!AK$6 -> 0 | M15: =+'18-C1'!AL$6 -> 0 | N15: =+'18-C1'!AM$6 -> 0 | O15: =+'18-C1'!AN$6 -> 0 | P15: =+'18-C1'!AO$6 -> 0 | Q15: =+'18-C1'!AP$6 -> 0 | R15: =+'18-C1'!AQ$6 -> 0 | S15: =+'18-C1'!AR$6 -> 0 | T15: =+'18-C1'!AS$6 -> 0 | U15: =+'18-C1'!AT$6 -> 0 | V15: =+'18-C1'!AU$6 -> 0 | W15: =+'18-C1'!AV$6 -> 0 | X15: =+'18-C1'!AW$6 -> 0 | Y15: =+'18-C1'!AX$6 -> 0 | Z15: =+'18-C1'!AY$6 -> 0 | AA15: =+'18-C1'!AZ$6 -> 0 | AB15: =+'18-C1'!BA$6 -> 0 | AC15: =+'18-C1'!BB$6 -> 0 | AD15: =+'18-C1'!BC$6 -> 0 | AE15: =+'18-C1'!BD$6 -> 0 | AF15: =+'18-C1'!BE$6 -> 0 | AG15: =+'18-C1'!BF$6 -> 0 | AH15: =+'18-C1'!BG$6 -> 0 | AI15: =+'18-C1'!BH$6 -> 0 | AJ15: =+'18-C1'!BI$6 -> 0 | AK15: =+'18-C1'!BJ$6 -> 0 | AL15: =+'18-C1'!BK$6 -> 0 | AM15: =+'18-C1'!BL$6 -> 0 | AN15: =+'18-C1'!BM$6 -> 0 | AO15: =+'18-C1'!BN$6 -> 0 | AP15: =+'18-C1'!BO$6 -> 0 | AQ15: =+'18-C1'!BP$6 -> 0 | AR15: =+'18-C1'!BQ$6 -> 0 | AS15: =+'18-C1'!BR$6 -> 0 | AU15: =+'18-C1'!BT$6 -> 0 | AW15: =+'18-C1'!BV$6 -> 0 | AX15: =+'18-C1'!BW$6 -> 0 | AY15: =+'18-C1'!BX$6 -> 0 | AZ15: =+'18-C1'!BY$6 -> 0 | BA15: =+'18-C1'!BZ$6 -> 0 | BB15: =+'18-C1'!CA$6 -> 0
A16: =+'20-F1'!Z$6 -> 20-F1 | B16: =+'20-F1'!AA$6 -> Main Courthouse | C16: =+'20-F1'!AB$6 -> 200 South G Street | D16: =+'20-F1'!AC$6 -> Madera | E16: =+'20-F1'!AD$6 -> 93637 | F16: =+'20-F1'!AE$6 -> Madera | G16: =+'20-F1'!AF$6 -> NCRO | I16: =+'20-F1'!AH$6 -> 0 | J16: =+'20-F1'!AI$6 -> 0 | K16: =+'20-F1'!AJ$6 -> 0 | L16: =+'20-F1'!AK$6 -> 0 | M16: =+'20-F1'!AL$6 -> 0 | N16: =+'20-F1'!AM$6 -> 0 | O16: =+'20-F1'!AN$6 -> 0 | P16: =+'20-F1'!AO$6 -> 0 | Q16: =+'20-F1'!AP$6 -> 0 | R16: =+'20-F1'!AQ$6 -> 0 | S16: =+'20-F1'!AR$6 -> 0 | T16: =+'20-F1'!AS$6 -> 0 | U16: =+'20-F1'!AT$6 -> 0 | V16: =+'20-F1'!AU$6 -> 0 | W16: =+'20-F1'!AV$6 -> 0 | X16: =+'20-F1'!AW$6 -> 0 | Y16: =+'20-F1'!AX$6 -> 0 | Z16: =+'20-F1'!AY$6 -> 0 | AA16: =+'20-F1'!AZ$6 -> 0 | AB16: =+'20-F1'!BA$6 -> 0 | AC16: =+'20-F1'!BB$6 -> 0 | AD16: =+'20-F1'!BC$6 -> 0 | AE16: =+'20-F1'!BD$6 -> 0 | AF16: =+'20-F1'!BE$6 -> 0 | AG16: =+'20-F1'!BF$6 -> 0 | AH16: =+'20-F1'!BG$6 -> 0 | AI16: =+'20-F1'!BH$6 -> 0 | AJ16: =+'20-F1'!BI$6 -> 0 | AK16: =+'20-F1'!BJ$6 -> 0 | AL16: =+'20-F1'!BK$6 -> 0 | AM16: =+'20-F1'!BL$6 -> 0 | AN16: =+'20-F1'!BM$6 -> 0 | AO16: =+'20-F1'!BN$6 -> 0 | AP16: =+'20-F1'!BO$6 -> 0 | AQ16: =+'20-F1'!BP$6 -> 0 | AR16: =+'20-F1'!BQ$6 -> 0 | AS16: =+'20-F1'!BR$6 -> 0 | AU16: =+'20-F1'!BT$6 -> 0 | AW16: =+'20-F1'!BV$6 -> 0 | AX16: =+'20-F1'!BW$6 -> 0 | AY16: =+'20-F1'!BX$6 -> 0 | AZ16: =+'20-F1'!BY$6 -> 0 | BA16: =+'20-F1'!BZ$6 -> 0 | BB16: =+'20-F1'!CA$6 -> 0
A17: =+'20-F2'!Z$6 -> 20-F2 | B17: =+'20-F2'!AA$6 -> Main Courthouse Parking Garage | C17: =+'20-F2'!AB$6 -> 220/224 and 228 South G Street | D17: =+'20-F2'!AC$6 -> Madera | E17: =+'20-F2'!AD$6 -> 93637 | F17: =+'20-F2'!AE$6 -> Madera | G17: =+'20-F2'!AF$6 -> NCRO | I17: =+'20-F2'!AH$6 -> 0 | J17: =+'20-F2'!AI$6 -> 0 | K17: =+'20-F2'!AJ$6 -> 0 | L17: =+'20-F2'!AK$6 -> 0 | M17: =+'20-F2'!AL$6 -> 0 | N17: =+'20-F2'!AM$6 -> 0 | O17: =+'20-F2'!AN$6 -> 0 | P17: =+'20-F2'!AO$6 -> 0 | Q17: =+'20-F2'!AP$6 -> 0 | R17: =+'20-F2'!AQ$6 -> 0 | S17: =+'20-F2'!AR$6 -> 0 | T17: =+'20-F2'!AS$6 -> 0 | U17: =+'20-F2'!AT$6 -> 0 | V17: =+'20-F2'!AU$6 -> 0 | W17: =+'20-F2'!AV$6 -> 0 | X17: =+'20-F2'!AW$6 -> 0 | Y17: =+'20-F2'!AX$6 -> 0 | Z17: =+'20-F2'!AY$6 -> 0 | AA17: =+'20-F2'!AZ$6 -> 0 | AB17: =+'20-F2'!BA$6 -> 0 | AC17: =+'20-F2'!BB$6 -> 0 | AD17: =+'20-F2'!BC$6 -> 0 | AE17: =+'20-F2'!BD$6 -> 0 | AF17: =+'20-F2'!BE$6 -> 0 | AG17: =+'20-F2'!BF$6 -> 0 | AH17: =+'20-F2'!BG$6 -> 0 | AI17: =+'20-F2'!BH$6 -> 0 | AJ17: =+'20-F2'!BI$6 -> 0 | AK17: =+'20-F2'!BJ$6 -> 0 | AL17: =+'20-F2'!BK$6 -> 0 | AM17: =+'20-F2'!BL$6 -> 0 | AN17: =+'20-F2'!BM$6 -> 0 | AO17: =+'20-F2'!BN$6 -> 0 | AP17: =+'20-F2'!BO$6 -> 0 | AQ17: =+'20-F2'!BP$6 -> 0 | AR17: =+'20-F2'!BQ$6 -> 0 | AS17: =+'20-F2'!BR$6 -> 0 | AU17: =+'20-F2'!BT$6 -> 0 | AW17: =+'20-F2'!BV$6 -> 0 | AX17: =+'20-F2'!BW$6 -> 0 | AY17: =+'20-F2'!BX$6 -> 0 | AZ17: =+'20-F2'!BY$6 -> 0 | BA17: =+'20-F2'!BZ$6 -> 0 | BB17: =+'20-F2'!CA$6 -> 0
A18: =+'24-A1'!Z$6 -> 24-A1 | B18: =+'24-A1'!AA$6 -> Old Court | C18: =+'24-A1'!AB$6 -> 627 W. 21st Street | D18: =+'24-A1'!AC$6 -> Merced | E18: =+'24-A1'!AD$6 -> 95340 | F18: =+'24-A1'!AE$6 -> Merced | G18: =+'24-A1'!AF$6 -> NCRO | I18: =+'24-A1'!AH$6 -> 0 | J18: =+'24-A1'!AI$6 -> 0 | K18: =+'24-A1'!AJ$6 -> 0 | L18: =+'24-A1'!AK$6 -> 0 | M18: =+'24-A1'!AL$6 -> 0 | N18: =+'24-A1'!AM$6 -> 0 | O18: =+'24-A1'!AN$6 -> 0 | P18: =+'24-A1'!AO$6 -> 0 | Q18: =+'24-A1'!AP$6 -> 0 | R18: =+'24-A1'!AQ$6 -> 0 | S18: =+'24-A1'!AR$6 -> 0 | T18: =+'24-A1'!AS$6 -> 0 | U18: =+'24-A1'!AT$6 -> 0 | V18: =+'24-A1'!AU$6 -> 0 | W18: =+'24-A1'!AV$6 -> 0 | X18: =+'24-A1'!AW$6 -> 0 | Y18: =+'24-A1'!AX$6 -> 0 | Z18: =+'24-A1'!AY$6 -> 0 | AA18: =+'24-A1'!AZ$6 -> 0 | AB18: =+'24-A1'!BA$6 -> 0 | AC18: =+'24-A1'!BB$6 -> 0 | AD18: =+'24-A1'!BC$6 -> 0 | AE18: =+'24-A1'!BD$6 -> 0 | AF18: =+'24-A1'!BE$6 -> 0 | AG18: =+'24-A1'!BF$6 -> 0 | AH18: =+'24-A1'!BG$6 -> 0 | AI18: =+'24-A1'!BH$6 -> 0 | AJ18: =+'24-A1'!BI$6 -> 0 | AK18: =+'24-A1'!BJ$6 -> 0 | AL18: =+'24-A1'!BK$6 -> 0 | AM18: =+'24-A1'!BL$6 -> 0 | AN18: =+'24-A1'!BM$6 -> 0 | AO18: =+'24-A1'!BN$6 -> 0 | AP18: =+'24-A1'!BO$6 -> 0 | AQ18: =+'24-A1'!BP$6 -> 0 | AR18: =+'24-A1'!BQ$6 -> 0 | AS18: =+'24-A1'!BR$6 -> 0 | AU18: =+'24-A1'!BT$6 -> 0 | AW18: =+'24-A1'!BV$6 -> 0 | AX18: =+'24-A1'!BW$6 -> 0 | AY18: =+'24-A1'!BX$6 -> 0 | AZ18: =+'24-A1'!BY$6 -> 0 | BA18: =+'24-A1'!BZ$6 -> 0 | BB18: =+'24-A1'!CA$6 -> 0
A19: =+'24-A8'!Z$6 -> 24-A8 | B19: =+'24-A8'!AA$6 -> Main Merced Courthouse | C19: =+'24-A8'!AB$6 -> 2260 N Street | D19: =+'24-A8'!AC$6 -> Merced | E19: =+'24-A8'!AD$6 -> 95340 | F19: =+'24-A8'!AE$6 -> Merced | G19: =+'24-A8'!AF$6 -> NCRO | I19: =+'24-A8'!AH$6 -> 0 | J19: =+'24-A8'!AI$6 -> 0 | K19: =+'24-A8'!AJ$6 -> 0 | L19: =+'24-A8'!AK$6 -> 0 | M19: =+'24-A8'!AL$6 -> 0 | N19: =+'24-A8'!AM$6 -> 0 | O19: =+'24-A8'!AN$6 -> 0 | P19: =+'24-A8'!AO$6 -> 0 | Q19: =+'24-A8'!AP$6 -> 0 | R19: =+'24-A8'!AQ$6 -> 0 | S19: =+'24-A8'!AR$6 -> 0 | T19: =+'24-A8'!AS$6 -> 0 | U19: =+'24-A8'!AT$6 -> 0 | V19: =+'24-A8'!AU$6 -> 0 | W19: =+'24-A8'!AV$6 -> 0 | X19: =+'24-A8'!AW$6 -> 0 | Y19: =+'24-A8'!AX$6 -> 0 | Z19: =+'24-A8'!AY$6 -> 0 | AA19: =+'24-A8'!AZ$6 -> 0 | AB19: =+'24-A8'!BA$6 -> 0 | AC19: =+'24-A8'!BB$6 -> 0 | AD19: =+'24-A8'!BC$6 -> 0 | AE19: =+'24-A8'!BD$6 -> 0 | AF19: =+'24-A8'!BE$6 -> 0 | AG19: =+'24-A8'!BF$6 -> 0 | AH19: =+'24-A8'!BG$6 -> 0 | AI19: =+'24-A8'!BH$6 -> 0 | AJ19: =+'24-A8'!BI$6 -> 0 | AK19: =+'24-A8'!BJ$6 -> 0 | AL19: =+'24-A8'!BK$6 -> 0 | AM19: =+'24-A8'!BL$6 -> 0 | AN19: =+'24-A8'!BM$6 -> 0 | AO19: =+'24-A8'!BN$6 -> 0 | AP19: =+'24-A8'!BO$6 -> 0 | AQ19: =+'24-A8'!BP$6 -> 0 | AR19: =+'24-A8'!BQ$6 -> 0 | AS19: =+'24-A8'!BR$6 -> 0 | AU19: =+'24-A8'!BT$6 -> 0 | AW19: =+'24-A8'!BV$6 -> 0 | AX19: =+'24-A8'!BW$6 -> 0 | AY19: =+'24-A8'!BX$6 -> 0 | AZ19: =+'24-A8'!BY$6 -> 0 | BA19: =+'24-A8'!BZ$6 -> 0 | BB19: =+'24-A8'!CA$6 -> 0
A20: =+'24-G1'!Z$6 -> 24-G1 | B20: =+'24-G1'!AA$6 -> Robert M. Falasco Justice Center | C20: =+'24-G1'!AB$6 -> 1159 G Street | D20: =+'24-G1'!AC$6 -> Los Banos | E20: =+'24-G1'!AD$6 -> 93635 | F20: =+'24-G1'!AE$6 -> Merced | G20: =+'24-G1'!AF$6 -> NCRO | I20: =+'24-G1'!AH$6 -> 0 | J20: =+'24-G1'!AI$6 -> 0 | K20: =+'24-G1'!AJ$6 -> 0 | L20: =+'24-G1'!AK$6 -> 0 | M20: =+'24-G1'!AL$6 -> 0 | N20: =+'24-G1'!AM$6 -> 0 | O20: =+'24-G1'!AN$6 -> 0 | P20: =+'24-G1'!AO$6 -> 0 | Q20: =+'24-G1'!AP$6 -> 0 | R20: =+'24-G1'!AQ$6 -> 0 | S20: =+'24-G1'!AR$6 -> 0 | T20: =+'24-G1'!AS$6 -> 0 | U20: =+'24-G1'!AT$6 -> 0 | V20: =+'24-G1'!AU$6 -> 0 | W20: =+'24-G1'!AV$6 -> 0 | X20: =+'24-G1'!AW$6 -> 0 | Y20: =+'24-G1'!AX$6 -> 0 | Z20: =+'24-G1'!AY$6 -> 0 | AA20: =+'24-G1'!AZ$6 -> 0 | AB20: =+'24-G1'!BA$6 -> 0 | AC20: =+'24-G1'!BB$6 -> 0 | AD20: =+'24-G1'!BC$6 -> 0 | AE20: =+'24-G1'!BD$6 -> 0 | AF20: =+'24-G1'!BE$6 -> 0 | AG20: =+'24-G1'!BF$6 -> 0 | AH20: =+'24-G1'!BG$6 -> 0 | AI20: =+'24-G1'!BH$6 -> 0 | AJ20: =+'24-G1'!BI$6 -> 0 | AK20: =+'24-G1'!BJ$6 -> 0 | AL20: =+'24-G1'!BK$6 -> 0 | AM20: =+'24-G1'!BL$6 -> 0 | AN20: =+'24-G1'!BM$6 -> 0 | AO20: =+'24-G1'!BN$6 -> 0 | AP20: =+'24-G1'!BO$6 -> 0 | AQ20: =+'24-G1'!BP$6 -> 0 | AR20: =+'24-G1'!BQ$6 -> 0 | AS20: =+'24-G1'!BR$6 -> 0 | AU20: =+'24-G1'!BT$6 -> 0 | AW20: =+'24-G1'!BV$6 -> 0 | AX20: =+'24-G1'!BW$6 -> 0 | AY20: =+'24-G1'!BX$6 -> 0 | AZ20: =+'24-G1'!BY$6 -> 0 | BA20: =+'24-G1'!BZ$6 -> 0 | BB20: =+'24-G1'!CA$6 -> 0
A21: =+'25-A1'!Z$6 -> 25-A1 | B21: =+'25-A1'!AA$6 -> Barclay Justice Center | C21: =+'25-A1'!AB$6 -> 205 S. East Street | D21: =+'25-A1'!AC$6 -> Alturas | E21: =+'25-A1'!AD$6 -> 96101 | F21: =+'25-A1'!AE$6 -> Modoc | G21: =+'25-A1'!AF$6 -> NCRO | I21: =+'25-A1'!AH$6 -> 0 | J21: =+'25-A1'!AI$6 -> 0 | K21: =+'25-A1'!AJ$6 -> 0 | L21: =+'25-A1'!AK$6 -> 0 | M21: =+'25-A1'!AL$6 -> 0 | N21: =+'25-A1'!AM$6 -> 0 | O21: =+'25-A1'!AN$6 -> 0 | P21: =+'25-A1'!AO$6 -> 0 | Q21: =+'25-A1'!AP$6 -> 0 | R21: =+'25-A1'!AQ$6 -> 0 | S21: =+'25-A1'!AR$6 -> 0 | T21: =+'25-A1'!AS$6 -> 0 | U21: =+'25-A1'!AT$6 -> 0 | V21: =+'25-A1'!AU$6 -> 0 | W21: =+'25-A1'!AV$6 -> 0 | X21: =+'25-A1'!AW$6 -> 0 | Y21: =+'25-A1'!AX$6 -> 0 | Z21: =+'25-A1'!AY$6 -> 0 | AA21: =+'25-A1'!AZ$6 -> 0 | AB21: =+'25-A1'!BA$6 -> 0 | AC21: =+'25-A1'!BB$6 -> 0 | AD21: =+'25-A1'!BC$6 -> 0 | AE21: =+'25-A1'!BD$6 -> 0 | AF21: =+'25-A1'!BE$6 -> 0 | AG21: =+'25-A1'!BF$6 -> 0 | AH21: =+'25-A1'!BG$6 -> 0 | AI21: =+'25-A1'!BH$6 -> 0 | AJ21: =+'25-A1'!BI$6 -> 0 | AK21: =+'25-A1'!BJ$6 -> 0 | AL21: =+'25-A1'!BK$6 -> 0 | AM21: =+'25-A1'!BL$6 -> 0 | AN21: =+'25-A1'!BM$6 -> 0 | AO21: =+'25-A1'!BN$6 -> 0 | AP21: =+'25-A1'!BO$6 -> 0 | AQ21: =+'25-A1'!BP$6 -> 0 | AR21: =+'25-A1'!BQ$6 -> 0 | AS21: =+'25-A1'!BR$6 -> 0 | AU21: =+'25-A1'!BT$6 -> 0 | AW21: =+'25-A1'!BV$6 -> 0 | AX21: =+'25-A1'!BW$6 -> 0 | AY21: =+'25-A1'!BX$6 -> 0 | AZ21: =+'25-A1'!BY$6 -> 0 | BA21: =+'25-A1'!BZ$6 -> 0 | BB21: =+'25-A1'!CA$6 -> 0
A22: =+'26-B2'!Z$6 -> 26-B2 | B22: =+'26-B2'!AA$6 -> Mammoth Lakes Courthouse | C22: =+'26-B2'!AB$6 -> 100 Thompsons Way | D22: =+'26-B2'!AC$6 -> Mammoth Lakes | E22: =+'26-B2'!AD$6 -> 93546 | F22: =+'26-B2'!AE$6 -> Mono | G22: =+'26-B2'!AF$6 -> NCRO | I22: =+'26-B2'!AH$6 -> 0 | J22: =+'26-B2'!AI$6 -> 0 | K22: =+'26-B2'!AJ$6 -> 0 | L22: =+'26-B2'!AK$6 -> 0 | M22: =+'26-B2'!AL$6 -> 0 | N22: =+'26-B2'!AM$6 -> 0 | O22: =+'26-B2'!AN$6 -> 0 | P22: =+'26-B2'!AO$6 -> 0 | Q22: =+'26-B2'!AP$6 -> 0 | R22: =+'26-B2'!AQ$6 -> 0 | S22: =+'26-B2'!AR$6 -> 0 | T22: =+'26-B2'!AS$6 -> 0 | U22: =+'26-B2'!AT$6 -> 0 | V22: =+'26-B2'!AU$6 -> 0 | W22: =+'26-B2'!AV$6 -> 0 | X22: =+'26-B2'!AW$6 -> 0 | Y22: =+'26-B2'!AX$6 -> 0 | Z22: =+'26-B2'!AY$6 -> 0 | AA22: =+'26-B2'!AZ$6 -> 0 | AB22: =+'26-B2'!BA$6 -> 0 | AC22: =+'26-B2'!BB$6 -> 0 | AD22: =+'26-B2'!BC$6 -> 0 | AE22: =+'26-B2'!BD$6 -> 0 | AF22: =+'26-B2'!BE$6 -> 0 | AG22: =+'26-B2'!BF$6 -> 0 | AH22: =+'26-B2'!BG$6 -> 0 | AI22: =+'26-B2'!BH$6 -> 0 | AJ22: =+'26-B2'!BI$6 -> 0 | AK22: =+'26-B2'!BJ$6 -> 0 | AL22: =+'26-B2'!BK$6 -> 0 | AM22: =+'26-B2'!BL$6 -> 0 | AN22: =+'26-B2'!BM$6 -> 0 | AO22: =+'26-B2'!BN$6 -> 0 | AP22: =+'26-B2'!BO$6 -> 0 | AQ22: =+'26-B2'!BP$6 -> 0 | AR22: =+'26-B2'!BQ$6 -> 0 | AS22: =+'26-B2'!BR$6 -> 0 | AU22: =+'26-B2'!BT$6 -> 0 | AW22: =+'26-B2'!BV$6 -> 0 | AX22: =+'26-B2'!BW$6 -> 0 | AY22: =+'26-B2'!BX$6 -> 0 | AZ22: =+'26-B2'!BY$6 -> 0 | BA22: =+'26-B2'!BZ$6 -> 0 | BB22: =+'26-B2'!CA$6 -> 0
A23: =+'31-H1'!Z$6 -> 31-H1 | B23: =+'31-H1'!AA$6 -> Hon. Howard G. Gibson Courthouse | C23: =+'31-H1'!AB$6 -> 10820 Justice Center Drive | D23: =+'31-H1'!AC$6 -> Roseville | E23: =+'31-H1'!AD$6 -> 95678 | F23: =+'31-H1'!AE$6 -> Placer | G23: =+'31-H1'!AF$6 -> NCRO | I23: =+'31-H1'!AH$6 -> 0 | J23: =+'31-H1'!AI$6 -> 0 | K23: =+'31-H1'!AJ$6 -> 0 | L23: =+'31-H1'!AK$6 -> 0 | M23: =+'31-H1'!AL$6 -> 0 | N23: =+'31-H1'!AM$6 -> 0 | O23: =+'31-H1'!AN$6 -> 0 | P23: =+'31-H1'!AO$6 -> 0 | Q23: =+'31-H1'!AP$6 -> 0 | R23: =+'31-H1'!AQ$6 -> 0 | S23: =+'31-H1'!AR$6 -> 0 | T23: =+'31-H1'!AS$6 -> 0 | U23: =+'31-H1'!AT$6 -> 0 | V23: =+'31-H1'!AU$6 -> 0 | W23: =+'31-H1'!AV$6 -> 0 | X23: =+'31-H1'!AW$6 -> 0 | Y23: =+'31-H1'!AX$6 -> 0 | Z23: =+'31-H1'!AY$6 -> 0 | AA23: =+'31-H1'!AZ$6 -> 0 | AB23: =+'31-H1'!BA$6 -> 0 | AC23: =+'31-H1'!BB$6 -> 0 | AD23: =+'31-H1'!BC$6 -> 0 | AE23: =+'31-H1'!BD$6 -> 0 | AF23: =+'31-H1'!BE$6 -> 0 | AG23: =+'31-H1'!BF$6 -> 0 | AH23: =+'31-H1'!BG$6 -> 0 | AI23: =+'31-H1'!BH$6 -> 0 | AJ23: =+'31-H1'!BI$6 -> 0 | AK23: =+'31-H1'!BJ$6 -> 0 | AL23: =+'31-H1'!BK$6 -> 0 | AM23: =+'31-H1'!BL$6 -> 0 | AN23: =+'31-H1'!BM$6 -> 0 | AO23: =+'31-H1'!BN$6 -> 0 | AP23: =+'31-H1'!BO$6 -> 0 | AQ23: =+'31-H1'!BP$6 -> 0 | AR23: =+'31-H1'!BQ$6 -> 0 | AS23: =+'31-H1'!BR$6 -> 0 | AU23: =+'31-H1'!BT$6 -> 0 | AW23: =+'31-H1'!BV$6 -> 0 | AX23: =+'31-H1'!BW$6 -> 0 | AY23: =+'31-H1'!BX$6 -> 0 | AZ23: =+'31-H1'!BY$6 -> 0 | BA23: =+'31-H1'!BZ$6 -> 0 | BB23: =+'31-H1'!CA$6 -> 0
A24: =+'34-A1'!Z$6 -> 34-A1 | B24: =+'34-A1'!AA$6 -> Gordon Schaber Sacramento Superior Court | C24: =+'34-A1'!AB$6 -> 720 Ninth St. | D24: =+'34-A1'!AC$6 -> Sacramento | E24: =+'34-A1'!AD$6 -> 95814 | F24: =+'34-A1'!AE$6 -> Sacramento | G24: =+'34-A1'!AF$6 -> NCRO | I24: =+'34-A1'!AH$6 -> 0 | J24: =+'34-A1'!AI$6 -> 0 | K24: =+'34-A1'!AJ$6 -> 0 | L24: =+'34-A1'!AK$6 -> 0 | M24: =+'34-A1'!AL$6 -> 0 | N24: =+'34-A1'!AM$6 -> 0 | O24: =+'34-A1'!AN$6 -> 0 | P24: =+'34-A1'!AO$6 -> 0 | Q24: =+'34-A1'!AP$6 -> 0 | R24: =+'34-A1'!AQ$6 -> 0 | S24: =+'34-A1'!AR$6 -> 0 | T24: =+'34-A1'!AS$6 -> 0 | U24: =+'34-A1'!AT$6 -> 0 | V24: =+'34-A1'!AU$6 -> 0 | W24: =+'34-A1'!AV$6 -> 0 | X24: =+'34-A1'!AW$6 -> 0 | Y24: =+'34-A1'!AX$6 -> 0 | Z24: =+'34-A1'!AY$6 -> 0 | AA24: =+'34-A1'!AZ$6 -> 0 | AB24: =+'34-A1'!BA$6 -> 0 | AC24: =+'34-A1'!BB$6 -> 0 | AD24: =+'34-A1'!BC$6 -> 0 | AE24: =+'34-A1'!BD$6 -> 0 | AF24: =+'34-A1'!BE$6 -> 0 | AG24: =+'34-A1'!BF$6 -> 0 | AH24: =+'34-A1'!BG$6 -> 0 | AI24: =+'34-A1'!BH$6 -> 0 | AJ24: =+'34-A1'!BI$6 -> 0 | AK24: =+'34-A1'!BJ$6 -> 0 | AL24: =+'34-A1'!BK$6 -> 0 | AM24: =+'34-A1'!BL$6 -> 0 | AN24: =+'34-A1'!BM$6 -> 0 | AO24: =+'34-A1'!BN$6 -> 0 | AP24: =+'34-A1'!BO$6 -> 0 | AQ24: =+'34-A1'!BP$6 -> 0 | AR24: =+'34-A1'!BQ$6 -> 0 | AS24: =+'34-A1'!BR$6 -> 0 | AU24: =+'34-A1'!BT$6 -> 0 | AW24: =+'34-A1'!BV$6 -> 0 | AX24: =+'34-A1'!BW$6 -> 0 | AY24: =+'34-A1'!BX$6 -> 0 | AZ24: =+'34-A1'!BY$6 -> 0 | BA24: =+'34-A1'!BZ$6 -> 0 | BB24: =+'34-A1'!CA$6 -> 0
A25: =+'34-C2'!Z$6 -> 34-C2 | B25: =+'34-C2'!AA$6 -> Juvenile Courthouse | C25: =+'34-C2'!AB$6 -> 9605 Kiefer Road | D25: =+'34-C2'!AC$6 -> Sacramento | E25: =+'34-C2'!AD$6 -> 95827 | F25: =+'34-C2'!AE$6 -> Sacramento | G25: =+'34-C2'!AF$6 -> NCRO | I25: =+'34-C2'!AH$6 -> 0 | J25: =+'34-C2'!AI$6 -> 0 | K25: =+'34-C2'!AJ$6 -> 0 | L25: =+'34-C2'!AK$6 -> 0 | M25: =+'34-C2'!AL$6 -> 0 | N25: =+'34-C2'!AM$6 -> 0 | O25: =+'34-C2'!AN$6 -> 0 | P25: =+'34-C2'!AO$6 -> 0 | Q25: =+'34-C2'!AP$6 -> 0 | R25: =+'34-C2'!AQ$6 -> 0 | S25: =+'34-C2'!AR$6 -> 0 | T25: =+'34-C2'!AS$6 -> 0 | U25: =+'34-C2'!AT$6 -> 0 | V25: =+'34-C2'!AU$6 -> 0 | W25: =+'34-C2'!AV$6 -> 0 | X25: =+'34-C2'!AW$6 -> 0 | Y25: =+'34-C2'!AX$6 -> 0 | Z25: =+'34-C2'!AY$6 -> 0 | AA25: =+'34-C2'!AZ$6 -> 0 | AB25: =+'34-C2'!BA$6 -> 0 | AC25: =+'34-C2'!BB$6 -> 0 | AD25: =+'34-C2'!BC$6 -> 0 | AE25: =+'34-C2'!BD$6 -> 0 | AF25: =+'34-C2'!BE$6 -> 0 | AG25: =+'34-C2'!BF$6 -> 0 | AH25: =+'34-C2'!BG$6 -> 0 | AI25: =+'34-C2'!BH$6 -> 0 | AJ25: =+'34-C2'!BI$6 -> 0 | AK25: =+'34-C2'!BJ$6 -> 0 | AL25: =+'34-C2'!BK$6 -> 0 | AM25: =+'34-C2'!BL$6 -> 0 | AN25: =+'34-C2'!BM$6 -> 0 | AO25: =+'34-C2'!BN$6 -> 0 | AP25: =+'34-C2'!BO$6 -> 0 | AQ25: =+'34-C2'!BP$6 -> 0 | AR25: =+'34-C2'!BQ$6 -> 0 | AS25: =+'34-C2'!BR$6 -> 0 | AU25: =+'34-C2'!BT$6 -> 0 | AW25: =+'34-C2'!BV$6 -> 0 | AX25: =+'34-C2'!BW$6 -> 0 | AY25: =+'34-C2'!BX$6 -> 0 | AZ25: =+'34-C2'!BY$6 -> 0 | BA25: =+'34-C2'!BZ$6 -> 0 | BB25: =+'34-C2'!CA$6 -> 0
A26: =+'34-D1'!Z$6 -> 34-D1 | B26: =+'34-D1'!AA$6 -> Carol Miller Justice Center Court Facility | C26: =+'34-D1'!AB$6 -> 301 Bicentennial Circle | D26: =+'34-D1'!AC$6 -> Sacramento | E26: =+'34-D1'!AD$6 -> 95826 | F26: =+'34-D1'!AE$6 -> Sacramento | G26: =+'34-D1'!AF$6 -> NCRO | I26: =+'34-D1'!AH$6 -> 0 | J26: =+'34-D1'!AI$6 -> 0 | K26: =+'34-D1'!AJ$6 -> 0 | L26: =+'34-D1'!AK$6 -> 0 | M26: =+'34-D1'!AL$6 -> 0 | N26: =+'34-D1'!AM$6 -> 0 | O26: =+'34-D1'!AN$6 -> 0 | P26: =+'34-D1'!AO$6 -> 0 | Q26: =+'34-D1'!AP$6 -> 0 | R26: =+'34-D1'!AQ$6 -> 0 | S26: =+'34-D1'!AR$6 -> 0 | T26: =+'34-D1'!AS$6 -> 0 | U26: =+'34-D1'!AT$6 -> 0 | V26: =+'34-D1'!AU$6 -> 0 | W26: =+'34-D1'!AV$6 -> 0 | X26: =+'34-D1'!AW$6 -> 0 | Y26: =+'34-D1'!AX$6 -> 0 | Z26: =+'34-D1'!AY$6 -> 0 | AA26: =+'34-D1'!AZ$6 -> 0 | AB26: =+'34-D1'!BA$6 -> 0 | AC26: =+'34-D1'!BB$6 -> 0 | AD26: =+'34-D1'!BC$6 -> 0 | AE26: =+'34-D1'!BD$6 -> 0 | AF26: =+'34-D1'!BE$6 -> 0 | AG26: =+'34-D1'!BF$6 -> 0 | AH26: =+'34-D1'!BG$6 -> 0 | AI26: =+'34-D1'!BH$6 -> 0 | AJ26: =+'34-D1'!BI$6 -> 0 | AK26: =+'34-D1'!BJ$6 -> 0 | AL26: =+'34-D1'!BK$6 -> 0 | AM26: =+'34-D1'!BL$6 -> 0 | AN26: =+'34-D1'!BM$6 -> 0 | AO26: =+'34-D1'!BN$6 -> 0 | AP26: =+'34-D1'!BO$6 -> 0 | AQ26: =+'34-D1'!BP$6 -> 0 | AR26: =+'34-D1'!BQ$6 -> 0 | AS26: =+'34-D1'!BR$6 -> 0 | AU26: =+'34-D1'!BT$6 -> 0 | AW26: =+'34-D1'!BV$6 -> 0 | AX26: =+'34-D1'!BW$6 -> 0 | AY26: =+'34-D1'!BX$6 -> 0 | AZ26: =+'34-D1'!BY$6 -> 0 | BA26: =+'34-D1'!BZ$6 -> 0 | BB26: =+'34-D1'!CA$6 -> 0
A27: =+'39-C1'!Z$6 -> 39-C1 | B27: =+'39-C1'!AA$6 -> Manteca Branch Court | C27: =+'39-C1'!AB$6 -> 315 E. Center St. | D27: =+'39-C1'!AC$6 -> Manteca | E27: =+'39-C1'!AD$6 -> 95336 | F27: =+'39-C1'!AE$6 -> San Joaquin | G27: =+'39-C1'!AF$6 -> NCRO | I27: =+'39-C1'!AH$6 -> 0 | J27: =+'39-C1'!AI$6 -> 0 | K27: =+'39-C1'!AJ$6 -> 0 | L27: =+'39-C1'!AK$6 -> 0 | M27: =+'39-C1'!AL$6 -> 0 | N27: =+'39-C1'!AM$6 -> 0 | O27: =+'39-C1'!AN$6 -> 0 | P27: =+'39-C1'!AO$6 -> 0 | Q27: =+'39-C1'!AP$6 -> 0 | R27: =+'39-C1'!AQ$6 -> 0 | S27: =+'39-C1'!AR$6 -> 0 | T27: =+'39-C1'!AS$6 -> 0 | U27: =+'39-C1'!AT$6 -> 0 | V27: =+'39-C1'!AU$6 -> 0 | W27: =+'39-C1'!AV$6 -> 0 | X27: =+'39-C1'!AW$6 -> 0 | Y27: =+'39-C1'!AX$6 -> 0 | Z27: =+'39-C1'!AY$6 -> 0 | AA27: =+'39-C1'!AZ$6 -> 0 | AB27: =+'39-C1'!BA$6 -> 0 | AC27: =+'39-C1'!BB$6 -> 0 | AD27: =+'39-C1'!BC$6 -> 0 | AE27: =+'39-C1'!BD$6 -> 0 | AF27: =+'39-C1'!BE$6 -> 0 | AG27: =+'39-C1'!BF$6 -> 0 | AH27: =+'39-C1'!BG$6 -> 0 | AI27: =+'39-C1'!BH$6 -> 0 | AJ27: =+'39-C1'!BI$6 -> 0 | AK27: =+'39-C1'!BJ$6 -> 0 | AL27: =+'39-C1'!BK$6 -> 0 | AM27: =+'39-C1'!BL$6 -> 0 | AN27: =+'39-C1'!BM$6 -> 0 | AO27: =+'39-C1'!BN$6 -> 0 | AP27: =+'39-C1'!BO$6 -> 0 | AQ27: =+'39-C1'!BP$6 -> 0 | AR27: =+'39-C1'!BQ$6 -> 0 | AS27: =+'39-C1'!BR$6 -> 0 | AU27: =+'39-C1'!BT$6 -> 0 | AW27: =+'39-C1'!BV$6 -> 0 | AX27: =+'39-C1'!BW$6 -> 0 | AY27: =+'39-C1'!BX$6 -> 0 | AZ27: =+'39-C1'!BY$6 -> 0 | BA27: =+'39-C1'!BZ$6 -> 0 | BB27: =+'39-C1'!CA$6 -> 0
A28: =+'39-D2'!Z$6 -> 39-D2 | B28: =+'39-D2'!AA$6 -> Lodi Branch Dept. 2 | C28: =+'39-D2'!AB$6 -> 315 W. Elm St. | D28: =+'39-D2'!AC$6 -> Lodi | E28: =+'39-D2'!AD$6 -> 95240 | F28: =+'39-D2'!AE$6 -> San Joaquin | G28: =+'39-D2'!AF$6 -> NCRO | I28: =+'39-D2'!AH$6 -> 0 | J28: =+'39-D2'!AI$6 -> 0 | K28: =+'39-D2'!AJ$6 -> 0 | L28: =+'39-D2'!AK$6 -> 0 | M28: =+'39-D2'!AL$6 -> 0 | N28: =+'39-D2'!AM$6 -> 0 | O28: =+'39-D2'!AN$6 -> 0 | P28: =+'39-D2'!AO$6 -> 0 | Q28: =+'39-D2'!AP$6 -> 0 | R28: =+'39-D2'!AQ$6 -> 0 | S28: =+'39-D2'!AR$6 -> 0 | T28: =+'39-D2'!AS$6 -> 0 | U28: =+'39-D2'!AT$6 -> 0 | V28: =+'39-D2'!AU$6 -> 0 | W28: =+'39-D2'!AV$6 -> 0 | X28: =+'39-D2'!AW$6 -> 0 | Y28: =+'39-D2'!AX$6 -> 0 | Z28: =+'39-D2'!AY$6 -> 0 | AA28: =+'39-D2'!AZ$6 -> 0 | AB28: =+'39-D2'!BA$6 -> 0 | AC28: =+'39-D2'!BB$6 -> 0 | AD28: =+'39-D2'!BC$6 -> 0 | AE28: =+'39-D2'!BD$6 -> 0 | AF28: =+'39-D2'!BE$6 -> 0 | AG28: =+'39-D2'!BF$6 -> 0 | AH28: =+'39-D2'!BG$6 -> 0 | AI28: =+'39-D2'!BH$6 -> 0 | AJ28: =+'39-D2'!BI$6 -> 0 | AK28: =+'39-D2'!BJ$6 -> 0 | AL28: =+'39-D2'!BK$6 -> 0 | AM28: =+'39-D2'!BL$6 -> 0 | AN28: =+'39-D2'!BM$6 -> 0 | AO28: =+'39-D2'!BN$6 -> 0 | AP28: =+'39-D2'!BO$6 -> 0 | AQ28: =+'39-D2'!BP$6 -> 0 | AR28: =+'39-D2'!BQ$6 -> 0 | AS28: =+'39-D2'!BR$6 -> 0 | AU28: =+'39-D2'!BT$6 -> 0 | AW28: =+'39-D2'!BV$6 -> 0 | AX28: =+'39-D2'!BW$6 -> 0 | AY28: =+'39-D2'!BX$6 -> 0 | AZ28: =+'39-D2'!BY$6 -> 0 | BA28: =+'39-D2'!BZ$6 -> 0 | BB28: =+'39-D2'!CA$6 -> 0
A29: =+'39-F1'!Z$6 -> 39-F1 | B29: =+'39-F1'!AA$6 -> Stockton Courthouse | C29: =+'39-F1'!AB$6 -> 180 East Weber Avenue | D29: =+'39-F1'!AC$6 -> Stockton | E29: =+'39-F1'!AD$6 -> 95202 | F29: =+'39-F1'!AE$6 -> San Joaquin | G29: =+'39-F1'!AF$6 -> NCRO | I29: =+'39-F1'!AH$6 -> 0 | J29: =+'39-F1'!AI$6 -> 0 | K29: =+'39-F1'!AJ$6 -> 0 | L29: =+'39-F1'!AK$6 -> 0 | M29: =+'39-F1'!AL$6 -> 0 | N29: =+'39-F1'!AM$6 -> 0 | O29: =+'39-F1'!AN$6 -> 0 | P29: =+'39-F1'!AO$6 -> 0 | Q29: =+'39-F1'!AP$6 -> 0 | R29: =+'39-F1'!AQ$6 -> 0 | S29: =+'39-F1'!AR$6 -> 0 | T29: =+'39-F1'!AS$6 -> 0 | U29: =+'39-F1'!AT$6 -> 0 | V29: =+'39-F1'!AU$6 -> 0 | W29: =+'39-F1'!AV$6 -> 0 | X29: =+'39-F1'!AW$6 -> 0 | Y29: =+'39-F1'!AX$6 -> 0 | Z29: =+'39-F1'!AY$6 -> 0 | AA29: =+'39-F1'!AZ$6 -> 0 | AB29: =+'39-F1'!BA$6 -> 0 | AC29: =+'39-F1'!BB$6 -> 0 | AD29: =+'39-F1'!BC$6 -> 0 | AE29: =+'39-F1'!BD$6 -> 0 | AF29: =+'39-F1'!BE$6 -> 0 | AG29: =+'39-F1'!BF$6 -> 0 | AH29: =+'39-F1'!BG$6 -> 0 | AI29: =+'39-F1'!BH$6 -> 0 | AJ29: =+'39-F1'!BI$6 -> 0 | AK29: =+'39-F1'!BJ$6 -> 0 | AL29: =+'39-F1'!BK$6 -> 0 | AM29: =+'39-F1'!BL$6 -> 0 | AN29: =+'39-F1'!BM$6 -> 0 | AO29: =+'39-F1'!BN$6 -> 0 | AP29: =+'39-F1'!BO$6 -> 0 | AQ29: =+'39-F1'!BP$6 -> 0 | AR29: =+'39-F1'!BQ$6 -> 0 | AS29: =+'39-F1'!BR$6 -> 0 | AU29: =+'39-F1'!BT$6 -> 0 | AW29: =+'39-F1'!BV$6 -> 0 | AX29: =+'39-F1'!BW$6 -> 0 | AY29: =+'39-F1'!BX$6 -> 0 | AZ29: =+'39-F1'!BY$6 -> 0 | BA29: =+'39-F1'!BZ$6 -> 0 | BB29: =+'39-F1'!CA$6 -> 0
A30: =+'45-A1'!Z$6 -> 45-A1 | B30: =+'45-A1'!AA$6 -> Main Courthouse | C30: =+'45-A1'!AB$6 -> 1500 Court St. | D30: =+'45-A1'!AC$6 -> Redding | E30: =+'45-A1'!AD$6 -> 96001 | F30: =+'45-A1'!AE$6 -> Shasta | G30: =+'45-A1'!AF$6 -> NCRO | I30: =+'45-A1'!AH$6 -> 0 | J30: =+'45-A1'!AI$6 -> 0 | K30: =+'45-A1'!AJ$6 -> 0 | L30: =+'45-A1'!AK$6 -> 0 | M30: =+'45-A1'!AL$6 -> 0 | N30: =+'45-A1'!AM$6 -> 0 | O30: =+'45-A1'!AN$6 -> 0 | P30: =+'45-A1'!AO$6 -> 0 | Q30: =+'45-A1'!AP$6 -> 0 | R30: =+'45-A1'!AQ$6 -> 0 | S30: =+'45-A1'!AR$6 -> 0 | T30: =+'45-A1'!AS$6 -> 0 | U30: =+'45-A1'!AT$6 -> 0 | V30: =+'45-A1'!AU$6 -> 0 | W30: =+'45-A1'!AV$6 -> 0 | X30: =+'45-A1'!AW$6 -> 0 | Y30: =+'45-A1'!AX$6 -> 0 | Z30: =+'45-A1'!AY$6 -> 0 | AA30: =+'45-A1'!AZ$6 -> 0 | AB30: =+'45-A1'!BA$6 -> 0 | AC30: =+'45-A1'!BB$6 -> 0 | AD30: =+'45-A1'!BC$6 -> 0 | AE30: =+'45-A1'!BD$6 -> 0 | AF30: =+'45-A1'!BE$6 -> 0 | AG30: =+'45-A1'!BF$6 -> 0 | AH30: =+'45-A1'!BG$6 -> 0 | AI30: =+'45-A1'!BH$6 -> 0 | AJ30: =+'45-A1'!BI$6 -> 0 | AK30: =+'45-A1'!BJ$6 -> 0 | AL30: =+'45-A1'!BK$6 -> 0 | AM30: =+'45-A1'!BL$6 -> 0 | AN30: =+'45-A1'!BM$6 -> 0 | AO30: =+'45-A1'!BN$6 -> 0 | AP30: =+'45-A1'!BO$6 -> 0 | AQ30: =+'45-A1'!BP$6 -> 0 | AR30: =+'45-A1'!BQ$6 -> 0 | AS30: =+'45-A1'!BR$6 -> 0 | AU30: =+'45-A1'!BT$6 -> 0 | AW30: =+'45-A1'!BV$6 -> 0 | AX30: =+'45-A1'!BW$6 -> 0 | AY30: =+'45-A1'!BX$6 -> 0 | AZ30: =+'45-A1'!BY$6 -> 0 | BA30: =+'45-A1'!BZ$6 -> 0 | BB30: =+'45-A1'!CA$6 -> 0
A31: =+'45-A7'!Z$6 -> 45-A7 | B31: =+'45-A7'!AA$6 -> Courthouse Annex | C31: =+'45-A7'!AB$6 -> 1500 Court St. | D31: =+'45-A7'!AC$6 -> Redding | E31: =+'45-A7'!AD$6 -> 96001 | F31: =+'45-A7'!AE$6 -> Shasta | G31: =+'45-A7'!AF$6 -> NCRO | I31: =+'45-A7'!AH$6 -> 0 | J31: =+'45-A7'!AI$6 -> 0 | K31: =+'45-A7'!AJ$6 -> 0 | L31: =+'45-A7'!AK$6 -> 0 | M31: =+'45-A7'!AL$6 -> 0 | N31: =+'45-A7'!AM$6 -> 0 | O31: =+'45-A7'!AN$6 -> 0 | P31: =+'45-A7'!AO$6 -> 0 | Q31: =+'45-A7'!AP$6 -> 0 | R31: =+'45-A7'!AQ$6 -> 0 | S31: =+'45-A7'!AR$6 -> 0 | T31: =+'45-A7'!AS$6 -> 0 | U31: =+'45-A7'!AT$6 -> 0 | V31: =+'45-A7'!AU$6 -> 0 | W31: =+'45-A7'!AV$6 -> 0 | X31: =+'45-A7'!AW$6 -> 0 | Y31: =+'45-A7'!AX$6 -> 0 | Z31: =+'45-A7'!AY$6 -> 0 | AA31: =+'45-A7'!AZ$6 -> 0 | AB31: =+'45-A7'!BA$6 -> 0 | AC31: =+'45-A7'!BB$6 -> 0 | AD31: =+'45-A7'!BC$6 -> 0 | AE31: =+'45-A7'!BD$6 -> 0 | AF31: =+'45-A7'!BE$6 -> 0 | AG31: =+'45-A7'!BF$6 -> 0 | AH31: =+'45-A7'!BG$6 -> 0 | AI31: =+'45-A7'!BH$6 -> 0 | AJ31: =+'45-A7'!BI$6 -> 0 | AK31: =+'45-A7'!BJ$6 -> 0 | AL31: =+'45-A7'!BK$6 -> 0 | AM31: =+'45-A7'!BL$6 -> 0 | AN31: =+'45-A7'!BM$6 -> 0 | AO31: =+'45-A7'!BN$6 -> 0 | AP31: =+'45-A7'!BO$6 -> 0 | AQ31: =+'45-A7'!BP$6 -> 0 | AR31: =+'45-A7'!BQ$6 -> 0 | AS31: =+'45-A7'!BR$6 -> 0 | AU31: =+'45-A7'!BT$6 -> 0 | AW31: =+'45-A7'!BV$6 -> 0 | AX31: =+'45-A7'!BW$6 -> 0 | AY31: =+'45-A7'!BX$6 -> 0 | AZ31: =+'45-A7'!BY$6 -> 0 | BA31: =+'45-A7'!BZ$6 -> 0 | BB31: =+'45-A7'!CA$6 -> 0
A32: =+'50-A1'!Z$6 -> 50-A1 | B32: =+'50-A1'!AA$6 -> Modesto Main Courthouse | C32: =+'50-A1'!AB$6 -> 800 11th Street | D32: =+'50-A1'!AC$6 -> Modesto | E32: =+'50-A1'!AD$6 -> 95354 | F32: =+'50-A1'!AE$6 -> Stanislaus | G32: =+'50-A1'!AF$6 -> NCRO | I32: =+'50-A1'!AH$6 -> 0 | J32: =+'50-A1'!AI$6 -> 0 | K32: =+'50-A1'!AJ$6 -> 0 | L32: =+'50-A1'!AK$6 -> 0 | M32: =+'50-A1'!AL$6 -> 0 | N32: =+'50-A1'!AM$6 -> 0 | O32: =+'50-A1'!AN$6 -> 0 | P32: =+'50-A1'!AO$6 -> 0 | Q32: =+'50-A1'!AP$6 -> 0 | R32: =+'50-A1'!AQ$6 -> 0 | S32: =+'50-A1'!AR$6 -> 0 | T32: =+'50-A1'!AS$6 -> 0 | U32: =+'50-A1'!AT$6 -> 0 | V32: =+'50-A1'!AU$6 -> 0 | W32: =+'50-A1'!AV$6 -> 0 | X32: =+'50-A1'!AW$6 -> 0 | Y32: =+'50-A1'!AX$6 -> 0 | Z32: =+'50-A1'!AY$6 -> 0 | AA32: =+'50-A1'!AZ$6 -> 0 | AB32: =+'50-A1'!BA$6 -> 0 | AC32: =+'50-A1'!BB$6 -> 0 | AD32: =+'50-A1'!BC$6 -> 0 | AE32: =+'50-A1'!BD$6 -> 0 | AF32: =+'50-A1'!BE$6 -> 0 | AG32: =+'50-A1'!BF$6 -> 0 | AH32: =+'50-A1'!BG$6 -> 0 | AI32: =+'50-A1'!BH$6 -> 0 | AJ32: =+'50-A1'!BI$6 -> 0 | AK32: =+'50-A1'!BJ$6 -> 0 | AL32: =+'50-A1'!BK$6 -> 0 | AM32: =+'50-A1'!BL$6 -> 0 | AN32: =+'50-A1'!BM$6 -> 0 | AO32: =+'50-A1'!BN$6 -> 0 | AP32: =+'50-A1'!BO$6 -> 0 | AQ32: =+'50-A1'!BP$6 -> 0 | AR32: =+'50-A1'!BQ$6 -> 0 | AS32: =+'50-A1'!BR$6 -> 0 | AU32: =+'50-A1'!BT$6 -> 0 | AW32: =+'50-A1'!BV$6 -> 0 | AX32: =+'50-A1'!BW$6 -> 0 | AY32: =+'50-A1'!BX$6 -> 0 | AZ32: =+'50-A1'!BY$6 -> 0 | BA32: =+'50-A1'!BZ$6 -> 0 | BB32: =+'50-A1'!CA$6 -> 0
A33: =+'50-A2'!Z$6 -> 50-A2 | B33: =+'50-A2'!AA$6 -> Hall of Records | C33: =+'50-A2'!AB$6 -> 1100 I Street | D33: =+'50-A2'!AC$6 -> Modesto | E33: =+'50-A2'!AD$6 -> 95353 | F33: =+'50-A2'!AE$6 -> Stanislaus | G33: =+'50-A2'!AF$6 -> NCRO | I33: =+'50-A2'!AH$6 -> 0 | J33: =+'50-A2'!AI$6 -> 0 | K33: =+'50-A2'!AJ$6 -> 0 | L33: =+'50-A2'!AK$6 -> 0 | M33: =+'50-A2'!AL$6 -> 0 | N33: =+'50-A2'!AM$6 -> 0 | O33: =+'50-A2'!AN$6 -> 0 | P33: =+'50-A2'!AO$6 -> 0 | Q33: =+'50-A2'!AP$6 -> 0 | R33: =+'50-A2'!AQ$6 -> 0 | S33: =+'50-A2'!AR$6 -> 0 | T33: =+'50-A2'!AS$6 -> 0 | U33: =+'50-A2'!AT$6 -> 0 | V33: =+'50-A2'!AU$6 -> 0 | W33: =+'50-A2'!AV$6 -> 0 | X33: =+'50-A2'!AW$6 -> 0 | Y33: =+'50-A2'!AX$6 -> 0 | Z33: =+'50-A2'!AY$6 -> 0 | AA33: =+'50-A2'!AZ$6 -> 0 | AB33: =+'50-A2'!BA$6 -> 0 | AC33: =+'50-A2'!BB$6 -> 0 | AD33: =+'50-A2'!BC$6 -> 0 | AE33: =+'50-A2'!BD$6 -> 0 | AF33: =+'50-A2'!BE$6 -> 0 | AG33: =+'50-A2'!BF$6 -> 0 | AH33: =+'50-A2'!BG$6 -> 0 | AI33: =+'50-A2'!BH$6 -> 0 | AJ33: =+'50-A2'!BI$6 -> 0 | AK33: =+'50-A2'!BJ$6 -> 0 | AL33: =+'50-A2'!BK$6 -> 0 | AM33: =+'50-A2'!BL$6 -> 0 | AN33: =+'50-A2'!BM$6 -> 0 | AO33: =+'50-A2'!BN$6 -> 0 | AP33: =+'50-A2'!BO$6 -> 0 | AQ33: =+'50-A2'!BP$6 -> 0 | AR33: =+'50-A2'!BQ$6 -> 0 | AS33: =+'50-A2'!BR$6 -> 0 | AU33: =+'50-A2'!BT$6 -> 0 | AW33: =+'50-A2'!BV$6 -> 0 | AX33: =+'50-A2'!BW$6 -> 0 | AY33: =+'50-A2'!BX$6 -> 0 | AZ33: =+'50-A2'!BY$6 -> 0 | BA33: =+'50-A2'!BZ$6 -> 0 | BB33: =+'50-A2'!CA$6 -> 0
A34: =+'50-C1'!Z$6 -> 50-C1 | B34: =+'50-C1'!AA$6 -> Ceres Superior Court | C34: =+'50-C1'!AB$6 -> 2744 Second St. | D34: =+'50-C1'!AC$6 -> Ceres | E34: =+'50-C1'!AD$6 -> 95307 | F34: =+'50-C1'!AE$6 -> Stanislaus | G34: =+'50-C1'!AF$6 -> NCRO | I34: =+'50-C1'!AH$6 -> 0 | J34: =+'50-C1'!AI$6 -> 0 | K34: =+'50-C1'!AJ$6 -> 0 | L34: =+'50-C1'!AK$6 -> 0 | M34: =+'50-C1'!AL$6 -> 0 | N34: =+'50-C1'!AM$6 -> 0 | O34: =+'50-C1'!AN$6 -> 0 | P34: =+'50-C1'!AO$6 -> 0 | Q34: =+'50-C1'!AP$6 -> 0 | R34: =+'50-C1'!AQ$6 -> 0 | S34: =+'50-C1'!AR$6 -> 0 | T34: =+'50-C1'!AS$6 -> 0 | U34: =+'50-C1'!AT$6 -> 0 | V34: =+'50-C1'!AU$6 -> 0 | W34: =+'50-C1'!AV$6 -> 0 | X34: =+'50-C1'!AW$6 -> 0 | Y34: =+'50-C1'!AX$6 -> 0 | Z34: =+'50-C1'!AY$6 -> 0 | AA34: =+'50-C1'!AZ$6 -> 0 | AB34: =+'50-C1'!BA$6 -> 0 | AC34: =+'50-C1'!BB$6 -> 0 | AD34: =+'50-C1'!BC$6 -> 0 | AE34: =+'50-C1'!BD$6 -> 0 | AF34: =+'50-C1'!BE$6 -> 0 | AG34: =+'50-C1'!BF$6 -> 0 | AH34: =+'50-C1'!BG$6 -> 0 | AI34: =+'50-C1'!BH$6 -> 0 | AJ34: =+'50-C1'!BI$6 -> 0 | AK34: =+'50-C1'!BJ$6 -> 0 | AL34: =+'50-C1'!BK$6 -> 0 | AM34: =+'50-C1'!BL$6 -> 0 | AN34: =+'50-C1'!BM$6 -> 0 | AO34: =+'50-C1'!BN$6 -> 0 | AP34: =+'50-C1'!BO$6 -> 0 | AQ34: =+'50-C1'!BP$6 -> 0 | AR34: =+'50-C1'!BQ$6 -> 0 | AS34: =+'50-C1'!BR$6 -> 0 | AU34: =+'50-C1'!BT$6 -> 0 | AW34: =+'50-C1'!BV$6 -> 0 | AX34: =+'50-C1'!BW$6 -> 0 | AY34: =+'50-C1'!BX$6 -> 0 | AZ34: =+'50-C1'!BY$6 -> 0 | BA34: =+'50-C1'!BZ$6 -> 0 | BB34: =+'50-C1'!CA$6 -> 0
A35: =+'50-D1'!Z$6 -> 50-D1 | B35: =+'50-D1'!AA$6 -> Turlock Superior Court | C35: =+'50-D1'!AB$6 -> 300 Starr Ave. | D35: =+'50-D1'!AC$6 -> Turlock | E35: =+'50-D1'!AD$6 -> 95380 | F35: =+'50-D1'!AE$6 -> Stanislaus | G35: =+'50-D1'!AF$6 -> NCRO | I35: =+'50-D1'!AH$6 -> 0 | J35: =+'50-D1'!AI$6 -> 0 | K35: =+'50-D1'!AJ$6 -> 0 | L35: =+'50-D1'!AK$6 -> 0 | M35: =+'50-D1'!AL$6 -> 0 | N35: =+'50-D1'!AM$6 -> 0 | O35: =+'50-D1'!AN$6 -> 0 | P35: =+'50-D1'!AO$6 -> 0 | Q35: =+'50-D1'!AP$6 -> 0 | R35: =+'50-D1'!AQ$6 -> 0 | S35: =+'50-D1'!AR$6 -> 0 | T35: =+'50-D1'!AS$6 -> 0 | U35: =+'50-D1'!AT$6 -> 0 | V35: =+'50-D1'!AU$6 -> 0 | W35: =+'50-D1'!AV$6 -> 0 | X35: =+'50-D1'!AW$6 -> 0 | Y35: =+'50-D1'!AX$6 -> 0 | Z35: =+'50-D1'!AY$6 -> 0 | AA35: =+'50-D1'!AZ$6 -> 0 | AB35: =+'50-D1'!BA$6 -> 0 | AC35: =+'50-D1'!BB$6 -> 0 | AD35: =+'50-D1'!BC$6 -> 0 | AE35: =+'50-D1'!BD$6 -> 0 | AF35: =+'50-D1'!BE$6 -> 0 | AG35: =+'50-D1'!BF$6 -> 0 | AH35: =+'50-D1'!BG$6 -> 0 | AI35: =+'50-D1'!BH$6 -> 0 | AJ35: =+'50-D1'!BI$6 -> 0 | AK35: =+'50-D1'!BJ$6 -> 0 | AL35: =+'50-D1'!BK$6 -> 0 | AM35: =+'50-D1'!BL$6 -> 0 | AN35: =+'50-D1'!BM$6 -> 0 | AO35: =+'50-D1'!BN$6 -> 0 | AP35: =+'50-D1'!BO$6 -> 0 | AQ35: =+'50-D1'!BP$6 -> 0 | AR35: =+'50-D1'!BQ$6 -> 0 | AS35: =+'50-D1'!BR$6 -> 0 | AU35: =+'50-D1'!BT$6 -> 0 | AW35: =+'50-D1'!BV$6 -> 0 | AX35: =+'50-D1'!BW$6 -> 0 | AY35: =+'50-D1'!BX$6 -> 0 | AZ35: =+'50-D1'!BY$6 -> 0 | BA35: =+'50-D1'!BZ$6 -> 0 | BB35: =+'50-D1'!CA$6 -> 0
A36: =+'51-C1'!Z$6 -> 51-C1 | B36: =+'51-C1'!AA$6 -> Sutter County Superior Courthouse | C36: =+'51-C1'!AB$6 -> 1175 Civic Center Blvd. | D36: =+'51-C1'!AC$6 -> Yuba City | E36: =+'51-C1'!AD$6 -> 95993 | F36: =+'51-C1'!AE$6 -> Sutter | G36: =+'51-C1'!AF$6 -> NCRO | I36: =+'51-C1'!AH$6 -> 0 | J36: =+'51-C1'!AI$6 -> 0 | K36: =+'51-C1'!AJ$6 -> 0 | L36: =+'51-C1'!AK$6 -> 0 | M36: =+'51-C1'!AL$6 -> 0 | N36: =+'51-C1'!AM$6 -> 0 | O36: =+'51-C1'!AN$6 -> 0 | P36: =+'51-C1'!AO$6 -> 0 | Q36: =+'51-C1'!AP$6 -> 0 | R36: =+'51-C1'!AQ$6 -> 0 | S36: =+'51-C1'!AR$6 -> 0 | T36: =+'51-C1'!AS$6 -> 0 | U36: =+'51-C1'!AT$6 -> 0 | V36: =+'51-C1'!AU$6 -> 0 | W36: =+'51-C1'!AV$6 -> 0 | X36: =+'51-C1'!AW$6 -> 0 | Y36: =+'51-C1'!AX$6 -> 0 | Z36: =+'51-C1'!AY$6 -> 0 | AA36: =+'51-C1'!AZ$6 -> 0 | AB36: =+'51-C1'!BA$6 -> 0 | AC36: =+'51-C1'!BB$6 -> 0 | AD36: =+'51-C1'!BC$6 -> 0 | AE36: =+'51-C1'!BD$6 -> 0 | AF36: =+'51-C1'!BE$6 -> 0 | AG36: =+'51-C1'!BF$6 -> 0 | AH36: =+'51-C1'!BG$6 -> 0 | AI36: =+'51-C1'!BH$6 -> 0 | AJ36: =+'51-C1'!BI$6 -> 0 | AK36: =+'51-C1'!BJ$6 -> 0 | AL36: =+'51-C1'!BK$6 -> 0 | AM36: =+'51-C1'!BL$6 -> 0 | AN36: =+'51-C1'!BM$6 -> 0 | AO36: =+'51-C1'!BN$6 -> 0 | AP36: =+'51-C1'!BO$6 -> 0 | AQ36: =+'51-C1'!BP$6 -> 0 | AR36: =+'51-C1'!BQ$6 -> 0 | AS36: =+'51-C1'!BR$6 -> 0 | AU36: =+'51-C1'!BT$6 -> 0 | AW36: =+'51-C1'!BV$6 -> 0 | AX36: =+'51-C1'!BW$6 -> 0 | AY36: =+'51-C1'!BX$6 -> 0 | AZ36: =+'51-C1'!BY$6 -> 0 | BA36: =+'51-C1'!BZ$6 -> 0 | BB36: =+'51-C1'!CA$6 -> 0
A37: =+'52-E1'!Z$6 -> 52-E1 | B37: =+'52-E1'!AA$6 -> Tehama County Courthouse | C37: =+'52-E1'!AB$6 -> 1740 Walnut Street | D37: =+'52-E1'!AC$6 -> Red Bluff | E37: =+'52-E1'!AD$6 -> 96080 | F37: =+'52-E1'!AE$6 -> Tehama | G37: =+'52-E1'!AF$6 -> NCRO | I37: =+'52-E1'!AH$6 -> 0 | J37: =+'52-E1'!AI$6 -> 0 | K37: =+'52-E1'!AJ$6 -> 0 | L37: =+'52-E1'!AK$6 -> 0 | M37: =+'52-E1'!AL$6 -> 0 | N37: =+'52-E1'!AM$6 -> 0 | O37: =+'52-E1'!AN$6 -> 0 | P37: =+'52-E1'!AO$6 -> 0 | Q37: =+'52-E1'!AP$6 -> 0 | R37: =+'52-E1'!AQ$6 -> 0 | S37: =+'52-E1'!AR$6 -> 0 | T37: =+'52-E1'!AS$6 -> 0 | U37: =+'52-E1'!AT$6 -> 0 | V37: =+'52-E1'!AU$6 -> 0 | W37: =+'52-E1'!AV$6 -> 0 | X37: =+'52-E1'!AW$6 -> 0 | Y37: =+'52-E1'!AX$6 -> 0 | Z37: =+'52-E1'!AY$6 -> 0 | AA37: =+'52-E1'!AZ$6 -> 0 | AB37: =+'52-E1'!BA$6 -> 0 | AC37: =+'52-E1'!BB$6 -> 0 | AD37: =+'52-E1'!BC$6 -> 0 | AE37: =+'52-E1'!BD$6 -> 0 | AF37: =+'52-E1'!BE$6 -> 0 | AG37: =+'52-E1'!BF$6 -> 0 | AH37: =+'52-E1'!BG$6 -> 0 | AI37: =+'52-E1'!BH$6 -> 0 | AJ37: =+'52-E1'!BI$6 -> 0 | AK37: =+'52-E1'!BJ$6 -> 0 | AL37: =+'52-E1'!BK$6 -> 0 | AM37: =+'52-E1'!BL$6 -> 0 | AN37: =+'52-E1'!BM$6 -> 0 | AO37: =+'52-E1'!BN$6 -> 0 | AP37: =+'52-E1'!BO$6 -> 0 | AQ37: =+'52-E1'!BP$6 -> 0 | AR37: =+'52-E1'!BQ$6 -> 0 | AS37: =+'52-E1'!BR$6 -> 0 | AU37: =+'52-E1'!BT$6 -> 0 | AW37: =+'52-E1'!BV$6 -> 0 | AX37: =+'52-E1'!BW$6 -> 0 | AY37: =+'52-E1'!BX$6 -> 0 | AZ37: =+'52-E1'!BY$6 -> 0 | BA37: =+'52-E1'!BZ$6 -> 0 | BB37: =+'52-E1'!CA$6 -> 0
A38: =+'54-I1'!Z$6 -> 54-I1 | B38: =+'54-I1'!AA$6 -> South County Justice Center | C38: =+'54-I1'!AB$6 -> 300 East Olive Avenue | D38: =+'54-I1'!AC$6 -> Porterville | E38: =+'54-I1'!AD$6 -> 93257 | F38: =+'54-I1'!AE$6 -> Tulare | G38: =+'54-I1'!AF$6 -> NCRO | I38: =+'54-I1'!AH$6 -> 0 | J38: =+'54-I1'!AI$6 -> 0 | K38: =+'54-I1'!AJ$6 -> 0 | L38: =+'54-I1'!AK$6 -> 0 | M38: =+'54-I1'!AL$6 -> 0 | N38: =+'54-I1'!AM$6 -> 0 | O38: =+'54-I1'!AN$6 -> 0 | P38: =+'54-I1'!AO$6 -> 0 | Q38: =+'54-I1'!AP$6 -> 0 | R38: =+'54-I1'!AQ$6 -> 0 | S38: =+'54-I1'!AR$6 -> 0 | T38: =+'54-I1'!AS$6 -> 0 | U38: =+'54-I1'!AT$6 -> 0 | V38: =+'54-I1'!AU$6 -> 0 | W38: =+'54-I1'!AV$6 -> 0 | X38: =+'54-I1'!AW$6 -> 0 | Y38: =+'54-I1'!AX$6 -> 0 | Z38: =+'54-I1'!AY$6 -> 0 | AA38: =+'54-I1'!AZ$6 -> 0 | AB38: =+'54-I1'!BA$6 -> 0 | AC38: =+'54-I1'!BB$6 -> 0 | AD38: =+'54-I1'!BC$6 -> 0 | AE38: =+'54-I1'!BD$6 -> 0 | AF38: =+'54-I1'!BE$6 -> 0 | AG38: =+'54-I1'!BF$6 -> 0 | AH38: =+'54-I1'!BG$6 -> 0 | AI38: =+'54-I1'!BH$6 -> 0 | AJ38: =+'54-I1'!BI$6 -> 0 | AK38: =+'54-I1'!BJ$6 -> 0 | AL38: =+'54-I1'!BK$6 -> 0 | AM38: =+'54-I1'!BL$6 -> 0 | AN38: =+'54-I1'!BM$6 -> 0 | AO38: =+'54-I1'!BN$6 -> 0 | AP38: =+'54-I1'!BO$6 -> 0 | AQ38: =+'54-I1'!BP$6 -> 0 | AR38: =+'54-I1'!BQ$6 -> 0 | AS38: =+'54-I1'!BR$6 -> 0 | AU38: =+'54-I1'!BT$6 -> 0 | AW38: =+'54-I1'!BV$6 -> 0 | AX38: =+'54-I1'!BW$6 -> 0 | AY38: =+'54-I1'!BX$6 -> 0 | AZ38: =+'54-I1'!BY$6 -> 0 | BA38: =+'54-I1'!BZ$6 -> 0 | BB38: =+'54-I1'!CA$6 -> 0
A39: =+'57-A10'!Z$6 -> 57-A10 | B39: =+'57-A10'!AA$6 -> Yolo Superior Court | C39: =+'57-A10'!AB$6 -> 1000 Main Street | D39: =+'57-A10'!AC$6 -> Woodland | E39: =+'57-A10'!AD$6 -> 95695 | F39: =+'57-A10'!AE$6 -> Yolo | G39: =+'57-A10'!AF$6 -> NCRO | I39: =+'57-A10'!AH$6 -> 0 | J39: =+'57-A10'!AI$6 -> 0 | K39: =+'57-A10'!AJ$6 -> 0 | L39: =+'57-A10'!AK$6 -> 0 | M39: =+'57-A10'!AL$6 -> 0 | N39: =+'57-A10'!AM$6 -> 0 | O39: =+'57-A10'!AN$6 -> 0 | P39: =+'57-A10'!AO$6 -> 0 | Q39: =+'57-A10'!AP$6 -> 0 | R39: =+'57-A10'!AQ$6 -> 0 | S39: =+'57-A10'!AR$6 -> 0 | T39: =+'57-A10'!AS$6 -> 0 | U39: =+'57-A10'!AT$6 -> 0 | V39: =+'57-A10'!AU$6 -> 0 | W39: =+'57-A10'!AV$6 -> 0 | X39: =+'57-A10'!AW$6 -> 0 | Y39: =+'57-A10'!AX$6 -> 0 | Z39: =+'57-A10'!AY$6 -> 0 | AA39: =+'57-A10'!AZ$6 -> 0 | AB39: =+'57-A10'!BA$6 -> 0 | AC39: =+'57-A10'!BB$6 -> 0 | AD39: =+'57-A10'!BC$6 -> 0 | AE39: =+'57-A10'!BD$6 -> 0 | AF39: =+'57-A10'!BE$6 -> 0 | AG39: =+'57-A10'!BF$6 -> 0 | AH39: =+'57-A10'!BG$6 -> 0 | AI39: =+'57-A10'!BH$6 -> 0 | AJ39: =+'57-A10'!BI$6 -> 0 | AK39: =+'57-A10'!BJ$6 -> 0 | AL39: =+'57-A10'!BK$6 -> 0 | AM39: =+'57-A10'!BL$6 -> 0 | AN39: =+'57-A10'!BM$6 -> 0 | AO39: =+'57-A10'!BN$6 -> 0 | AP39: =+'57-A10'!BO$6 -> 0 | AQ39: =+'57-A10'!BP$6 -> 0 | AR39: =+'57-A10'!BQ$6 -> 0 | AS39: =+'57-A10'!BR$6 -> 0 | AU39: =+'57-A10'!BT$6 -> 0 | AW39: =+'57-A10'!BV$6 -> 0 | AX39: =+'57-A10'!BW$6 -> 0 | AY39: =+'57-A10'!BX$6 -> 0 | AZ39: =+'57-A10'!BY$6 -> 0 | BA39: =+'57-A10'!BZ$6 -> 0 | BB39: =+'57-A10'!CA$6 -> 0
A40: =+'65-A2'!Z$6 -> 65-A2 | B40: =+'65-A2'!AA$6 -> 2424 Ventura Street - 5 DCA | C40: =+'65-A2'!AB$6 -> 2424 Ventura Street | D40: =+'65-A2'!AC$6 -> Fresno | E40: =+'65-A2'!AD$6 -> 93721 | F40: =+'65-A2'!AE$6 -> Fresno | G40: =+'65-A2'!AF$6 -> NCRO | I40: =+'65-A2'!AH$6 -> 0 | J40: =+'65-A2'!AI$6 -> 0 | K40: =+'65-A2'!AJ$6 -> 0 | L40: =+'65-A2'!AK$6 -> 0 | M40: =+'65-A2'!AL$6 -> 0 | N40: =+'65-A2'!AM$6 -> 0 | O40: =+'65-A2'!AN$6 -> 0 | P40: =+'65-A2'!AO$6 -> 0 | Q40: =+'65-A2'!AP$6 -> 0 | R40: =+'65-A2'!AQ$6 -> 0 | S40: =+'65-A2'!AR$6 -> 0 | T40: =+'65-A2'!AS$6 -> 0 | U40: =+'65-A2'!AT$6 -> 0 | V40: =+'65-A2'!AU$6 -> 0 | W40: =+'65-A2'!AV$6 -> 0 | X40: =+'65-A2'!AW$6 -> 0 | Y40: =+'65-A2'!AX$6 -> 0 | Z40: =+'65-A2'!AY$6 -> 0 | AA40: =+'65-A2'!AZ$6 -> 0 | AB40: =+'65-A2'!BA$6 -> 0 | AC40: =+'65-A2'!BB$6 -> 0 | AD40: =+'65-A2'!BC$6 -> 0 | AE40: =+'65-A2'!BD$6 -> 0 | AF40: =+'65-A2'!BE$6 -> 0 | AG40: =+'65-A2'!BF$6 -> 0 | AH40: =+'65-A2'!BG$6 -> 0 | AI40: =+'65-A2'!BH$6 -> 0 | AJ40: =+'65-A2'!BI$6 -> 0 | AK40: =+'65-A2'!BJ$6 -> 0 | AL40: =+'65-A2'!BK$6 -> 0 | AM40: =+'65-A2'!BL$6 -> 0 | AN40: =+'65-A2'!BM$6 -> 0 | AO40: =+'65-A2'!BN$6 -> 0 | AP40: =+'65-A2'!BO$6 -> 0 | AQ40: =+'65-A2'!BP$6 -> 0 | AR40: =+'65-A2'!BQ$6 -> 0 | AS40: =+'65-A2'!BR$6 -> 0 | AU40: =+'65-A2'!BT$6 -> 0 | AW40: =+'65-A2'!BV$6 -> 0 | AX40: =+'65-A2'!BW$6 -> 0 | AY40: =+'65-A2'!BX$6 -> 0 | AZ40: =+'65-A2'!BY$6 -> 0 | BA40: =+'65-A2'!BZ$6 -> 0 | BB40: =+'65-A2'!CA$6 -> 0
AU41: =SUM(AU7:AU40) -> 0 | AW41: =SUM(AW7:AW40)/C42 -> 0 | AX41: =SUM(AX7:AX40)/C42 -> 0 | AY41: =SUM(AY7:AY40)/C42 -> 0 | AZ41: =SUM(AZ7:AZ40)/C42 -> 0 | BA41: =SUM(BA7:BA40)/C42 -> 0 | BB41: =SUM(BB7:BB40)/C42 -> 0
B42: Number of Facilities in Region | C42: 34
A43: 1 | B43: Year One Firm Fixed Price | C43: =+AU41 -> 0 | D43: 1. Year One Firm Fixed Price Total
A44: 2 | B44: Evaluated Hourly Cost | C44: =+(AZ41*C42)*1000 -> 0 | D44: 2. Average Hourly Rate for all facilities within a region: total of Hourly Rates proposed in cost proposal, divided by the Number of Facilities in Region, equals Average Hourly Rate. The Average Hourly Rate will be multiplied by the Number of Facilities in Region and then multiplied by 1,000 to provide an Evaluated Hourly Cost value for the Region.
A45: 3 | B45: Mark-up On Materials Value | C45: =+C44*0.3*BA41 -> 0 | D45: 3. Markup on Materials will be calculated by taking the Evaluated Hourly Cost value, multiplying that value by 0.3 to establish the Materials value and multiplying the proposed percentage value to establish the Markup on Materials value.
A46: 4 | B46: Mark-up On Subcontractor/Third-Parties Value | C46: =+C44*0.25*BB41 -> 0 | D46: 4. Markup on Subcontractor/Third-Parties will be calculated by taking the Evaluated Hourly Cost value, multiplying that value by 0.25 to establish the Materials value and multiplying the proposed Percentage value to establish the Markup on Subcontractor/Third-Parties value.
A47: 5 | B47: Snow Removal | C47: =+AW41*4*C42 -> 0 | D47: 5. Snow Removal (crew hourly rate) average costs throughout the Region, multiplied by the Number of Facilities in Region, multiplied by four (4) events per facility, to establish the Snow Removal evaluation value.
A48: 6 | B48: Unclogging Blocked Toilet – In-custody holding cell | C48: =+AX41*26*C42 -> 0 | D48: 6. Unclogging Blocked Toilet – In-custody holding cell (labor only) average costs throughout the Region, multiplied by the Number of Facilities in Region, multiplied by twenty-six (26) events per facility, to establish the Unclogging Blocked Toilet – In-custody holding cell evaluation value.
A49: 7 | B49: Unclogging Blocked Toilet – Public / Court Staff | C49: =+AY41*104*C42 -> 0 | D49: 7. Unclogging Blocked Toilet – Public / Court Staff (labor only) average costs throughout the Region, multiplied by the Number of Facilities in Region, multiplied by one hundred and four (104) events per facility, to establish the Unclogging Blocked Toilet – Public / Court Staff evaluation value.
A50: 8 | B50: Phase-In Costs | C50: 0 | D50: 8. Phase-In Costs - Lump Sum Amount
A51: 9 | B51: Phase-Out Costs | C51: 0 | D51: 9. Phase-Out Costs - Lump Sum Amount at end of Contract Term
A52: 10 | B52: Total Evaluated Price | C52: =SUM(C43:C51) -> 0 | D52: 10. Each of the values for items 1 through 9 above will be calculated and added together to establish the Total Evaluated Price value.

Sheet 03-C1
B1: JCC ID | C1: Facility Name | D1: Address | F1: City / Town | H1: Zip Code | J1: County | L1: Region | N1: RFP | P1: Proposer
B2: 03-C1 | C2: =IFERROR(VLOOKUP($B$2,'Equipment List Template'!$1:$1048576,2,FALSE),"") -> Amador Superior Court | D2: =IFERROR(VLOOKUP($B$2,'Equipment List Template'!$1:$1048576,3,FALSE),"") -> 500 Argonaut Lane | F2: =IFERROR(VLOOKUP($B$2,'Equipment List Template'!$1:$1048576,4,FALSE),"") -> Jackson | H2: =IFERROR(VLOOKUP($B$2,'Equipment List Template'!$1:$1048576,5,FALSE),"") -> 95642 | J2: =IFERROR(VLOOKUP($B$2,'Equipment List Template'!$1:$1048576,6,FALSE),"") -> Amador | L2: =IFERROR(VLOOKUP($B$2,'Equipment List Template'!$1:$1048576,7,FALSE),"") -> NCRO | N2: ='Summary Pricing Sheet'!B2 -> RFP-FS-SP-2019-03-JP | P2: ='Summary Pricing Sheet'!B3 -> TBD
D3: Daily Activity | G3: Weekly Activity | J3: Monthly Activity | M3: Quarterly Activity | P3: Annual Activity | U3: Summary | AG3: System | AH3: HVAC | AS3: Electrical | BA3: Plumbing | BE3: Building Systems | BP3: Corporate | BT3: Fixed Price - Facility Total Annual Cost Year 1
B4: System ID | C4: Subsystem | D4: Quantity | E4: Cost | F4: Daily Total | G4: Quantity | H4: Cost | I4: Weekly Total | J4: Monthly Quantity | K4: Cost | L4: Monthly Total | M4: Quarterly Quantity | N4: Cost | O4: Quarterly Total | P4: Annual Quantity | Q4: Cost | R4: Annual PM Total | T4: Number of PM's | U4: Annual Cost | V4: Quantity | W4: Total Annual Cost | AG4: Subsystem | AH4: Air Cooled DX (Package / Split System) | AI4: Air Handling Unit (Air-cooled DX) | AJ4: Air-Cooled Chiller | AK4: Centrifugal Chiller | AL4: Cooling Tower (Induced Draft) | AM4: Ice Chiller | AN4: Multitask (Geothermal) | AO4: Water Source Heat Pump | AP4: Fan Coil System | AQ4: Exhaust Fan | AR4: HVAC Unique System | AS4: Electrical Panels | AT4: Emergency Generator | AU4: Motor Control Center | AV4: Primary Switch (High) | AW4: Primary Switch (Low) | AX4: Transformer (Dry-Type) | AY4: Uninterruptible Power Supply (UPS) | AZ4: Electrical Unique System | BA4: Hot Water Boiler | BB4: Condensing Water Heater | BC4: Electric Water Heater | BD4: Plumbing Unique System | BE4: Steam System | BF4: Pneumatic Compressor | BG4: Vertical Transportation | BH4: Life Safety | BI4: Backflow Preventor | BJ4: Rounds and Readings | BK4: Access Doors, Gates, Sally Port | BL4: Water Treatment | BM4: Building Exterior / Hardscape (Monthly) | BN4: Fountain Maintenance (Monthly) | BO4: Fuel Storage Tanks (Quarterly) If applicable | BP4: Landscape Maintenance * | BQ4: Account Management and Supervision (Monthly) | BR4: Fee (Monthly) | BV4: Snow Removal - (crew hourly rate) | BW4: Unclogging Blocked Toilet - In-custody holding cell (labor) | BX4: Unclogging Blocked Toilet - Public/Court Staff (labor) | BY4: Hourly Rate | BZ4: Markup on Materials | CA4: Markup on Subcontractors/Third-Parties
A5: =$B$2 -> 03-C1 | B5: A1 | C5: Access Doors, Gates, Sally Port | J5: 11 | K5: 0 | L5: =+K5*J5 -> 0 | M5: 0 | N5: 0 | O5: =+N5*M5 -> 0 | P5: 1 | Q5: 0 | R5: =+Q5*P5 -> 0 | S5: 12 | T5: =IF($V5>0,$S5,0) -> 12 | U5: =+R5+O5+L5+I5+F5 -> 0 | V5: =IFERROR(VLOOKUP($A$5,'Equipment List Template'!$1:$1048576,10,FALSE),"0") -> 1 | W5: =+U5*V5 -> 0 | Z5: JCC ID | AA5: Facility Name | AB5: Address | AC5: City / Town | AD5: County | AE5: Region | AF5: Region | AG5: System ID | AH5: H1 | AI5: H2 | AJ5: H3 | AK5: H4 | AL5: H5 | AM5: H6 | AN5: H7 | AO5: H8 | AP5: H9 | AQ5: H10 | AR5: H11 | AS5: E1 | AT5: E2 | AU5: E3 | AV5: E4 | AW5: E5 | AX5: E6 | AY5: E7 | AZ5: E8 | BA5: P1 | BB5: P2 | BC5: P3 | BD5: P4 | BE5: P5 | BF5: P6 | BG5: V1 | BH5: L1 | BI5: L2 | BJ5: R1 | BK5: A1 | BL5: W1 | BM5: B1 | BN5: F1 | BO5: F2 | BP5: G1 | BQ5: C1 | BR5: C2 | BV5: S1 | BW5: I1 | BX5: I2 | BY5: Hr 1 | BZ5: M1 | CA5: Sub1
A6: =$B$2 -> 03-C1 | B6: H1 | C6: Air Cooled DX (Package / Split System) | J6: 0 | K6: 0 | L6: =+K6*J6 -> 0 | M6: 3 | N6: 0 | O6: =+N6*M6 -> 0 | P6: 1 | Q6: 0 | R6: =+Q6*P6 -> 0 | S6: 4 | T6: =IF($V6>0,$S6,0) -> 4 | U6: =+R6+O6+L6+I6+F6 -> 0 | V6: =IFERROR(VLOOKUP($A$5,'Equipment List Template'!$1:$1048576,11,FALSE),"0") -> 4 | W6: =+U6*V6 -> 0 | Z6: =B2 -> 03-C1 | AA6: =IFERROR(VLOOKUP($Z$6,'Equipment List Template'!$1:$1048576,2,FALSE),"") -> Amador Superior Court | AB6: =IFERROR(VLOOKUP($Z$6,'Equipment List Template'!$1:$1048576,3,FALSE),"") -> 500 Argonaut Lane | AC6: =IFERROR(VLOOKUP($Z$6,'Equipment List Template'!$1:$1048576,4,FALSE),"") -> Jackson | AD6: =IFERROR(VLOOKUP($Z$6,'Equipment List Template'!$1:$1048576,5,FALSE),"") -> 95642 | AE6: =IFERROR(VLOOKUP($Z$6,'Equipment List Template'!$1:$1048576,6,FALSE),"") -> Amador | AF6: =IFERROR(VLOOKUP($Z$6,'Equipment List Template'!$1:$1048576,7,FALSE),"") -> NCRO | AH6: =+$W5 -> 0 | AI6: =+$W6 -> 0 | AJ6: =+$W7 -> 0 | AK6: =+$W8 -> 0 | AL6: =+$W9 -> 0 | AM6: =+$W10 -> 0 | AN6: =+$W11 -> 0 | AO6: =+$W12 -> 0 | AP6: =+$W13 -> 0 | AQ6: =+$W14 -> 0 | AR6: =+$W15 -> 0 | AS6: =+$W16 -> 0 | AT6: =+$W17 -> 0 | AU6: =+$W18 -> 0 | AV6: =+$W19 -> 0 | AW6: =+$W20 -> 0 | AX6: =+$W21 -> 0 | AY6: =+$W22 -> 0 | AZ6: =+$W23 -> 0 | BA6: =+$W24 -> 0 | BB6: =+$W25 -> 0 | BC6: =+$W26 -> 0 | BD6: =+$W27 -> 0 | BE6: =+$W28 -> 0 | BF6: =+$W29 -> 0 | BG6: =+$W30 -> 0 | BH6: =+$W31 -> 0 | BI6: =+$W32 -> 0 | BJ6: =+$W33 -> 0 | BK6: =+$W34 -> 0 | BL6: =+$W35 -> 0 | BM6: =+$W36 -> 0 | BN6: =+$W37 -> 0 | BO6: =+$W38 -> 0 | BP6: =+$W39 -> 0 | BQ6: =+$W40 -> 0 | BR6: =+$W41 -> 0 | BT6: =+W42 -> 0 | BV6: =+D43 -> 0 | BW6: =+D44 -> 0 | BX6: =+D45 -> 0 | BY6: =+D46 -> 0 | BZ6: =+D47 -> 0 | CA6: =+D48 -> 0
A7: 03-C1 | B7: H2 | C7: Air Handling Unit (Air-cooled DX) | J7: 0 | K7: 0 | L7: 0 | M7: 3 | N7: 0 | O7: 0 | P7: 1 | Q7: 0 | R7: 0 | S7: 4 | T7: 4 | U7: 0 | V7: =IFERROR(VLOOKUP($A$5,'Equipment List Template'!$1:$1048576,12,FALSE),"0") -> 15 | W7: =+U7*V7 -> 0
A8: 03-C1 | B8: H3 | C8: Air-Cooled Chiller | G8: 40 | H8: 0 | I8: =+H8*G8 -> 0 | J8: 8 | K8: 0 | L8: 0 | M8: 3 | N8: 0 | O8: 0 | P8: 1 | Q8: 0 | R8: 0 | S8: 12 | T8: 0 | U8: 0 | V8: =IFERROR(VLOOKUP($A$5,'Equipment List Template'!$1:$1048576,13,FALSE),"0") -> 0 | W8: 0
A9: 03-C1 | B9: H4 | C9: Centrifugal Chiller | J9: 11 | K9: 0 | L9: 0 | M9: 0 | N9: 0 | O9: 0 | P9: 1 | Q9: 0 | R9: 0 | S9: 12 | T9: 0 | U9: 0 | V9: =IFERROR(VLOOKUP($A$5,'Equipment List Template'!$1:$1048576,14,FALSE),"0") -> 0 | W9: 0
A10: 03-C1 | B10: H5 | C10: Cooling Tower (Induced Draft) | J10: 8 | K10: 0 | L10: 0 | M10: 3 | N10: 0 | O10: 0 | P10: 1 | Q10: 0 | R10: 0 | S10: 12 | T10: 0 | U10: 0 | V10: =IFERROR(VLOOKUP($A$5,'Equipment List Template'!$1:$1048576,15,FALSE),"0") -> 0 | W10: 0
A11: 03-C1 | B11: H6 | C11: Ice Chiller | J11: 8 | K11: 0 | L11: 0 | M11: 3 | N11: 0 | O11: 0 | P11: 1 | Q11: 0 | R11: 0 | S11: 12 | T11: 0 | U11: 0 | V11: =IFERROR(VLOOKUP($A$5,'Equipment List Template'!$1:$1048576,16,FALSE),"0") -> 0 | W11: 0
A12: 03-C1 | B12: H7 | C12: MultiStack (Geothermal) | J12: 0 | K12: 0 | L12: 0 | M12: 0 | N12: 0 | O12: 0 | P12: 1 | Q12: 0 | R12: 0 | S12: 1 | T12: 0 | U12: 0 | V12: =IFERROR(VLOOKUP($A$5,'Equipment List Template'!$1:$1048576,17,FALSE),"0") -> 0 | W12: 0
A13: 03-C1 | B13: H8 | C13: Water Source Heat Pump | J13: 8 | K13: 0 | L13: 0 | M13: 3 | N13: 0 | O13: 0 | P13: 1 | Q13: 0 | R13: 0 | S13: 12 | T13: 0 | U13: 0 | V13: =IFERROR(VLOOKUP($A$5,'Equipment List Template'!$1:$1048576,18,FALSE),"0") -> 0 | W13: 0
A14: 03-C1 | B14: H9 | C14: Fan Coil System | J14: 0 | K14: 0 | L14: 0 | M14: 3 | N14: 0 | O14: 0 | P14: 1 | Q14: 0 | R14: 0 | S14: 4 | T14: 0 | U14: 0 | V14: =IFERROR(VLOOKUP($A$5,'Equipment List Template'!$1:$1048576,19,FALSE),"0") -> 0 | W14: 0
A15: 03-C1 | B15: H10 | C15: Exhaust Fan | J15: 0 | K15: 0 | L15: 0 | M15: 3 | N15: 0 | O15: 0 | P15: 1 | Q15: 0 | R15: 0 | S15: 4 | T15: 4 | U15: 0 | V15: =IFERROR(VLOOKUP($A$5,'Equipment List Template'!$1:$1048576,20,FALSE),"0") -> 18 | W15: 0
A16: 03-C1 | B16: H11 | C16: HVAC Unique System | J16: 8 | K16: 0 | L16: 0 | M16: 3 | N16: 0 | O16: 0 | P16: 1 | Q16: 0 | R16: 0 | S16: 12 | T16: 0 | U16: 0 | V16: =IFERROR(VLOOKUP($A$5,'Equipment List Template'!$1:$1048576,21,FALSE),"0") -> 0 | W16: 0
A17: 03-C1 | B17: E1 | C17: Electrical Panels | J17: 0 | K17: 0 | L17: 0 | M17: 3 | N17: 0 | O17: 0 | P17: 1 | Q17: 0 | R17: 0 | S17: 4 | T17: 0 | U17: 0 | V17: =IFERROR(VLOOKUP($A$5,'Equipment List Template'!$1:$1048576,22,FALSE),"0") -> 0 | W17: 0
A18: 03-C1 | B18: E2 | C18: Emergency Generator | J18: 0 | K18: 0 | L18: 0 | M18: 3 | N18: 0 | O18: 0 | P18: 1 | Q18: 0 | R18: 0 | S18: 4 | T18: 4 | U18: 0 | V18: =IFERROR(VLOOKUP($A$5,'Equipment List Template'!$1:$1048576,23,FALSE),"0") -> 1 | W18: 0
A19: 03-C1 | B19: E3 | C19: Motor Control Center | J19: 0 | K19: 0 | L19: 0 | M19: 4 | N19: 0 | O19: 0 | P19: 0 | Q19: 0 | R19: 0 | S19: 4 | T19: 0 | U19: 0 | V19: =IFERROR(VLOOKUP($A$5,'Equipment List Template'!$1:$1048576,24,FALSE),"0") -> 0 | W19: 0
A20: 03-C1 | B20: E4 | C20: Primary Switch (High) | J20: 8 | K20: 0 | L20: 0 | M20: 3 | N20: 0 | O20: 0 | P20: 1 | Q20: 0 | R20: 0 | S20: 12 | T20: 0 | U20: 0 | V20: =IFERROR(VLOOKUP($A$5,'Equipment List Template'!$1:$1048576,25,FALSE),"0") -> 0 | W20: 0
A21: 03-C1 | B21: E5 | C21: Primary Switch (Low) | J21: 8 | K21: 0 | L21: 0 | M21: 3 | N21: 0 | O21: 0 | P21: 1 | Q21: 0 | R21: 0 | S21: 12 | T21: 0 | U21: 0 | V21: =IFERROR(VLOOKUP($A$5,'Equipment List Template'!$1:$1048576,26,FALSE),"0") -> 0 | W21: 0
A22: 03-C1 | B22: E6 | C22: Transformer (Dry-Type) | J22: 0 | K22: 0 | L22: 0 | M22: 3 | N22: 0 | O22: 0 | P22: 1 | Q22: 0 | R22: 0 | S22: 4 | T22: 0 | U22: 0 | V22: =IFERROR(VLOOKUP($A$5,'Equipment List Template'!$1:$1048576,27,FALSE),"0") -> 0 | W22: 0
A23: 03-C1 | B23: E7 | C23: Uninterruptible Power Supply (UPS) | J23: 0 | K23: 0 | L23: 0 | M23: 0 | N23: 0 | O23: 0 | P23: 1 | Q23: 0 | R23: 0 | S23: 1 | T23: 0 | U23: 0 | V23: =IFERROR(VLOOKUP($A$5,'Equipment List Template'!$1:$1048576,28,FALSE),"0") -> 0 | W23: 0
A24: 03-C1 | B24: E8 | C24: Electrical Unique System | J24: 8 | K24: 0 | L24: 0 | M24: 3 | N24: 0 | O24: 0 | P24: 1 | Q24: 0 | R24: 0 | S24: 12 | T24: 0 | U24: 0 | V24: =IFERROR(VLOOKUP($A$5,'Equipment List Template'!$1:$1048576,29,FALSE),"0") -> 0 | W24: 0
A25: 03-C1 | B25: L1 | C25: Life Safety | J25: 0 | K25: 0 | L25: 0 | M25: 3 | N25: 0 | O25: 0 | P25: 1 | Q25: 0 | R25: 0 | S25: 4 | T25: 4 | U25: 0 | V25: =IFERROR(VLOOKUP($A$5,'Equipment List Template'!$1:$1048576,30,FALSE),"0") -> 1 | W25: =+U25*V25 -> 0
A26: 03-C1 | B26: L2 | C26: Backflow Preventor(s) | J26: 0 | K26: 0 | L26: 0 | M26: 0 | N26: 0 | O26: 0 | P26: 1 | Q26: 0 | R26: 0 | S26: 1 | T26: 1 | U26: 0 | V26: =IFERROR(VLOOKUP($A$5,'Equipment List Template'!$1:$1048576,31,FALSE),"0") -> 3 | W26: =+U26*V26 -> 0
A27: 03-C1 | B27: P1 | C27: Hot Water Boiler | J27: 8 | K27: 0 | L27: 0 | M27: 3 | N27: 0 | O27: 0 | P27: 1 | Q27: 0 | R27: 0 | S27: 12 | T27: 0 | U27: 0 | V27: =IFERROR(VLOOKUP($A$5,'Equipment List Template'!$1:$1048576,32,FALSE),"0") -> 0 | W27: 0
A28: 03-C1 | B28: P2 | C28: Condensing Water Heater | J28: 0 | K28: 0 | L28: 0 | M28: 0 | N28: 0 | O28: 0 | P28: 1 | Q28: 0 | R28: 0 | S28: 1 | T28: 1 | U28: 0 | V28: =IFERROR(VLOOKUP($A$5,'Equipment List Template'!$1:$1048576,33,FALSE),"0") -> 1 | W28: 0
A29: 03-C1 | B29: P3 | C29: Electric Water Heater | J29: 0 | K29: 0 | L29: 0 | M29: 0 | N29: 0 | O29: 0 | P29: 1 | Q29: 0 | R29: 0 | S29: 1 | T29: 1 | U29: 0 | V29: =IFERROR(VLOOKUP($A$5,'Equipment List Template'!$1:$1048576,34,FALSE),"0") -> 4 | W29: 0
A30: 03-C1 | B30: P4 | C30: Plumbing Unique System | J30: 0 | K30: 0 | L30: 0 | M30: 3 | N30: 0 | O30: 0 | P30: 1 | Q30: 0 | R30: 0 | S30: 4 | T30: 0 | U30: 0 | V30: =IFERROR(VLOOKUP($A$5,'Equipment List Template'!$1:$1048576,35,FALSE),"0") -> 0 | W30: 0
A31: 03-C1 | B31: P5 | C31: Steam System | J31: 0 | K31: 0 | L31: 0 | M31: 3 | N31: 0 | O31: 0 | P31: 1 | Q31: 0 | R31: 0 | S31: 4 | T31: 0 | U31: 0 | V31: =IFERROR(VLOOKUP($A$5,'Equipment List Template'!$1:$1048576,36,FALSE),"0") -> 0 | W31: 0
A32: 03-C1 | B32: P6 | C32: Pneumatic Compressor | J32: 11 | K32: 0 | L32: 0 | M32: 0 | N32: 0 | O32: 0 | P32: 1 | Q32: 0 | R32: 0 | S32: 12 | T32: 0 | U32: 0 | V32: =IFERROR(VLOOKUP($A$5,'Equipment List Template'!$1:$1048576,37,FALSE),"0") -> 0 | W32: 0
A33: 03-C1 | B33: R1 | C33: Rounds and Readings | D33: =IFERROR(IF(VLOOKUP($A33,'Equipment List Template'!$1:$1048576,38,FALSE)=260,248,0),0) -> 0 | E33: 0 | F33: =+E33*D33 -> 0 | G33: =IFERROR(IF(VLOOKUP($A33,'Equipment List Template'!$1:$1048576,38,FALSE)=52,40,0),0) -> 40 | H33: 0 | I33: =+H33*G33 -> 0 | J33: 12 | K33: 0 | L33: 0 | S33: 12 | T33: 12 | U33: =+R33+O33+L33+I33+F33 -> 0 | V33: 1 | W33: =+U33*V33 -> 0
A34: 03-C1 | B34: V1 | C34: Vertical Transportation | J34: 8 | K34: 0 | L34: =+K34*J34 -> 0 | M34: 3 | N34: 0 | O34: =+N34*M34 -> 0 | P34: 1 | Q34: 0 | R34: =+Q34*P34 -> 0 | S34: 12 | T34: 0 | U34: =+R34+O34+L34 -> 0 | V34: =IFERROR(VLOOKUP($A$5,'Equipment List Template'!$1:$1048576,39,FALSE),"0") -> 0 | W34: =+U34*V34 -> 0
A35: 03-C1 | B35: W1 | C35: Water Treatment | D35: =IFERROR(IF(VLOOKUP($A35,'Equipment List Template'!$1:$1048576,40,FALSE)=260,260,0),0) -> 0 | E35: 0 | F35: =+E35*D35 -> 0 | S35: 0 | T35: 0 | U35: =+R35+O35+L35+I35+F35 -> 0 | V35: 1 | W35: 0
A36: 03-C1 | B36: B1 | C36: Building Exterior / Hardscape (Monthly) | J36: 12 | K36: 0 | L36: =+K36*J36 -> 0 | S36: 12 | T36: 12 | U36: 0 | V36: 1 | W36: 0
A37: 03-C1 | B37: F1 | C37: Fountain Maintenance (Monthly) | J37: 12 | K37: 0 | L37: 0 | S37: 12 | T37: 12 | U37: 0 | V37: 1 | W37: 0
A38: 03-C1 | B38: F2 | C38: Fuel Storage Tanks (Quarterly) If applicable | M38: 4 | N38: 0 | O38: =+N38*M38 -> 0 | S38: 4 | T38: 4 | U38: 0 | V38: 1 | W38: 0
A39: 03-C1 | B39: G1 | C39: Landscape Maintenance * | G39: 40 | H39: 0 | I39: =+H39*G39 -> 0 | S39: 0 | T39: 0 | U39: 0 | V39: 1 | W39: 0
A40: 03-C1 | B40: C1 | C40: Account Management and Supervision (Monthly) | J40: 12 | K40: 0 | L40: =+K40*J40 -> 0 | S40: 12 | T40: 12 | U40: 0 | V40: 1 | W40: 0
A41: 03-C1 | B41: C2 | C41: Fee (Monthly) | J41: 12 | K41: 0 | L41: 0 | S41: 12 | T41: 12 | U41: 0 | V41: 1 | W41: 0
Q42: JCC ID | R42: =B2 -> 03-C1 | U42: Total | W42: =SUM(W6:W41) -> 0
B43: S1 | C43: Snow Removal - (crew hourly rate) | D43: 0 | U43: Total # of PM's | W43: =SUM(T5:T41) -> 99
B44: I1 | C44: Unclogging Blocked Toilet - In-custody cell (labor-only) | D44: 0
B45: I2 | C45: Unclogging Blocked Toilet - Public/Court Staff (labor-only) | D45: 0
B46: Hr 1 | C46: Hourly Rate (All Labor categories) | D46: 0
B47: M1 | C47: Markup on Materials (Percentage) | D47: 0
B48: Sub1 | C48: Markup on Subcontractors/Third-Parties (Percentage) | D48: 0
B50: * Landscape Maintenance varies by location on the number of weeks per year it can be preformed. For the purpose of the RFP, all facilities are pre-established at 40 weeks of service. The actual amount paid by facility will be based upon the actual weeks that service has been performed, validated and invoiced.

Sheet 04-A1
B1: JCC ID | C1: Facility Name | D1: Address | F1: City / Town | H1: Zip Code | J1: County | L1: Region | N1: RFP | P1: Proposer
B2: 04-A1 | C2: =IFERROR(VLOOKUP($B$2,'Equipment List Template'!$1:$1048576,2,FALSE),"") -> Butte County Courthouse | D2: =IFERROR(VLOOKUP($B$2,'Equipment List Template'!$1:$1048576,3,FALSE),"") -> 1 Court St. | F2: =IFERROR(VLOOKUP($B$2,'Equipment List Template'!$1:$1048576,4,FALSE),"") -> Oroville | H2: =IFERROR(VLOOKUP($B$2,'Equipment List Template'!$1:$1048576,5,FALSE),"") -> 95965 | J2: =IFERROR(VLOOKUP($B$2,'Equipment List Template'!$1:$1048576,6,FALSE),"") -> Butte | L2: =IFERROR(VLOOKUP($B$2,'Equipment List Template'!$1:$1048576,7,FALSE),"") -> NCRO | N2: ='Summary Pricing Sheet'!B2 -> RFP-FS-SP-2019-03-JP | P2: ='Summary Pricing Sheet'!B3 -> TBD
D3: Daily Activity | G3: Weekly Activity | J3: Monthly Activity | M3: Quarterly Activity | P3: Annual Activity | U3: Summary | AG3: System | AH3: HVAC | AS3: Electrical | BA3: Plumbing | BE3: Building Systems | BP3: Corporate | BT3: Fixed Price - Facility Total Annual Cost Year 1
B4: System ID | C4: Subsystem | D4: Quantity | E4: Cost | F4: Daily Total | G4: Quantity | H4: Cost | I4: Weekly Total | J4: Monthly Quantity | K4: Cost | L4: Monthly Total | M4: Quarterly Quantity | N4: Cost | O4: Quarterly Total | P4: Annual Quantity | Q4: Cost | R4: Annual PM Total | T4: Number of PM's | U4: Annual Cost | V4: Quantity | W4: Total Annual Cost | AG4: Subsystem | AH4: Air Cooled DX (Package / Split System) | AI4: Air Handling Unit (Air-cooled DX) | AJ4: Air-Cooled Chiller | AK4: Centrifugal Chiller | AL4: Cooling Tower (Induced Draft) | AM4: Ice Chiller | AN4: Multitask (Geothermal) | AO4: Water Source Heat Pump | AP4: Fan Coil System | AQ4: Exhaust Fan | AR4: HVAC Unique System | AS4: Electrical Panels | AT4: Emergency Generator | AU4: Motor Control Center | AV4: Primary Switch (High) | AW4: Primary Switch (Low) | AX4: Transformer (Dry-Type) | AY4: Uninterruptible Power Supply (UPS) | AZ4: Electrical Unique System | BA4: Hot Water Boiler | BB4: Condensing Water Heater | BC4: Electric Water Heater | BD4: Plumbing Unique System | BE4: Steam System | BF4: Pneumatic Compressor | BG4: Vertical Transportation | BH4: Life Safety | BI4: Backflow Preventor | BJ4: Rounds and Readings | BK4: Access Doors, Gates, Sally Port | BL4: Water Treatment | BM4: Building Exterior / Hardscape (Monthly) | BN4: Fountain Maintenance (Monthly) | BO4: Fuel Storage Tanks (Quarterly) If applicable | BP4: Landscape Maintenance * | BQ4: Account Management and Supervision (Monthly) | BR4: Fee (Monthly) | BV4: Snow Removal - (crew hourly rate) | BW4: Unclogging Blocked Toilet - In-custody holding cell (labor) | BX4: Unclogging Blocked Toilet - Public/Court Staff (labor) | BY4: Hourly Rate | BZ4: Markup on Materials | CA4: Markup on Subcontractors/Third-Parties
A5: =$B$2 -> 04-A1 | B5: A1 | C5: Access Doors, Gates, Sally Port | J5: 11 | K5: 0 | L5: =+K5*J5 -> 0 | M5: 0 | N5: 0 | O5: =+N5*M5 -> 0 | P5: 1 | Q5: 0 | R5: =+Q5*P5 -> 0 | S5: 12 | T5: =IF($V5>0,$S5,0) -> 12 | U5: =+R5+O5+L5+I5+F5 -> 0 | V5: =IFERROR(VLOOKUP($A$5,'Equipment List Template'!$1:$1048576,10,FALSE),"0") -> 1 | W5: =+U5*V5 -> 0 | Z5: JCC ID | AA5: Facility Name | AB5: Address | AC5: City / Town | AD5: County | AE5: Region | AF5: Region | AG5: System ID | AH5: H1 | AI5: H2 | AJ5: H3 | AK5: H4 | AL5: H5 | AM5: H6 | AN5: H7 | AO5: H8 | AP5: H9 | AQ5: H10 | AR5: H11 | AS5: E1 | AT5: E2 | AU5: E3 | AV5: E4 | AW5: E5 | AX5: E6 | AY5: E7 | AZ5: E8 | BA5: P1 | BB5: P2 | BC5: P3 | BD5: P4 | BE5: P5 | BF5: P6 | BG5: V1 | BH5: L1 | BI5: L2 | BJ5: R1 | BK5: A1 | BL5: W1 | BM5: B1 | BN5: F1 | BO5: F2 | BP5: G1 | BQ5: C1 | BR5: C2 | BV5: S1 | BW5: I1 | BX5: I2 | BY5: Hr 1 | BZ5: M1 | CA5: Sub1
A6: =$B$2 -> 04-A1 | B6: H1 | C6: Air Cooled DX (Package / Split System) | J6: 0 | K6: 0 | L6: =+K6*J6 -> 0 | M6: 3 | N6: 0 | O6: =+N6*M6 -> 0 | P6: 1 | Q6: 0 | R6: =+Q6*P6 -> 0 | S6: 4 | T6: =IF($V6>0,$S6,0) -> 4 | U6: =+R6+O6+L6+I6+F6 -> 0 | V6: =IFERROR(VLOOKUP($A$5,'Equipment List Template'!$1:$1048576,11,FALSE),"0") -> 8 | W6: =+U6*V6 -> 0 | Z6: =B2 -> 04-A1 | AA6: =IFERROR(VLOOKUP($Z$6,'Equipment List Template'!$1:$1048576,2,FALSE),"") -> Butte County Courthouse | AB6: =IFERROR(VLOOKUP($Z$6,'Equipment List Template'!$1:$1048576,3,FALSE),"") -> 1 Court St. | AC6: =IFERROR(VLOOKUP($Z$6,'Equipment List Template'!$1:$1048576,4,FALSE),"") -> Oroville | AD6: =IFERROR(VLOOKUP($Z$6,'Equipment List Template'!$1:$1048576,5,FALSE),"") -> 95965 | AE6: =IFERROR(VLOOKUP($Z$6,'Equipment List Template'!$1:$1048576,6,FALSE),"") -> Butte | AF6: =IFERROR(VLOOKUP($Z$6,'Equipment List Template'!$1:$1048576,7,FALSE),"") -> NCRO | AH6: =+$W5 -> 0 | AI6: =+$W6 -> 0 | AJ6: =+$W7 -> 0 | AK6: =+$W8 -> 0 | AL6: =+$W9 -> 0 | AM6: =+$W10 -> 0 | AN6: =+$W11 -> 0 | AO6: =+$W12 -> 0 | AP6: =+$W13 -> 0 | AQ6: =+$W14 -> 0 | AR6: =+$W15 -> 0 | AS6: =+$W16 -> 0 | AT6: =+$W17 -> 0 | AU6: =+$W18 -> 0 | AV6: =+$W19 -> 0 | AW6: =+$W20 -> 0 | AX6: =+$W21 -> 0 | AY6: =+$W22 -> 0 | AZ6: =+$W23 -> 0 | BA6: =+$W24 -> 0 | BB6: =+$W25 -> 0 | BC6: =+$W26 -> 0 | BD6: =+$W27 -> 0 | BE6: =+$W28 -> 0 | BF6: =+$W29 -> 0 | BG6: =+$W30 -> 0 | BH6: =+$W31 -> 0 | BI6: =+$W32 -> 0 | BJ6: =+$W33 -> 0 | BK6: =+$W34 -> 0 | BL6: =+$W35 -> 0 | BM6: =+$W36 -> 0 | BN6: =+$W37 -> 0 | BO6: =+$W38 -> 0 | BP6: =+$W39 -> 0 | BQ6: =+$W40 -> 0 | BR6: =+$W41 -> 0 | BT6: =+W42 -> 0 | BV6: =+D43 -> 0 | BW6: =+D44 -> 0 | BX6: =+D45 -> 0 | BY6: =+D46 -> 0 | BZ6: =+D47 -> 0 | CA6: =+D48 -> 0
A7: 04-A1 | B7: H2 | C7: Air Handling Unit (Air-cooled DX) | J7: 0 | K7: 0 | L7: 0 | M7: 3 | N7: 0 | O7: 0 | P7: 1 | Q7: 0 | R7: 0 | S7: 4 | T7: 4 | U7: 0 | V7: =IFERROR(VLOOKUP($A$5,'Equipment List Template'!$1:$1048576,12,FALSE),"0") -> 10 | W7: =+U7*V7 -> 0
A8: 04-A1 | B8: H3 | C8: Air-Cooled Chiller | G8: 40 | H8: 0 | I8: =+H8*G8 -> 0 | J8: 8 | K8: 0 | L8: 0 | M8: 3 | N8: 0 | O8: 0 | P8: 1 | Q8: 0 | R8: 0 | S8: 12 | T8: 0 | U8: 0 | V8: =IFERROR(VLOOKUP($A$5,'Equipment List Template'!$1:$1048576,13,FALSE),"0") -> 0 | W8: 0
A9: 04-A1 | B9: H4 | C9: Centrifugal Chiller | J9: 11 | K9: 0 | L9: 0 | M9: 0 | N9: 0 | O9: 0 | P9: 1 | Q9: 0 | R9: 0 | S9: 12 | T9: 12 | U9: 0 | V9: =IFERROR(VLOOKUP($A$5,'Equipment List Template'!$1:$1048576,14,FALSE),"0") -> 1 | W9: 0
A10: 04-A1 | B10: H5 | C10: Cooling Tower (Induced Draft) | J10: 8 | K10: 0 | L10: 0 | M10: 3 | N10: 0 | O10: 0 | P10: 1 | Q10: 0 | R10: 0 | S10: 12 | T10: 12 | U10: 0 | V10: =IFERROR(VLOOKUP($A$5,'Equipment List Template'!$1:$1048576,15,FALSE),"0") -> 1 | W10: 0
A11: 04-A1 | B11: H6 | C11: Ice Chiller | J11: 8 | K11: 0 | L11: 0 | M11: 3 | N11: 0 | O11: 0 | P11: 1 | Q11: 0 | R11: 0 | S11: 12 | T11: 0 | U11: 0 | V11: =IFERROR(VLOOKUP($A$5,'Equipment List Template'!$1:$1048576,16,FALSE),"0") -> 0 | W11: 0
A12: 04-A1 | B12: H7 | C12: MultiStack (Geothermal) | J12: 0 | K12: 0 | L12: 0 | M12: 0 | N12: 0 | O12: 0 | P12: 1 | Q12: 0 | R12: 0 | S12: 1 | T12: 0 | U12: 0 | V12: =IFERROR(VLOOKUP($A$5,'Equipment List Template'!$1:$1048576,17,FALSE),"0") -> 0 | W12: 0
A13: 04-A1 | B13: H8 | C13: Water Source Heat Pump | J13: 8 | K13: 0 | L13: 0 | M13: 3 | N13: 0 | O13: 0 | P13: 1 | Q13: 0 | R13: 0 | S13: 12 | T13: 0 | U13: 0 | V13: =IFERROR(VLOOKUP($A$5,'Equipment List Template'!$1:$1048576,18,FALSE),"0") -> 0 | W13: 0
A14: 04-A1 | B14: H9 | C14: Fan Coil System | J14: 0 | K14: 0 | L14: 0 | M14: 3 | N14: 0 | O14: 0 | P14: 1 | Q14: 0 | R14: 0 | S14: 4 | T14: 4 | U14: 0 | V14: =IFERROR(VLOOKUP($A$5,'Equipment List Template'!$1:$1048576,19,FALSE),"0") -> 1 | W14: 0
A15: 04-A1 | B15: H10 | C15: Exhaust Fan | J15: 0 | K15: 0 | L15: 0 | M15: 3 | N15: 0 | O15: 0 | P15: 1 | Q15: 0 | R15: 0 | S15: 4 | T15: 4 | U15: 0 | V15: =IFERROR(VLOOKUP($A$5,'Equipment List Template'!$1:$1048576,20,FALSE),"0") -> 8 | W15: 0
A16: 04-A1 | B16: H11 | C16: HVAC Unique System | J16: 8 | K16: 0 | L16: 0 | M16: 3 | N16: 0 | O16: 0 | P16: 1 | Q16: 0 | R16: 0 | S16: 12 | T16: 0 | U16: 0 | V16: =IFERROR(VLOOKUP($A$5,'Equipment List Template'!$1:$1048576,21,FALSE),"0") -> 0 | W16: 0
A17: 04-A1 | B17: E1 | C17: Electrical Panels | J17: 0 | K17: 0 | L17: 0 | M17: 3 | N17: 0 | O17: 0 | P17: 1 | Q17: 0 | R17: 0 | S17: 4 | T17: 4 | U17: 0 | V17: =IFERROR(VLOOKUP($A$5,'Equipment List Template'!$1:$1048576,22,FALSE),"0") -> 1 | W17: 0
A18: 04-A1 | B18: E2 | C18: Emergency Generator | J18: 0 | K18: 0 | L18: 0 | M18: 3 | N18: 0 | O18: 0 | P18: 1 | Q18: 0 | R18: 0 | S18: 4 | T18: 0 | U18: 0 | V18: =IFERROR(VLOOKUP($A$5,'Equipment List Template'!$1:$1048576,23,FALSE),"0") -> 0 | W18: 0
A19: 04-A1 | B19: E3 | C19: Motor Control Center | J19: 0 | K19: 0 | L19: 0 | M19: 4 | N19: 0 | O19: 0 | P19: 0 | Q19: 0 | R19: 0 | S19: 4 | T19: 0 | U19: 0 | V19: =IFERROR(VLOOKUP($A$5,'Equipment List Template'!$1:$1048576,24,FALSE),"0") -> 0 | W19: 0
A20: 04-A1 | B20: E4 | C20: Primary Switch (High) | J20: 8 | K20: 0 | L20: 0 | M20: 3 | N20: 0 | O20: 0 | P20: 1 | Q20: 0 | R20: 0 | S20: 12 | T20: 0 | U20: 0 | V20: =IFERROR(VLOOKUP($A$5,'Equipment List Template'!$1:$1048576,25,FALSE),"0") -> 0 | W20: 0
A21: 04-A1 | B21: E5 | C21: Primary Switch (Low) | J21: 8 | K21: 0 | L21: 0 | M21: 3 | N21: 0 | O21: 0 | P21: 1 | Q21: 0 | R21: 0 | S21: 12 | T21: 0 | U21: 0 | V21: =IFERROR(VLOOKUP($A$5,'Equipment List Template'!$1:$1048576,26,FALSE),"0") -> 0 | W21: 0
A22: 04-A1 | B22: E6 | C22: Transformer (Dry-Type) | J22: 0 | K22: 0 | L22: 0 | M22: 3 | N22: 0 | O22: 0 | P22: 1 | Q22: 0 | R22: 0 | S22: 4 | T22: 0 | U22: 0 | V22: =IFERROR(VLOOKUP($A$5,'Equipment List Template'!$1:$1048576,27,FALSE),"0") -> 0 | W22: 0
A23: 04-A1 | B23: E7 | C23: Uninterruptible Power Supply (UPS) | J23: 0 | K23: 0 | L23: 0 | M23: 0 | N23: 0 | O23: 0 | P23: 1 | Q23: 0 | R23: 0 | S23: 1 | T23: 0 | U23: 0 | V23: =IFERROR(VLOOKUP($A$5,'Equipment List Template'!$1:$1048576,28,FALSE),"0") -> 0 | W23: 0
A24: 04-A1 | B24: E8 | C24: Electrical Unique System | J24: 8 | K24: 0 | L24: 0 | M24: 3 | N24: 0 | O24: 0 | P24: 1 | Q24: 0 | R24: 0 | S24: 12 | T24: 0 | U24: 0 | V24: =IFERROR(VLOOKUP($A$5,'Equipment List Template'!$1:$1048576,29,FALSE),"0") -> 0 | W24: 0
A25: 04-A1 | B25: L1 | C25: Life Safety | J25: 0 | K25: 0 | L25: 0 | M25: 3 | N25: 0 | O25: 0 | P25: 1 | Q25: 0 | R25: 0 | S25: 4 | T25: 4 | U25: 0 | V25: =IFERROR(VLOOKUP($A$5,'Equipment List Template'!$1:$1048576,30,FALSE),"0") -> 1 | W25: =+U25*V25 -> 0
A26: 04-A1 | B26: L2 | C26: Backflow Preventor(s) | J26: 0 | K26: 0 | L26: 0 | M26: 0 | N26: 0 | O26: 0 | P26: 1 | Q26: 0 | R26: 0 | S26: 1 | T26: 1 | U26: 0 | V26: =IFERROR(VLOOKUP($A$5,'Equipment List Template'!$1:$1048576,31,FALSE),"0") -> 8 | W26: =+U26*V26 -> 0
A27: 04-A1 | B27: P1 | C27: Hot Water Boiler | J27: 8 | K27: 0 | L27: 0 | M27: 3 | N27: 0 | O27: 0 | P27: 1 | Q27: 0 | R27: 0 | S27: 12 | T27: 0 | U27: 0 | V27: =IFERROR(VLOOKUP($A$5,'Equipment List Template'!$1:$1048576,32,FALSE),"0") -> 0 | W27: 0
A28: 04-A1 | B28: P2 | C28: Condensing Water Heater | J28: 0 | K28: 0 | L28: 0 | M28: 0 | N28: 0 | O28: 0 | P28: 1 | Q28: 0 | R28: 0 | S28: 1 | T28: 1 | U28: 0 | V28: =IFERROR(VLOOKUP($A$5,'Equipment List Template'!$1:$1048576,33,FALSE),"0") -> 1 | W28: 0
A29: 04-A1 | B29: P3 | C29: Electric Water Heater | J29: 0 | K29: 0 | L29: 0 | M29: 0 | N29: 0 | O29: 0 | P29: 1 | Q29: 0 | R29: 0 | S29: 1 | T29: 1 | U29: 0 | V29: =IFERROR(VLOOKUP($A$5,'Equipment List Template'!$1:$1048576,34,FALSE),"0") -> 1 | W29: 0
A30: 04-A1 | B30: P4 | C30: Plumbing Unique System | J30: 0 | K30: 0 | L30: 0 | M30: 3 | N30: 0 | O30: 0 | P30: 1 | Q30: 0 | R30: 0 | S30: 4 | T30: 0 | U30: 0 | V30: =IFERROR(VLOOKUP($A$5,'Equipment List Template'!$1:$1048576,35,FALSE),"0") -> 0 | W30: 0
A31: 04-A1 | B31: P5 | C31: Steam System | J31: 0 | K31: 0 | L31: 0 | M31: 3 | N31: 0 | O31: 0 | P31: 1 | Q31: 0 | R31: 0 | S31: 4 | T31: 0 | U31: 0 | V31: =IFERROR(VLOOKUP($A$5,'Equipment List Template'!$1:$1048576,36,FALSE),"0") -> 0 | W31: 0
A32: 04-A1 | B32: P6 | C32: Pneumatic Compressor | J32: 11 | K32: 0 | L32: 0 | M32: 0 | N32: 0 | O32: 0 | P32: 1 | Q32: 0 | R32: 0 | S32: 12 | T32: 0 | U32: 0 | V32: =IFERROR(VLOOKUP($A$5,'Equipment List Template'!$1:$1048576,37,FALSE),"0") -> 0 | W32: 0
A33: 04-A1 | B33: R1 | C33: Rounds and Readings | D33: =IFERROR(IF(VLOOKUP($A33,'Equipment List Template'!$1:$1048576,38,FALSE)=260,248,0),0) -> 248 | E33: 0 | F33: =+E33*D33 -> 0 | G33: =IFERROR(IF(VLOOKUP($A33,'Equipment List Template'!$1:$1048576,38,FALSE)=52,40,0),0) -> 0 | H33: 0 | I33: =+H33*G33 -> 0 | J33: 12 | K33: 0 | L33: 0 | S33: 12 | T33: 12 | U33: =+R33+O33+L33+I33+F33 -> 0 | V33: 1 | W33: =+U33*V33 -> 0
A34: 04-A1 | B34: V1 | C34: Vertical Transportation | J34: 8 | K34: 0 | L34: =+K34*J34 -> 0 | M34: 3 | N34: 0 | O34: =+N34*M34 -> 0 | P34: 1 | Q34: 0 | R34: =+Q34*P34 -> 0 | S34: 12 | T34: 12 | U34: =+R34+O34+L34 -> 0 | V34: =IFERROR(VLOOKUP($A$5,'Equipment List Template'!$1:$1048576,39,FALSE),"0") -> 12 | W34: =+U34*V34 -> 0
A35: 04-A1 | B35: W1 | C35: Water Treatment | D35: =IFERROR(IF(VLOOKUP($A35,'Equipment List Template'!$1:$1048576,40,FALSE)=260,260,0),0) -> 260 | E35: 0 | F35: =+E35*D35 -> 0 | S35: 0 | T35: 0 | U35: =+R35+O35+L35+I35+F35 -> 0 | V35: 1 | W35: 0
A36: 04-A1 | B36: B1 | C36: Building Exterior / Hardscape (Monthly) | J36: 12 | K36: 0 | L36: =+K36*J36 -> 0 | S36: 12 | T36: 12 | U36: 0 | V36: 1 | W36: 0
A37: 04-A1 | B37: F1 | C37: Fountain Maintenance (Monthly) | J37: 12 | K37: 0 | L37: 0 | S37: 12 | T37: 12 | U37: 0 | V37: 1 | W37: 0
A38: 04-A1 | B38: F2 | C38: Fuel Storage Tanks (Quarterly) If applicable | M38: 4 | N38: 0 | O38: =+N38*M38 -> 0 | S38: 4 | T38: 4 | U38: 0 | V38: 1 | W38: 0
A39: 04-A1 | B39: G1 | C39: Landscape Maintenance * | G39: 40 | H39: 0 | I39: =+H39*G39 -> 0 | S39: 0 | T39: 0 | U39: 0 | V39: 1 | W39: 0
A40: 04-A1 | B40: C1 | C40: Account Management and Supervision (Monthly) | J40: 12 | K40: 0 | L40: =+K40*J40 -> 0 | S40: 12 | T40: 12 | U40: 0 | V40: 1 | W40: 0
A41: 04-A1 | B41: C2 | C41: Fee (Monthly) | J41: 12 | K41: 0 | L41: 0 | S41: 12 | T41: 12 | U41: 0 | V41: 1 | W41: 0
Q42: JCC ID | R42: =B2 -> 04-A1 | U42: Total | W42: =SUM(W6:W41) -> 0
B43: S1 | C43: Snow Removal - (crew hourly rate) | D43: 0 | U43: Total # of PM's | W43: =SUM(T5:T41) -> 139
B44: I1 | C44: Unclogging Blocked Toilet - In-custody cell (labor-only) | D44: 0
B45: I2 | C45: Unclogging Blocked Toilet - Public/Court Staff (labor-only) | D45: 0
B46: Hr 1 | C46: Hourly Rate (All Labor categories) | D46: 0
B47: M1 | C47: Markup on Materials (Percentage) | D47: 0
B48: Sub1 | C48: Markup on Subcontractors/Third-Parties (Percentage) | D48: 0
B50: * Landscape Maintenance varies by location on the number of weeks per year it can be preformed. For the purpose of the RFP, all facilities are pre-established at 40 weeks of service. The actual amount paid by facility will be based upon the actual weeks that service has been performed, validated and invoiced.

Sheet 04-F1
B1: JCC ID | C1: Facility Name | D1: Address | F1: City / Town | H1: Zip Code | J1: County | L1: Region | N1: RFP | P1: Proposer
B2: 04-F1 | C2: =IFERROR(VLOOKUP($B$2,'Equipment List Template'!$1:$1048576,2,FALSE),"") -> North Butte County Courthouse | D2: =IFERROR(VLOOKUP($B$2,'Equipment List Template'!$1:$1048576,3,FALSE),"") -> 1775 Concord Avenue | F2: =IFERROR(VLOOKUP($B$2,'Equipment List Template'!$1:$1048576,4,FALSE),"") -> Chico | H2: =IFERROR(VLOOKUP($B$2,'Equipment List Template'!$1:$1048576,5,FALSE),"") -> 95928 | J2: =IFERROR(VLOOKUP($B$2,'Equipment List Template'!$1:$1048576,6,FALSE),"") -> Butte | L2: =IFERROR(VLOOKUP($B$2,'Equipment List Template'!$1:$1048576,7,FALSE),"") -> NCRO | N2: ='Summary Pricing Sheet'!B2 -> RFP-FS-SP-2019-03-JP | P2: ='Summary Pricing Sheet'!B3 -> TBD
D3: Daily Activity | G3: Weekly Activity | J3: Monthly Activity | M3: Quarterly Activity | P3: Annual Activity | U3: Summary | AG3: System | AH3: HVAC | AS3: Electrical | BA3: Plumbing | BE3: Building Systems | BP3: Corporate | BT3: Fixed Price - Facility Total Annual Cost Year 1
B4: System ID | C4: Subsystem | D4: Quantity | E4: Cost | F4: Daily Total | G4: Quantity | H4: Cost | I4: Weekly Total | J4: Monthly Quantity | K4: Cost | L4: Monthly Total | M4: Quarterly Quantity | N4: Cost | O4: Quarterly Total | P4: Annual Quantity | Q4: Cost | R4: Annual PM Total | T4: Number of PM's | U4: Annual Cost | V4: Quantity | W4: Total Annual Cost | AG4: Subsystem | AH4: Air Cooled DX (Package / Split System) | AI4: Air Handling Unit (Air-cooled DX) | AJ4: Air-Cooled Chiller | AK4: Centrifugal Chiller | AL4: Cooling Tower (Induced Draft) | AM4: Ice Chiller | AN4: Multitask (Geothermal) | AO4: Water Source Heat Pump | AP4: Fan Coil System | AQ4: Exhaust Fan | AR4: HVAC Unique System | AS4: Electrical Panels | AT4: Emergency Generator | AU4: Motor Control Center | AV4: Primary Switch (High) | AW4: Primary Switch (Low) | AX4: Transformer (Dry-Type) | AY4: Uninterruptible Power Supply (UPS) | AZ4: Electrical Unique System | BA4: Hot Water Boiler | BB4: Condensing Water Heater | BC4: Electric Water Heater | BD4: Plumbing Unique System | BE4: Steam System | BF4: Pneumatic Compressor | BG4: Vertical Transportation | BH4: Life Safety | BI4: Backflow Preventor | BJ4: Rounds and Readings | BK4: Access Doors, Gates, Sally Port | BL4: Water Treatment | BM4: Building Exterior / Hardscape (Monthly) | BN4: Fountain Maintenance (Monthly) | BO4: Fuel Storage Tanks (Quarterly) If applicable | BP4: Landscape Maintenance * | BQ4: Account Management and Supervision (Monthly) | BR4: Fee (Monthly) | BV4: Snow Removal - (crew hourly rate) | BW4: Unclogging Blocked Toilet - In-custody holding cell (labor) | BX4: Unclogging Blocked Toilet - Public/Court Staff (labor) | BY4: Hourly Rate | BZ4: Markup on Materials | CA4: Markup on Subcontractors/Third-Parties
A5: =$B$2 -> 04-F1 | B5: A1 | C5: Access Doors, Gates, Sally Port | J5: 11 | K5: 0 | L5: =+K5*J5 -> 0 | M5: 0 | N5: 0 | O5: =+N5*M5 -> 0 | P5: 1 | Q5: 0 | R5: =+Q5*P5 -> 0 | S5: 12 | T5: =IF($V5>0,$S5,0) -> 12 | U5: =+R5+O5+L5+I5+F5 -> 0 | V5: =IFERROR(VLOOKUP($A$5,'Equipment List Template'!$1:$1048576,10,FALSE),"0") -> 1 | W5: =+U5*V5 -> 0 | Z5: JCC ID | AA5: Facility Name | AB5: Address | AC5: City / Town | AD5: County | AE5: Region | AF5: Region | AG5: System ID | AH5: H1 | AI5: H2 | AJ5: H3 | AK5: H4 | AL5: H5 | AM5: H6 | AN5: H7 | AO5: H8 | AP5: H9 | AQ5: H10 | AR5: H11 | AS5: E1 | AT5: E2 | AU5: E3 | AV5: E4 | AW5: E5 | AX5: E6 | AY5: E7 | AZ5: E8 | BA5: P1 | BB5: P2 | BC5: P3 | BD5: P4 | BE5: P5 | BF5: P6 | BG5: V1 | BH5: L1 | BI5: L2 | BJ5: R1 | BK5: A1 | BL5: W1 | BM5: B1 | BN5: F1 | BO5: F2 | BP5: G1 | BQ5: C1 | BR5: C2 | BV5: S1 | BW5: I1 | BX5: I2 | BY5: Hr 1 | BZ5: M1 | CA5: Sub1
A6: =$B$2 -> 04-F1 | B6: H1 | C6: Air Cooled DX (Package / Split System) | J6: 0 | K6: 0 | L6: =+K6*J6 -> 0 | M6: 3 | N6: 0 | O6: =+N6*M6 -> 0 | P6: 1 | Q6: 0 | R6: =+Q6*P6 -> 0 | S6: 4 | T6: =IF($V6>0,$S6,0) -> 4 | U6: =+R6+O6+L6+I6+F6 -> 0 | V6: =IFERROR(VLOOKUP($A$5,'Equipment List Template'!$1:$1048576,11,FALSE),"0") -> 3 | W6: =+U6*V6 -> 0 | Z6: =B2 -> 04-F1 | AA6: =IFERROR(VLOOKUP($Z$6,'Equipment List Template'!$1:$1048576,2,FALSE),"") -> North Butte County Courthouse | AB6: =IFERROR(VLOOKUP($Z$6,'Equipment List Template'!$1:$1048576,3,FALSE),"") -> 1775 Concord Avenue | AC6: =IFERROR(VLOOKUP($Z$6,'Equipment List Template'!$1:$1048576,4,FALSE),"") -> Chico | AD6: =IFERROR(VLOOKUP($Z$6,'Equipment List Template'!$1:$1048576,5,FALSE),"") -> 95928 | AE6: =IFERROR(VLOOKUP($Z$6,'Equipment List Template'!$1:$1048576,6,FALSE),"") -> Butte | AF6: =IFERROR(VLOOKUP($Z$6,'Equipment List Template'!$1:$1048576,7,FALSE),"") -> NCRO | AH6: =+$W5 -> 0 | AI6: =+$W6 -> 0 | AJ6: =+$W7 -> 0 | AK6: =+$W8 -> 0 | AL6: =+$W9 -> 0 | AM6: =+$W10 -> 0 | AN6: =+$W11 -> 0 | AO6: =+$W12 -> 0 | AP6: =+$W13 -> 0 | AQ6: =+$W14 -> 0 | AR6: =+$W15 -> 0 | AS6: =+$W16 -> 0 | AT6: =+$W17 -> 0 | AU6: =+$W18 -> 0 | AV6: =+$W19 -> 0 | AW6: =+$W20 -> 0 | AX6: =+$W21 -> 0 | AY6: =+$W22 -> 0 | AZ6: =+$W23 -> 0 | BA6: =+$W24 -> 0 | BB6: =+$W25 -> 0 | BC6: =+$W26 -> 0 | BD6: =+$W27 -> 0 | BE6: =+$W28 -> 0 | BF6: =+$W29 -> 0 | BG6: =+$W30 -> 0 | BH6: =+$W31 -> 0 | BI6: =+$W32 -> 0 | BJ6: =+$W33 -> 0 | BK6: =+$W34 -> 0 | BL6: =+$W35 -> 0 | BM6: =+$W36 -> 0 | BN6: =+$W37 -> 0 | BO6: =+$W38 -> 0 | BP6: =+$W39 -> 0 | BQ6: =+$W40 -> 0 | BR6: =+$W41 -> 0 | BT6: =+W42 -> 0 | BV6: =+D43 -> 0 | BW6: =+D44 -> 0 | BX6: =+D45 -> 0 | BY6: =+D46 -> 0 | BZ6: =+D47 -> 0 | CA6: =+D48 -> 0
A7: 04-F1 | B7: H2 | C7: Air Handling Unit (Air-cooled DX) | J7: 0 | K7: 0 | L7: 0 | M7: 3 | N7: 0 | O7: 0 | P7: 1 | Q7: 0 | R7: 0 | S7: 4 | T7: 4 | U7: 0 | V7: =IFERROR(VLOOKUP($A$5,'Equipment List Template'!$1:$1048576,12,FALSE),"0") -> 4 | W7: =+U7*V7 -> 0
A8: 04-F1 | B8: H3 | C8: Air-Cooled Chiller | G8: 40 | H8: 0 | I8: =+H8*G8 -> 0 | J8: 8 | K8: 0 | L8: 0 | M8: 3 | N8: 0 | O8: 0 | P8: 1 | Q8: 0 | R8: 0 | S8: 12 | T8: 0 | U8: 0 | V8: =IFERROR(VLOOKUP($A$5,'Equipment List Template'!$1:$1048576,13,FALSE),"0") -> 0 | W8: 0
A9: 04-F1 | B9: H4 | C9: Centrifugal Chiller | J9: 11 | K9: 0 | L9: 0 | M9: 0 | N9: 0 | O9: 0 | P9: 1 | Q9: 0 | R9: 0 | S9: 12 | T9: 12 | U9: 0 | V9: =IFERROR(VLOOKUP($A$5,'Equipment List Template'!$1:$1048576,14,FALSE),"0") -> 1 | W9: 0
A10: 04-F1 | B10: H5 | C10: Cooling Tower (Induced Draft) | J10: 8 | K10: 0 | L10: 0 | M10: 3 | N10: 0 | O10: 0 | P10: 1 | Q10: 0 | R10: 0 | S10: 12 | T10: 0 | U10: 0 | V10: =IFERROR(VLOOKUP($A$5,'Equipment List Template'!$1:$1048576,15,FALSE),"0") -> 0 | W10: 0
A11: 04-F1 | B11: H6 | C11: Ice Chiller | J11: 8 | K11: 0 | L11: 0 | M11: 3 | N11: 0 | O11: 0 | P11: 1 | Q11: 0 | R11: 0 | S11: 12 | T11: 0 | U11: 0 | V11: =IFERROR(VLOOKUP($A$5,'Equipment List Template'!$1:$1048576,16,FALSE),"0") -> 0 | W11: 0
A12: 04-F1 | B12: H7 | C12: MultiStack (Geothermal) | J12: 0 | K12: 0 | L12: 0 | M12: 0 | N12: 0 | O12: 0 | P12: 1 | Q12: 0 | R12: 0 | S12: 1 | T12: 0 | U12: 0 | V12: =IFERROR(VLOOKUP($A$5,'Equipment List Template'!$1:$1048576,17,FALSE),"0") -> 0 | W12: 0
A13: 04-F1 | B13: H8 | C13: Water Source Heat Pump | J13: 8 | K13: 0 | L13: 0 | M13: 3 | N13: 0 | O13: 0 | P13: 1 | Q13: 0 | R13: 0 | S13: 12 | T13: 0 | U13: 0 | V13: =IFERROR(VLOOKUP($A$5,'Equipment List Template'!$1:$1048576,18,FALSE),"0") -> 0 | W13: 0
A14: 04-F1 | B14: H9 | C14: Fan Coil System | J14: 0 | K14: 0 | L14: 0 | M14: 3 | N14: 0 | O14: 0 | P14: 1 | Q14: 0 | R14: 0 | S14: 4 | T14: 4 | U14: 0 | V14: =IFERROR(VLOOKUP($A$5,'Equipment List Template'!$1:$1048576,19,FALSE),"0") -> 13 | W14: 0
A15: 04-F1 | B15: H10 | C15: Exhaust Fan | J15: 0 | K15: 0 | L15: 0 | M15: 3 | N15: 0 | O15: 0 | P15: 1 | Q15: 0 | R15: 0 | S15: 4 | T15: 4 | U15: 0 | V15: =IFERROR(VLOOKUP($A$5,'Equipment List Template'!$1:$1048576,20,FALSE),"0") -> 9 | W15: 0
A16: 04-F1 | B16: H11 | C16: HVAC Unique System | J16: 8 | K16: 0 | L16: 0 | M16: 3 | N16: 0 | O16: 0 | P16: 1 | Q16: 0 | R16: 0 | S16: 12 | T16: 0 | U16: 0 | V16: =IFERROR(VLOOKUP($A$5,'Equipment List Template'!$1:$1048576,21,FALSE),"0") -> 0 | W16: 0
A17: 04-F1 | B17: E1 | C17: Electrical Panels | J17: 0 | K17: 0 | L17: 0 | M17: 3 | N17: 0 | O17: 0 | P17: 1 | Q17: 0 | R17: 0 | S17: 4 | T17: 4 | U17: 0 | V17: =IFERROR(VLOOKUP($A$5,'Equipment List Template'!$1:$1048576,22,FALSE),"0") -> 1 | W17: 0
A18: 04-F1 | B18: E2 | C18: Emergency Generator | J18: 0 | K18: 0 | L18: 0 | M18: 3 | N18: 0 | O18: 0 | P18: 1 | Q18: 0 | R18: 0 | S18: 4 | T18: 4 | U18: 0 | V18: =IFERROR(VLOOKUP($A$5,'Equipment List Template'!$1:$1048576,23,FALSE),"0") -> 1 | W18: 0
A19: 04-F1 | B19: E3 | C19: Motor Control Center | J19: 0 | K19: 0 | L19: 0 | M19: 4 | N19: 0 | O19: 0 | P19: 0 | Q19: 0 | R19: 0 | S19: 4 | T19: 0 | U19: 0 | V19: =IFERROR(VLOOKUP($A$5,'Equipment List Template'!$1:$1048576,24,FALSE),"0") -> 0 | W19: 0
A20: 04-F1 | B20: E4 | C20: Primary Switch (High) | J20: 8 | K20: 0 | L20: 0 | M20: 3 | N20: 0 | O20: 0 | P20: 1 | Q20: 0 | R20: 0 | S20: 12 | T20: 0 | U20: 0 | V20: =IFERROR(VLOOKUP($A$5,'Equipment List Template'!$1:$1048576,25,FALSE),"0") -> 0 | W20: 0
A21: 04-F1 | B21: E5 | C21: Primary Switch (Low) | J21: 8 | K21: 0 | L21: 0 | M21: 3 | N21: 0 | O21: 0 | P21: 1 | Q21: 0 | R21: 0 | S21: 12 | T21: 0 | U21: 0 | V21: =IFERROR(VLOOKUP($A$5,'Equipment List Template'!$1:$1048576,26,FALSE),"0") -> 0 | W21: 0
A22: 04-F1 | B22: E6 | C22: Transformer (Dry-Type) | J22: 0 | K22: 0 | L22: 0 | M22: 3 | N22: 0 | O22: 0 | P22: 1 | Q22: 0 | R22: 0 | S22: 4 | T22: 0 | U22: 0 | V22: =IFERROR(VLOOKUP($A$5,'Equipment List Template'!$1:$1048576,27,FALSE),"0") -> 0 | W22: 0
A23: 04-F1 | B23: E7 | C23: Uninterruptible Power Supply (UPS) | J23: 0 | K23: 0 | L23: 0 | M23: 0 | N23: 0 | O23: 0 | P23: 1 | Q23: 0 | R23: 0 | S23: 1 | T23: 0 | U23: 0 | V23: =IFERROR(VLOOKUP($A$5,'Equipment List Template'!$1:$1048576,28,FALSE),"0") -> 0 | W23: 0
A24: 04-F1 | B24: E8 | C24: Electrical Unique System | J24: 8 | K24: 0 | L24: 0 | M24: 3 | N24: 0 | O24: 0 | P24: 1 | Q24: 0 | R24: 0 | S24: 12 | T24: 0 | U24: 0 | V24: =IFERROR(VLOOKUP($A$5,'Equipment List Template'!$1:$1048576,29,FALSE),"0") -> 0 | W24: 0
A25: 04-F1 | B25: L1 | C25: Life Safety | J25: 0 | K25: 0 | L25: 0 | M25: 3 | N25: 0 | O25: 0 | P25: 1 | Q25: 0 | R25: 0 | S25: 4 | T25: 4 | U25: 0 | V25: =IFERROR(VLOOKUP($A$5,'Equipment List Template'!$1:$1048576,30,FALSE),"0") -> 1 | W25: =+U25*V25 -> 0
A26: 04-F1 | B26: L2 | C26: Backflow Preventor(s) | J26: 0 | K26: 0 | L26: 0 | M26: 0 | N26: 0 | O26: 0 | P26: 1 | Q26: 0 | R26: 0 | S26: 1 | T26: 1 | U26: 0 | V26: =IFERROR(VLOOKUP($A$5,'Equipment List Template'!$1:$1048576,31,FALSE),"0") -> 6 | W26: =+U26*V26 -> 0
A27: 04-F1 | B27: P1 | C27: Hot Water Boiler | J27: 8 | K27: 0 | L27: 0 | M27: 3 | N27: 0 | O27: 0 | P27: 1 | Q27: 0 | R27: 0 | S27: 12 | T27: 12 | U27: 0 | V27: =IFERROR(VLOOKUP($A$5,'Equipment List Template'!$1:$1048576,32,FALSE),"0") -> 3 | W27: 0
A28: 04-F1 | B28: P2 | C28: Condensing Water Heater | J28: 0 | K28: 0 | L28: 0 | M28: 0 | N28: 0 | O28: 0 | P28: 1 | Q28: 0 | R28: 0 | S28: 1 | T28: 1 | U28: 0 | V28: =IFERROR(VLOOKUP($A$5,'Equipment List Template'!$1:$1048576,33,FALSE),"0") -> 2 | W28: 0
A29: 04-F1 | B29: P3 | C29: Electric Water Heater | J29: 0 | K29: 0 | L29: 0 | M29: 0 | N29: 0 | O29: 0 | P29: 1 | Q29: 0 | R29: 0 | S29: 1 | T29: 0 | U29: 0 | V29: =IFERROR(VLOOKUP($A$5,'Equipment List Template'!$1:$1048576,34,FALSE),"0") -> 0 | W29: 0
A30: 04-F1 | B30: P4 | C30: Plumbing Unique System | J30: 0 | K30: 0 | L30: 0 | M30: 3 | N30: 0 | O30: 0 | P30: 1 | Q30: 0 | R30: 0 | S30: 4 | T30: 0 | U30: 0 | V30: =IFERROR(VLOOKUP($A$5,'Equipment List Template'!$1:$1048576,35,FALSE),"0") -> 0 | W30: 0
A31: 04-F1 | B31: P5 | C31: Steam System | J31: 0 | K31: 0 | L31: 0 | M31: 3 | N31: 0 | O31: 0 | P31: 1 | Q31: 0 | R31: 0 | S31: 4 | T31: 0 | U31: 0 | V31: =IFERROR(VLOOKUP($A$5,'Equipment List Template'!$1:$1048576,36,FALSE),"0") -> 0 | W31: 0
A32: 04-F1 | B32: P6 | C32: Pneumatic Compressor | J32: 11 | K32: 0 | L32: 0 | M32: 0 | N32: 0 | O32: 0 | P32: 1 | Q32: 0 | R32: 0 | S32: 12 | T32: 0 | U32: 0 | V32: =IFERROR(VLOOKUP($A$5,'Equipment List Template'!$1:$1048576,37,FALSE),"0") -> 0 | W32: 0
A33: 04-F1 | B33: R1 | C33: Rounds and Readings | D33: =IFERROR(IF(VLOOKUP($A33,'Equipment List Template'!$1:$1048576,38,FALSE)=260,248,0),0) -> 248 | E33: 0 | F33: =+E33*D33 -> 0 | G33: =IFERROR(IF(VLOOKUP($A33,'Equipment List Template'!$1:$1048576,38,FALSE)=52,40,0),0) -> 0 | H33: 0 | I33: =+H33*G33 -> 0 | J33: 12 | K33: 0 | L33: 0 | S33: 12 | T33: 12 | U33: =+R33+O33+L33+I33+F33 -> 0 | V33: 1 | W33: =+U33*V33 -> 0
A34: 04-F1 | B34: V1 | C34: Vertical Transportation | J34: 8 | K34: 0 | L34: =+K34*J34 -> 0 | M34: 3 | N34: 0 | O34: =+N34*M34 -> 0 | P34: 1 | Q34: 0 | R34: =+Q34*P34 -> 0 | S34: 12 | T34: 12 | U34: =+R34+O34+L34 -> 0 | V34: =IFERROR(VLOOKUP($A$5,'Equipment List Template'!$1:$1048576,39,FALSE),"0") -> 6 | W34: =+U34*V34 -> 0
A35: 04-F1 | B35: W1 | C35: Water Treatment | D35: =IFERROR(IF(VLOOKUP($A35,'Equipment List Template'!$1:$1048576,40,FALSE)=260,260,0),0) -> 260 | E35: 0 | F35: =+E35*D35 -> 0 | S35: 0 | T35: 0 | U35: =+R35+O35+L35+I35+F35 -> 0 | V35: 1 | W35: 0
A36: 04-F1 | B36: B1 | C36: Building Exterior / Hardscape (Monthly) | J36: 12 | K36: 0 | L36: =+K36*J36 -> 0 | S36: 12 | T36: 12 | U36: 0 | V36: 1 | W36: 0
A37: 04-F1 | B37: F1 | C37: Fountain Maintenance (Monthly) | J37: 12 | K37: 0 | L37: 0 | S37: 12 | T37: 12 | U37: 0 | V37: 1 | W37: 0
A38: 04-F1 | B38: F2 | C38: Fuel Storage Tanks (Quarterly) If applicable | M38: 4 | N38: 0 | O38: =+N38*M38 -> 0 | S38: 4 | T38: 4 | U38: 0 | V38: 1 | W38: 0
A39: 04-F1 | B39: G1 | C39: Landscape Maintenance * | G39: 40 | H39: 0 | I39: =+H39*G39 -> 0 | S39: 0 | T39: 0 | U39: 0 | V39: 1 | W39: 0
A40: 04-F1 | B40: C1 | C40: Account Management and Supervision (Monthly) | J40: 12 | K40: 0 | L40: =+K40*J40 -> 0 | S40: 12 | T40: 12 | U40: 0 | V40: 1 | W40: 0
A41: 04-F1 | B41: C2 | C41: Fee (Monthly) | J41: 12 | K41: 0 | L41: 0 | S41: 12 | T41: 12 | U41: 0 | V41: 1 | W41: 0
Q42: JCC ID | R42: =B2 -> 04-F1 | U42: Total | W42: =SUM(W6:W41) -> 0
B43: S1 | C43: Snow Removal - (crew hourly rate) | D43: 0 | U43: Total # of PM's | W43: =SUM(T5:T41) -> 142
B44: I1 | C44: Unclogging Blocked Toilet - In-custody cell (labor-only) | D44: 0
B45: I2 | C45: Unclogging Blocked Toilet - Public/Court Staff (labor-only) | D45: 0
B46: Hr 1 | C46: Hourly Rate (All Labor categories) | D46: 0
B47: M1 | C47: Markup on Materials (Percentage) | D47: 0
B48: Sub1 | C48: Markup on Subcontractors/Third-Parties (Percentage) | D48: 0
B50: * Landscape Maintenance varies by location on the number of weeks per year it can be preformed. For the purpose of the RFP, all facilities are pre-established at 40 weeks of service. The actual amount paid by facility will be based upon the actual weeks that service has been performed, validated and invoiced.

Sheet 05-C1
B1: JCC ID | C1: Facility Name | D1: Address | F1: City / Town | H1: Zip Code | J1: County | L1: Region | N1: RFP | P1: Proposer
B2: 05-C1 | C2: =IFERROR(VLOOKUP($B$2,'Equipment List Template'!$1:$1048576,2,FALSE),"") -> Calaveras Superior Court | D2: =IFERROR(VLOOKUP($B$2,'Equipment List Template'!$1:$1048576,3,FALSE),"") -> 400 Government Center Drive | F2: =IFERROR(VLOOKUP($B$2,'Equipment List Template'!$1:$1048576,4,FALSE),"") -> San Andreas | H2: =IFERROR(VLOOKUP($B$2,'Equipment List Template'!$1:$1048576,5,FALSE),"") -> 95249 | J2: =IFERROR(VLOOKUP($B$2,'Equipment List Template'!$1:$1048576,6,FALSE),"") -> Calaveras | L2: =IFERROR(VLOOKUP($B$2,'Equipment List Template'!$1:$1048576,7,FALSE),"") -> NCRO | N2: ='Summary Pricing Sheet'!B2 -> RFP-FS-SP-2019-03-JP | P2: ='Summary Pricing Sheet'!B3 -> TBD
D3: Daily Activity | G3: Weekly Activity | J3: Monthly Activity | M3: Quarterly Activity | P3: Annual Activity | U3: Summary | AG3: System | AH3: HVAC | AS3: Electrical | BA3: Plumbing | BE3: Building Systems | BP3: Corporate | BT3: Fixed Price - Facility Total Annual Cost Year 1
B4: System ID | C4: Subsystem | D4: Quantity | E4: Cost | F4: Daily Total | G4: Quantity | H4: Cost | I4: Weekly Total | J4: Monthly Quantity | K4: Cost | L4: Monthly Total | M4: Quarterly Quantity | N4: Cost | O4: Quarterly Total | P4: Annual Quantity | Q4: Cost | R4: Annual PM Total | T4: Number of PM's | U4: Annual Cost | V4: Quantity | W4: Total Annual Cost | AG4: Subsystem | AH4: Air Cooled DX (Package / Split System) | AI4: Air Handling Unit (Air-cooled DX) | AJ4: Air-Cooled Chiller | AK4: Centrifugal Chiller | AL4: Cooling Tower (Induced Draft) | AM4: Ice Chiller | AN4: Multitask (Geothermal) | AO4: Water Source Heat Pump | AP4: Fan Coil System | AQ4: Exhaust Fan | AR4: HVAC Unique System | AS4: Electrical Panels | AT4: Emergency Generator | AU4: Motor Control Center | AV4: Primary Switch (High) | AW4: Primary Switch (Low) | AX4: Transformer (Dry-Type) | AY4: Uninterruptible Power Supply (UPS) | AZ4: Electrical Unique System | BA4: Hot Water Boiler | BB4: Condensing Water Heater | BC4: Electric Water Heater | BD4: Plumbing Unique System | BE4: Steam System | BF4: Pneumatic Compressor | BG4: Vertical Transportation | BH4: Life Safety | BI4: Backflow Preventor | BJ4: Rounds and Readings | BK4: Access Doors, Gates, Sally Port | BL4: Water Treatment | BM4: Building Exterior / Hardscape (Monthly) | BN4: Fountain Maintenance (Monthly) | BO4: Fuel Storage Tanks (Quarterly) If applicable | BP4: Landscape Maintenance * | BQ4: Account Management and Supervision (Monthly) | BR4: Fee (Monthly) | BV4: Snow Removal - (crew hourly rate) | BW4: Unclogging Blocked Toilet - In-custody holding cell (labor) | BX4: Unclogging Blocked Toilet - Public/Court Staff (labor) | BY4: Hourly Rate | BZ4: Markup on Materials | CA4: Markup on Subcontractors/Third-Parties
A5: =$B$2 -> 05-C1 | B5: A1 | C5: Access Doors, Gates, Sally Port | J5: 11 | K5: 0 | L5: =+K5*J5 -> 0 | M5: 0 | N5: 0 | O5: =+N5*M5 -> 0 | P5: 1 | Q5: 0 | R5: =+Q5*P5 -> 0 | S5: 12 | T5: =IF($V5>0,$S5,0) -> 12 | U5: =+R5+O5+L5+I5+F5 -> 0 | V5: =IFERROR(VLOOKUP($A$5,'Equipment List Template'!$1:$1048576,10,FALSE),"0") -> 1 | W5: =+U5*V5 -> 0 | Z5: JCC ID | AA5: Facility Name | AB5: Address | AC5: City / Town | AD5: County | AE5: Region | AF5: Region | AG5: System ID | AH5: H1 | AI5: H2 | AJ5: H3 | AK5: H4 | AL5: H5 | AM5: H6 | AN5: H7 | AO5: H8 | AP5: H9 | AQ5: H10 | AR5: H11 | AS5: E1 | AT5: E2 | AU5: E3 | AV5: E4 | AW5: E5 | AX5: E6 | AY5: E7 | AZ5: E8 | BA5: P1 | BB5: P2 | BC5: P3 | BD5: P4 | BE5: P5 | BF5: P6 | BG5: V1 | BH5: L1 | BI5: L2 | BJ5: R1 | BK5: A1 | BL5: W1 | BM5: B1 | BN5: F1 | BO5: F2 | BP5: G1 | BQ5: C1 | BR5: C2 | BV5: S1 | BW5: I1 | BX5: I2 | BY5: Hr 1 | BZ5: M1 | CA5: Sub1
A6: =$B$2 -> 05-C1 | B6: H1 | C6: Air Cooled DX (Package / Split System) | J6: 0 | K6: 0 | L6: =+K6*J6 -> 0 | M6: 3 | N6: 0 | O6: =+N6*M6 -> 0 | P6: 1 | Q6: 0 | R6: =+Q6*P6 -> 0 | S6: 4 | T6: =IF($V6>0,$S6,0) -> 4 | U6: =+R6+O6+L6+I6+F6 -> 0 | V6: =IFERROR(VLOOKUP($A$5,'Equipment List Template'!$1:$1048576,11,FALSE),"0") -> 7 | W6: =+U6*V6 -> 0 | Z6: =B2 -> 05-C1 | AA6: =IFERROR(VLOOKUP($Z$6,'Equipment List Template'!$1:$1048576,2,FALSE),"") -> Calaveras Superior Court | AB6: =IFERROR(VLOOKUP($Z$6,'Equipment List Template'!$1:$1048576,3,FALSE),"") -> 400 Government Center Drive | AC6: =IFERROR(VLOOKUP($Z$6,'Equipment List Template'!$1:$1048576,4,FALSE),"") -> San Andreas | AD6: =IFERROR(VLOOKUP($Z$6,'Equipment List Template'!$1:$1048576,5,FALSE),"") -> 95249 | AE6: =IFERROR(VLOOKUP($Z$6,'Equipment List Template'!$1:$1048576,6,FALSE),"") -> Calaveras | AF6: =IFERROR(VLOOKUP($Z$6,'Equipment List Template'!$1:$1048576,7,FALSE),"") -> NCRO | AH6: =+$W5 -> 0 | AI6: =+$W6 -> 0 | AJ6: =+$W7 -> 0 | AK6: =+$W8 -> 0 | AL6: =+$W9 -> 0 | AM6: =+$W10 -> 0 | AN6: =+$W11 -> 0 | AO6: =+$W12 -> 0 | AP6: =+$W13 -> 0 | AQ6: =+$W14 -> 0 | AR6: =+$W15 -> 0 | AS6: =+$W16 -> 0 | AT6: =+$W17 -> 0 | AU6: =+$W18 -> 0 | AV6: =+$W19 -> 0 | AW6: =+$W20 -> 0 | AX6: =+$W21 -> 0 | AY6: =+$W22 -> 0 | AZ6: =+$W23 -> 0 | BA6: =+$W24 -> 0 | BB6: =+$W25 -> 0 | BC6: =+$W26 -> 0 | BD6: =+$W27 -> 0 | BE6: =+$W28 -> 0 | BF6: =+$W29 -> 0 | BG6: =+$W30 -> 0 | BH6: =+$W31 -> 0 | BI6: =+$W32 -> 0 | BJ6: =+$W33 -> 0 | BK6: =+$W34 -> 0 | BL6: =+$W35 -> 0 | BM6: =+$W36 -> 0 | BN6: =+$W37 -> 0 | BO6: =+$W38 -> 0 | BP6: =+$W39 -> 0 | BQ6: =+$W40 -> 0 | BR6: =+$W41 -> 0 | BT6: =+W42 -> 0 | BV6: =+D43 -> 0 | BW6: =+D44 -> 0 | BX6: =+D45 -> 0 | BY6: =+D46 -> 0 | BZ6: =+D47 -> 0 | CA6: =+D48 -> 0
A7: 05-C1 | B7: H2 | C7: Air Handling Unit (Air-cooled DX) | J7: 0 | K7: 0 | L7: 0 | M7: 3 | N7: 0 | O7: 0 | P7: 1 | Q7: 0 | R7: 0 | S7: 4 | T7: 4 | U7: 0 | V7: =IFERROR(VLOOKUP($A$5,'Equipment List Template'!$1:$1048576,12,FALSE),"0") -> 3 | W7: =+U7*V7 -> 0
A8: 05-C1 | B8: H3 | C8: Air-Cooled Chiller | G8: 40 | H8: 0 | I8: =+H8*G8 -> 0 | J8: 8 | K8: 0 | L8: 0 | M8: 3 | N8: 0 | O8: 0 | P8: 1 | Q8: 0 | R8: 0 | S8: 12 | T8: 0 | U8: 0 | V8: =IFERROR(VLOOKUP($A$5,'Equipment List Template'!$1:$1048576,13,FALSE),"0") -> 0 | W8: 0
A9: 05-C1 | B9: H4 | C9: Centrifugal Chiller | J9: 11 | K9: 0 | L9: 0 | M9: 0 | N9: 0 | O9: 0 | P9: 1 | Q9: 0 | R9: 0 | S9: 12 | T9: 12 | U9: 0 | V9: =IFERROR(VLOOKUP($A$5,'Equipment List Template'!$1:$1048576,14,FALSE),"0") -> 2 | W9: 0
A10: 05-C1 | B10: H5 | C10: Cooling Tower (Induced Draft) | J10: 8 | K10: 0 | L10: 0 | M10: 3 | N10: 0 | O10: 0 | P10: 1 | Q10: 0 | R10: 0 | S10: 12 | T10: 0 | U10: 0 | V10: =IFERROR(VLOOKUP($A$5,'Equipment List Template'!$1:$1048576,15,FALSE),"0") -> 0 | W10: 0
A11: 05-C1 | B11: H6 | C11: Ice Chiller | J11: 8 | K11: 0 | L11: 0 | M11: 3 | N11: 0 | O11: 0 | P11: 1 | Q11: 0 | R11: 0 | S11: 12 | T11: 0 | U11: 0 | V11: =IFERROR(VLOOKUP($A$5,'Equipment List Template'!$1:$1048576,16,FALSE),"0") -> 0 | W11: 0
A12: 05-C1 | B12: H7 | C12: MultiStack (Geothermal) | J12: 0 | K12: 0 | L12: 0 | M12: 0 | N12: 0 | O12: 0 | P12: 1 | Q12: 0 | R12: 0 | S12: 1 | T12: 0 | U12: 0 | V12: =IFERROR(VLOOKUP($A$5,'Equipment List Template'!$1:$1048576,17,FALSE),"0") -> 0 | W12: 0
A13: 05-C1 | B13: H8 | C13: Water Source Heat Pump | J13: 8 | K13: 0 | L13: 0 | M13: 3 | N13: 0 | O13: 0 | P13: 1 | Q13: 0 | R13: 0 | S13: 12 | T13: 0 | U13: 0 | V13: =IFERROR(VLOOKUP($A$5,'Equipment List Template'!$1:$1048576,18,FALSE),"0") -> 0 | W13: 0
A14: 05-C1 | B14: H9 | C14: Fan Coil System | J14: 0 | K14: 0 | L14: 0 | M14: 3 | N14: 0 | O14: 0 | P14: 1 | Q14: 0 | R14: 0 | S14: 4 | T14: 0 | U14: 0 | V14: =IFERROR(VLOOKUP($A$5,'Equipment List Template'!$1:$1048576,19,FALSE),"0") -> 0 | W14: 0
A15: 05-C1 | B15: H10 | C15: Exhaust Fan | J15: 0 | K15: 0 | L15: 0 | M15: 3 | N15: 0 | O15: 0 | P15: 1 | Q15: 0 | R15: 0 | S15: 4 | T15: 4 | U15: 0 | V15: =IFERROR(VLOOKUP($A$5,'Equipment List Template'!$1:$1048576,20,FALSE),"0") -> 2 | W15: 0
A16: 05-C1 | B16: H11 | C16: HVAC Unique System | J16: 8 | K16: 0 | L16: 0 | M16: 3 | N16: 0 | O16: 0 | P16: 1 | Q16: 0 | R16: 0 | S16: 12 | T16: 0 | U16: 0 | V16: =IFERROR(VLOOKUP($A$5,'Equipment List Template'!$1:$1048576,21,FALSE),"0") -> 0 | W16: 0
A17: 05-C1 | B17: E1 | C17: Electrical Panels | J17: 0 | K17: 0 | L17: 0 | M17: 3 | N17: 0 | O17: 0 | P17: 1 | Q17: 0 | R17: 0 | S17: 4 | T17: 4 | U17: 0 | V17: =IFERROR(VLOOKUP($A$5,'Equipment List Template'!$1:$1048576,22,FALSE),"0") -> 2 | W17: 0
A18: 05-C1 | B18: E2 | C18: Emergency Generator | J18: 0 | K18: 0 | L18: 0 | M18: 3 | N18: 0 | O18: 0 | P18: 1 | Q18: 0 | R18: 0 | S18: 4 | T18: 4 | U18: 0 | V18: =IFERROR(VLOOKUP($A$5,'Equipment List Template'!$1:$1048576,23,FALSE),"0") -> 1 | W18: 0
A19: 05-C1 | B19: E3 | C19: Motor Control Center | J19: 0 | K19: 0 | L19: 0 | M19: 4 | N19: 0 | O19: 0 | P19: 0 | Q19: 0 | R19: 0 | S19: 4 | T19: 0 | U19: 0 | V19: =IFERROR(VLOOKUP($A$5,'Equipment List Template'!$1:$1048576,24,FALSE),"0") -> 0 | W19: 0
A20: 05-C1 | B20: E4 | C20: Primary Switch (High) | J20: 8 | K20: 0 | L20: 0 | M20: 3 | N20: 0 | O20: 0 | P20: 1 | Q20: 0 | R20: 0 | S20: 12 | T20: 12 | U20: 0 | V20: =IFERROR(VLOOKUP($A$5,'Equipment List Template'!$1:$1048576,25,FALSE),"0") -> 1 | W20: 0
A21: 05-C1 | B21: E5 | C21: Primary Switch (Low) | J21: 8 | K21: 0 | L21: 0 | M21: 3 | N21: 0 | O21: 0 | P21: 1 | Q21: 0 | R21: 0 | S21: 12 | T21: 0 | U21: 0 | V21: =IFERROR(VLOOKUP($A$5,'Equipment List Template'!$1:$1048576,26,FALSE),"0") -> 0 | W21: 0
A22: 05-C1 | B22: E6 | C22: Transformer (Dry-Type) | J22: 0 | K22: 0 | L22: 0 | M22: 3 | N22: 0 | O22: 0 | P22: 1 | Q22: 0 | R22: 0 | S22: 4 | T22: 4 | U22: 0 | V22: =IFERROR(VLOOKUP($A$5,'Equipment List Template'!$1:$1048576,27,FALSE),"0") -> 1 | W22: 0
A23: 05-C1 | B23: E7 | C23: Uninterruptible Power Supply (UPS) | J23: 0 | K23: 0 | L23: 0 | M23: 0 | N23: 0 | O23: 0 | P23: 1 | Q23: 0 | R23: 0 | S23: 1 | T23: 0 | U23: 0 | V23: =IFERROR(VLOOKUP($A$5,'Equipment List Template'!$1:$1048576,28,FALSE),"0") -> 0 | W23: 0
A24: 05-C1 | B24: E8 | C24: Electrical Unique System | J24: 8 | K24: 0 | L24: 0 | M24: 3 | N24: 0 | O24: 0 | P24: 1 | Q24: 0 | R24: 0 | S24: 12 | T24: 0 | U24: 0 | V24: =IFERROR(VLOOKUP($A$5,'Equipment List Template'!$1:$1048576,29,FALSE),"0") -> 0 | W24: 0
A25: 05-C1 | B25: L1 | C25: Life Safety | J25: 0 | K25: 0 | L25: 0 | M25: 3 | N25: 0 | O25: 0 | P25: 1 | Q25: 0 | R25: 0 | S25: 4 | T25: 4 | U25: 0 | V25: =IFERROR(VLOOKUP($A$5,'Equipment List Template'!$1:$1048576,30,FALSE),"0") -> 1 | W25: =+U25*V25 -> 0
A26: 05-C1 | B26: L2 | C26: Backflow Preventor(s) | J26: 0 | K26: 0 | L26: 0 | M26: 0 | N26: 0 | O26: 0 | P26: 1 | Q26: 0 | R26: 0 | S26: 1 | T26: 1 | U26: 0 | V26: =IFERROR(VLOOKUP($A$5,'Equipment List Template'!$1:$1048576,31,FALSE),"0") -> 6 | W26: =+U26*V26 -> 0
A27: 05-C1 | B27: P1 | C27: Hot Water Boiler | J27: 8 | K27: 0 | L27: 0 | M27: 3 | N27: 0 | O27: 0 | P27: 1 | Q27: 0 | R27: 0 | S27: 12 | T27: 12 | U27: 0 | V27: =IFERROR(VLOOKUP($A$5,'Equipment List Template'!$1:$1048576,32,FALSE),"0") -> 2 | W27: 0
A28: 05-C1 | B28: P2 | C28: Condensing Water Heater | J28: 0 | K28: 0 | L28: 0 | M28: 0 | N28: 0 | O28: 0 | P28: 1 | Q28: 0 | R28: 0 | S28: 1 | T28: 0 | U28: 0 | V28: =IFERROR(VLOOKUP($A$5,'Equipment List Template'!$1:$1048576,33,FALSE),"0") -> 0 | W28: 0
A29: 05-C1 | B29: P3 | C29: Electric Water Heater | J29: 0 | K29: 0 | L29: 0 | M29: 0 | N29: 0 | O29: 0 | P29: 1 | Q29: 0 | R29: 0 | S29: 1 | T29: 0 | U29: 0 | V29: =IFERROR(VLOOKUP($A$5,'Equipment List Template'!$1:$1048576,34,FALSE),"0") -> 0 | W29: 0
A30: 05-C1 | B30: P4 | C30: Plumbing Unique System | J30: 0 | K30: 0 | L30: 0 | M30: 3 | N30: 0 | O30: 0 | P30: 1 | Q30: 0 | R30: 0 | S30: 4 | T30: 0 | U30: 0 | V30: =IFERROR(VLOOKUP($A$5,'Equipment List Template'!$1:$1048576,35,FALSE),"0") -> 0 | W30: 0
A31: 05-C1 | B31: P5 | C31: Steam System | J31: 0 | K31: 0 | L31: 0 | M31: 3 | N31: 0 | O31: 0 | P31: 1 | Q31: 0 | R31: 0 | S31: 4 | T31: 0 | U31: 0 | V31: =IFERROR(VLOOKUP($A$5,'Equipment List Template'!$1:$1048576,36,FALSE),"0") -> 0 | W31: 0
A32: 05-C1 | B32: P6 | C32: Pneumatic Compressor | J32: 11 | K32: 0 | L32: 0 | M32: 0 | N32: 0 | O32: 0 | P32: 1 | Q32: 0 | R32: 0 | S32: 12 | T32: 0 | U32: 0 | V32: =IFERROR(VLOOKUP($A$5,'Equipment List Template'!$1:$1048576,37,FALSE),"0") -> 0 | W32: 0
A33: 05-C1 | B33: R1 | C33: Rounds and Readings | D33: =IFERROR(IF(VLOOKUP($A33,'Equipment List Template'!$1:$1048576,38,FALSE)=260,248,0),0) -> 248 | E33: 0 | F33: =+E33*D33 -> 0 | G33: =IFERROR(IF(VLOOKUP($A33,'Equipment List Template'!$1:$1048576,38,FALSE)=52,40,0),0) -> 0 | H33: 0 | I33: =+H33*G33 -> 0 | J33: 12 | K33: 0 | L33: 0 | S33: 12 | T33: 12 | U33: =+R33+O33+L33+I33+F33 -> 0 | V33: 1 | W33: =+U33*V33 -> 0
A34: 05-C1 | B34: V1 | C34: Vertical Transportation | J34: 8 | K34: 0 | L34: =+K34*J34 -> 0 | M34: 3 | N34: 0 | O34: =+N34*M34 -> 0 | P34: 1 | Q34: 0 | R34: =+Q34*P34 -> 0 | S34: 12 | T34: 12 | U34: =+R34+O34+L34 -> 0 | V34: =IFERROR(VLOOKUP($A$5,'Equipment List Template'!$1:$1048576,39,FALSE),"0") -> 6 | W34: =+U34*V34 -> 0
A35: 05-C1 | B35: W1 | C35: Water Treatment | D35: =IFERROR(IF(VLOOKUP($A35,'Equipment List Template'!$1:$1048576,40,FALSE)=260,260,0),0) -> 260 | E35: 0 | F35: =+E35*D35 -> 0 | S35: 0 | T35: 0 | U35: =+R35+O35+L35+I35+F35 -> 0 | V35: 1 | W35: 0
A36: 05-C1 | B36: B1 | C36: Building Exterior / Hardscape (Monthly) | J36: 12 | K36: 0 | L36: =+K36*J36 -> 0 | S36: 12 | T36: 12 | U36: 0 | V36: 1 | W36: 0
A37: 05-C1 | B37: F1 | C37: Fountain Maintenance (Monthly) | J37: 12 | K37: 0 | L37: 0 | S37: 12 | T37: 12 | U37: 0 | V37: 1 | W37: 0
A38: 05-C1 | B38: F2 | C38: Fuel Storage Tanks (Quarterly) If applicable | M38: 4 | N38: 0 | O38: =+N38*M38 -> 0 | S38: 4 | T38: 4 | U38: 0 | V38: 1 | W38: 0
A39: 05-C1 | B39: G1 | C39: Landscape Maintenance * | G39: 40 | H39: 0 | I39: =+H39*G39 -> 0 | S39: 0 | T39: 0 | U39: 0 | V39: 1 | W39: 0
A40: 05-C1 | B40: C1 | C40: Account Management and Supervision (Monthly) | J40: 12 | K40: 0 | L40: =+K40*J40 -> 0 | S40: 12 | T40: 12 | U40: 0 | V40: 1 | W40: 0
A41: 05-C1 | B41: C2 | C41: Fee (Monthly) | J41: 12 | K41: 0 | L41: 0 | S41: 12 | T41: 12 | U41: 0 | V41: 1 | W41: 0
Q42: JCC ID | R42: =B2 -> 05-C1 | U42: Total | W42: =SUM(W6:W41) -> 0
B43: S1 | C43: Snow Removal - (crew hourly rate) | D43: 0 | U43: Total # of PM's | W43: =SUM(T5:T41) -> 153
B44: I1 | C44: Unclogging Blocked Toilet - In-custody cell (labor-only) | D44: 0
B45: I2 | C45: Unclogging Blocked Toilet - Public/Court Staff (labor-only) | D45: 0
B46: Hr 1 | C46: Hourly Rate (All Labor categories) | D46: 0
B47: M1 | C47: Markup on Materials (Percentage) | D47: 0
B48: Sub1 | C48: Markup on Subcontractors/Third-Parties (Percentage) | D48: 0
B50: * Landscape Maintenance varies by location on the number of weeks per year it can be preformed. For the purpose of the RFP, all facilities are pre-established at 40 weeks of service. The actual amount paid by facility will be based upon the actual weeks that service has been performed, validated and invoiced.

Sheet 09-A1
B1: JCC ID | C1: Facility Name | D1: Address | F1: City / Town | H1: Zip Code | J1: County | L1: Region | N1: RFP | P1: Proposer
B2: 09-A1 | C2: =IFERROR(VLOOKUP($B$2,'Equipment List Template'!$1:$1048576,2,FALSE),"") -> Main St. Courthouse | D2: =IFERROR(VLOOKUP($B$2,'Equipment List Template'!$1:$1048576,3,FALSE),"") -> 495 Main St. | F2: =IFERROR(VLOOKUP($B$2,'Equipment List Template'!$1:$1048576,4,FALSE),"") -> Placerville | H2: =IFERROR(VLOOKUP($B$2,'Equipment List Template'!$1:$1048576,5,FALSE),"") -> 95667 | J2: =IFERROR(VLOOKUP($B$2,'Equipment List Template'!$1:$1048576,6,FALSE),"") -> El Dorado | L2: =IFERROR(VLOOKUP($B$2,'Equipment List Template'!$1:$1048576,7,FALSE),"") -> NCRO | N2: ='Summary Pricing Sheet'!B2 -> RFP-FS-SP-2019-03-JP | P2: ='Summary Pricing Sheet'!B3 -> TBD
D3: Daily Activity | G3: Weekly Activity | J3: Monthly Activity | M3: Quarterly Activity | P3: Annual Activity | U3: Summary | AG3: System | AH3: HVAC | AS3: Electrical | BA3: Plumbing | BE3: Building Systems | BP3: Corporate | BT3: Fixed Price - Facility Total Annual Cost Year 1
B4: System ID | C4: Subsystem | D4: Quantity | E4: Cost | F4: Daily Total | G4: Quantity | H4: Cost | I4: Weekly Total | J4: Monthly Quantity | K4: Cost | L4: Monthly Total | M4: Quarterly Quantity | N4: Cost | O4: Quarterly Total | P4: Annual Quantity | Q4: Cost | R4: Annual PM Total | T4: Number of PM's | U4: Annual Cost | V4: Quantity | W4: Total Annual Cost | AG4: Subsystem | AH4: Air Cooled DX (Package / Split System) | AI4: Air Handling Unit (Air-cooled DX) | AJ4: Air-Cooled Chiller | AK4: Centrifugal Chiller | AL4: Cooling Tower (Induced Draft) | AM4: Ice Chiller | AN4: Multitask (Geothermal) | AO4: Water Source Heat Pump | AP4: Fan Coil System | AQ4: Exhaust Fan | AR4: HVAC Unique System | AS4: Electrical Panels | AT4: Emergency Generator | AU4: Motor Control Center | AV4: Primary Switch (High) | AW4: Primary Switch (Low) | AX4: Transformer (Dry-Type) | AY4: Uninterruptible Power Supply (UPS) | AZ4: Electrical Unique System | BA4: Hot Water Boiler | BB4: Condensing Water Heater | BC4: Electric Water Heater | BD4: Plumbing Unique System | BE4: Steam System | BF4: Pneumatic Compressor | BG4: Vertical Transportation | BH4: Life Safety | BI4: Backflow Preventor | BJ4: Rounds and Readings | BK4: Access Doors, Gates, Sally Port | BL4: Water Treatment | BM4: Building Exterior / Hardscape (Monthly) | BN4: Fountain Maintenance (Monthly) | BO4: Fuel Storage Tanks (Quarterly) If applicable | BP4: Landscape Maintenance * | BQ4: Account Management and Supervision (Monthly) | BR4: Fee (Monthly) | BV4: Snow Removal - (crew hourly rate) | BW4: Unclogging Blocked Toilet - In-custody holding cell (labor) | BX4: Unclogging Blocked Toilet - Public/Court Staff (labor) | BY4: Hourly Rate | BZ4: Markup on Materials | CA4: Markup on Subcontractors/Third-Parties
A5: =$B$2 -> 09-A1 | B5: A1 | C5: Access Doors, Gates, Sally Port | J5: 11 | K5: 0 | L5: =+K5*J5 -> 0 | M5: 0 | N5: 0 | O5: =+N5*M5 -> 0 | P5: 1 | Q5: 0 | R5: =+Q5*P5 -> 0 | S5: 12 | T5: =IF($V5>0,$S5,0) -> 12 | U5: =+R5+O5+L5+I5+F5 -> 0 | V5: =IFERROR(VLOOKUP($A$5,'Equipment List Template'!$1:$1048576,10,FALSE),"0") -> 1 | W5: =+U5*V5 -> 0 | Z5: JCC ID | AA5: Facility Name | AB5: Address | AC5: City / Town | AD5: County | AE5: Region | AF5: Region | AG5: System ID | AH5: H1 | AI5: H2 | AJ5: H3 | AK5: H4 | AL5: H5 | AM5: H6 | AN5: H7 | AO5: H8 | AP5: H9 | AQ5: H10 | AR5: H11 | AS5: E1 | AT5: E2 | AU5: E3 | AV5: E4 | AW5: E5 | AX5: E6 | AY5: E7 | AZ5: E8 | BA5: P1 | BB5: P2 | BC5: P3 | BD5: P4 | BE5: P5 | BF5: P6 | BG5: V1 | BH5: L1 | BI5: L2 | BJ5: R1 | BK5: A1 | BL5: W1 | BM5: B1 | BN5: F1 | BO5: F2 | BP5: G1 | BQ5: C1 | BR5: C2 | BV5: S1 | BW5: I1 | BX5: I2 | BY5: Hr 1 | BZ5: M1 | CA5: Sub1
A6: =$B$2 -> 09-A1 | B6: H1 | C6: Air Cooled DX (Package / Split System) | J6: 0 | K6: 0 | L6: =+K6*J6 -> 0 | M6: 3 | N6: 0 | O6: =+N6*M6 -> 0 | P6: 1 | Q6: 0 | R6: =+Q6*P6 -> 0 | S6: 4 | T6: =IF($V6>0,$S6,0) -> 4 | U6: =+R6+O6+L6+I6+F6 -> 0 | V6: =IFERROR(VLOOKUP($A$5,'Equipment List Template'!$1:$1048576,11,FALSE),"0") -> 3 | W6: =+U6*V6 -> 0 | Z6: =B2 -> 09-A1 | AA6: =IFERROR(VLOOKUP($Z$6,'Equipment List Template'!$1:$1048576,2,FALSE),"") -> Main St. Courthouse | AB6: =IFERROR(VLOOKUP($Z$6,'Equipment List Template'!$1:$1048576,3,FALSE),"") -> 495 Main St. | AC6: =IFERROR(VLOOKUP($Z$6,'Equipment List Template'!$1:$1048576,4,FALSE),"") -> Placerville | AD6: =IFERROR(VLOOKUP($Z$6,'Equipment List Template'!$1:$1048576,5,FALSE),"") -> 95667 | AE6: =IFERROR(VLOOKUP($Z$6,'Equipment List Template'!$1:$1048576,6,FALSE),"") -> El Dorado | AF6: =IFERROR(VLOOKUP($Z$6,'Equipment List Template'!$1:$1048576,7,FALSE),"") -> NCRO | AH6: =+$W5 -> 0 | AI6: =+$W6 -> 0 | AJ6: =+$W7 -> 0 | AK6: =+$W8 -> 0 | AL6: =+$W9 -> 0 | AM6: =+$W10 -> 0 | AN6: =+$W11 -> 0 | AO6: =+$W12 -> 0 | AP6: =+$W13 -> 0 | AQ6: =+$W14 -> 0 | AR6: =+$W15 -> 0 | AS6: =+$W16 -> 0 | AT6: =+$W17 -> 0 | AU6: =+$W18 -> 0 | AV6: =+$W19 -> 0 | AW6: =+$W20 -> 0 | AX6: =+$W21 -> 0 | AY6: =+$W22 -> 0 | AZ6: =+$W23 -> 0 | BA6: =+$W24 -> 0 | BB6: =+$W25 -> 0 | BC6: =+$W26 -> 0 | BD6: =+$W27 -> 0 | BE6: =+$W28 -> 0 | BF6: =+$W29 -> 0 | BG6: =+$W30 -> 0 | BH6: =+$W31 -> 0 | BI6: =+$W32 -> 0 | BJ6: =+$W33 -> 0 | BK6: =+$W34 -> 0 | BL6: =+$W35 -> 0 | BM6: =+$W36 -> 0 | BN6: =+$W37 -> 0 | BO6: =+$W38 -> 0 | BP6: =+$W39 -> 0 | BQ6: =+$W40 -> 0 | BR6: =+$W41 -> 0 | BT6: =+W42 -> 0 | BV6: =+D43 -> 0 | BW6: =+D44 -> 0 | BX6: =+D45 -> 0 | BY6: =+D46 -> 0 | BZ6: =+D47 -> 0 | CA6: =+D48 -> 0
A7: 09-A1 | B7: H2 | C7: Air Handling Unit (Air-cooled DX) | J7: 0 | K7: 0 | L7: 0 | M7: 3 | N7: 0 | O7: 0 | P7: 1 | Q7: 0 | R7: 0 | S7: 4 | T7: 4 | U7: 0 | V7: =IFERROR(VLOOKUP($A$5,'Equipment List Template'!$1:$1048576,12,FALSE),"0") -> 3 | W7: =+U7*V7 -> 0
A8: 09-A1 | B8: H3 | C8: Air-Cooled Chiller | G8: 40 | H8: 0 | I8: =+H8*G8 -> 0 | J8: 8 | K8: 0 | L8: 0 | M8: 3 | N8: 0 | O8: 0 | P8: 1 | Q8: 0 | R8: 0 | S8: 12 | T8: 0 | U8: 0 | V8: =IFERROR(VLOOKUP($A$5,'Equipment List Template'!$1:$1048576,13,FALSE),"0") -> 0 | W8: 0
A9: 09-A1 | B9: H4 | C9: Centrifugal Chiller | J9: 11 | K9: 0 | L9: 0 | M9: 0 | N9: 0 | O9: 0 | P9: 1 | Q9: 0 | R9: 0 | S9: 12 | T9: 0 | U9: 0 | V9: =IFERROR(VLOOKUP($A$5,'Equipment List Template'!$1:$1048576,14,FALSE),"0") -> 0 | W9: 0
A10: 09-A1 | B10: H5 | C10: Cooling Tower (Induced Draft) | J10: 8 | K10: 0 | L10: 0 | M10: 3 | N10: 0 | O10: 0 | P10: 1 | Q10: 0 | R10: 0 | S10: 12 | T10: 0 | U10: 0 | V10: =IFERROR(VLOOKUP($A$5,'Equipment List Template'!$1:$1048576,15,FALSE),"0") -> 0 | W10: 0
A11: 09-A1 | B11: H6 | C11: Ice Chiller | J11: 8 | K11: 0 | L11: 0 | M11: 3 | N11: 0 | O11: 0 | P11: 1 | Q11: 0 | R11: 0 | S11: 12 | T11: 0 | U11: 0 | V11: =IFERROR(VLOOKUP($A$5,'Equipment List Template'!$1:$1048576,16,FALSE),"0") -> 0 | W11: 0
A12: 09-A1 | B12: H7 | C12: MultiStack (Geothermal) | J12: 0 | K12: 0 | L12: 0 | M12: 0 | N12: 0 | O12: 0 | P12: 1 | Q12: 0 | R12: 0 | S12: 1 | T12: 0 | U12: 0 | V12: =IFERROR(VLOOKUP($A$5,'Equipment List Template'!$1:$1048576,17,FALSE),"0") -> 0 | W12: 0
A13: 09-A1 | B13: H8 | C13: Water Source Heat Pump | J13: 8 | K13: 0 | L13: 0 | M13: 3 | N13: 0 | O13: 0 | P13: 1 | Q13: 0 | R13: 0 | S13: 12 | T13: 0 | U13: 0 | V13: =IFERROR(VLOOKUP($A$5,'Equipment List Template'!$1:$1048576,18,FALSE),"0") -> 0 | W13: 0
A14: 09-A1 | B14: H9 | C14: Fan Coil System | J14: 0 | K14: 0 | L14: 0 | M14: 3 | N14: 0 | O14: 0 | P14: 1 | Q14: 0 | R14: 0 | S14: 4 | T14: 0 | U14: 0 | V14: =IFERROR(VLOOKUP($A$5,'Equipment List Template'!$1:$1048576,19,FALSE),"0") -> 0 | W14: 0
A15: 09-A1 | B15: H10 | C15: Exhaust Fan | J15: 0 | K15: 0 | L15: 0 | M15: 3 | N15: 0 | O15: 0 | P15: 1 | Q15: 0 | R15: 0 | S15: 4 | T15: 0 | U15: 0 | V15: =IFERROR(VLOOKUP($A$5,'Equipment List Template'!$1:$1048576,20,FALSE),"0") -> 0 | W15: 0
A16: 09-A1 | B16: H11 | C16: HVAC Unique System | J16: 8 | K16: 0 | L16: 0 | M16: 3 | N16: 0 | O16: 0 | P16: 1 | Q16: 0 | R16: 0 | S16: 12 | T16: 0 | U16: 0 | V16: =IFERROR(VLOOKUP($A$5,'Equipment List Template'!$1:$1048576,21,FALSE),"0") -> 0 | W16: 0
A17: 09-A1 | B17: E1 | C17: Electrical Panels | J17: 0 | K17: 0 | L17: 0 | M17: 3 | N17: 0 | O17: 0 | P17: 1 | Q17: 0 | R17: 0 | S17: 4 | T17: 4 | U17: 0 | V17: =IFERROR(VLOOKUP($A$5,'Equipment List Template'!$1:$1048576,22,FALSE),"0") -> 1 | W17: 0
A18: 09-A1 | B18: E2 | C18: Emergency Generator | J18: 0 | K18: 0 | L18: 0 | M18: 3 | N18: 0 | O18: 0 | P18: 1 | Q18: 0 | R18: 0 | S18: 4 | T18: 0 | U18: 0 | V18: =IFERROR(VLOOKUP($A$5,'Equipment List Template'!$1:$1048576,23,FALSE),"0") -> 0 | W18: 0
A19: 09-A1 | B19: E3 | C19: Motor Control Center | J19: 0 | K19: 0 | L19: 0 | M19: 4 | N19: 0 | O19: 0 | P19: 0 | Q19: 0 | R19: 0 | S19: 4 | T19: 0 | U19: 0 | V19: =IFERROR(VLOOKUP($A$5,'Equipment List Template'!$1:$1048576,24,FALSE),"0") -> 0 | W19: 0
A20: 09-A1 | B20: E4 | C20: Primary Switch (High) | J20: 8 | K20: 0 | L20: 0 | M20: 3 | N20: 0 | O20: 0 | P20: 1 | Q20: 0 | R20: 0 | S20: 12 | T20: 0 | U20: 0 | V20: =IFERROR(VLOOKUP($A$5,'Equipment List Template'!$1:$1048576,25,FALSE),"0") -> 0 | W20: 0
A21: 09-A1 | B21: E5 | C21: Primary Switch (Low) | J21: 8 | K21: 0 | L21: 0 | M21: 3 | N21: 0 | O21: 0 | P21: 1 | Q21: 0 | R21: 0 | S21: 12 | T21: 0 | U21: 0 | V21: =IFERROR(VLOOKUP($A$5,'Equipment List Template'!$1:$1048576,26,FALSE),"0") -> 0 | W21: 0
A22: 09-A1 | B22: E6 | C22: Transformer (Dry-Type) | J22: 0 | K22: 0 | L22: 0 | M22: 3 | N22: 0 | O22: 0 | P22: 1 | Q22: 0 | R22: 0 | S22: 4 | T22: 0 | U22: 0 | V22: =IFERROR(VLOOKUP($A$5,'Equipment List Template'!$1:$1048576,27,FALSE),"0") -> 0 | W22: 0
A23: 09-A1 | B23: E7 | C23: Uninterruptible Power Supply (UPS) | J23: 0 | K23: 0 | L23: 0 | M23: 0 | N23: 0 | O23: 0 | P23: 1 | Q23: 0 | R23: 0 | S23: 1 | T23: 0 | U23: 0 | V23: =IFERROR(VLOOKUP($A$5,'Equipment List Template'!$1:$1048576,28,FALSE),"0") -> 0 | W23: 0
A24: 09-A1 | B24: E8 | C24: Electrical Unique System | J24: 8 | K24: 0 | L24: 0 | M24: 3 | N24: 0 | O24: 0 | P24: 1 | Q24: 0 | R24: 0 | S24: 12 | T24: 0 | U24: 0 | V24: =IFERROR(VLOOKUP($A$5,'Equipment List Template'!$1:$1048576,29,FALSE),"0") -> 0 | W24: 0
A25: 09-A1 | B25: L1 | C25: Life Safety | J25: 0 | K25: 0 | L25: 0 | M25: 3 | N25: 0 | O25: 0 | P25: 1 | Q25: 0 | R25: 0 | S25: 4 | T25: 4 | U25: 0 | V25: =IFERROR(VLOOKUP($A$5,'Equipment List Template'!$1:$1048576,30,FALSE),"0") -> 1 | W25: =+U25*V25 -> 0
A26: 09-A1 | B26: L2 | C26: Backflow Preventor(s) | J26: 0 | K26: 0 | L26: 0 | M26: 0 | N26: 0 | O26: 0 | P26: 1 | Q26: 0 | R26: 0 | S26: 1 | T26: 1 | U26: 0 | V26: =IFERROR(VLOOKUP($A$5,'Equipment List Template'!$1:$1048576,31,FALSE),"0") -> 2 | W26: =+U26*V26 -> 0
A27: 09-A1 | B27: P1 | C27: Hot Water Boiler | J27: 8 | K27: 0 | L27: 0 | M27: 3 | N27: 0 | O27: 0 | P27: 1 | Q27: 0 | R27: 0 | S27: 12 | T27: 12 | U27: 0 | V27: =IFERROR(VLOOKUP($A$5,'Equipment List Template'!$1:$1048576,32,FALSE),"0") -> 1 | W27: 0
A28: 09-A1 | B28: P2 | C28: Condensing Water Heater | J28: 0 | K28: 0 | L28: 0 | M28: 0 | N28: 0 | O28: 0 | P28: 1 | Q28: 0 | R28: 0 | S28: 1 | T28: 0 | U28: 0 | V28: =IFERROR(VLOOKUP($A$5,'Equipment List Template'!$1:$1048576,33,FALSE),"0") -> 0 | W28: 0
A29: 09-A1 | B29: P3 | C29: Electric Water Heater | J29: 0 | K29: 0 | L29: 0 | M29: 0 | N29: 0 | O29: 0 | P29: 1 | Q29: 0 | R29: 0 | S29: 1 | T29: 1 | U29: 0 | V29: =IFERROR(VLOOKUP($A$5,'Equipment List Template'!$1:$1048576,34,FALSE),"0") -> 3 | W29: 0
A30: 09-A1 | B30: P4 | C30: Plumbing Unique System | J30: 0 | K30: 0 | L30: 0 | M30: 3 | N30: 0 | O30: 0 | P30: 1 | Q30: 0 | R30: 0 | S30: 4 | T30: 0 | U30: 0 | V30: =IFERROR(VLOOKUP($A$5,'Equipment List Template'!$1:$1048576,35,FALSE),"0") -> 0 | W30: 0
A31: 09-A1 | B31: P5 | C31: Steam System | J31: 0 | K31: 0 | L31: 0 | M31: 3 | N31: 0 | O31: 0 | P31: 1 | Q31: 0 | R31: 0 | S31: 4 | T31: 0 | U31: 0 | V31: =IFERROR(VLOOKUP($A$5,'Equipment List Template'!$1:$1048576,36,FALSE),"0") -> 0 | W31: 0
A32: 09-A1 | B32: P6 | C32: Pneumatic Compressor | J32: 11 | K32: 0 | L32: 0 | M32: 0 | N32: 0 | O32: 0 | P32: 1 | Q32: 0 | R32: 0 | S32: 12 | T32: 0 | U32: 0 | V32: =IFERROR(VLOOKUP($A$5,'Equipment List Template'!$1:$1048576,37,FALSE),"0") -> 0 | W32: 0
A33: 09-A1 | B33: R1 | C33: Rounds and Readings | D33: =IFERROR(IF(VLOOKUP($A33,'Equipment List Template'!$1:$1048576,38,FALSE)=260,248,0),0) -> 0 | E33: 0 | F33: =+E33*D33 -> 0 | G33: =IFERROR(IF(VLOOKUP($A33,'Equipment List Template'!$1:$1048576,38,FALSE)=52,40,0),0) -> 40 | H33: 0 | I33: =+H33*G33 -> 0 | J33: 12 | K33: 0 | L33: 0 | S33: 12 | T33: 12 | U33: =+R33+O33+L33+I33+F33 -> 0 | V33: 1 | W33: =+U33*V33 -> 0
A34: 09-A1 | B34: V1 | C34: Vertical Transportation | J34: 8 | K34: 0 | L34: =+K34*J34 -> 0 | M34: 3 | N34: 0 | O34: =+N34*M34 -> 0 | P34: 1 | Q34: 0 | R34: =+Q34*P34 -> 0 | S34: 12 | T34: 12 | U34: =+R34+O34+L34 -> 0 | V34: =IFERROR(VLOOKUP($A$5,'Equipment List Template'!$1:$1048576,39,FALSE),"0") -> 1 | W34: =+U34*V34 -> 0
A35: 09-A1 | B35: W1 | C35: Water Treatment | D35: =IFERROR(IF(VLOOKUP($A35,'Equipment List Template'!$1:$1048576,40,FALSE)=260,260,0),0) -> 0 | E35: 0 | F35: =+E35*D35 -> 0 | S35: 0 | T35: 0 | U35: =+R35+O35+L35+I35+F35 -> 0 | V35: 1 | W35: 0
A36: 09-A1 | B36: B1 | C36: Building Exterior / Hardscape (Monthly) | J36: 12 | K36: 0 | L36: =+K36*J36 -> 0 | S36: 12 | T36: 12 | U36: 0 | V36: 1 | W36: 0
A37: 09-A1 | B37: F1 | C37: Fountain Maintenance (Monthly) | J37: 12 | K37: 0 | L37: 0 | S37: 12 | T37: 12 | U37: 0 | V37: 1 | W37: 0
A38: 09-A1 | B38: F2 | C38: Fuel Storage Tanks (Quarterly) If applicable | M38: 4 | N38: 0 | O38: =+N38*M38 -> 0 | S38: 4 | T38: 4 | U38: 0 | V38: 1 | W38: 0
A39: 09-A1 | B39: G1 | C39: Landscape Maintenance * | G39: 40 | H39: 0 | I39: =+H39*G39 -> 0 | S39: 0 | T39: 0 | U39: 0 | V39: 1 | W39: 0
A40: 09-A1 | B40: C1 | C40: Account Management and Supervision (Monthly) | J40: 12 | K40: 0 | L40: =+K40*J40 -> 0 | S40: 12 | T40: 12 | U40: 0 | V40: 1 | W40: 0
A41: 09-A1 | B41: C2 | C41: Fee (Monthly) | J41: 12 | K41: 0 | L41: 0 | S41: 12 | T41: 12 | U41: 0 | V41: 1 | W41: 0
Q42: JCC ID | R42: =B2 -> 09-A1 | U42: Total | W42: =SUM(W6:W41) -> 0
B43: S1 | C43: Snow Removal - (crew hourly rate) | D43: 0 | U43: Total # of PM's | W43: =SUM(T5:T41) -> 118
B44: I1 | C44: Unclogging Blocked Toilet - In-custody cell (labor-only) | D44: 0
B45: I2 | C45: Unclogging Blocked Toilet - Public/Court Staff (labor-only) | D45: 0
B46: Hr 1 | C46: Hourly Rate (All Labor categories) | D46: 0
B47: M1 | C47: Markup on Materials (Percentage) | D47: 0
B48: Sub1 | C48: Markup on Subcontractors/Third-Parties (Percentage) | D48: 0
B50: * Landscape Maintenance varies by location on the number of weeks per year it can be preformed. For the purpose of the RFP, all facilities are pre-established at 40 weeks of service. The actual amount paid by facility will be based upon the actual weeks that service has been performed, validated and invoiced.

Sheet 10-A1
B1: JCC ID | C1: Facility Name | D1: Address | F1: City / Town | H1: Zip Code | J1: County | L1: Region | N1: RFP | P1: Proposer
B2: 10-A1 | C2: =IFERROR(VLOOKUP($B$2,'Equipment List Template'!$1:$1048576,2,FALSE),"") -> Fresno County Courthouse | D2: =IFERROR(VLOOKUP($B$2,'Equipment List Template'!$1:$1048576,3,FALSE),"") -> 1100 Van Ness Ave. | F2: =IFERROR(VLOOKUP($B$2,'Equipment List Template'!$1:$1048576,4,FALSE),"") -> Fresno | H2: =IFERROR(VLOOKUP($B$2,'Equipment List Template'!$1:$1048576,5,FALSE),"") -> 93724 | J2: =IFERROR(VLOOKUP($B$2,'Equipment List Template'!$1:$1048576,6,FALSE),"") -> Fresno | L2: =IFERROR(VLOOKUP($B$2,'Equipment List Template'!$1:$1048576,7,FALSE),"") -> NCRO | N2: ='Summary Pricing Sheet'!B2 -> RFP-FS-SP-2019-03-JP | P2: ='Summary Pricing Sheet'!B3 -> TBD
D3: Daily Activity | G3: Weekly Activity | J3: Monthly Activity | M3: Quarterly Activity | P3: Annual Activity | U3: Summary | AG3: System | AH3: HVAC | AS3: Electrical | BA3: Plumbing | BE3: Building Systems | BP3: Corporate | BT3: Fixed Price - Facility Total Annual Cost Year 1
B4: System ID | C4: Subsystem | D4: Quantity | E4: Cost | F4: Daily Total | G4: Quantity | H4: Cost | I4: Weekly Total | J4: Monthly Quantity | K4: Cost | L4: Monthly Total | M4: Quarterly Quantity | N4: Cost | O4: Quarterly Total | P4: Annual Quantity | Q4: Cost | R4: Annual PM Total | T4: Number of PM's | U4: Annual Cost | V4: Quantity | W4: Total Annual Cost | AG4: Subsystem | AH4: Air Cooled DX (Package / Split System) | AI4: Air Handling Unit (Air-cooled DX) | AJ4: Air-Cooled Chiller | AK4: Centrifugal Chiller | AL4: Cooling Tower (Induced Draft) | AM4: Ice Chiller | AN4: Multitask (Geothermal) | AO4: Water Source Heat Pump | AP4: Fan Coil System | AQ4: Exhaust Fan | AR4: HVAC Unique System | AS4: Electrical Panels | AT4: Emergency Generator | AU4: Motor Control Center | AV4: Primary Switch (High) | AW4: Primary Switch (Low) | AX4: Transformer (Dry-Type) | AY4: Uninterruptible Power Supply (UPS) | AZ4: Electrical Unique System | BA4: Hot Water Boiler | BB4: Condensing Water Heater | BC4: Electric Water Heater | BD4: Plumbing Unique System | BE4: Steam System | BF4: Pneumatic Compressor | BG4: Vertical Transportation | BH4: Life Safety | BI4: Backflow Preventor | BJ4: Rounds and Readings | BK4: Access Doors, Gates, Sally Port | BL4: Water Treatment | BM4: Building Exterior / Hardscape (Monthly) | BN4: Fountain Maintenance (Monthly) | BO4: Fuel Storage Tanks (Quarterly) If applicable | BP4: Landscape Maintenance * | BQ4: Account Management and Supervision (Monthly) | BR4: Fee (Monthly) | BV4: Snow Removal - (crew hourly rate) | BW4: Unclogging Blocked Toilet - In-custody holding cell (labor) | BX4: Unclogging Blocked Toilet - Public/Court Staff (labor) | BY4: Hourly Rate | BZ4: Markup on Materials | CA4: Markup on Subcontractors/Third-Parties
A5: =$B$2 -> 10-A1 | B5: A1 | C5: Access Doors, Gates, Sally Port | J5: 11 | K5: 0 | L5: =+K5*J5 -> 0 | M5: 0 | N5: 0 | O5: =+N5*M5 -> 0 | P5: 1 | Q5: 0 | R5: =+Q5*P5 -> 0 | S5: 12 | T5: =IF($V5>0,$S5,0) -> 12 | U5: =+R5+O5+L5+I5+F5 -> 0 | V5: =IFERROR(VLOOKUP($A$5,'Equipment List Template'!$1:$1048576,10,FALSE),"0") -> 1 | W5: =+U5*V5 -> 0 | Z5: JCC ID | AA5: Facility Name | AB5: Address | AC5: City / Town | AD5: County | AE5: Region | AF5: Region | AG5: System ID | AH5: H1 | AI5: H2 | AJ5: H3 | AK5: H4 | AL5: H5 | AM5: H6 | AN5: H7 | AO5: H8 | AP5: H9 | AQ5: H10 | AR5: H11 | AS5: E1 | AT5: E2 | AU5: E3 | AV5: E4 | AW5: E5 | AX5: E6 | AY5: E7 | AZ5: E8 | BA5: P1 | BB5: P2 | BC5: P3 | BD5: P4 | BE5: P5 | BF5: P6 | BG5: V1 | BH5: L1 | BI5: L2 | BJ5: R1 | BK5: A1 | BL5: W1 | BM5: B1 | BN5: F1 | BO5: F2 | BP5: G1 | BQ5: C1 | BR5: C2 | BV5: S1 | BW5: I1 | BX5: I2 | BY5: Hr 1 | BZ5: M1 | CA5: Sub1
A6: =$B$2 -> 10-A1 | B6: H1 | C6: Air Cooled DX (Package / Split System) | J6: 0 | K6: 0 | L6: =+K6*J6 -> 0 | M6: 3 | N6: 0 | O6: =+N6*M6 -> 0 | P6: 1 | Q6: 0 | R6: =+Q6*P6 -> 0 | S6: 4 | T6: =IF($V6>0,$S6,0) -> 4 | U6: =+R6+O6+L6+I6+F6 -> 0 | V6: =IFERROR(VLOOKUP($A$5,'Equipment List Template'!$1:$1048576,11,FALSE),"0") -> 9 | W6: =+U6*V6 -> 0 | Z6: =B2 -> 10-A1 | AA6: =IFERROR(VLOOKUP($Z$6,'Equipment List Template'!$1:$1048576,2,FALSE),"") -> Fresno County Courthouse | AB6: =IFERROR(VLOOKUP($Z$6,'Equipment List Template'!$1:$1048576,3,FALSE),"") -> 1100 Van Ness Ave. | AC6: =IFERROR(VLOOKUP($Z$6,'Equipment List Template'!$1:$1048576,4,FALSE),"") -> Fresno | AD6: =IFERROR(VLOOKUP($Z$6,'Equipment List Template'!$1:$1048576,5,FALSE),"") -> 93724 | AE6: =IFERROR(VLOOKUP($Z$6,'Equipment List Template'!$1:$1048576,6,FALSE),"") -> Fresno | AF6: =IFERROR(VLOOKUP($Z$6,'Equipment List Template'!$1:$1048576,7,FALSE),"") -> NCRO | AH6: =+$W5 -> 0 | AI6: =+$W6 -> 0 | AJ6: =+$W7 -> 0 | AK6: =+$W8 -> 0 | AL6: =+$W9 -> 0 | AM6: =+$W10 -> 0 | AN6: =+$W11 -> 0 | AO6: =+$W12 -> 0 | AP6: =+$W13 -> 0 | AQ6: =+$W14 -> 0 | AR6: =+$W15 -> 0 | AS6: =+$W16 -> 0 | AT6: =+$W17 -> 0 | AU6: =+$W18 -> 0 | AV6: =+$W19 -> 0 | AW6: =+$W20 -> 0 | AX6: =+$W21 -> 0 | AY6: =+$W22 -> 0 | AZ6: =+$W23 -> 0 | BA6: =+$W24 -> 0 | BB6: =+$W25 -> 0 | BC6: =+$W26 -> 0 | BD6: =+$W27 -> 0 | BE6: =+$W28 -> 0 | BF6: =+$W29 -> 0 | BG6: =+$W30 -> 0 | BH6: =+$W31 -> 0 | BI6: =+$W32 -> 0 | BJ6: =+$W33 -> 0 | BK6: =+$W34 -> 0 | BL6: =+$W35 -> 0 | BM6: =+$W36 -> 0 | BN6: =+$W37 -> 0 | BO6: =+$W38 -> 0 | BP6: =+$W39 -> 0 | BQ6: =+$W40 -> 0 | BR6: =+$W41 -> 0 | BT6: =+W42 -> 0 | BV6: =+D43 -> 0 | BW6: =+D44 -> 0 | BX6: =+D45 -> 0 | BY6: =+D46 -> 0 | BZ6: =+D47 -> 0 | CA6: =+D48 -> 0
A7: 10-A1 | B7: H2 | C7: Air Handling Unit (Air-cooled DX) | J7: 0 | K7: 0 | L7: 0 | M7: 3 | N7: 0 | O7: 0 | P7: 1 | Q7: 0 | R7: 0 | S7: 4 | T7: 4 | U7: 0 | V7: =IFERROR(VLOOKUP($A$5,'Equipment List Template'!$1:$1048576,12,FALSE),"0") -> 12 | W7: =+U7*V7 -> 0
A8: 10-A1 | B8: H3 | C8: Air-Cooled Chiller | G8: 40 | H8: 0 | I8: =+H8*G8 -> 0 | J8: 8 | K8: 0 | L8: 0 | M8: 3 | N8: 0 | O8: 0 | P8: 1 | Q8: 0 | R8: 0 | S8: 12 | T8: 0 | U8: 0 | V8: =IFERROR(VLOOKUP($A$5,'Equipment List Template'!$1:$1048576,13,FALSE),"0") -> 0 | W8: 0
A9: 10-A1 | B9: H4 | C9: Centrifugal Chiller | J9: 11 | K9: 0 | L9: 0 | M9: 0 | N9: 0 | O9: 0 | P9: 1 | Q9: 0 | R9: 0 | S9: 12 | T9: 12 | U9: 0 | V9: =IFERROR(VLOOKUP($A$5,'Equipment List Template'!$1:$1048576,14,FALSE),"0") -> 2 | W9: 0
A10: 10-A1 | B10: H5 | C10: Cooling Tower (Induced Draft) | J10: 8 | K10: 0 | L10: 0 | M10: 3 | N10: 0 | O10: 0 | P10: 1 | Q10: 0 | R10: 0 | S10: 12 | T10: 12 | U10: 0 | V10: =IFERROR(VLOOKUP($A$5,'Equipment List Template'!$1:$1048576,15,FALSE),"0") -> 1 | W10: 0
A11: 10-A1 | B11: H6 | C11: Ice Chiller | J11: 8 | K11: 0 | L11: 0 | M11: 3 | N11: 0 | O11: 0 | P11: 1 | Q11: 0 | R11: 0 | S11: 12 | T11: 0 | U11: 0 | V11: =IFERROR(VLOOKUP($A$5,'Equipment List Template'!$1:$1048576,16,FALSE),"0") -> 0 | W11: 0
A12: 10-A1 | B12: H7 | C12: MultiStack (Geothermal) | J12: 0 | K12: 0 | L12: 0 | M12: 0 | N12: 0 | O12: 0 | P12: 1 | Q12: 0 | R12: 0 | S12: 1 | T12: 0 | U12: 0 | V12: =IFERROR(VLOOKUP($A$5,'Equipment List Template'!$1:$1048576,17,FALSE),"0") -> 0 | W12: 0
A13: 10-A1 | B13: H8 | C13: Water Source Heat Pump | J13: 8 | K13: 0 | L13: 0 | M13: 3 | N13: 0 | O13: 0 | P13: 1 | Q13: 0 | R13: 0 | S13: 12 | T13: 0 | U13: 0 | V13: =IFERROR(VLOOKUP($A$5,'Equipment List Template'!$1:$1048576,18,FALSE),"0") -> 0 | W13: 0
A14: 10-A1 | B14: H9 | C14: Fan Coil System | J14: 0 | K14: 0 | L14: 0 | M14: 3 | N14: 0 | O14: 0 | P14: 1 | Q14: 0 | R14: 0 | S14: 4 | T14: 4 | U14: 0 | V14: =IFERROR(VLOOKUP($A$5,'Equipment List Template'!$1:$1048576,19,FALSE),"0") -> 4 | W14: 0
A15: 10-A1 | B15: H10 | C15: Exhaust Fan | J15: 0 | K15: 0 | L15: 0 | M15: 3 | N15: 0 | O15: 0 | P15: 1 | Q15: 0 | R15: 0 | S15: 4 | T15: 4 | U15: 0 | V15: =IFERROR(VLOOKUP($A$5,'Equipment List Template'!$1:$1048576,20,FALSE),"0") -> 4 | W15: 0
A16: 10-A1 | B16: H11 | C16: HVAC Unique System | J16: 8 | K16: 0 | L16: 0 | M16: 3 | N16: 0 | O16: 0 | P16: 1 | Q16: 0 | R16: 0 | S16: 12 | T16: 0 | U16: 0 | V16: =IFERROR(VLOOKUP($A$5,'Equipment List Template'!$1:$1048576,21,FALSE),"0") -> 0 | W16: 0
A17: 10-A1 | B17: E1 | C17: Electrical Panels | J17: 0 | K17: 0 | L17: 0 | M17: 3 | N17: 0 | O17: 0 | P17: 1 | Q17: 0 | R17: 0 | S17: 4 | T17: 4 | U17: 0 | V17: =IFERROR(VLOOKUP($A$5,'Equipment List Template'!$1:$1048576,22,FALSE),"0") -> 1 | W17: 0
A18: 10-A1 | B18: E2 | C18: Emergency Generator | J18: 0 | K18: 0 | L18: 0 | M18: 3 | N18: 0 | O18: 0 | P18: 1 | Q18: 0 | R18: 0 | S18: 4 | T18: 4 | U18: 0 | V18: =IFERROR(VLOOKUP($A$5,'Equipment List Template'!$1:$1048576,23,FALSE),"0") -> 1 | W18: 0
A19: 10-A1 | B19: E3 | C19: Motor Control Center | J19: 0 | K19: 0 | L19: 0 | M19: 4 | N19: 0 | O19: 0 | P19: 0 | Q19: 0 | R19: 0 | S19: 4 | T19: 0 | U19: 0 | V19: =IFERROR(VLOOKUP($A$5,'Equipment List Template'!$1:$1048576,24,FALSE),"0") -> 0 | W19: 0
A20: 10-A1 | B20: E4 | C20: Primary Switch (High) | J20: 8 | K20: 0 | L20: 0 | M20: 3 | N20: 0 | O20: 0 | P20: 1 | Q20: 0 | R20: 0 | S20: 12 | T20: 0 | U20: 0 | V20: =IFERROR(VLOOKUP($A$5,'Equipment List Template'!$1:$1048576,25,FALSE),"0") -> 0 | W20: 0
A21: 10-A1 | B21: E5 | C21: Primary Switch (Low) | J21: 8 | K21: 0 | L21: 0 | M21: 3 | N21: 0 | O21: 0 | P21: 1 | Q21: 0 | R21: 0 | S21: 12 | T21: 0 | U21: 0 | V21: =IFERROR(VLOOKUP($A$5,'Equipment List Template'!$1:$1048576,26,FALSE),"0") -> 0 | W21: 0
A22: 10-A1 | B22: E6 | C22: Transformer (Dry-Type) | J22: 0 | K22: 0 | L22: 0 | M22: 3 | N22: 0 | O22: 0 | P22: 1 | Q22: 0 | R22: 0 | S22: 4 | T22: 0 | U22: 0 | V22: =IFERROR(VLOOKUP($A$5,'Equipment List Template'!$1:$1048576,27,FALSE),"0") -> 0 | W22: 0
A23: 10-A1 | B23: E7 | C23: Uninterruptible Power Supply (UPS) | J23: 0 | K23: 0 | L23: 0 | M23: 0 | N23: 0 | O23: 0 | P23: 1 | Q23: 0 | R23: 0 | S23: 1 | T23: 1 | U23: 0 | V23: =IFERROR(VLOOKUP($A$5,'Equipment List Template'!$1:$1048576,28,FALSE),"0") -> 1 | W23: 0
A24: 10-A1 | B24: E8 | C24: Electrical Unique System | J24: 8 | K24: 0 | L24: 0 | M24: 3 | N24: 0 | O24: 0 | P24: 1 | Q24: 0 | R24: 0 | S24: 12 | T24: 0 | U24: 0 | V24: =IFERROR(VLOOKUP($A$5,'Equipment List Template'!$1:$1048576,29,FALSE),"0") -> 0 | W24: 0
A25: 10-A1 | B25: L1 | C25: Life Safety | J25: 0 | K25: 0 | L25: 0 | M25: 3 | N25: 0 | O25: 0 | P25: 1 | Q25: 0 | R25: 0 | S25: 4 | T25: 4 | U25: 0 | V25: =IFERROR(VLOOKUP($A$5,'Equipment List Template'!$1:$1048576,30,FALSE),"0") -> 1 | W25: =+U25*V25 -> 0
A26: 10-A1 | B26: L2 | C26: Backflow Preventor(s) | J26: 0 | K26: 0 | L26: 0 | M26: 0 | N26: 0 | O26: 0 | P26: 1 | Q26: 0 | R26: 0 | S26: 1 | T26: 1 | U26: 0 | V26: =IFERROR(VLOOKUP($A$5,'Equipment List Template'!$1:$1048576,31,FALSE),"0") -> 4 | W26: =+U26*V26 -> 0
A27: 10-A1 | B27: P1 | C27: Hot Water Boiler | J27: 8 | K27: 0 | L27: 0 | M27: 3 | N27: 0 | O27: 0 | P27: 1 | Q27: 0 | R27: 0 | S27: 12 | T27: 0 | U27: 0 | V27: =IFERROR(VLOOKUP($A$5,'Equipment List Template'!$1:$1048576,32,FALSE),"0") -> 0 | W27: 0
A28: 10-A1 | B28: P2 | C28: Condensing Water Heater | J28: 0 | K28: 0 | L28: 0 | M28: 0 | N28: 0 | O28: 0 | P28: 1 | Q28: 0 | R28: 0 | S28: 1 | T28: 0 | U28: 0 | V28: =IFERROR(VLOOKUP($A$5,'Equipment List Template'!$1:$1048576,33,FALSE),"0") -> 0 | W28: 0
A29: 10-A1 | B29: P3 | C29: Electric Water Heater | J29: 0 | K29: 0 | L29: 0 | M29: 0 | N29: 0 | O29: 0 | P29: 1 | Q29: 0 | R29: 0 | S29: 1 | T29: 0 | U29: 0 | V29: =IFERROR(VLOOKUP($A$5,'Equipment List Template'!$1:$1048576,34,FALSE),"0") -> 0 | W29: 0
A30: 10-A1 | B30: P4 | C30: Plumbing Unique System | J30: 0 | K30: 0 | L30: 0 | M30: 3 | N30: 0 | O30: 0 | P30: 1 | Q30: 0 | R30: 0 | S30: 4 | T30: 0 | U30: 0 | V30: =IFERROR(VLOOKUP($A$5,'Equipment List Template'!$1:$1048576,35,FALSE),"0") -> 0 | W30: 0
A31: 10-A1 | B31: P5 | C31: Steam System | J31: 0 | K31: 0 | L31: 0 | M31: 3 | N31: 0 | O31: 0 | P31: 1 | Q31: 0 | R31: 0 | S31: 4 | T31: 0 | U31: 0 | V31: =IFERROR(VLOOKUP($A$5,'Equipment List Template'!$1:$1048576,36,FALSE),"0") -> 0 | W31: 0
A32: 10-A1 | B32: P6 | C32: Pneumatic Compressor | J32: 11 | K32: 0 | L32: 0 | M32: 0 | N32: 0 | O32: 0 | P32: 1 | Q32: 0 | R32: 0 | S32: 12 | T32: 12 | U32: 0 | V32: =IFERROR(VLOOKUP($A$5,'Equipment List Template'!$1:$1048576,37,FALSE),"0") -> 14 | W32: 0
A33: 10-A1 | B33: R1 | C33: Rounds and Readings | D33: =IFERROR(IF(VLOOKUP($A33,'Equipment List Template'!$1:$1048576,38,FALSE)=260,248,0),0) -> 248 | E33: 0 | F33: =+E33*D33 -> 0 | G33: =IFERROR(IF(VLOOKUP($A33,'Equipment List Template'!$1:$1048576,38,FALSE)=52,40,0),0) -> 0 | H33: 0 | I33: =+H33*G33 -> 0 | J33: 12 | K33: 0 | L33: 0 | S33: 12 | T33: 12 | U33: =+R33+O33+L33+I33+F33 -> 0 | V33: 1 | W33: =+U33*V33 -> 0
A34: 10-A1 | B34: V1 | C34: Vertical Transportation | J34: 8 | K34: 0 | L34: =+K34*J34 -> 0 | M34: 3 | N34: 0 | O34: =+N34*M34 -> 0 | P34: 1 | Q34: 0 | R34: =+Q34*P34 -> 0 | S34: 12 | T34: 12 | U34: =+R34+O34+L34 -> 0 | V34: =IFERROR(VLOOKUP($A$5,'Equipment List Template'!$1:$1048576,39,FALSE),"0") -> 11 | W34: =+U34*V34 -> 0
A35: 10-A1 | B35: W1 | C35: Water Treatment | D35: =IFERROR(IF(VLOOKUP($A35,'Equipment List Template'!$1:$1048576,40,FALSE)=260,260,0),0) -> 260 | E35: 0 | F35: =+E35*D35 -> 0 | S35: 0 | T35: 0 | U35: =+R35+O35+L35+I35+F35 -> 0 | V35: 1 | W35: 0
A36: 10-A1 | B36: B1 | C36: Building Exterior / Hardscape (Monthly) | J36: 12 | K36: 0 | L36: =+K36*J36 -> 0 | S36: 12 | T36: 12 | U36: 0 | V36: 1 | W36: 0
A37: 10-A1 | B37: F1 | C37: Fountain Maintenance (Monthly) | J37: 12 | K37: 0 | L37: 0 | S37: 12 | T37: 12 | U37: 0 | V37: 1 | W37: 0
A38: 10-A1 | B38: F2 | C38: Fuel Storage Tanks (Quarterly) If applicable | M38: 4 | N38: 0 | O38: =+N38*M38 -> 0 | S38: 4 | T38: 4 | U38: 0 | V38: 1 | W38: 0
A39: 10-A1 | B39: G1 | C39: Landscape Maintenance * | G39: 40 | H39: 0 | I39: =+H39*G39 -> 0 | S39: 0 | T39: 0 | U39: 0 | V39: 1 | W39: 0
A40: 10-A1 | B40: C1 | C40: Account Management and Supervision (Monthly) | J40: 12 | K40: 0 | L40: =+K40*J40 -> 0 | S40: 12 | T40: 12 | U40: 0 | V40: 1 | W40: 0
A41: 10-A1 | B41: C2 | C41: Fee (Monthly) | J41: 12 | K41: 0 | L41: 0 | S41: 12 | T41: 12 | U41: 0 | V41: 1 | W41: 0
Q42: JCC ID | R42: =B2 -> 10-A1 | U42: Total | W42: =SUM(W6:W41) -> 0
B43: S1 | C43: Snow Removal - (crew hourly rate) | D43: 0 | U43: Total # of PM's | W43: =SUM(T5:T41) -> 154
B44: I1 | C44: Unclogging Blocked Toilet - In-custody cell (labor-only) | D44: 0
B45: I2 | C45: Unclogging Blocked Toilet - Public/Court Staff (labor-only) | D45: 0
B46: Hr 1 | C46: Hourly Rate (All Labor categories) | D46: 0
B47: M1 | C47: Markup on Materials (Percentage) | D47: 0
B48: Sub1 | C48: Markup on Subcontractors/Third-Parties (Percentage) | D48: 0
B50: * Landscape Maintenance varies by location on the number of weeks per year it can be preformed. For the purpose of the RFP, all facilities are pre-established at 40 weeks of service. The actual amount paid by facility will be based upon the actual weeks that service has been performed, validated and invoiced.

Sheet 10-O1
B1: JCC ID | C1: Facility Name | D1: Address | F1: City / Town | H1: Zip Code | J1: County | L1: Region | N1: RFP | P1: Proposer
B2: 10-O1 | C2: =IFERROR(VLOOKUP($B$2,'Equipment List Template'!$1:$1048576,2,FALSE),"") -> B.F. Sisk Courthouse | D2: =IFERROR(VLOOKUP($B$2,'Equipment List Template'!$1:$1048576,3,FALSE),"") -> 1130 O Street | F2: =IFERROR(VLOOKUP($B$2,'Equipment List Template'!$1:$1048576,4,FALSE),"") -> Fresno | H2: =IFERROR(VLOOKUP($B$2,'Equipment List Template'!$1:$1048576,5,FALSE),"") -> 93721 | J2: =IFERROR(VLOOKUP($B$2,'Equipment List Template'!$1:$1048576,6,FALSE),"") -> Fresno | L2: =IFERROR(VLOOKUP($B$2,'Equipment List Template'!$1:$1048576,7,FALSE),"") -> NCRO | N2: ='Summary Pricing Sheet'!B2 -> RFP-FS-SP-2019-03-JP | P2: ='Summary Pricing Sheet'!B3 -> TBD
D3: Daily Activity | G3: Weekly Activity | J3: Monthly Activity | M3: Quarterly Activity | P3: Annual Activity | U3: Summary | AG3: System | AH3: HVAC | AS3: Electrical | BA3: Plumbing | BE3: Building Systems | BP3: Corporate | BT3: Fixed Price - Facility Total Annual Cost Year 1
B4: System ID | C4: Subsystem | D4: Quantity | E4: Cost | F4: Daily Total | G4: Quantity | H4: Cost | I4: Weekly Total | J4: Monthly Quantity | K4: Cost | L4: Monthly Total | M4: Quarterly Quantity | N4: Cost | O4: Quarterly Total | P4: Annual Quantity | Q4: Cost | R4: Annual PM Total | T4: Number of PM's | U4: Annual Cost | V4: Quantity | W4: Total Annual Cost | AG4: Subsystem | AH4: Air Cooled DX (Package / Split System) | AI4: Air Handling Unit (Air-cooled DX) | AJ4: Air-Cooled Chiller | AK4: Centrifugal Chiller | AL4: Cooling Tower (Induced Draft) | AM4: Ice Chiller | AN4: Multitask (Geothermal) | AO4: Water Source Heat Pump | AP4: Fan Coil System | AQ4: Exhaust Fan | AR4: HVAC Unique System | AS4: Electrical Panels | AT4: Emergency Generator | AU4: Motor Control Center | AV4: Primary Switch (High) | AW4: Primary Switch (Low) | AX4: Transformer (Dry-Type) | AY4: Uninterruptible Power Supply (UPS) | AZ4: Electrical Unique System | BA4: Hot Water Boiler | BB4: Condensing Water Heater | BC4: Electric Water Heater | BD4: Plumbing Unique System | BE4: Steam System | BF4: Pneumatic Compressor | BG4: Vertical Transportation | BH4: Life Safety | BI4: Backflow Preventor | BJ4: Rounds and Readings | BK4: Access Doors, Gates, Sally Port | BL4: Water Treatment | BM4: Building Exterior / Hardscape (Monthly) | BN4: Fountain Maintenance (Monthly) | BO4: Fuel Storage Tanks (Quarterly) If applicable | BP4: Landscape Maintenance * | BQ4: Account Management and Supervision (Monthly) | BR4: Fee (Monthly) | BV4: Snow Removal - (crew hourly rate) | BW4: Unclogging Blocked Toilet - In-custody holding cell (labor) | BX4: Unclogging Blocked Toilet - Public/Court Staff (labor) | BY4: Hourly Rate | BZ4: Markup on Materials | CA4: Markup on Subcontractors/Third-Parties
A5: =$B$2 -> 10-O1 | B5: A1 | C5: Access Doors, Gates, Sally Port | J5: 11 | K5: 0 | L5: =+K5*J5 -> 0 | M5: 0 | N5: 0 | O5: =+N5*M5 -> 0 | P5: 1 | Q5: 0 | R5: =+Q5*P5 -> 0 | S5: 12 | T5: =IF($V5>0,$S5,0) -> 12 | U5: =+R5+O5+L5+I5+F5 -> 0 | V5: =IFERROR(VLOOKUP($A$5,'Equipment List Template'!$1:$1048576,10,FALSE),"0") -> 1 | W5: =+U5*V5 -> 0 | Z5: JCC ID | AA5: Facility Name | AB5: Address | AC5: City / Town | AD5: County | AE5: Region | AF5: Region | AG5: System ID | AH5: H1 | AI5: H2 | AJ5: H3 | AK5: H4 | AL5: H5 | AM5: H6 | AN5: H7 | AO5: H8 | AP5: H9 | AQ5: H10 | AR5: H11 | AS5: E1 | AT5: E2 | AU5: E3 | AV5: E4 | AW5: E5 | AX5: E6 | AY5: E7 | AZ5: E8 | BA5: P1 | BB5: P2 | BC5: P3 | BD5: P4 | BE5: P5 | BF5: P6 | BG5: V1 | BH5: L1 | BI5: L2 | BJ5: R1 | BK5: A1 | BL5: W1 | BM5: B1 | BN5: F1 | BO5: F2 | BP5: G1 | BQ5: C1 | BR5: C2 | BV5: S1 | BW5: I1 | BX5: I2 | BY5: Hr 1 | BZ5: M1 | CA5: Sub1
A6: =$B$2 -> 10-O1 | B6: H1 | C6: Air Cooled DX (Package / Split System) | J6: 0 | K6: 0 | L6: =+K6*J6 -> 0 | M6: 3 | N6: 0 | O6: =+N6*M6 -> 0 | P6: 1 | Q6: 0 | R6: =+Q6*P6 -> 0 | S6: 4 | T6: =IF($V6>0,$S6,0) -> 4 | U6: =+R6+O6+L6+I6+F6 -> 0 | V6: =IFERROR(VLOOKUP($A$5,'Equipment List Template'!$1:$1048576,11,FALSE),"0") -> 15 | W6: =+U6*V6 -> 0 | Z6: =B2 -> 10-O1 | AA6: =IFERROR(VLOOKUP($Z$6,'Equipment List Template'!$1:$1048576,2,FALSE),"") -> B.F. Sisk Courthouse | AB6: =IFERROR(VLOOKUP($Z$6,'Equipment List Template'!$1:$1048576,3,FALSE),"") -> 1130 O Street | AC6: =IFERROR(VLOOKUP($Z$6,'Equipment List Template'!$1:$1048576,4,FALSE),"") -> Fresno | AD6: =IFERROR(VLOOKUP($Z$6,'Equipment List Template'!$1:$1048576,5,FALSE),"") -> 93721 | AE6: =IFERROR(VLOOKUP($Z$6,'Equipment List Template'!$1:$1048576,6,FALSE),"") -> Fresno | AF6: =IFERROR(VLOOKUP($Z$6,'Equipment List Template'!$1:$1048576,7,FALSE),"") -> NCRO | AH6: =+$W5 -> 0 | AI6: =+$W6 -> 0 | AJ6: =+$W7 -> 0 | AK6: =+$W8 -> 0 | AL6: =+$W9 -> 0 | AM6: =+$W10 -> 0 | AN6: =+$W11 -> 0 | AO6: =+$W12 -> 0 | AP6: =+$W13 -> 0 | AQ6: =+$W14 -> 0 | AR6: =+$W15 -> 0 | AS6: =+$W16 -> 0 | AT6: =+$W17 -> 0 | AU6: =+$W18 -> 0 | AV6: =+$W19 -> 0 | AW6: =+$W20 -> 0 | AX6: =+$W21 -> 0 | AY6: =+$W22 -> 0 | AZ6: =+$W23 -> 0 | BA6: =+$W24 -> 0 | BB6: =+$W25 -> 0 | BC6: =+$W26 -> 0 | BD6: =+$W27 -> 0 | BE6: =+$W28 -> 0 | BF6: =+$W29 -> 0 | BG6: =+$W30 -> 0 | BH6: =+$W31 -> 0 | BI6: =+$W32 -> 0 | BJ6: =+$W33 -> 0 | BK6: =+$W34 -> 0 | BL6: =+$W35 -> 0 | BM6: =+$W36 -> 0 | BN6: =+$W37 -> 0 | BO6: =+$W38 -> 0 | BP6: =+$W39 -> 0 | BQ6: =+$W40 -> 0 | BR6: =+$W41 -> 0 | BT6: =+W42 -> 0 | BV6: =+D43 -> 0 | BW6: =+D44 -> 0 | BX6: =+D45 -> 0 | BY6: =+D46 -> 0 | BZ6: =+D47 -> 0 | CA6: =+D48 -> 0
A7: 10-O1 | B7: H2 | C7: Air Handling Unit (Air-cooled DX) | J7: 0 | K7: 0 | L7: 0 | M7: 3 | N7: 0 | O7: 0 | P7: 1 | Q7: 0 | R7: 0 | S7: 4 | T7: 4 | U7: 0 | V7: =IFERROR(VLOOKUP($A$5,'Equipment List Template'!$1:$1048576,12,FALSE),"0") -> 11 | W7: =+U7*V7 -> 0
A8: 10-O1 | B8: H3 | C8: Air-Cooled Chiller | G8: 40 | H8: 0 | I8: =+H8*G8 -> 0 | J8: 8 | K8: 0 | L8: 0 | M8: 3 | N8: 0 | O8: 0 | P8: 1 | Q8: 0 | R8: 0 | S8: 12 | T8: 0 | U8: 0 | V8: =IFERROR(VLOOKUP($A$5,'Equipment List Template'!$1:$1048576,13,FALSE),"0") -> 0 | W8: 0
A9: 10-O1 | B9: H4 | C9: Centrifugal Chiller | J9: 11 | K9: 0 | L9: 0 | M9: 0 | N9: 0 | O9: 0 | P9: 1 | Q9: 0 | R9: 0 | S9: 12 | T9: 12 | U9: 0 | V9: =IFERROR(VLOOKUP($A$5,'Equipment List Template'!$1:$1048576,14,FALSE),"0") -> 2 | W9: 0
A10: 10-O1 | B10: H5 | C10: Cooling Tower (Induced Draft) | J10: 8 | K10: 0 | L10: 0 | M10: 3 | N10: 0 | O10: 0 | P10: 1 | Q10: 0 | R10: 0 | S10: 12 | T10: 12 | U10: 0 | V10: =IFERROR(VLOOKUP($A$5,'Equipment List Template'!$1:$1048576,15,FALSE),"0") -> 2 | W10: 0
A11: 10-O1 | B11: H6 | C11: Ice Chiller | J11: 8 | K11: 0 | L11: 0 | M11: 3 | N11: 0 | O11: 0 | P11: 1 | Q11: 0 | R11: 0 | S11: 12 | T11: 0 | U11: 0 | V11: =IFERROR(VLOOKUP($A$5,'Equipment List Template'!$1:$1048576,16,FALSE),"0") -> 0 | W11: 0
A12: 10-O1 | B12: H7 | C12: MultiStack (Geothermal) | J12: 0 | K12: 0 | L12: 0 | M12: 0 | N12: 0 | O12: 0 | P12: 1 | Q12: 0 | R12: 0 | S12: 1 | T12: 0 | U12: 0 | V12: =IFERROR(VLOOKUP($A$5,'Equipment List Template'!$1:$1048576,17,FALSE),"0") -> 0 | W12: 0
A13: 10-O1 | B13: H8 | C13: Water Source Heat Pump | J13: 8 | K13: 0 | L13: 0 | M13: 3 | N13: 0 | O13: 0 | P13: 1 | Q13: 0 | R13: 0 | S13: 12 | T13: 0 | U13: 0 | V13: =IFERROR(VLOOKUP($A$5,'Equipment List Template'!$1:$1048576,18,FALSE),"0") -> 0 | W13: 0
A14: 10-O1 | B14: H9 | C14: Fan Coil System | J14: 0 | K14: 0 | L14: 0 | M14: 3 | N14: 0 | O14: 0 | P14: 1 | Q14: 0 | R14: 0 | S14: 4 | T14: 4 | U14: 0 | V14: =IFERROR(VLOOKUP($A$5,'Equipment List Template'!$1:$1048576,19,FALSE),"0") -> 1 | W14: 0
A15: 10-O1 | B15: H10 | C15: Exhaust Fan | J15: 0 | K15: 0 | L15: 0 | M15: 3 | N15: 0 | O15: 0 | P15: 1 | Q15: 0 | R15: 0 | S15: 4 | T15: 4 | U15: 0 | V15: =IFERROR(VLOOKUP($A$5,'Equipment List Template'!$1:$1048576,20,FALSE),"0") -> 29 | W15: 0
A16: 10-O1 | B16: H11 | C16: HVAC Unique System | J16: 8 | K16: 0 | L16: 0 | M16: 3 | N16: 0 | O16: 0 | P16: 1 | Q16: 0 | R16: 0 | S16: 12 | T16: 0 | U16: 0 | V16: =IFERROR(VLOOKUP($A$5,'Equipment List Template'!$1:$1048576,21,FALSE),"0") -> 0 | W16: 0
A17: 10-O1 | B17: E1 | C17: Electrical Panels | J17: 0 | K17: 0 | L17: 0 | M17: 3 | N17: 0 | O17: 0 | P17: 1 | Q17: 0 | R17: 0 | S17: 4 | T17: 4 | U17: 0 | V17: =IFERROR(VLOOKUP($A$5,'Equipment List Template'!$1:$1048576,22,FALSE),"0") -> 3 | W17: 0
A18: 10-O1 | B18: E2 | C18: Emergency Generator | J18: 0 | K18: 0 | L18: 0 | M18: 3 | N18: 0 | O18: 0 | P18: 1 | Q18: 0 | R18: 0 | S18: 4 | T18: 4 | U18: 0 | V18: =IFERROR(VLOOKUP($A$5,'Equipment List Template'!$1:$1048576,23,FALSE),"0") -> 1 | W18: 0
A19: 10-O1 | B19: E3 | C19: Motor Control Center | J19: 0 | K19: 0 | L19: 0 | M19: 4 | N19: 0 | O19: 0 | P19: 0 | Q19: 0 | R19: 0 | S19: 4 | T19: 4 | U19: 0 | V19: =IFERROR(VLOOKUP($A$5,'Equipment List Template'!$1:$1048576,24,FALSE),"0") -> 1 | W19: 0
A20: 10-O1 | B20: E4 | C20: Primary Switch (High) | J20: 8 | K20: 0 | L20: 0 | M20: 3 | N20: 0 | O20: 0 | P20: 1 | Q20: 0 | R20: 0 | S20: 12 | T20: 0 | U20: 0 | V20: =IFERROR(VLOOKUP($A$5,'Equipment List Template'!$1:$1048576,25,FALSE),"0") -> 0 | W20: 0
A21: 10-O1 | B21: E5 | C21: Primary Switch (Low) | J21: 8 | K21: 0 | L21: 0 | M21: 3 | N21: 0 | O21: 0 | P21: 1 | Q21: 0 | R21: 0 | S21: 12 | T21: 0 | U21: 0 | V21: =IFERROR(VLOOKUP($A$5,'Equipment List Template'!$1:$1048576,26,FALSE),"0") -> 0 | W21: 0
A22: 10-O1 | B22: E6 | C22: Transformer (Dry-Type) | J22: 0 | K22: 0 | L22: 0 | M22: 3 | N22: 0 | O22: 0 | P22: 1 | Q22: 0 | R22: 0 | S22: 4 | T22: 4 | U22: 0 | V22: =IFERROR(VLOOKUP($A$5,'Equipment List Template'!$1:$1048576,27,FALSE),"0") -> 7 | W22: 0
A23: 10-O1 | B23: E7 | C23: Uninterruptible Power Supply (UPS) | J23: 0 | K23: 0 | L23: 0 | M23: 0 | N23: 0 | O23: 0 | P23: 1 | Q23: 0 | R23: 0 | S23: 1 | T23: 1 | U23: 0 | V23: =IFERROR(VLOOKUP($A$5,'Equipment List Template'!$1:$1048576,28,FALSE),"0") -> 2 | W23: 0
A24: 10-O1 | B24: E8 | C24: Electrical Unique System | J24: 8 | K24: 0 | L24: 0 | M24: 3 | N24: 0 | O24: 0 | P24: 1 | Q24: 0 | R24: 0 | S24: 12 | T24: 0 | U24: 0 | V24: =IFERROR(VLOOKUP($A$5,'Equipment List Template'!$1:$1048576,29,FALSE),"0") -> 0 | W24: 0
A25: 10-O1 | B25: L1 | C25: Life Safety | J25: 0 | K25: 0 | L25: 0 | M25: 3 | N25: 0 | O25: 0 | P25: 1 | Q25: 0 | R25: 0 | S25: 4 | T25: 4 | U25: 0 | V25: =IFERROR(VLOOKUP($A$5,'Equipment List Template'!$1:$1048576,30,FALSE),"0") -> 1 | W25: =+U25*V25 -> 0
A26: 10-O1 | B26: L2 | C26: Backflow Preventor(s) | J26: 0 | K26: 0 | L26: 0 | M26: 0 | N26: 0 | O26: 0 | P26: 1 | Q26: 0 | R26: 0 | S26: 1 | T26: 1 | U26: 0 | V26: =IFERROR(VLOOKUP($A$5,'Equipment List Template'!$1:$1048576,31,FALSE),"0") -> 2 | W26: =+U26*V26 -> 0
A27: 10-O1 | B27: P1 | C27: Hot Water Boiler | J27: 8 | K27: 0 | L27: 0 | M27: 3 | N27: 0 | O27: 0 | P27: 1 | Q27: 0 | R27: 0 | S27: 12 | T27: 12 | U27: 0 | V27: =IFERROR(VLOOKUP($A$5,'Equipment List Template'!$1:$1048576,32,FALSE),"0") -> 3 | W27: 0
A28: 10-O1 | B28: P2 | C28: Condensing Water Heater | J28: 0 | K28: 0 | L28: 0 | M28: 0 | N28: 0 | O28: 0 | P28: 1 | Q28: 0 | R28: 0 | S28: 1 | T28: 0 | U28: 0 | V28: =IFERROR(VLOOKUP($A$5,'Equipment List Template'!$1:$1048576,33,FALSE),"0") -> 0 | W28: 0
A29: 10-O1 | B29: P3 | C29: Electric Water Heater | J29: 0 | K29: 0 | L29: 0 | M29: 0 | N29: 0 | O29: 0 | P29: 1 | Q29: 0 | R29: 0 | S29: 1 | T29: 0 | U29: 0 | V29: =IFERROR(VLOOKUP($A$5,'Equipment List Template'!$1:$1048576,34,FALSE),"0") -> 0 | W29: 0
A30: 10-O1 | B30: P4 | C30: Plumbing Unique System | J30: 0 | K30: 0 | L30: 0 | M30: 3 | N30: 0 | O30: 0 | P30: 1 | Q30: 0 | R30: 0 | S30: 4 | T30: 0 | U30: 0 | V30: =IFERROR(VLOOKUP($A$5,'Equipment List Template'!$1:$1048576,35,FALSE),"0") -> 0 | W30: 0
A31: 10-O1 | B31: P5 | C31: Steam System | J31: 0 | K31: 0 | L31: 0 | M31: 3 | N31: 0 | O31: 0 | P31: 1 | Q31: 0 | R31: 0 | S31: 4 | T31: 0 | U31: 0 | V31: =IFERROR(VLOOKUP($A$5,'Equipment List Template'!$1:$1048576,36,FALSE),"0") -> 0 | W31: 0
A32: 10-O1 | B32: P6 | C32: Pneumatic Compressor | J32: 11 | K32: 0 | L32: 0 | M32: 0 | N32: 0 | O32: 0 | P32: 1 | Q32: 0 | R32: 0 | S32: 12 | T32: 0 | U32: 0 | V32: =IFERROR(VLOOKUP($A$5,'Equipment List Template'!$1:$1048576,37,FALSE),"0") -> 0 | W32: 0
A33: 10-O1 | B33: R1 | C33: Rounds and Readings | D33: =IFERROR(IF(VLOOKUP($A33,'Equipment List Template'!$1:$1048576,38,FALSE)=260,248,0),0) -> 248 | E33: 0 | F33: =+E33*D33 -> 0 | G33: =IFERROR(IF(VLOOKUP($A33,'Equipment List Template'!$1:$1048576,38,FALSE)=52,40,0),0) -> 0 | H33: 0 | I33: =+H33*G33 -> 0 | J33: 12 | K33: 0 | L33: 0 | S33: 12 | T33: 12 | U33: =+R33+O33+L33+I33+F33 -> 0 | V33: 1 | W33: =+U33*V33 -> 0
A34: 10-O1 | B34: V1 | C34: Vertical Transportation | J34: 8 | K34: 0 | L34: =+K34*J34 -> 0 | M34: 3 | N34: 0 | O34: =+N34*M34 -> 0 | P34: 1 | Q34: 0 | R34: =+Q34*P34 -> 0 | S34: 12 | T34: 12 | U34: =+R34+O34+L34 -> 0 | V34: =IFERROR(VLOOKUP($A$5,'Equipment List Template'!$1:$1048576,39,FALSE),"0") -> 8 | W34: =+U34*V34 -> 0
A35: 10-O1 | B35: W1 | C35: Water Treatment | D35: =IFERROR(IF(VLOOKUP($A35,'Equipment List Template'!$1:$1048576,40,FALSE)=260,260,0),0) -> 260 | E35: 0 | F35: =+E35*D35 -> 0 | S35: 0 | T35: 0 | U35: =+R35+O35+L35+I35+F35 -> 0 | V35: 1 | W35: 0
A36: 10-O1 | B36: B1 | C36: Building Exterior / Hardscape (Monthly) | J36: 12 | K36: 0 | L36: =+K36*J36 -> 0 | S36: 12 | T36: 12 | U36: 0 | V36: 1 | W36: 0
A37: 10-O1 | B37: F1 | C37: Fountain Maintenance (Monthly) | J37: 12 | K37: 0 | L37: 0 | S37: 12 | T37: 12 | U37: 0 | V37: 1 | W37: 0
A38: 10-O1 | B38: F2 | C38: Fuel Storage Tanks (Quarterly) If applicable | M38: 4 | N38: 0 | O38: =+N38*M38 -> 0 | S38: 4 | T38: 4 | U38: 0 | V38: 1 | W38: 0
A39: 10-O1 | B39: G1 | C39: Landscape Maintenance * | G39: 40 | H39: 0 | I39: =+H39*G39 -> 0 | S39: 0 | T39: 0 | U39: 0 | V39: 1 | W39: 0
A40: 10-O1 | B40: C1 | C40: Account Management and Supervision (Monthly) | J40: 12 | K40: 0 | L40: =+K40*J40 -> 0 | S40: 12 | T40: 12 | U40: 0 | V40: 1 | W40: 0
A41: 10-O1 | B41: C2 | C41: Fee (Monthly) | J41: 12 | K41: 0 | L41: 0 | S41: 12 | T41: 12 | U41: 0 | V41: 1 | W41: 0
Q42: JCC ID | R42: =B2 -> 10-O1 | U42: Total | W42: =SUM(W6:W41) -> 0
B43: S1 | C43: Snow Removal - (crew hourly rate) | D43: 0 | U43: Total # of PM's | W43: =SUM(T5:T41) -> 162
B44: I1 | C44: Unclogging Blocked Toilet - In-custody cell (labor-only) | D44: 0
B45: I2 | C45: Unclogging Blocked Toilet - Public/Court Staff (labor-only) | D45: 0
B46: Hr 1 | C46: Hourly Rate (All Labor categories) | D46: 0
B47: M1 | C47: Markup on Materials (Percentage) | D47: 0
B48: Sub1 | C48: Markup on Subcontractors/Third-Parties (Percentage) | D48: 0
B50: * Landscape Maintenance varies by location on the number of weeks per year it can be preformed. For the purpose of the RFP, all facilities are pre-established at 40 weeks of service. The actual amount paid by facility will be based upon the actual weeks that service has been performed, validated and invoiced.

Sheet 16-A5
B1: JCC ID | C1: Facility Name | D1: Address | F1: City / Town | H1: Zip Code | J1: County | L1: Region | N1: RFP | P1: Proposer
B2: 16-A5 | C2: =IFERROR(VLOOKUP($B$2,'Equipment List Template'!$1:$1048576,2,FALSE),"") -> Hanford Courthouse | D2: =IFERROR(VLOOKUP($B$2,'Equipment List Template'!$1:$1048576,3,FALSE),"") -> 1640 Kings County Drive | F2: =IFERROR(VLOOKUP($B$2,'Equipment List Template'!$1:$1048576,4,FALSE),"") -> Hanford | H2: =IFERROR(VLOOKUP($B$2,'Equipment List Template'!$1:$1048576,5,FALSE),"") -> 93230 | J2: =IFERROR(VLOOKUP($B$2,'Equipment List Template'!$1:$1048576,6,FALSE),"") -> Kings | L2: =IFERROR(VLOOKUP($B$2,'Equipment List Template'!$1:$1048576,7,FALSE),"") -> NCRO | N2: ='Summary Pricing Sheet'!B2 -> RFP-FS-SP-2019-03-JP | P2: ='Summary Pricing Sheet'!B3 -> TBD
D3: Daily Activity | G3: Weekly Activity | J3: Monthly Activity | M3: Quarterly Activity | P3: Annual Activity | U3: Summary | AG3: System | AH3: HVAC | AS3: Electrical | BA3: Plumbing | BE3: Building Systems | BP3: Corporate | BT3: Fixed Price - Facility Total Annual Cost Year 1
B4: System ID | C4: Subsystem | D4: Quantity | E4: Cost | F4: Daily Total | G4: Quantity | H4: Cost | I4: Weekly Total | J4: Monthly Quantity | K4: Cost | L4: Monthly Total | M4: Quarterly Quantity | N4: Cost | O4: Quarterly Total | P4: Annual Quantity | Q4: Cost | R4: Annual PM Total | T4: Number of PM's | U4: Annual Cost | V4: Quantity | W4: Total Annual Cost | AG4: Subsystem | AH4: Air Cooled DX (Package / Split System) | AI4: Air Handling Unit (Air-cooled DX) | AJ4: Air-Cooled Chiller | AK4: Centrifugal Chiller | AL4: Cooling Tower (Induced Draft) | AM4: Ice Chiller | AN4: Multitask (Geothermal) | AO4: Water Source Heat Pump | AP4: Fan Coil System | AQ4: Exhaust Fan | AR4: HVAC Unique System | AS4: Electrical Panels | AT4: Emergency Generator | AU4: Motor Control Center | AV4: Primary Switch (High) | AW4: Primary Switch (Low) | AX4: Transformer (Dry-Type) | AY4: Uninterruptible Power Supply (UPS) | AZ4: Electrical Unique System | BA4: Hot Water Boiler | BB4: Condensing Water Heater | BC4: Electric Water Heater | BD4: Plumbing Unique System | BE4: Steam System | BF4: Pneumatic Compressor | BG4: Vertical Transportation | BH4: Life Safety | BI4: Backflow Preventor | BJ4: Rounds and Readings | BK4: Access Doors, Gates, Sally Port | BL4: Water Treatment | BM4: Building Exterior / Hardscape (Monthly) | BN4: Fountain Maintenance (Monthly) | BO4: Fuel Storage Tanks (Quarterly) If applicable | BP4: Landscape Maintenance * | BQ4: Account Management and Supervision (Monthly) | BR4: Fee (Monthly) | BV4: Snow Removal - (crew hourly rate) | BW4: Unclogging Blocked Toilet - In-custody holding cell (labor) | BX4: Unclogging Blocked Toilet - Public/Court Staff (labor) | BY4: Hourly Rate | BZ4: Markup on Materials | CA4: Markup on Subcontractors/Third-Parties
A5: =$B$2 -> 16-A5 | B5: A1 | C5: Access Doors, Gates, Sally Port | J5: 11 | K5: 0 | L5: =+K5*J5 -> 0 | M5: 0 | N5: 0 | O5: =+N5*M5 -> 0 | P5: 1 | Q5: 0 | R5: =+Q5*P5 -> 0 | S5: 12 | T5: =IF($V5>0,$S5,0) -> 12 | U5: =+R5+O5+L5+I5+F5 -> 0 | V5: =IFERROR(VLOOKUP($A$5,'Equipment List Template'!$1:$1048576,10,FALSE),"0") -> 1 | W5: =+U5*V5 -> 0 | Z5: JCC ID | AA5: Facility Name | AB5: Address | AC5: City / Town | AD5: County | AE5: Region | AF5: Region | AG5: System ID | AH5: H1 | AI5: H2 | AJ5: H3 | AK5: H4 | AL5: H5 | AM5: H6 | AN5: H7 | AO5: H8 | AP5: H9 | AQ5: H10 | AR5: H11 | AS5: E1 | AT5: E2 | AU5: E3 | AV5: E4 | AW5: E5 | AX5: E6 | AY5: E7 | AZ5: E8 | BA5: P1 | BB5: P2 | BC5: P3 | BD5: P4 | BE5: P5 | BF5: P6 | BG5: V1 | BH5: L1 | BI5: L2 | BJ5: R1 | BK5: A1 | BL5: W1 | BM5: B1 | BN5: F1 | BO5: F2 | BP5: G1 | BQ5: C1 | BR5: C2 | BV5: S1 | BW5: I1 | BX5: I2 | BY5: Hr 1 | BZ5: M1 | CA5: Sub1
A6: =$B$2 -> 16-A5 | B6: H1 | C6: Air Cooled DX (Package / Split System) | J6: 0 | K6: 0 | L6: =+K6*J6 -> 0 | M6: 3 | N6: 0 | O6: =+N6*M6 -> 0 | P6: 1 | Q6: 0 | R6: =+Q6*P6 -> 0 | S6: 4 | T6: =IF($V6>0,$S6,0) -> 4 | U6: =+R6+O6+L6+I6+F6 -> 0 | V6: =IFERROR(VLOOKUP($A$5,'Equipment List Template'!$1:$1048576,11,FALSE),"0") -> 29 | W6: =+U6*V6 -> 0 | Z6: =B2 -> 16-A5 | AA6: =IFERROR(VLOOKUP($Z$6,'Equipment List Template'!$1:$1048576,2,FALSE),"") -> Hanford Courthouse | AB6: =IFERROR(VLOOKUP($Z$6,'Equipment List Template'!$1:$1048576,3,FALSE),"") -> 1640 Kings County Drive | AC6: =IFERROR(VLOOKUP($Z$6,'Equipment List Template'!$1:$1048576,4,FALSE),"") -> Hanford | AD6: =IFERROR(VLOOKUP($Z$6,'Equipment List Template'!$1:$1048576,5,FALSE),"") -> 93230 | AE6: =IFERROR(VLOOKUP($Z$6,'Equipment List Template'!$1:$1048576,6,FALSE),"") -> Kings | AF6: =IFERROR(VLOOKUP($Z$6,'Equipment List Template'!$1:$1048576,7,FALSE),"") -> NCRO | AH6: =+$W5 -> 0 | AI6: =+$W6 -> 0 | AJ6: =+$W7 -> 0 | AK6: =+$W8 -> 0 | AL6: =+$W9 -> 0 | AM6: =+$W10 -> 0 | AN6: =+$W11 -> 0 | AO6: =+$W12 -> 0 | AP6: =+$W13 -> 0 | AQ6: =+$W14 -> 0 | AR6: =+$W15 -> 0 | AS6: =+$W16 -> 0 | AT6: =+$W17 -> 0 | AU6: =+$W18 -> 0 | AV6: =+$W19 -> 0 | AW6: =+$W20 -> 0 | AX6: =+$W21 -> 0 | AY6: =+$W22 -> 0 | AZ6: =+$W23 -> 0 | BA6: =+$W24 -> 0 | BB6: =+$W25 -> 0 | BC6: =+$W26 -> 0 | BD6: =+$W27 -> 0 | BE6: =+$W28 -> 0 | BF6: =+$W29 -> 0 | BG6: =+$W30 -> 0 | BH6: =+$W31 -> 0 | BI6: =+$W32 -> 0 | BJ6: =+$W33 -> 0 | BK6: =+$W34 -> 0 | BL6: =+$W35 -> 0 | BM6: =+$W36 -> 0 | BN6: =+$W37 -> 0 | BO6: =+$W38 -> 0 | BP6: =+$W39 -> 0 | BQ6: =+$W40 -> 0 | BR6: =+$W41 -> 0 | BT6: =+W42 -> 0 | BV6: =+D43 -> 0 | BW6: =+D44 -> 0 | BX6: =+D45 -> 0 | BY6: =+D46 -> 0 | BZ6: =+D47 -> 0 | CA6: =+D48 -> 0
A7: 16-A5 | B7: H2 | C7: Air Handling Unit (Air-cooled DX) | J7: 0 | K7: 0 | L7: 0 | M7: 3 | N7: 0 | O7: 0 | P7: 1 | Q7: 0 | R7: 0 | S7: 4 | T7: 4 | U7: 0 | V7: =IFERROR(VLOOKUP($A$5,'Equipment List Template'!$1:$1048576,12,FALSE),"0") -> 8 | W7: =+U7*V7 -> 0
A8: 16-A5 | B8: H3 | C8: Air-Cooled Chiller | G8: 40 | H8: 0 | I8: =+H8*G8 -> 0 | J8: 8 | K8: 0 | L8: 0 | M8: 3 | N8: 0 | O8: 0 | P8: 1 | Q8: 0 | R8: 0 | S8: 12 | T8: 0 | U8: 0 | V8: =IFERROR(VLOOKUP($A$5,'Equipment List Template'!$1:$1048576,13,FALSE),"0") -> 0 | W8: 0
A9: 16-A5 | B9: H4 | C9: Centrifugal Chiller | J9: 11 | K9: 0 | L9: 0 | M9: 0 | N9: 0 | O9: 0 | P9: 1 | Q9: 0 | R9: 0 | S9: 12 | T9: 12 | U9: 0 | V9: =IFERROR(VLOOKUP($A$5,'Equipment List Template'!$1:$1048576,14,FALSE),"0") -> 2 | W9: 0
A10: 16-A5 | B10: H5 | C10: Cooling Tower (Induced Draft) | J10: 8 | K10: 0 | L10: 0 | M10: 3 | N10: 0 | O10: 0 | P10: 1 | Q10: 0 | R10: 0 | S10: 12 | T10: 12 | U10: 0 | V10: =IFERROR(VLOOKUP($A$5,'Equipment List Template'!$1:$1048576,15,FALSE),"0") -> 2 | W10: 0
A11: 16-A5 | B11: H6 | C11: Ice Chiller | J11: 8 | K11: 0 | L11: 0 | M11: 3 | N11: 0 | O11: 0 | P11: 1 | Q11: 0 | R11: 0 | S11: 12 | T11: 0 | U11: 0 | V11: =IFERROR(VLOOKUP($A$5,'Equipment List Template'!$1:$1048576,16,FALSE),"0") -> 0 | W11: 0
A12: 16-A5 | B12: H7 | C12: MultiStack (Geothermal) | J12: 0 | K12: 0 | L12: 0 | M12: 0 | N12: 0 | O12: 0 | P12: 1 | Q12: 0 | R12: 0 | S12: 1 | T12: 0 | U12: 0 | V12: =IFERROR(VLOOKUP($A$5,'Equipment List Template'!$1:$1048576,17,FALSE),"0") -> 0 | W12: 0
A13: 16-A5 | B13: H8 | C13: Water Source Heat Pump | J13: 8 | K13: 0 | L13: 0 | M13: 3 | N13: 0 | O13: 0 | P13: 1 | Q13: 0 | R13: 0 | S13: 12 | T13: 12 | U13: 0 | V13: =IFERROR(VLOOKUP($A$5,'Equipment List Template'!$1:$1048576,18,FALSE),"0") -> 11 | W13: 0
A14: 16-A5 | B14: H9 | C14: Fan Coil System | J14: 0 | K14: 0 | L14: 0 | M14: 3 | N14: 0 | O14: 0 | P14: 1 | Q14: 0 | R14: 0 | S14: 4 | T14: 4 | U14: 0 | V14: =IFERROR(VLOOKUP($A$5,'Equipment List Template'!$1:$1048576,19,FALSE),"0") -> 11 | W14: 0
A15: 16-A5 | B15: H10 | C15: Exhaust Fan | J15: 0 | K15: 0 | L15: 0 | M15: 3 | N15: 0 | O15: 0 | P15: 1 | Q15: 0 | R15: 0 | S15: 4 | T15: 4 | U15: 0 | V15: =IFERROR(VLOOKUP($A$5,'Equipment List Template'!$1:$1048576,20,FALSE),"0") -> 6 | W15: 0
A16: 16-A5 | B16: H11 | C16: HVAC Unique System | J16: 8 | K16: 0 | L16: 0 | M16: 3 | N16: 0 | O16: 0 | P16: 1 | Q16: 0 | R16: 0 | S16: 12 | T16: 0 | U16: 0 | V16: =IFERROR(VLOOKUP($A$5,'Equipment List Template'!$1:$1048576,21,FALSE),"0") -> 0 | W16: 0
A17: 16-A5 | B17: E1 | C17: Electrical Panels | J17: 0 | K17: 0 | L17: 0 | M17: 3 | N17: 0 | O17: 0 | P17: 1 | Q17: 0 | R17: 0 | S17: 4 | T17: 4 | U17: 0 | V17: =IFERROR(VLOOKUP($A$5,'Equipment List Template'!$1:$1048576,22,FALSE),"0") -> 11 | W17: 0
A18: 16-A5 | B18: E2 | C18: Emergency Generator | J18: 0 | K18: 0 | L18: 0 | M18: 3 | N18: 0 | O18: 0 | P18: 1 | Q18: 0 | R18: 0 | S18: 4 | T18: 0 | U18: 0 | V18: =IFERROR(VLOOKUP($A$5,'Equipment List Template'!$1:$1048576,23,FALSE),"0") -> 0 | W18: 0
A19: 16-A5 | B19: E3 | C19: Motor Control Center | J19: 0 | K19: 0 | L19: 0 | M19: 4 | N19: 0 | O19: 0 | P19: 0 | Q19: 0 | R19: 0 | S19: 4 | T19: 0 | U19: 0 | V19: =IFERROR(VLOOKUP($A$5,'Equipment List Template'!$1:$1048576,24,FALSE),"0") -> 0 | W19: 0
A20: 16-A5 | B20: E4 | C20: Primary Switch (High) | J20: 8 | K20: 0 | L20: 0 | M20: 3 | N20: 0 | O20: 0 | P20: 1 | Q20: 0 | R20: 0 | S20: 12 | T20: 12 | U20: 0 | V20: =IFERROR(VLOOKUP($A$5,'Equipment List Template'!$1:$1048576,25,FALSE),"0") -> 1 | W20: 0
A21: 16-A5 | B21: E5 | C21: Primary Switch (Low) | J21: 8 | K21: 0 | L21: 0 | M21: 3 | N21: 0 | O21: 0 | P21: 1 | Q21: 0 | R21: 0 | S21: 12 | T21: 0 | U21: 0 | V21: =IFERROR(VLOOKUP($A$5,'Equipment List Template'!$1:$1048576,26,FALSE),"0") -> 0 | W21: 0
A22: 16-A5 | B22: E6 | C22: Transformer (Dry-Type) | J22: 0 | K22: 0 | L22: 0 | M22: 3 | N22: 0 | O22: 0 | P22: 1 | Q22: 0 | R22: 0 | S22: 4 | T22: 4 | U22: 0 | V22: =IFERROR(VLOOKUP($A$5,'Equipment List Template'!$1:$1048576,27,FALSE),"0") -> 17 | W22: 0
A23: 16-A5 | B23: E7 | C23: Uninterruptible Power Supply (UPS) | J23: 0 | K23: 0 | L23: 0 | M23: 0 | N23: 0 | O23: 0 | P23: 1 | Q23: 0 | R23: 0 | S23: 1 | T23: 1 | U23: 0 | V23: =IFERROR(VLOOKUP($A$5,'Equipment List Template'!$1:$1048576,28,FALSE),"0") -> 1 | W23: 0
A24: 16-A5 | B24: E8 | C24: Electrical Unique System | J24: 8 | K24: 0 | L24: 0 | M24: 3 | N24: 0 | O24: 0 | P24: 1 | Q24: 0 | R24: 0 | S24: 12 | T24: 0 | U24: 0 | V24: =IFERROR(VLOOKUP($A$5,'Equipment List Template'!$1:$1048576,29,FALSE),"0") -> 0 | W24: 0
A25: 16-A5 | B25: L1 | C25: Life Safety | J25: 0 | K25: 0 | L25: 0 | M25: 3 | N25: 0 | O25: 0 | P25: 1 | Q25: 0 | R25: 0 | S25: 4 | T25: 4 | U25: 0 | V25: =IFERROR(VLOOKUP($A$5,'Equipment List Template'!$1:$1048576,30,FALSE),"0") -> 1 | W25: =+U25*V25 -> 0
A26: 16-A5 | B26: L2 | C26: Backflow Preventor(s) | J26: 0 | K26: 0 | L26: 0 | M26: 0 | N26: 0 | O26: 0 | P26: 1 | Q26: 0 | R26: 0 | S26: 1 | T26: 1 | U26: 0 | V26: =IFERROR(VLOOKUP($A$5,'Equipment List Template'!$1:$1048576,31,FALSE),"0") -> 8 | W26: =+U26*V26 -> 0
A27: 16-A5 | B27: P1 | C27: Hot Water Boiler | J27: 8 | K27: 0 | L27: 0 | M27: 3 | N27: 0 | O27: 0 | P27: 1 | Q27: 0 | R27: 0 | S27: 12 | T27: 12 | U27: 0 | V27: =IFERROR(VLOOKUP($A$5,'Equipment List Template'!$1:$1048576,32,FALSE),"0") -> 3 | W27: 0
A28: 16-A5 | B28: P2 | C28: Condensing Water Heater | J28: 0 | K28: 0 | L28: 0 | M28: 0 | N28: 0 | O28: 0 | P28: 1 | Q28: 0 | R28: 0 | S28: 1 | T28: 0 | U28: 0 | V28: =IFERROR(VLOOKUP($A$5,'Equipment List Template'!$1:$1048576,33,FALSE),"0") -> 0 | W28: 0
A29: 16-A5 | B29: P3 | C29: Electric Water Heater | J29: 0 | K29: 0 | L29: 0 | M29: 0 | N29: 0 | O29: 0 | P29: 1 | Q29: 0 | R29: 0 | S29: 1 | T29: 0 | U29: 0 | V29: =IFERROR(VLOOKUP($A$5,'Equipment List Template'!$1:$1048576,34,FALSE),"0") -> 0 | W29: 0
A30: 16-A5 | B30: P4 | C30: Plumbing Unique System | J30: 0 | K30: 0 | L30: 0 | M30: 3 | N30: 0 | O30: 0 | P30: 1 | Q30: 0 | R30: 0 | S30: 4 | T30: 0 | U30: 0 | V30: =IFERROR(VLOOKUP($A$5,'Equipment List Template'!$1:$1048576,35,FALSE),"0") -> 0 | W30: 0
A31: 16-A5 | B31: P5 | C31: Steam System | J31: 0 | K31: 0 | L31: 0 | M31: 3 | N31: 0 | O31: 0 | P31: 1 | Q31: 0 | R31: 0 | S31: 4 | T31: 0 | U31: 0 | V31: =IFERROR(VLOOKUP($A$5,'Equipment List Template'!$1:$1048576,36,FALSE),"0") -> 0 | W31: 0
A32: 16-A5 | B32: P6 | C32: Pneumatic Compressor | J32: 11 | K32: 0 | L32: 0 | M32: 0 | N32: 0 | O32: 0 | P32: 1 | Q32: 0 | R32: 0 | S32: 12 | T32: 0 | U32: 0 | V32: =IFERROR(VLOOKUP($A$5,'Equipment List Template'!$1:$1048576,37,FALSE),"0") -> 0 | W32: 0
A33: 16-A5 | B33: R1 | C33: Rounds and Readings | D33: =IFERROR(IF(VLOOKUP($A33,'Equipment List Template'!$1:$1048576,38,FALSE)=260,248,0),0) -> 248 | E33: 0 | F33: =+E33*D33 -> 0 | G33: =IFERROR(IF(VLOOKUP($A33,'Equipment List Template'!$1:$1048576,38,FALSE)=52,40,0),0) -> 0 | H33: 0 | I33: =+H33*G33 -> 0 | J33: 12 | K33: 0 | L33: 0 | S33: 12 | T33: 12 | U33: =+R33+O33+L33+I33+F33 -> 0 | V33: 1 | W33: =+U33*V33 -> 0
A34: 16-A5 | B34: V1 | C34: Vertical Transportation | J34: 8 | K34: 0 | L34: =+K34*J34 -> 0 | M34: 3 | N34: 0 | O34: =+N34*M34 -> 0 | P34: 1 | Q34: 0 | R34: =+Q34*P34 -> 0 | S34: 12 | T34: 12 | U34: =+R34+O34+L34 -> 0 | V34: =IFERROR(VLOOKUP($A$5,'Equipment List Template'!$1:$1048576,39,FALSE),"0") -> 14 | W34: =+U34*V34 -> 0
A35: 16-A5 | B35: W1 | C35: Water Treatment | D35: =IFERROR(IF(VLOOKUP($A35,'Equipment List Template'!$1:$1048576,40,FALSE)=260,260,0),0) -> 260 | E35: 0 | F35: =+E35*D35 -> 0 | S35: 0 | T35: 0 | U35: =+R35+O35+L35+I35+F35 -> 0 | V35: 1 | W35: 0
A36: 16-A5 | B36: B1 | C36: Building Exterior / Hardscape (Monthly) | J36: 12 | K36: 0 | L36: =+K36*J36 -> 0 | S36: 12 | T36: 12 | U36: 0 | V36: 1 | W36: 0
A37: 16-A5 | B37: F1 | C37: Fountain Maintenance (Monthly) | J37: 12 | K37: 0 | L37: 0 | S37: 12 | T37: 12 | U37: 0 | V37: 1 | W37: 0
A38: 16-A5 | B38: F2 | C38: Fuel Storage Tanks (Quarterly) If applicable | M38: 4 | N38: 0 | O38: =+N38*M38 -> 0 | S38: 4 | T38: 4 | U38: 0 | V38: 1 | W38: 0
A39: 16-A5 | B39: G1 | C39: Landscape Maintenance * | G39: 40 | H39: 0 | I39: =+H39*G39 -> 0 | S39: 0 | T39: 0 | U39: 0 | V39: 1 | W39: 0
A40: 16-A5 | B40: C1 | C40: Account Management and Supervision (Monthly) | J40: 12 | K40: 0 | L40: =+K40*J40 -> 0 | S40: 12 | T40: 12 | U40: 0 | V40: 1 | W40: 0
A41: 16-A5 | B41: C2 | C41: Fee (Monthly) | J41: 12 | K41: 0 | L41: 0 | S41: 12 | T41: 12 | U41: 0 | V41: 1 | W41: 0
Q42: JCC ID | R42: =B2 -> 16-A5 | U42: Total | W42: =SUM(W6:W41) -> 0
B43: S1 | C43: Snow Removal - (crew hourly rate) | D43: 0 | U43: Total # of PM's | W43: =SUM(T5:T41) -> 178
B44: I1 | C44: Unclogging Blocked Toilet - In-custody cell (labor-only) | D44: 0
B45: I2 | C45: Unclogging Blocked Toilet - Public/Court Staff (labor-only) | D45: 0
B46: Hr 1 | C46: Hourly Rate (All Labor categories) | D46: 0
B47: M1 | C47: Markup on Materials (Percentage) | D47: 0
B48: Sub1 | C48: Markup on Subcontractors/Third-Parties (Percentage) | D48: 0
B50: * Landscape Maintenance varies by location on the number of weeks per year it can be preformed. For the purpose of the RFP, all facilities are pre-established at 40 weeks of service. The actual amount paid by facility will be based upon the actual weeks that service has been performed, validated and invoiced.

Sheet 18-C1
B1: JCC ID | C1: Facility Name | D1: Address | F1: City / Town | H1: Zip Code | J1: County | L1: Region | N1: RFP | P1: Proposer
B2: 18-C1 | C2: =IFERROR(VLOOKUP($B$2,'Equipment List Template'!$1:$1048576,2,FALSE),"") -> Hall of Justice | D2: =IFERROR(VLOOKUP($B$2,'Equipment List Template'!$1:$1048576,3,FALSE),"") -> 2610 Riverside Drive | F2: =IFERROR(VLOOKUP($B$2,'Equipment List Template'!$1:$1048576,4,FALSE),"") -> Susanville | H2: =IFERROR(VLOOKUP($B$2,'Equipment List Template'!$1:$1048576,5,FALSE),"") -> 96130 | J2: =IFERROR(VLOOKUP($B$2,'Equipment List Template'!$1:$1048576,6,FALSE),"") -> Lassen | L2: =IFERROR(VLOOKUP($B$2,'Equipment List Template'!$1:$1048576,7,FALSE),"") -> NCRO | N2: ='Summary Pricing Sheet'!B2 -> RFP-FS-SP-2019-03-JP | P2: ='Summary Pricing Sheet'!B3 -> TBD
D3: Daily Activity | G3: Weekly Activity | J3: Monthly Activity | M3: Quarterly Activity | P3: Annual Activity | U3: Summary | AG3: System | AH3: HVAC | AS3: Electrical | BA3: Plumbing | BE3: Building Systems | BP3: Corporate | BT3: Fixed Price - Facility Total Annual Cost Year 1
B4: System ID | C4: Subsystem | D4: Quantity | E4: Cost | F4: Daily Total | G4: Quantity | H4: Cost | I4: Weekly Total | J4: Monthly Quantity | K4: Cost | L4: Monthly Total | M4: Quarterly Quantity | N4: Cost | O4: Quarterly Total | P4: Annual Quantity | Q4: Cost | R4: Annual PM Total | T4: Number of PM's | U4: Annual Cost | V4: Quantity | W4: Total Annual Cost | AG4: Subsystem | AH4: Air Cooled DX (Package / Split System) | AI4: Air Handling Unit (Air-cooled DX) | AJ4: Air-Cooled Chiller | AK4: Centrifugal Chiller | AL4: Cooling Tower (Induced Draft) | AM4: Ice Chiller | AN4: Multitask (Geothermal) | AO4: Water Source Heat Pump | AP4: Fan Coil System | AQ4: Exhaust Fan | AR4: HVAC Unique System | AS4: Electrical Panels | AT4: Emergency Generator | AU4: Motor Control Center | AV4: Primary Switch (High) | AW4: Primary Switch (Low) | AX4: Transformer (Dry-Type) | AY4: Uninterruptible Power Supply (UPS) | AZ4: Electrical Unique System | BA4: Hot Water Boiler | BB4: Condensing Water Heater | BC4: Electric Water Heater | BD4: Plumbing Unique System | BE4: Steam System | BF4: Pneumatic Compressor | BG4: Vertical Transportation | BH4: Life Safety | BI4: Backflow Preventor | BJ4: Rounds and Readings | BK4: Access Doors, Gates, Sally Port | BL4: Water Treatment | BM4: Building Exterior / Hardscape (Monthly) | BN4: Fountain Maintenance (Monthly) | BO4: Fuel Storage Tanks (Quarterly) If applicable | BP4: Landscape Maintenance * | BQ4: Account Management and Supervision (Monthly) | BR4: Fee (Monthly) | BV4: Snow Removal - (crew hourly rate) | BW4: Unclogging Blocked Toilet - In-custody holding cell (labor) | BX4: Unclogging Blocked Toilet - Public/Court Staff (labor) | BY4: Hourly Rate | BZ4: Markup on Materials | CA4: Markup on Subcontractors/Third-Parties
A5: =$B$2 -> 18-C1 | B5: A1 | C5: Access Doors, Gates, Sally Port | J5: 11 | K5: 0 | L5: =+K5*J5 -> 0 | M5: 0 | N5: 0 | O5: =+N5*M5 -> 0 | P5: 1 | Q5: 0 | R5: =+Q5*P5 -> 0 | S5: 12 | T5: =IF($V5>0,$S5,0) -> 12 | U5: =+R5+O5+L5+I5+F5 -> 0 | V5: =IFERROR(VLOOKUP($A$5,'Equipment List Template'!$1:$1048576,10,FALSE),"0") -> 1 | W5: =+U5*V5 -> 0 | Z5: JCC ID | AA5: Facility Name | AB5: Address | AC5: City / Town | AD5: County | AE5: Region | AF5: Region | AG5: System ID | AH5: H1 | AI5: H2 | AJ5: H3 | AK5: H4 | AL5: H5 | AM5: H6 | AN5: H7 | AO5: H8 | AP5: H9 | AQ5: H10 | AR5: H11 | AS5: E1 | AT5: E2 | AU5: E3 | AV5: E4 | AW5: E5 | AX5: E6 | AY5: E7 | AZ5: E8 | BA5: P1 | BB5: P2 | BC5: P3 | BD5: P4 | BE5: P5 | BF5: P6 | BG5: V1 | BH5: L1 | BI5: L2 | BJ5: R1 | BK5: A1 | BL5: W1 | BM5: B1 | BN5: F1 | BO5: F2 | BP5: G1 | BQ5: C1 | BR5: C2 | BV5: S1 | BW5: I1 | BX5: I2 | BY5: Hr 1 | BZ5: M1 | CA5: Sub1
A6: =$B$2 -> 18-C1 | B6: H1 | C6: Air Cooled DX (Package / Split System) | J6: 0 | K6: 0 | L6: =+K6*J6 -> 0 | M6: 3 | N6: 0 | O6: =+N6*M6 -> 0 | P6: 1 | Q6: 0 | R6: =+Q6*P6 -> 0 | S6: 4 | T6: =IF($V6>0,$S6,0) -> 4 | U6: =+R6+O6+L6+I6+F6 -> 0 | V6: =IFERROR(VLOOKUP($A$5,'Equipment List Template'!$1:$1048576,11,FALSE),"0") -> 6 | W6: =+U6*V6 -> 0 | Z6: =B2 -> 18-C1 | AA6: =IFERROR(VLOOKUP($Z$6,'Equipment List Template'!$1:$1048576,2,FALSE),"") -> Hall of Justice | AB6: =IFERROR(VLOOKUP($Z$6,'Equipment List Template'!$1:$1048576,3,FALSE),"") -> 2610 Riverside Drive | AC6: =IFERROR(VLOOKUP($Z$6,'Equipment List Template'!$1:$1048576,4,FALSE),"") -> Susanville | AD6: =IFERROR(VLOOKUP($Z$6,'Equipment List Template'!$1:$1048576,5,FALSE),"") -> 96130 | AE6: =IFERROR(VLOOKUP($Z$6,'Equipment List Template'!$1:$1048576,6,FALSE),"") -> Lassen | AF6: =IFERROR(VLOOKUP($Z$6,'Equipment List Template'!$1:$1048576,7,FALSE),"") -> NCRO | AH6: =+$W5 -> 0 | AI6: =+$W6 -> 0 | AJ6: =+$W7 -> 0 | AK6: =+$W8 -> 0 | AL6: =+$W9 -> 0 | AM6: =+$W10 -> 0 | AN6: =+$W11 -> 0 | AO6: =+$W12 -> 0 | AP6: =+$W13 -> 0 | AQ6: =+$W14 -> 0 | AR6: =+$W15 -> 0 | AS6: =+$W16 -> 0 | AT6: =+$W17 -> 0 | AU6: =+$W18 -> 0 | AV6: =+$W19 -> 0 | AW6: =+$W20 -> 0 | AX6: =+$W21 -> 0 | AY6: =+$W22 -> 0 | AZ6: =+$W23 -> 0 | BA6: =+$W24 -> 0 | BB6: =+$W25 -> 0 | BC6: =+$W26 -> 0 | BD6: =+$W27 -> 0 | BE6: =+$W28 -> 0 | BF6: =+$W29 -> 0 | BG6: =+$W30 -> 0 | BH6: =+$W31 -> 0 | BI6: =+$W32 -> 0 | BJ6: =+$W33 -> 0 | BK6: =+$W34 -> 0 | BL6: =+$W35 -> 0 | BM6: =+$W36 -> 0 | BN6: =+$W37 -> 0 | BO6: =+$W38 -> 0 | BP6: =+$W39 -> 0 | BQ6: =+$W40 -> 0 | BR6: =+$W41 -> 0 | BT6: =+W42 -> 0 | BV6: =+D43 -> 0 | BW6: =+D44 -> 0 | BX6: =+D45 -> 0 | BY6: =+D46 -> 0 | BZ6: =+D47 -> 0 | CA6: =+D48 -> 0
A7: 18-C1 | B7: H2 | C7: Air Handling Unit (Air-cooled DX) | J7: 0 | K7: 0 | L7: 0 | M7: 3 | N7: 0 | O7: 0 | P7: 1 | Q7: 0 | R7: 0 | S7: 4 | T7: 4 | U7: 0 | V7: =IFERROR(VLOOKUP($A$5,'Equipment List Template'!$1:$1048576,12,FALSE),"0") -> 2 | W7: =+U7*V7 -> 0
A8: 18-C1 | B8: H3 | C8: Air-Cooled Chiller | G8: 40 | H8: 0 | I8: =+H8*G8 -> 0 | J8: 8 | K8: 0 | L8: 0 | M8: 3 | N8: 0 | O8: 0 | P8: 1 | Q8: 0 | R8: 0 | S8: 12 | T8: 0 | U8: 0 | V8: =IFERROR(VLOOKUP($A$5,'Equipment List Template'!$1:$1048576,13,FALSE),"0") -> 0 | W8: 0
A9: 18-C1 | B9: H4 | C9: Centrifugal Chiller | J9: 11 | K9: 0 | L9: 0 | M9: 0 | N9: 0 | O9: 0 | P9: 1 | Q9: 0 | R9: 0 | S9: 12 | T9: 0 | U9: 0 | V9: =IFERROR(VLOOKUP($A$5,'Equipment List Template'!$1:$1048576,14,FALSE),"0") -> 0 | W9: 0
A10: 18-C1 | B10: H5 | C10: Cooling Tower (Induced Draft) | J10: 8 | K10: 0 | L10: 0 | M10: 3 | N10: 0 | O10: 0 | P10: 1 | Q10: 0 | R10: 0 | S10: 12 | T10: 0 | U10: 0 | V10: =IFERROR(VLOOKUP($A$5,'Equipment List Template'!$1:$1048576,15,FALSE),"0") -> 0 | W10: 0
A11: 18-C1 | B11: H6 | C11: Ice Chiller | J11: 8 | K11: 0 | L11: 0 | M11: 3 | N11: 0 | O11: 0 | P11: 1 | Q11: 0 | R11: 0 | S11: 12 | T11: 0 | U11: 0 | V11: =IFERROR(VLOOKUP($A$5,'Equipment List Template'!$1:$1048576,16,FALSE),"0") -> 0 | W11: 0
A12: 18-C1 | B12: H7 | C12: MultiStack (Geothermal) | J12: 0 | K12: 0 | L12: 0 | M12: 0 | N12: 0 | O12: 0 | P12: 1 | Q12: 0 | R12: 0 | S12: 1 | T12: 0 | U12: 0 | V12: =IFERROR(VLOOKUP($A$5,'Equipment List Template'!$1:$1048576,17,FALSE),"0") -> 0 | W12: 0
A13: 18-C1 | B13: H8 | C13: Water Source Heat Pump | J13: 8 | K13: 0 | L13: 0 | M13: 3 | N13: 0 | O13: 0 | P13: 1 | Q13: 0 | R13: 0 | S13: 12 | T13: 0 | U13: 0 | V13: =IFERROR(VLOOKUP($A$5,'Equipment List Template'!$1:$1048576,18,FALSE),"0") -> 0 | W13: 0
A14: 18-C1 | B14: H9 | C14: Fan Coil System | J14: 0 | K14: 0 | L14: 0 | M14: 3 | N14: 0 | O14: 0 | P14: 1 | Q14: 0 | R14: 0 | S14: 4 | T14: 4 | U14: 0 | V14: =IFERROR(VLOOKUP($A$5,'Equipment List Template'!$1:$1048576,19,FALSE),"0") -> 6 | W14: 0
A15: 18-C1 | B15: H10 | C15: Exhaust Fan | J15: 0 | K15: 0 | L15: 0 | M15: 3 | N15: 0 | O15: 0 | P15: 1 | Q15: 0 | R15: 0 | S15: 4 | T15: 4 | U15: 0 | V15: =IFERROR(VLOOKUP($A$5,'Equipment List Template'!$1:$1048576,20,FALSE),"0") -> 6 | W15: 0
A16: 18-C1 | B16: H11 | C16: HVAC Unique System | J16: 8 | K16: 0 | L16: 0 | M16: 3 | N16: 0 | O16: 0 | P16: 1 | Q16: 0 | R16: 0 | S16: 12 | T16: 0 | U16: 0 | V16: =IFERROR(VLOOKUP($A$5,'Equipment List Template'!$1:$1048576,21,FALSE),"0") -> 0 | W16: 0
A17: 18-C1 | B17: E1 | C17: Electrical Panels | J17: 0 | K17: 0 | L17: 0 | M17: 3 | N17: 0 | O17: 0 | P17: 1 | Q17: 0 | R17: 0 | S17: 4 | T17: 4 | U17: 0 | V17: =IFERROR(VLOOKUP($A$5,'Equipment List Template'!$1:$1048576,22,FALSE),"0") -> 1 | W17: 0
A18: 18-C1 | B18: E2 | C18: Emergency Generator | J18: 0 | K18: 0 | L18: 0 | M18: 3 | N18: 0 | O18: 0 | P18: 1 | Q18: 0 | R18: 0 | S18: 4 | T18: 0 | U18: 0 | V18: =IFERROR(VLOOKUP($A$5,'Equipment List Template'!$1:$1048576,23,FALSE),"0") -> 0 | W18: 0
A19: 18-C1 | B19: E3 | C19: Motor Control Center | J19: 0 | K19: 0 | L19: 0 | M19: 4 | N19: 0 | O19: 0 | P19: 0 | Q19: 0 | R19: 0 | S19: 4 | T19: 4 | U19: 0 | V19: =IFERROR(VLOOKUP($A$5,'Equipment List Template'!$1:$1048576,24,FALSE),"0") -> 1 | W19: 0
A20: 18-C1 | B20: E4 | C20: Primary Switch (High) | J20: 8 | K20: 0 | L20: 0 | M20: 3 | N20: 0 | O20: 0 | P20: 1 | Q20: 0 | R20: 0 | S20: 12 | T20: 0 | U20: 0 | V20: =IFERROR(VLOOKUP($A$5,'Equipment List Template'!$1:$1048576,25,FALSE),"0") -> 0 | W20: 0
A21: 18-C1 | B21: E5 | C21: Primary Switch (Low) | J21: 8 | K21: 0 | L21: 0 | M21: 3 | N21: 0 | O21: 0 | P21: 1 | Q21: 0 | R21: 0 | S21: 12 | T21: 0 | U21: 0 | V21: =IFERROR(VLOOKUP($A$5,'Equipment List Template'!$1:$1048576,26,FALSE),"0") -> 0 | W21: 0
A22: 18-C1 | B22: E6 | C22: Transformer (Dry-Type) | J22: 0 | K22: 0 | L22: 0 | M22: 3 | N22: 0 | O22: 0 | P22: 1 | Q22: 0 | R22: 0 | S22: 4 | T22: 4 | U22: 0 | V22: =IFERROR(VLOOKUP($A$5,'Equipment List Template'!$1:$1048576,27,FALSE),"0") -> 2 | W22: 0
A23: 18-C1 | B23: E7 | C23: Uninterruptible Power Supply (UPS) | J23: 0 | K23: 0 | L23: 0 | M23: 0 | N23: 0 | O23: 0 | P23: 1 | Q23: 0 | R23: 0 | S23: 1 | T23: 1 | U23: 0 | V23: =IFERROR(VLOOKUP($A$5,'Equipment List Template'!$1:$1048576,28,FALSE),"0") -> 1 | W23: 0
A24: 18-C1 | B24: E8 | C24: Electrical Unique System | J24: 8 | K24: 0 | L24: 0 | M24: 3 | N24: 0 | O24: 0 | P24: 1 | Q24: 0 | R24: 0 | S24: 12 | T24: 0 | U24: 0 | V24: =IFERROR(VLOOKUP($A$5,'Equipment List Template'!$1:$1048576,29,FALSE),"0") -> 0 | W24: 0
A25: 18-C1 | B25: L1 | C25: Life Safety | J25: 0 | K25: 0 | L25: 0 | M25: 3 | N25: 0 | O25: 0 | P25: 1 | Q25: 0 | R25: 0 | S25: 4 | T25: 4 | U25: 0 | V25: =IFERROR(VLOOKUP($A$5,'Equipment List Template'!$1:$1048576,30,FALSE),"0") -> 1 | W25: =+U25*V25 -> 0
A26: 18-C1 | B26: L2 | C26: Backflow Preventor(s) | J26: 0 | K26: 0 | L26: 0 | M26: 0 | N26: 0 | O26: 0 | P26: 1 | Q26: 0 | R26: 0 | S26: 1 | T26: 1 | U26: 0 | V26: =IFERROR(VLOOKUP($A$5,'Equipment List Template'!$1:$1048576,31,FALSE),"0") -> 3 | W26: =+U26*V26 -> 0
A27: 18-C1 | B27: P1 | C27: Hot Water Boiler | J27: 8 | K27: 0 | L27: 0 | M27: 3 | N27: 0 | O27: 0 | P27: 1 | Q27: 0 | R27: 0 | S27: 12 | T27: 12 | U27: 0 | V27: =IFERROR(VLOOKUP($A$5,'Equipment List Template'!$1:$1048576,32,FALSE),"0") -> 3 | W27: 0
A28: 18-C1 | B28: P2 | C28: Condensing Water Heater | J28: 0 | K28: 0 | L28: 0 | M28: 0 | N28: 0 | O28: 0 | P28: 1 | Q28: 0 | R28: 0 | S28: 1 | T28: 0 | U28: 0 | V28: =IFERROR(VLOOKUP($A$5,'Equipment List Template'!$1:$1048576,33,FALSE),"0") -> 0 | W28: 0
A29: 18-C1 | B29: P3 | C29: Electric Water Heater | J29: 0 | K29: 0 | L29: 0 | M29: 0 | N29: 0 | O29: 0 | P29: 1 | Q29: 0 | R29: 0 | S29: 1 | T29: 1 | U29: 0 | V29: =IFERROR(VLOOKUP($A$5,'Equipment List Template'!$1:$1048576,34,FALSE),"0") -> 3 | W29: 0
A30: 18-C1 | B30: P4 | C30: Plumbing Unique System | J30: 0 | K30: 0 | L30: 0 | M30: 3 | N30: 0 | O30: 0 | P30: 1 | Q30: 0 | R30: 0 | S30: 4 | T30: 0 | U30: 0 | V30: =IFERROR(VLOOKUP($A$5,'Equipment List Template'!$1:$1048576,35,FALSE),"0") -> 0 | W30: 0
A31: 18-C1 | B31: P5 | C31: Steam System | J31: 0 | K31: 0 | L31: 0 | M31: 3 | N31: 0 | O31: 0 | P31: 1 | Q31: 0 | R31: 0 | S31: 4 | T31: 0 | U31: 0 | V31: =IFERROR(VLOOKUP($A$5,'Equipment List Template'!$1:$1048576,36,FALSE),"0") -> 0 | W31: 0
A32: 18-C1 | B32: P6 | C32: Pneumatic Compressor | J32: 11 | K32: 0 | L32: 0 | M32: 0 | N32: 0 | O32: 0 | P32: 1 | Q32: 0 | R32: 0 | S32: 12 | T32: 0 | U32: 0 | V32: =IFERROR(VLOOKUP($A$5,'Equipment List Template'!$1:$1048576,37,FALSE),"0") -> 0 | W32: 0
A33: 18-C1 | B33: R1 | C33: Rounds and Readings | D33: =IFERROR(IF(VLOOKUP($A33,'Equipment List Template'!$1:$1048576,38,FALSE)=260,248,0),0) -> 0 | E33: 0 | F33: =+E33*D33 -> 0 | G33: =IFERROR(IF(VLOOKUP($A33,'Equipment List Template'!$1:$1048576,38,FALSE)=52,40,0),0) -> 40 | H33: 0 | I33: =+H33*G33 -> 0 | J33: 12 | K33: 0 | L33: 0 | S33: 12 | T33: 12 | U33: =+R33+O33+L33+I33+F33 -> 0 | V33: 1 | W33: =+U33*V33 -> 0
A34: 18-C1 | B34: V1 | C34: Vertical Transportation | J34: 8 | K34: 0 | L34: =+K34*J34 -> 0 | M34: 3 | N34: 0 | O34: =+N34*M34 -> 0 | P34: 1 | Q34: 0 | R34: =+Q34*P34 -> 0 | S34: 12 | T34: 12 | U34: =+R34+O34+L34 -> 0 | V34: =IFERROR(VLOOKUP($A$5,'Equipment List Template'!$1:$1048576,39,FALSE),"0") -> 4 | W34: =+U34*V34 -> 0
A35: 18-C1 | B35: W1 | C35: Water Treatment | D35: =IFERROR(IF(VLOOKUP($A35,'Equipment List Template'!$1:$1048576,40,FALSE)=260,260,0),0) -> 0 | E35: 0 | F35: =+E35*D35 -> 0 | S35: 0 | T35: 0 | U35: =+R35+O35+L35+I35+F35 -> 0 | V35: 1 | W35: 0
A36: 18-C1 | B36: B1 | C36: Building Exterior / Hardscape (Monthly) | J36: 12 | K36: 0 | L36: =+K36*J36 -> 0 | S36: 12 | T36: 12 | U36: 0 | V36: 1 | W36: 0
A37: 18-C1 | B37: F1 | C37: Fountain Maintenance (Monthly) | J37: 12 | K37: 0 | L37: 0 | S37: 12 | T37: 12 | U37: 0 | V37: 1 | W37: 0
A38: 18-C1 | B38: F2 | C38: Fuel Storage Tanks (Quarterly) If applicable | M38: 4 | N38: 0 | O38: =+N38*M38 -> 0 | S38: 4 | T38: 4 | U38: 0 | V38: 1 | W38: 0
A39: 18-C1 | B39: G1 | C39: Landscape Maintenance * | G39: 40 | H39: 0 | I39: =+H39*G39 -> 0 | S39: 0 | T39: 0 | U39: 0 | V39: 1 | W39: 0
A40: 18-C1 | B40: C1 | C40: Account Management and Supervision (Monthly) | J40: 12 | K40: 0 | L40: =+K40*J40 -> 0 | S40: 12 | T40: 12 | U40: 0 | V40: 1 | W40: 0
A41: 18-C1 | B41: C2 | C41: Fee (Monthly) | J41: 12 | K41: 0 | L41: 0 | S41: 12 | T41: 12 | U41: 0 | V41: 1 | W41: 0
Q42: JCC ID | R42: =B2 -> 18-C1 | U42: Total | W42: =SUM(W6:W41) -> 0
B43: S1 | C43: Snow Removal - (crew hourly rate) | D43: 0 | U43: Total # of PM's | W43: =SUM(T5:T41) -> 135
B44: I1 | C44: Unclogging Blocked Toilet - In-custody cell (labor-only) | D44: 0
B45: I2 | C45: Unclogging Blocked Toilet - Public/Court Staff (labor-only) | D45: 0
B46: Hr 1 | C46: Hourly Rate (All Labor categories) | D46: 0
B47: M1 | C47: Markup on Materials (Percentage) | D47: 0
B48: Sub1 | C48: Markup on Subcontractors/Third-Parties (Percentage) | D48: 0
B50: * Landscape Maintenance varies by location on the number of weeks per year it can be preformed. For the purpose of the RFP, all facilities are pre-established at 40 weeks of service. The actual amount paid by facility will be based upon the actual weeks that service has been performed, validated and invoiced.

Sheet 20-F1
B1: JCC ID | C1: Facility Name | D1: Address | F1: City / Town | H1: Zip Code | J1: County | L1: Region | N1: RFP | P1: Proposer
B2: 20-F1 | C2: =IFERROR(VLOOKUP($B$2,'Equipment List Template'!$1:$1048576,2,FALSE),"") -> Main Courthouse | D2: =IFERROR(VLOOKUP($B$2,'Equipment List Template'!$1:$1048576,3,FALSE),"") -> 200 South G Street | F2: =IFERROR(VLOOKUP($B$2,'Equipment List Template'!$1:$1048576,4,FALSE),"") -> Madera | H2: =IFERROR(VLOOKUP($B$2,'Equipment List Template'!$1:$1048576,5,FALSE),"") -> 93637 | J2: =IFERROR(VLOOKUP($B$2,'Equipment List Template'!$1:$1048576,6,FALSE),"") -> Madera | L2: =IFERROR(VLOOKUP($B$2,'Equipment List Template'!$1:$1048576,7,FALSE),"") -> NCRO | N2: ='Summary Pricing Sheet'!B2 -> RFP-FS-SP-2019-03-JP | P2: ='Summary Pricing Sheet'!B3 -> TBD
D3: Daily Activity | G3: Weekly Activity | J3: Monthly Activity | M3: Quarterly Activity | P3: Annual Activity | U3: Summary | AG3: System | AH3: HVAC | AS3: Electrical | BA3: Plumbing | BE3: Building Systems | BP3: Corporate | BT3: Fixed Price - Facility Total Annual Cost Year 1
B4: System ID | C4: Subsystem | D4: Quantity | E4: Cost | F4: Daily Total | G4: Quantity | H4: Cost | I4: Weekly Total | J4: Monthly Quantity | K4: Cost | L4: Monthly Total | M4: Quarterly Quantity | N4: Cost | O4: Quarterly Total | P4: Annual Quantity | Q4: Cost | R4: Annual PM Total | T4: Number of PM's | U4: Annual Cost | V4: Quantity | W4: Total Annual Cost | AG4: Subsystem | AH4: Air Cooled DX (Package / Split System) | AI4: Air Handling Unit (Air-cooled DX) | AJ4: Air-Cooled Chiller | AK4: Centrifugal Chiller | AL4: Cooling Tower (Induced Draft) | AM4: Ice Chiller | AN4: Multitask (Geothermal) | AO4: Water Source Heat Pump | AP4: Fan Coil System | AQ4: Exhaust Fan | AR4: HVAC Unique System | AS4: Electrical Panels | AT4: Emergency Generator | AU4: Motor Control Center | AV4: Primary Switch (High) | AW4: Primary Switch (Low) | AX4: Transformer (Dry-Type) | AY4: Uninterruptible Power Supply (UPS) | AZ4: Electrical Unique System | BA4: Hot Water Boiler | BB4: Condensing Water Heater | BC4: Electric Water Heater | BD4: Plumbing Unique System | BE4: Steam System | BF4: Pneumatic Compressor | BG4: Vertical Transportation | BH4: Life Safety | BI4: Backflow Preventor | BJ4: Rounds and Readings | BK4: Access Doors, Gates, Sally Port | BL4: Water Treatment | BM4: Building Exterior / Hardscape (Monthly) | BN4: Fountain Maintenance (Monthly) | BO4: Fuel Storage Tanks (Quarterly) If applicable | BP4: Landscape Maintenance * | BQ4: Account Management and Supervision (Monthly) | BR4: Fee (Monthly) | BV4: Snow Removal - (crew hourly rate) | BW4: Unclogging Blocked Toilet - In-custody holding cell (labor) | BX4: Unclogging Blocked Toilet - Public/Court Staff (labor) | BY4: Hourly Rate | BZ4: Markup on Materials | CA4: Markup on Subcontractors/Third-Parties
A5: =$B$2 -> 20-F1 | B5: A1 | C5: Access Doors, Gates, Sally Port | J5: 11 | K5: 0 | L5: =+K5*J5 -> 0 | M5: 0 | N5: 0 | O5: =+N5*M5 -> 0 | P5: 1 | Q5: 0 | R5: =+Q5*P5 -> 0 | S5: 12 | T5: =IF($V5>0,$S5,0) -> 12 | U5: =+R5+O5+L5+I5+F5 -> 0 | V5: =IFERROR(VLOOKUP($A$5,'Equipment List Template'!$1:$1048576,10,FALSE),"0") -> 1 | W5: =+U5*V5 -> 0 | Z5: JCC ID | AA5: Facility Name | AB5: Address | AC5: City / Town | AD5: County | AE5: Region | AF5: Region | AG5: System ID | AH5: H1 | AI5: H2 | AJ5: H3 | AK5: H4 | AL5: H5 | AM5: H6 | AN5: H7 | AO5: H8 | AP5: H9 | AQ5: H10 | AR5: H11 | AS5: E1 | AT5: E2 | AU5: E3 | AV5: E4 | AW5: E5 | AX5: E6 | AY5: E7 | AZ5: E8 | BA5: P1 | BB5: P2 | BC5: P3 | BD5: P4 | BE5: P5 | BF5: P6 | BG5: V1 | BH5: L1 | BI5: L2 | BJ5: R1 | BK5: A1 | BL5: W1 | BM5: B1 | BN5: F1 | BO5: F2 | BP5: G1 | BQ5: C1 | BR5: C2 | BV5: S1 | BW5: I1 | BX5: I2 | BY5: Hr 1 | BZ5: M1 | CA5: Sub1
A6: =$B$2 -> 20-F1 | B6: H1 | C6: Air Cooled DX (Package / Split System) | J6: 0 | K6: 0 | L6: =+K6*J6 -> 0 | M6: 3 | N6: 0 | O6: =+N6*M6 -> 0 | P6: 1 | Q6: 0 | R6: =+Q6*P6 -> 0 | S6: 4 | T6: =IF($V6>0,$S6,0) -> 4 | U6: =+R6+O6+L6+I6+F6 -> 0 | V6: =IFERROR(VLOOKUP($A$5,'Equipment List Template'!$1:$1048576,11,FALSE),"0") -> 22 | W6: =+U6*V6 -> 0 | Z6: =B2 -> 20-F1 | AA6: =IFERROR(VLOOKUP($Z$6,'Equipment List Template'!$1:$1048576,2,FALSE),"") -> Main Courthouse | AB6: =IFERROR(VLOOKUP($Z$6,'Equipment List Template'!$1:$1048576,3,FALSE),"") -> 200 South G Street | AC6: =IFERROR(VLOOKUP($Z$6,'Equipment List Template'!$1:$1048576,4,FALSE),"") -> Madera | AD6: =IFERROR(VLOOKUP($Z$6,'Equipment List Template'!$1:$1048576,5,FALSE),"") -> 93637 | AE6: =IFERROR(VLOOKUP($Z$6,'Equipment List Template'!$1:$1048576,6,FALSE),"") -> Madera | AF6: =IFERROR(VLOOKUP($Z$6,'Equipment List Template'!$1:$1048576,7,FALSE),"") -> NCRO | AH6: =+$W5 -> 0 | AI6: =+$W6 -> 0 | AJ6: =+$W7 -> 0 | AK6: =+$W8 -> 0 | AL6: =+$W9 -> 0 | AM6: =+$W10 -> 0 | AN6: =+$W11 -> 0 | AO6: =+$W12 -> 0 | AP6: =+$W13 -> 0 | AQ6: =+$W14 -> 0 | AR6: =+$W15 -> 0 | AS6: =+$W16 -> 0 | AT6: =+$W17 -> 0 | AU6: =+$W18 -> 0 | AV6: =+$W19 -> 0 | AW6: =+$W20 -> 0 | AX6: =+$W21 -> 0 | AY6: =+$W22 -> 0 | AZ6: =+$W23 -> 0 | BA6: =+$W24 -> 0 | BB6: =+$W25 -> 0 | BC6: =+$W26 -> 0 | BD6: =+$W27 -> 0 | BE6: =+$W28 -> 0 | BF6: =+$W29 -> 0 | BG6: =+$W30 -> 0 | BH6: =+$W31 -> 0 | BI6: =+$W32 -> 0 | BJ6: =+$W33 -> 0 | BK6: =+$W34 -> 0 | BL6: =+$W35 -> 0 | BM6: =+$W36 -> 0 | BN6: =+$W37 -> 0 | BO6: =+$W38 -> 0 | BP6: =+$W39 -> 0 | BQ6: =+$W40 -> 0 | BR6: =+$W41 -> 0 | BT6: =+W42 -> 0 | BV6: =+D43 -> 0 | BW6: =+D44 -> 0 | BX6: =+D45 -> 0 | BY6: =+D46 -> 0 | BZ6: =+D47 -> 0 | CA6: =+D48 -> 0
A7: 20-F1 | B7: H2 | C7: Air Handling Unit (Air-cooled DX) | J7: 0 | K7: 0 | L7: 0 | M7: 3 | N7: 0 | O7: 0 | P7: 1 | Q7: 0 | R7: 0 | S7: 4 | T7: 4 | U7: 0 | V7: =IFERROR(VLOOKUP($A$5,'Equipment List Template'!$1:$1048576,12,FALSE),"0") -> 7 | W7: =+U7*V7 -> 0
A8: 20-F1 | B8: H3 | C8: Air-Cooled Chiller | G8: 40 | H8: 0 | I8: =+H8*G8 -> 0 | J8: 8 | K8: 0 | L8: 0 | M8: 3 | N8: 0 | O8: 0 | P8: 1 | Q8: 0 | R8: 0 | S8: 12 | T8: 0 | U8: 0 | V8: =IFERROR(VLOOKUP($A$5,'Equipment List Template'!$1:$1048576,13,FALSE),"0") -> 0 | W8: 0
A9: 20-F1 | B9: H4 | C9: Centrifugal Chiller | J9: 11 | K9: 0 | L9: 0 | M9: 0 | N9: 0 | O9: 0 | P9: 1 | Q9: 0 | R9: 0 | S9: 12 | T9: 12 | U9: 0 | V9: =IFERROR(VLOOKUP($A$5,'Equipment List Template'!$1:$1048576,14,FALSE),"0") -> 2 | W9: 0
A10: 20-F1 | B10: H5 | C10: Cooling Tower (Induced Draft) | J10: 8 | K10: 0 | L10: 0 | M10: 3 | N10: 0 | O10: 0 | P10: 1 | Q10: 0 | R10: 0 | S10: 12 | T10: 0 | U10: 0 | V10: =IFERROR(VLOOKUP($A$5,'Equipment List Template'!$1:$1048576,15,FALSE),"0") -> 0 | W10: 0
A11: 20-F1 | B11: H6 | C11: Ice Chiller | J11: 8 | K11: 0 | L11: 0 | M11: 3 | N11: 0 | O11: 0 | P11: 1 | Q11: 0 | R11: 0 | S11: 12 | T11: 0 | U11: 0 | V11: =IFERROR(VLOOKUP($A$5,'Equipment List Template'!$1:$1048576,16,FALSE),"0") -> 0 | W11: 0
A12: 20-F1 | B12: H7 | C12: MultiStack (Geothermal) | J12: 0 | K12: 0 | L12: 0 | M12: 0 | N12: 0 | O12: 0 | P12: 1 | Q12: 0 | R12: 0 | S12: 1 | T12: 0 | U12: 0 | V12: =IFERROR(VLOOKUP($A$5,'Equipment List Template'!$1:$1048576,17,FALSE),"0") -> 0 | W12: 0
A13: 20-F1 | B13: H8 | C13: Water Source Heat Pump | J13: 8 | K13: 0 | L13: 0 | M13: 3 | N13: 0 | O13: 0 | P13: 1 | Q13: 0 | R13: 0 | S13: 12 | T13: 0 | U13: 0 | V13: =IFERROR(VLOOKUP($A$5,'Equipment List Template'!$1:$1048576,18,FALSE),"0") -> 0 | W13: 0
A14: 20-F1 | B14: H9 | C14: Fan Coil System | J14: 0 | K14: 0 | L14: 0 | M14: 3 | N14: 0 | O14: 0 | P14: 1 | Q14: 0 | R14: 0 | S14: 4 | T14: 4 | U14: 0 | V14: =IFERROR(VLOOKUP($A$5,'Equipment List Template'!$1:$1048576,19,FALSE),"0") -> 19 | W14: 0
A15: 20-F1 | B15: H10 | C15: Exhaust Fan | J15: 0 | K15: 0 | L15: 0 | M15: 3 | N15: 0 | O15: 0 | P15: 1 | Q15: 0 | R15: 0 | S15: 4 | T15: 4 | U15: 0 | V15: =IFERROR(VLOOKUP($A$5,'Equipment List Template'!$1:$1048576,20,FALSE),"0") -> 10 | W15: 0
A16: 20-F1 | B16: H11 | C16: HVAC Unique System | J16: 8 | K16: 0 | L16: 0 | M16: 3 | N16: 0 | O16: 0 | P16: 1 | Q16: 0 | R16: 0 | S16: 12 | T16: 0 | U16: 0 | V16: =IFERROR(VLOOKUP($A$5,'Equipment List Template'!$1:$1048576,21,FALSE),"0") -> 0 | W16: 0
A17: 20-F1 | B17: E1 | C17: Electrical Panels | J17: 0 | K17: 0 | L17: 0 | M17: 3 | N17: 0 | O17: 0 | P17: 1 | Q17: 0 | R17: 0 | S17: 4 | T17: 4 | U17: 0 | V17: =IFERROR(VLOOKUP($A$5,'Equipment List Template'!$1:$1048576,22,FALSE),"0") -> 5 | W17: 0
A18: 20-F1 | B18: E2 | C18: Emergency Generator | J18: 0 | K18: 0 | L18: 0 | M18: 3 | N18: 0 | O18: 0 | P18: 1 | Q18: 0 | R18: 0 | S18: 4 | T18: 4 | U18: 0 | V18: =IFERROR(VLOOKUP($A$5,'Equipment List Template'!$1:$1048576,23,FALSE),"0") -> 1 | W18: 0
A19: 20-F1 | B19: E3 | C19: Motor Control Center | J19: 0 | K19: 0 | L19: 0 | M19: 4 | N19: 0 | O19: 0 | P19: 0 | Q19: 0 | R19: 0 | S19: 4 | T19: 0 | U19: 0 | V19: =IFERROR(VLOOKUP($A$5,'Equipment List Template'!$1:$1048576,24,FALSE),"0") -> 0 | W19: 0
A20: 20-F1 | B20: E4 | C20: Primary Switch (High) | J20: 8 | K20: 0 | L20: 0 | M20: 3 | N20: 0 | O20: 0 | P20: 1 | Q20: 0 | R20: 0 | S20: 12 | T20: 0 | U20: 0 | V20: =IFERROR(VLOOKUP($A$5,'Equipment List Template'!$1:$1048576,25,FALSE),"0") -> 0 | W20: 0
A21: 20-F1 | B21: E5 | C21: Primary Switch (Low) | J21: 8 | K21: 0 | L21: 0 | M21: 3 | N21: 0 | O21: 0 | P21: 1 | Q21: 0 | R21: 0 | S21: 12 | T21: 0 | U21: 0 | V21: =IFERROR(VLOOKUP($A$5,'Equipment List Template'!$1:$1048576,26,FALSE),"0") -> 0 | W21: 0
A22: 20-F1 | B22: E6 | C22: Transformer (Dry-Type) | J22: 0 | K22: 0 | L22: 0 | M22: 3 | N22: 0 | O22: 0 | P22: 1 | Q22: 0 | R22: 0 | S22: 4 | T22: 4 | U22: 0 | V22: =IFERROR(VLOOKUP($A$5,'Equipment List Template'!$1:$1048576,27,FALSE),"0") -> 17 | W22: 0
A23: 20-F1 | B23: E7 | C23: Uninterruptible Power Supply (UPS) | J23: 0 | K23: 0 | L23: 0 | M23: 0 | N23: 0 | O23: 0 | P23: 1 | Q23: 0 | R23: 0 | S23: 1 | T23: 0 | U23: 0 | V23: =IFERROR(VLOOKUP($A$5,'Equipment List Template'!$1:$1048576,28,FALSE),"0") -> 0 | W23: 0
A24: 20-F1 | B24: E8 | C24: Electrical Unique System | J24: 8 | K24: 0 | L24: 0 | M24: 3 | N24: 0 | O24: 0 | P24: 1 | Q24: 0 | R24: 0 | S24: 12 | T24: 0 | U24: 0 | V24: =IFERROR(VLOOKUP($A$5,'Equipment List Template'!$1:$1048576,29,FALSE),"0") -> 0 | W24: 0
A25: 20-F1 | B25: L1 | C25: Life Safety | J25: 0 | K25: 0 | L25: 0 | M25: 3 | N25: 0 | O25: 0 | P25: 1 | Q25: 0 | R25: 0 | S25: 4 | T25: 4 | U25: 0 | V25: =IFERROR(VLOOKUP($A$5,'Equipment List Template'!$1:$1048576,30,FALSE),"0") -> 1 | W25: =+U25*V25 -> 0
A26: 20-F1 | B26: L2 | C26: Backflow Preventor(s) | J26: 0 | K26: 0 | L26: 0 | M26: 0 | N26: 0 | O26: 0 | P26: 1 | Q26: 0 | R26: 0 | S26: 1 | T26: 1 | U26: 0 | V26: =IFERROR(VLOOKUP($A$5,'Equipment List Template'!$1:$1048576,31,FALSE),"0") -> 5 | W26: =+U26*V26 -> 0
A27: 20-F1 | B27: P1 | C27: Hot Water Boiler | J27: 8 | K27: 0 | L27: 0 | M27: 3 | N27: 0 | O27: 0 | P27: 1 | Q27: 0 | R27: 0 | S27: 12 | T27: 12 | U27: 0 | V27: =IFERROR(VLOOKUP($A$5,'Equipment List Template'!$1:$1048576,32,FALSE),"0") -> 2 | W27: 0
A28: 20-F1 | B28: P2 | C28: Condensing Water Heater | J28: 0 | K28: 0 | L28: 0 | M28: 0 | N28: 0 | O28: 0 | P28: 1 | Q28: 0 | R28: 0 | S28: 1 | T28: 1 | U28: 0 | V28: =IFERROR(VLOOKUP($A$5,'Equipment List Template'!$1:$1048576,33,FALSE),"0") -> 1 | W28: 0
A29: 20-F1 | B29: P3 | C29: Electric Water Heater | J29: 0 | K29: 0 | L29: 0 | M29: 0 | N29: 0 | O29: 0 | P29: 1 | Q29: 0 | R29: 0 | S29: 1 | T29: 0 | U29: 0 | V29: =IFERROR(VLOOKUP($A$5,'Equipment List Template'!$1:$1048576,34,FALSE),"0") -> 0 | W29: 0
A30: 20-F1 | B30: P4 | C30: Plumbing Unique System | J30: 0 | K30: 0 | L30: 0 | M30: 3 | N30: 0 | O30: 0 | P30: 1 | Q30: 0 | R30: 0 | S30: 4 | T30: 0 | U30: 0 | V30: =IFERROR(VLOOKUP($A$5,'Equipment List Template'!$1:$1048576,35,FALSE),"0") -> 0 | W30: 0
A31: 20-F1 | B31: P5 | C31: Steam System | J31: 0 | K31: 0 | L31: 0 | M31: 3 | N31: 0 | O31: 0 | P31: 1 | Q31: 0 | R31: 0 | S31: 4 | T31: 0 | U31: 0 | V31: =IFERROR(VLOOKUP($A$5,'Equipment List Template'!$1:$1048576,36,FALSE),"0") -> 0 | W31: 0
A32: 20-F1 | B32: P6 | C32: Pneumatic Compressor | J32: 11 | K32: 0 | L32: 0 | M32: 0 | N32: 0 | O32: 0 | P32: 1 | Q32: 0 | R32: 0 | S32: 12 | T32: 0 | U32: 0 | V32: =IFERROR(VLOOKUP($A$5,'Equipment List Template'!$1:$1048576,37,FALSE),"0") -> 0 | W32: 0
A33: 20-F1 | B33: R1 | C33: Rounds and Readings | D33: =IFERROR(IF(VLOOKUP($A33,'Equipment List Template'!$1:$1048576,38,FALSE)=260,248,0),0) -> 248 | E33: 0 | F33: =+E33*D33 -> 0 | G33: =IFERROR(IF(VLOOKUP($A33,'Equipment List Template'!$1:$1048576,38,FALSE)=52,40,0),0) -> 0 | H33: 0 | I33: =+H33*G33 -> 0 | J33: 12 | K33: 0 | L33: 0 | S33: 12 | T33: 12 | U33: =+R33+O33+L33+I33+F33 -> 0 | V33: 1 | W33: =+U33*V33 -> 0
A34: 20-F1 | B34: V1 | C34: Vertical Transportation | J34: 8 | K34: 0 | L34: =+K34*J34 -> 0 | M34: 3 | N34: 0 | O34: =+N34*M34 -> 0 | P34: 1 | Q34: 0 | R34: =+Q34*P34 -> 0 | S34: 12 | T34: 12 | U34: =+R34+O34+L34 -> 0 | V34: =IFERROR(VLOOKUP($A$5,'Equipment List Template'!$1:$1048576,39,FALSE),"0") -> 8 | W34: =+U34*V34 -> 0
A35: 20-F1 | B35: W1 | C35: Water Treatment | D35: =IFERROR(IF(VLOOKUP($A35,'Equipment List Template'!$1:$1048576,40,FALSE)=260,260,0),0) -> 260 | E35: 0 | F35: =+E35*D35 -> 0 | S35: 0 | T35: 0 | U35: =+R35+O35+L35+I35+F35 -> 0 | V35: 1 | W35: 0
A36: 20-F1 | B36: B1 | C36: Building Exterior / Hardscape (Monthly) | J36: 12 | K36: 0 | L36: =+K36*J36 -> 0 | S36: 12 | T36: 12 | U36: 0 | V36: 1 | W36: 0
A37: 20-F1 | B37: F1 | C37: Fountain Maintenance (Monthly) | J37: 12 | K37: 0 | L37: 0 | S37: 12 | T37: 12 | U37: 0 | V37: 1 | W37: 0
A38: 20-F1 | B38: F2 | C38: Fuel Storage Tanks (Quarterly) If applicable | M38: 4 | N38: 0 | O38: =+N38*M38 -> 0 | S38: 4 | T38: 4 | U38: 0 | V38: 1 | W38: 0
A39: 20-F1 | B39: G1 | C39: Landscape Maintenance * | G39: 40 | H39: 0 | I39: =+H39*G39 -> 0 | S39: 0 | T39: 0 | U39: 0 | V39: 1 | W39: 0
A40: 20-F1 | B40: C1 | C40: Account Management and Supervision (Monthly) | J40: 12 | K40: 0 | L40: =+K40*J40 -> 0 | S40: 12 | T40: 12 | U40: 0 | V40: 1 | W40: 0
A41: 20-F1 | B41: C2 | C41: Fee (Monthly) | J41: 12 | K41: 0 | L41: 0 | S41: 12 | T41: 12 | U41: 0 | V41: 1 | W41: 0
Q42: JCC ID | R42: =B2 -> 20-F1 | U42: Total | W42: =SUM(W6:W41) -> 0
B43: S1 | C43: Snow Removal - (crew hourly rate) | D43: 0 | U43: Total # of PM's | W43: =SUM(T5:T41) -> 146
B44: I1 | C44: Unclogging Blocked Toilet - In-custody cell (labor-only) | D44: 0
B45: I2 | C45: Unclogging Blocked Toilet - Public/Court Staff (labor-only) | D45: 0
B46: Hr 1 | C46: Hourly Rate (All Labor categories) | D46: 0
B47: M1 | C47: Markup on Materials (Percentage) | D47: 0
B48: Sub1 | C48: Markup on Subcontractors/Third-Parties (Percentage) | D48: 0
B50: * Landscape Maintenance varies by location on the number of weeks per year it can be preformed. For the purpose of the RFP, all facilities are pre-established at 40 weeks of service. The actual amount paid by facility will be based upon the actual weeks that service has been performed, validated and invoiced.

Sheet 20-F2
B1: JCC ID | C1: Facility Name | D1: Address | F1: City / Town | H1: Zip Code | J1: County | L1: Region | N1: RFP | P1: Proposer
B2: 20-F2 | C2: =IFERROR(VLOOKUP($B$2,'Equipment List Template'!$1:$1048576,2,FALSE),"") -> Main Courthouse Parking Garage | D2: =IFERROR(VLOOKUP($B$2,'Equipment List Template'!$1:$1048576,3,FALSE),"") -> 220/224 and 228 South G Street | F2: =IFERROR(VLOOKUP($B$2,'Equipment List Template'!$1:$1048576,4,FALSE),"") -> Madera | H2: =IFERROR(VLOOKUP($B$2,'Equipment List Template'!$1:$1048576,5,FALSE),"") -> 93637 | J2: =IFERROR(VLOOKUP($B$2,'Equipment List Template'!$1:$1048576,6,FALSE),"") -> Madera | L2: =IFERROR(VLOOKUP($B$2,'Equipment List Template'!$1:$1048576,7,FALSE),"") -> NCRO | N2: ='Summary Pricing Sheet'!B2 -> RFP-FS-SP-2019-03-JP | P2: ='Summary Pricing Sheet'!B3 -> TBD
D3: Daily Activity | G3: Weekly Activity | J3: Monthly Activity | M3: Quarterly Activity | P3: Annual Activity | U3: Summary | AG3: System | AH3: HVAC | AS3: Electrical | BA3: Plumbing | BE3: Building Systems | BP3: Corporate | BT3: Fixed Price - Facility Total Annual Cost Year 1
B4: System ID | C4: Subsystem | D4: Quantity | E4: Cost | F4: Daily Total | G4: Quantity | H4: Cost | I4: Weekly Total | J4: Monthly Quantity | K4: Cost | L4: Monthly Total | M4: Quarterly Quantity | N4: Cost | O4: Quarterly Total | P4: Annual Quantity | Q4: Cost | R4: Annual PM Total | T4: Number of PM's | U4: Annual Cost | V4: Quantity | W4: Total Annual Cost | AG4: Subsystem | AH4: Air Cooled DX (Package / Split System) | AI4: Air Handling Unit (Air-cooled DX) | AJ4: Air-Cooled Chiller | AK4: Centrifugal Chiller | AL4: Cooling Tower (Induced Draft) | AM4: Ice Chiller | AN4: Multitask (Geothermal) | AO4: Water Source Heat Pump | AP4: Fan Coil System | AQ4: Exhaust Fan | AR4: HVAC Unique System | AS4: Electrical Panels | AT4: Emergency Generator | AU4: Motor Control Center | AV4: Primary Switch (High) | AW4: Primary Switch (Low) | AX4: Transformer (Dry-Type) | AY4: Uninterruptible Power Supply (UPS) | AZ4: Electrical Unique System | BA4: Hot Water Boiler | BB4: Condensing Water Heater | BC4: Electric Water Heater | BD4: Plumbing Unique System | BE4: Steam System | BF4: Pneumatic Compressor | BG4: Vertical Transportation | BH4: Life Safety | BI4: Backflow Preventor | BJ4: Rounds and Readings | BK4: Access Doors, Gates, Sally Port | BL4: Water Treatment | BM4: Building Exterior / Hardscape (Monthly) | BN4: Fountain Maintenance (Monthly) | BO4: Fuel Storage Tanks (Quarterly) If applicable | BP4: Landscape Maintenance * | BQ4: Account Management and Supervision (Monthly) | BR4: Fee (Monthly) | BV4: Snow Removal - (crew hourly rate) | BW4: Unclogging Blocked Toilet - In-custody holding cell (labor) | BX4: Unclogging Blocked Toilet - Public/Court Staff (labor) | BY4: Hourly Rate | BZ4: Markup on Materials | CA4: Markup on Subcontractors/Third-Parties
A5: =$B$2 -> 20-F2 | B5: A1 | C5: Access Doors, Gates, Sally Port | J5: 11 | K5: 0 | L5: =+K5*J5 -> 0 | M5: 0 | N5: 0 | O5: =+N5*M5 -> 0 | P5: 1 | Q5: 0 | R5: =+Q5*P5 -> 0 | S5: 12 | T5: =IF($V5>0,$S5,0) -> 12 | U5: =+R5+O5+L5+I5+F5 -> 0 | V5: =IFERROR(VLOOKUP($A$5,'Equipment List Template'!$1:$1048576,10,FALSE),"0") -> 1 | W5: =+U5*V5 -> 0 | Z5: JCC ID | AA5: Facility Name | AB5: Address | AC5: City / Town | AD5: County | AE5: Region | AF5: Region | AG5: System ID | AH5: H1 | AI5: H2 | AJ5: H3 | AK5: H4 | AL5: H5 | AM5: H6 | AN5: H7 | AO5: H8 | AP5: H9 | AQ5: H10 | AR5: H11 | AS5: E1 | AT5: E2 | AU5: E3 | AV5: E4 | AW5: E5 | AX5: E6 | AY5: E7 | AZ5: E8 | BA5: P1 | BB5: P2 | BC5: P3 | BD5: P4 | BE5: P5 | BF5: P6 | BG5: V1 | BH5: L1 | BI5: L2 | BJ5: R1 | BK5: A1 | BL5: W1 | BM5: B1 | BN5: F1 | BO5: F2 | BP5: G1 | BQ5: C1 | BR5: C2 | BV5: S1 | BW5: I1 | BX5: I2 | BY5: Hr 1 | BZ5: M1 | CA5: Sub1
A6: =$B$2 -> 20-F2 | B6: H1 | C6: Air Cooled DX (Package / Split System) | J6: 0 | K6: 0 | L6: =+K6*J6 -> 0 | M6: 3 | N6: 0 | O6: =+N6*M6 -> 0 | P6: 1 | Q6: 0 | R6: =+Q6*P6 -> 0 | S6: 4 | T6: =IF($V6>0,$S6,0) -> 4 | U6: =+R6+O6+L6+I6+F6 -> 0 | V6: =IFERROR(VLOOKUP($A$5,'Equipment List Template'!$1:$1048576,11,FALSE),"0") -> 1 | W6: =+U6*V6 -> 0 | Z6: =B2 -> 20-F2 | AA6: =IFERROR(VLOOKUP($Z$6,'Equipment List Template'!$1:$1048576,2,FALSE),"") -> Main Courthouse Parking Garage | AB6: =IFERROR(VLOOKUP($Z$6,'Equipment List Template'!$1:$1048576,3,FALSE),"") -> 220/224 and 228 South G Street | AC6: =IFERROR(VLOOKUP($Z$6,'Equipment List Template'!$1:$1048576,4,FALSE),"") -> Madera | AD6: =IFERROR(VLOOKUP($Z$6,'Equipment List Template'!$1:$1048576,5,FALSE),"") -> 93637 | AE6: =IFERROR(VLOOKUP($Z$6,'Equipment List Template'!$1:$1048576,6,FALSE),"") -> Madera | AF6: =IFERROR(VLOOKUP($Z$6,'Equipment List Template'!$1:$1048576,7,FALSE),"") -> NCRO | AH6: =+$W5 -> 0 | AI6: =+$W6 -> 0 | AJ6: =+$W7 -> 0 | AK6: =+$W8 -> 0 | AL6: =+$W9 -> 0 | AM6: =+$W10 -> 0 | AN6: =+$W11 -> 0 | AO6: =+$W12 -> 0 | AP6: =+$W13 -> 0 | AQ6: =+$W14 -> 0 | AR6: =+$W15 -> 0 | AS6: =+$W16 -> 0 | AT6: =+$W17 -> 0 | AU6: =+$W18 -> 0 | AV6: =+$W19 -> 0 | AW6: =+$W20 -> 0 | AX6: =+$W21 -> 0 | AY6: =+$W22 -> 0 | AZ6: =+$W23 -> 0 | BA6: =+$W24 -> 0 | BB6: =+$W25 -> 0 | BC6: =+$W26 -> 0 | BD6: =+$W27 -> 0 | BE6: =+$W28 -> 0 | BF6: =+$W29 -> 0 | BG6: =+$W30 -> 0 | BH6: =+$W31 -> 0 | BI6: =+$W32 -> 0 | BJ6: =+$W33 -> 0 | BK6: =+$W34 -> 0 | BL6: =+$W35 -> 0 | BM6: =+$W36 -> 0 | BN6: =+$W37 -> 0 | BO6: =+$W38 -> 0 | BP6: =+$W39 -> 0 | BQ6: =+$W40 -> 0 | BR6: =+$W41 -> 0 | BT6: =+W42 -> 0 | BV6: =+D43 -> 0 | BW6: =+D44 -> 0 | BX6: =+D45 -> 0 | BY6: =+D46 -> 0 | BZ6: =+D47 -> 0 | CA6: =+D48 -> 0
A7: 20-F2 | B7: H2 | C7: Air Handling Unit (Air-cooled DX) | J7: 0 | K7: 0 | L7: 0 | M7: 3 | N7: 0 | O7: 0 | P7: 1 | Q7: 0 | R7: 0 | S7: 4 | T7: 0 | U7: 0 | V7: =IFERROR(VLOOKUP($A$5,'Equipment List Template'!$1:$1048576,12,FALSE),"0") -> 0 | W7: =+U7*V7 -> 0
A8: 20-F2 | B8: H3 | C8: Air-Cooled Chiller | G8: 40 | H8: 0 | I8: =+H8*G8 -> 0 | J8: 8 | K8: 0 | L8: 0 | M8: 3 | N8: 0 | O8: 0 | P8: 1 | Q8: 0 | R8: 0 | S8: 12 | T8: 0 | U8: 0 | V8: =IFERROR(VLOOKUP($A$5,'Equipment List Template'!$1:$1048576,13,FALSE),"0") -> 0 | W8: 0
A9: 20-F2 | B9: H4 | C9: Centrifugal Chiller | J9: 11 | K9: 0 | L9: 0 | M9: 0 | N9: 0 | O9: 0 | P9: 1 | Q9: 0 | R9: 0 | S9: 12 | T9: 0 | U9: 0 | V9: =IFERROR(VLOOKUP($A$5,'Equipment List Template'!$1:$1048576,14,FALSE),"0") -> 0 | W9: 0
A10: 20-F2 | B10: H5 | C10: Cooling Tower (Induced Draft) | J10: 8 | K10: 0 | L10: 0 | M10: 3 | N10: 0 | O10: 0 | P10: 1 | Q10: 0 | R10: 0 | S10: 12 | T10: 0 | U10: 0 | V10: =IFERROR(VLOOKUP($A$5,'Equipment List Template'!$1:$1048576,15,FALSE),"0") -> 0 | W10: 0
A11: 20-F2 | B11: H6 | C11: Ice Chiller | J11: 8 | K11: 0 | L11: 0 | M11: 3 | N11: 0 | O11: 0 | P11: 1 | Q11: 0 | R11: 0 | S11: 12 | T11: 0 | U11: 0 | V11: =IFERROR(VLOOKUP($A$5,'Equipment List Template'!$1:$1048576,16,FALSE),"0") -> 0 | W11: 0
A12: 20-F2 | B12: H7 | C12: MultiStack (Geothermal) | J12: 0 | K12: 0 | L12: 0 | M12: 0 | N12: 0 | O12: 0 | P12: 1 | Q12: 0 | R12: 0 | S12: 1 | T12: 0 | U12: 0 | V12: =IFERROR(VLOOKUP($A$5,'Equipment List Template'!$1:$1048576,17,FALSE),"0") -> 0 | W12: 0
A13: 20-F2 | B13: H8 | C13: Water Source Heat Pump | J13: 8 | K13: 0 | L13: 0 | M13: 3 | N13: 0 | O13: 0 | P13: 1 | Q13: 0 | R13: 0 | S13: 12 | T13: 0 | U13: 0 | V13: =IFERROR(VLOOKUP($A$5,'Equipment List Template'!$1:$1048576,18,FALSE),"0") -> 0 | W13: 0
A14: 20-F2 | B14: H9 | C14: Fan Coil System | J14: 0 | K14: 0 | L14: 0 | M14: 3 | N14: 0 | O14: 0 | P14: 1 | Q14: 0 | R14: 0 | S14: 4 | T14: 4 | U14: 0 | V14: =IFERROR(VLOOKUP($A$5,'Equipment List Template'!$1:$1048576,19,FALSE),"0") -> 1 | W14: 0
A15: 20-F2 | B15: H10 | C15: Exhaust Fan | J15: 0 | K15: 0 | L15: 0 | M15: 3 | N15: 0 | O15: 0 | P15: 1 | Q15: 0 | R15: 0 | S15: 4 | T15: 4 | U15: 0 | V15: =IFERROR(VLOOKUP($A$5,'Equipment List Template'!$1:$1048576,20,FALSE),"0") -> 1 | W15: 0
A16: 20-F2 | B16: H11 | C16: HVAC Unique System | J16: 8 | K16: 0 | L16: 0 | M16: 3 | N16: 0 | O16: 0 | P16: 1 | Q16: 0 | R16: 0 | S16: 12 | T16: 0 | U16: 0 | V16: =IFERROR(VLOOKUP($A$5,'Equipment List Template'!$1:$1048576,21,FALSE),"0") -> 0 | W16: 0
A17: 20-F2 | B17: E1 | C17: Electrical Panels | J17: 0 | K17: 0 | L17: 0 | M17: 3 | N17: 0 | O17: 0 | P17: 1 | Q17: 0 | R17: 0 | S17: 4 | T17: 4 | U17: 0 | V17: =IFERROR(VLOOKUP($A$5,'Equipment List Template'!$1:$1048576,22,FALSE),"0") -> 1 | W17: 0
A18: 20-F2 | B18: E2 | C18: Emergency Generator | J18: 0 | K18: 0 | L18: 0 | M18: 3 | N18: 0 | O18: 0 | P18: 1 | Q18: 0 | R18: 0 | S18: 4 | T18: 0 | U18: 0 | V18: =IFERROR(VLOOKUP($A$5,'Equipment List Template'!$1:$1048576,23,FALSE),"0") -> 0 | W18: 0
A19: 20-F2 | B19: E3 | C19: Motor Control Center | J19: 0 | K19: 0 | L19: 0 | M19: 4 | N19: 0 | O19: 0 | P19: 0 | Q19: 0 | R19: 0 | S19: 4 | T19: 0 | U19: 0 | V19: =IFERROR(VLOOKUP($A$5,'Equipment List Template'!$1:$1048576,24,FALSE),"0") -> 0 | W19: 0
A20: 20-F2 | B20: E4 | C20: Primary Switch (High) | J20: 8 | K20: 0 | L20: 0 | M20: 3 | N20: 0 | O20: 0 | P20: 1 | Q20: 0 | R20: 0 | S20: 12 | T20: 0 | U20: 0 | V20: =IFERROR(VLOOKUP($A$5,'Equipment List Template'!$1:$1048576,25,FALSE),"0") -> 0 | W20: 0
A21: 20-F2 | B21: E5 | C21: Primary Switch (Low) | J21: 8 | K21: 0 | L21: 0 | M21: 3 | N21: 0 | O21: 0 | P21: 1 | Q21: 0 | R21: 0 | S21: 12 | T21: 0 | U21: 0 | V21: =IFERROR(VLOOKUP($A$5,'Equipment List Template'!$1:$1048576,26,FALSE),"0") -> 0 | W21: 0
A22: 20-F2 | B22: E6 | C22: Transformer (Dry-Type) | J22: 0 | K22: 0 | L22: 0 | M22: 3 | N22: 0 | O22: 0 | P22: 1 | Q22: 0 | R22: 0 | S22: 4 | T22: 4 | U22: 0 | V22: =IFERROR(VLOOKUP($A$5,'Equipment List Template'!$1:$1048576,27,FALSE),"0") -> 1 | W22: 0
A23: 20-F2 | B23: E7 | C23: Uninterruptible Power Supply (UPS) | J23: 0 | K23: 0 | L23: 0 | M23: 0 | N23: 0 | O23: 0 | P23: 1 | Q23: 0 | R23: 0 | S23: 1 | T23: 1 | U23: 0 | V23: =IFERROR(VLOOKUP($A$5,'Equipment List Template'!$1:$1048576,28,FALSE),"0") -> 1 | W23: 0
A24: 20-F2 | B24: E8 | C24: Electrical Unique System | J24: 8 | K24: 0 | L24: 0 | M24: 3 | N24: 0 | O24: 0 | P24: 1 | Q24: 0 | R24: 0 | S24: 12 | T24: 0 | U24: 0 | V24: =IFERROR(VLOOKUP($A$5,'Equipment List Template'!$1:$1048576,29,FALSE),"0") -> 0 | W24: 0
A25: 20-F2 | B25: L1 | C25: Life Safety | J25: 0 | K25: 0 | L25: 0 | M25: 3 | N25: 0 | O25: 0 | P25: 1 | Q25: 0 | R25: 0 | S25: 4 | T25: 4 | U25: 0 | V25: =IFERROR(VLOOKUP($A$5,'Equipment List Template'!$1:$1048576,30,FALSE),"0") -> 1 | W25: =+U25*V25 -> 0
A26: 20-F2 | B26: L2 | C26: Backflow Preventor(s) | J26: 0 | K26: 0 | L26: 0 | M26: 0 | N26: 0 | O26: 0 | P26: 1 | Q26: 0 | R26: 0 | S26: 1 | T26: 0 | U26: 0 | V26: =IFERROR(VLOOKUP($A$5,'Equipment List Template'!$1:$1048576,31,FALSE),"0") -> 0 | W26: =+U26*V26 -> 0
A27: 20-F2 | B27: P1 | C27: Hot Water Boiler | J27: 8 | K27: 0 | L27: 0 | M27: 3 | N27: 0 | O27: 0 | P27: 1 | Q27: 0 | R27: 0 | S27: 12 | T27: 0 | U27: 0 | V27: =IFERROR(VLOOKUP($A$5,'Equipment List Template'!$1:$1048576,32,FALSE),"0") -> 0 | W27: 0
A28: 20-F2 | B28: P2 | C28: Condensing Water Heater | J28: 0 | K28: 0 | L28: 0 | M28: 0 | N28: 0 | O28: 0 | P28: 1 | Q28: 0 | R28: 0 | S28: 1 | T28: 0 | U28: 0 | V28: =IFERROR(VLOOKUP($A$5,'Equipment List Template'!$1:$1048576,33,FALSE),"0") -> 0 | W28: 0
A29: 20-F2 | B29: P3 | C29: Electric Water Heater | J29: 0 | K29: 0 | L29: 0 | M29: 0 | N29: 0 | O29: 0 | P29: 1 | Q29: 0 | R29: 0 | S29: 1 | T29: 0 | U29: 0 | V29: =IFERROR(VLOOKUP($A$5,'Equipment List Template'!$1:$1048576,34,FALSE),"0") -> 0 | W29: 0
A30: 20-F2 | B30: P4 | C30: Plumbing Unique System | J30: 0 | K30: 0 | L30: 0 | M30: 3 | N30: 0 | O30: 0 | P30: 1 | Q30: 0 | R30: 0 | S30: 4 | T30: 0 | U30: 0 | V30: =IFERROR(VLOOKUP($A$5,'Equipment List Template'!$1:$1048576,35,FALSE),"0") -> 0 | W30: 0
A31: 20-F2 | B31: P5 | C31: Steam System | J31: 0 | K31: 0 | L31: 0 | M31: 3 | N31: 0 | O31: 0 | P31: 1 | Q31: 0 | R31: 0 | S31: 4 | T31: 0 | U31: 0 | V31: =IFERROR(VLOOKUP($A$5,'Equipment List Template'!$1:$1048576,36,FALSE),"0") -> 0 | W31: 0
A32: 20-F2 | B32: P6 | C32: Pneumatic Compressor | J32: 11 | K32: 0 | L32: 0 | M32: 0 | N32: 0 | O32: 0 | P32: 1 | Q32: 0 | R32: 0 | S32: 12 | T32: 0 | U32: 0 | V32: =IFERROR(VLOOKUP($A$5,'Equipment List Template'!$1:$1048576,37,FALSE),"0") -> 0 | W32: 0
A33: 20-F2 | B33: R1 | C33: Rounds and Readings | D33: =IFERROR(IF(VLOOKUP($A33,'Equipment List Template'!$1:$1048576,38,FALSE)=260,248,0),0) -> 0 | E33: 0 | F33: =+E33*D33 -> 0 | G33: =IFERROR(IF(VLOOKUP($A33,'Equipment List Template'!$1:$1048576,38,FALSE)=52,40,0),0) -> 40 | H33: 0 | I33: =+H33*G33 -> 0 | J33: 12 | K33: 0 | L33: 0 | S33: 12 | T33: 12 | U33: =+R33+O33+L33+I33+F33 -> 0 | V33: 1 | W33: =+U33*V33 -> 0
A34: 20-F2 | B34: V1 | C34: Vertical Transportation | J34: 8 | K34: 0 | L34: =+K34*J34 -> 0 | M34: 3 | N34: 0 | O34: =+N34*M34 -> 0 | P34: 1 | Q34: 0 | R34: =+Q34*P34 -> 0 | S34: 12 | T34: 12 | U34: =+R34+O34+L34 -> 0 | V34: =IFERROR(VLOOKUP($A$5,'Equipment List Template'!$1:$1048576,39,FALSE),"0") -> 1 | W34: =+U34*V34 -> 0
A35: 20-F2 | B35: W1 | C35: Water Treatment | D35: =IFERROR(IF(VLOOKUP($A35,'Equipment List Template'!$1:$1048576,40,FALSE)=260,260,0),0) -> 0 | E35: 0 | F35: =+E35*D35 -> 0 | S35: 0 | T35: 0 | U35: =+R35+O35+L35+I35+F35 -> 0 | V35: 1 | W35: 0
A36: 20-F2 | B36: B1 | C36: Building Exterior / Hardscape (Monthly) | J36: 12 | K36: 0 | L36: =+K36*J36 -> 0 | S36: 12 | T36: 12 | U36: 0 | V36: 1 | W36: 0
A37: 20-F2 | B37: F1 | C37: Fountain Maintenance (Monthly) | J37: 12 | K37: 0 | L37: 0 | S37: 12 | T37: 12 | U37: 0 | V37: 1 | W37: 0
A38: 20-F2 | B38: F2 | C38: Fuel Storage Tanks (Quarterly) If applicable | M38: 4 | N38: 0 | O38: =+N38*M38 -> 0 | S38: 4 | T38: 4 | U38: 0 | V38: 1 | W38: 0
A39: 20-F2 | B39: G1 | C39: Landscape Maintenance * | G39: 40 | H39: 0 | I39: =+H39*G39 -> 0 | S39: 0 | T39: 0 | U39: 0 | V39: 1 | W39: 0
A40: 20-F2 | B40: C1 | C40: Account Management and Supervision (Monthly) | J40: 12 | K40: 0 | L40: =+K40*J40 -> 0 | S40: 12 | T40: 12 | U40: 0 | V40: 1 | W40: 0
A41: 20-F2 | B41: C2 | C41: Fee (Monthly) | J41: 12 | K41: 0 | L41: 0 | S41: 12 | T41: 12 | U41: 0 | V41: 1 | W41: 0
Q42: JCC ID | R42: =B2 -> 20-F2 | U42: Total | W42: =SUM(W6:W41) -> 0
B43: S1 | C43: Snow Removal - (crew hourly rate) | D43: 0 | U43: Total # of PM's | W43: =SUM(T5:T41) -> 113
B44: I1 | C44: Unclogging Blocked Toilet - In-custody cell (labor-only) | D44: 0
B45: I2 | C45: Unclogging Blocked Toilet - Public/Court Staff (labor-only) | D45: 0
B46: Hr 1 | C46: Hourly Rate (All Labor categories) | D46: 0
B47: M1 | C47: Markup on Materials (Percentage) | D47: 0
B48: Sub1 | C48: Markup on Subcontractors/Third-Parties (Percentage) | D48: 0
B50: * Landscape Maintenance varies by location on the number of weeks per year it can be preformed. For the purpose of the RFP, all facilities are pre-established at 40 weeks of service. The actual amount paid by facility will be based upon the actual weeks that service has been performed, validated and invoiced.

Sheet 24-A1
B1: JCC ID | C1: Facility Name | D1: Address | F1: City / Town | H1: Zip Code | J1: County | L1: Region | N1: RFP | P1: Proposer
B2: 24-A1 | C2: =IFERROR(VLOOKUP($B$2,'Equipment List Template'!$1:$1048576,2,FALSE),"") -> Old Court | D2: =IFERROR(VLOOKUP($B$2,'Equipment List Template'!$1:$1048576,3,FALSE),"") -> 627 W. 21st Street | F2: =IFERROR(VLOOKUP($B$2,'Equipment List Template'!$1:$1048576,4,FALSE),"") -> Merced | H2: =IFERROR(VLOOKUP($B$2,'Equipment List Template'!$1:$1048576,5,FALSE),"") -> 95340 | J2: =IFERROR(VLOOKUP($B$2,'Equipment List Template'!$1:$1048576,6,FALSE),"") -> Merced | L2: =IFERROR(VLOOKUP($B$2,'Equipment List Template'!$1:$1048576,7,FALSE),"") -> NCRO | N2: ='Summary Pricing Sheet'!B2 -> RFP-FS-SP-2019-03-JP | P2: ='Summary Pricing Sheet'!B3 -> TBD
D3: Daily Activity | G3: Weekly Activity | J3: Monthly Activity | M3: Quarterly Activity | P3: Annual Activity | U3: Summary | AG3: System | AH3: HVAC | AS3: Electrical | BA3: Plumbing | BE3: Building Systems | BP3: Corporate | BT3: Fixed Price - Facility Total Annual Cost Year 1
B4: System ID | C4: Subsystem | D4: Quantity | E4: Cost | F4: Daily Total | G4: Quantity | H4: Cost | I4: Weekly Total | J4: Monthly Quantity | K4: Cost | L4: Monthly Total | M4: Quarterly Quantity | N4: Cost | O4: Quarterly Total | P4: Annual Quantity | Q4: Cost | R4: Annual PM Total | T4: Number of PM's | U4: Annual Cost | V4: Quantity | W4: Total Annual Cost | AG4: Subsystem | AH4: Air Cooled DX (Package / Split System) | AI4: Air Handling Unit (Air-cooled DX) | AJ4: Air-Cooled Chiller | AK4: Centrifugal Chiller | AL4: Cooling Tower (Induced Draft) | AM4: Ice Chiller | AN4: Multitask (Geothermal) | AO4: Water Source Heat Pump | AP4: Fan Coil System | AQ4: Exhaust Fan | AR4: HVAC Unique System | AS4: Electrical Panels | AT4: Emergency Generator | AU4: Motor Control Center | AV4: Primary Switch (High) | AW4: Primary Switch (Low) | AX4: Transformer (Dry-Type) | AY4: Uninterruptible Power Supply (UPS) | AZ4: Electrical Unique System | BA4: Hot Water Boiler | BB4: Condensing Water Heater | BC4: Electric Water Heater | BD4: Plumbing Unique System | BE4: Steam System | BF4: Pneumatic Compressor | BG4: Vertical Transportation | BH4: Life Safety | BI4: Backflow Preventor | BJ4: Rounds and Readings | BK4: Access Doors, Gates, Sally Port | BL4: Water Treatment | BM4: Building Exterior / Hardscape (Monthly) | BN4: Fountain Maintenance (Monthly) | BO4: Fuel Storage Tanks (Quarterly) If applicable | BP4: Landscape Maintenance * | BQ4: Account Management and Supervision (Monthly) | BR4: Fee (Monthly) | BV4: Snow Removal - (crew hourly rate) | BW4: Unclogging Blocked Toilet - In-custody holding cell (labor) | BX4: Unclogging Blocked Toilet - Public/Court Staff (labor) | BY4: Hourly Rate | BZ4: Markup on Materials | CA4: Markup on Subcontractors/Third-Parties
A5: =$B$2 -> 24-A1 | B5: A1 | C5: Access Doors, Gates, Sally Port | J5: 11 | K5: 0 | L5: =+K5*J5 -> 0 | M5: 0 | N5: 0 | O5: =+N5*M5 -> 0 | P5: 1 | Q5: 0 | R5: =+Q5*P5 -> 0 | S5: 12 | T5: =IF($V5>0,$S5,0) -> 12 | U5: =+R5+O5+L5+I5+F5 -> 0 | V5: =IFERROR(VLOOKUP($A$5,'Equipment List Template'!$1:$1048576,10,FALSE),"0") -> 1 | W5: =+U5*V5 -> 0 | Z5: JCC ID | AA5: Facility Name | AB5: Address | AC5: City / Town | AD5: County | AE5: Region | AF5: Region | AG5: System ID | AH5: H1 | AI5: H2 | AJ5: H3 | AK5: H4 | AL5: H5 | AM5: H6 | AN5: H7 | AO5: H8 | AP5: H9 | AQ5: H10 | AR5: H11 | AS5: E1 | AT5: E2 | AU5: E3 | AV5: E4 | AW5: E5 | AX5: E6 | AY5: E7 | AZ5: E8 | BA5: P1 | BB5: P2 | BC5: P3 | BD5: P4 | BE5: P5 | BF5: P6 | BG5: V1 | BH5: L1 | BI5: L2 | BJ5: R1 | BK5: A1 | BL5: W1 | BM5: B1 | BN5: F1 | BO5: F2 | BP5: G1 | BQ5: C1 | BR5: C2 | BV5: S1 | BW5: I1 | BX5: I2 | BY5: Hr 1 | BZ5: M1 | CA5: Sub1
A6: =$B$2 -> 24-A1 | B6: H1 | C6: Air Cooled DX (Package / Split System) | J6: 0 | K6: 0 | L6: =+K6*J6 -> 0 | M6: 3 | N6: 0 | O6: =+N6*M6 -> 0 | P6: 1 | Q6: 0 | R6: =+Q6*P6 -> 0 | S6: 4 | T6: =IF($V6>0,$S6,0) -> 4 | U6: =+R6+O6+L6+I6+F6 -> 0 | V6: =IFERROR(VLOOKUP($A$5,'Equipment List Template'!$1:$1048576,11,FALSE),"0") -> 4 | W6: =+U6*V6 -> 0 | Z6: =B2 -> 24-A1 | AA6: =IFERROR(VLOOKUP($Z$6,'Equipment List Template'!$1:$1048576,2,FALSE),"") -> Old Court | AB6: =IFERROR(VLOOKUP($Z$6,'Equipment List Template'!$1:$1048576,3,FALSE),"") -> 627 W. 21st Street | AC6: =IFERROR(VLOOKUP($Z$6,'Equipment List Template'!$1:$1048576,4,FALSE),"") -> Merced | AD6: =IFERROR(VLOOKUP($Z$6,'Equipment List Template'!$1:$1048576,5,FALSE),"") -> 95340 | AE6: =IFERROR(VLOOKUP($Z$6,'Equipment List Template'!$1:$1048576,6,FALSE),"") -> Merced | AF6: =IFERROR(VLOOKUP($Z$6,'Equipment List Template'!$1:$1048576,7,FALSE),"") -> NCRO | AH6: =+$W5 -> 0 | AI6: =+$W6 -> 0 | AJ6: =+$W7 -> 0 | AK6: =+$W8 -> 0 | AL6: =+$W9 -> 0 | AM6: =+$W10 -> 0 | AN6: =+$W11 -> 0 | AO6: =+$W12 -> 0 | AP6: =+$W13 -> 0 | AQ6: =+$W14 -> 0 | AR6: =+$W15 -> 0 | AS6: =+$W16 -> 0 | AT6: =+$W17 -> 0 | AU6: =+$W18 -> 0 | AV6: =+$W19 -> 0 | AW6: =+$W20 -> 0 | AX6: =+$W21 -> 0 | AY6: =+$W22 -> 0 | AZ6: =+$W23 -> 0 | BA6: =+$W24 -> 0 | BB6: =+$W25 -> 0 | BC6: =+$W26 -> 0 | BD6: =+$W27 -> 0 | BE6: =+$W28 -> 0 | BF6: =+$W29 -> 0 | BG6: =+$W30 -> 0 | BH6: =+$W31 -> 0 | BI6: =+$W32 -> 0 | BJ6: =+$W33 -> 0 | BK6: =+$W34 -> 0 | BL6: =+$W35 -> 0 | BM6: =+$W36 -> 0 | BN6: =+$W37 -> 0 | BO6: =+$W38 -> 0 | BP6: =+$W39 -> 0 | BQ6: =+$W40 -> 0 | BR6: =+$W41 -> 0 | BT6: =+W42 -> 0 | BV6: =+D43 -> 0 | BW6: =+D44 -> 0 | BX6: =+D45 -> 0 | BY6: =+D46 -> 0 | BZ6: =+D47 -> 0 | CA6: =+D48 -> 0
A7: 24-A1 | B7: H2 | C7: Air Handling Unit (Air-cooled DX) | J7: 0 | K7: 0 | L7: 0 | M7: 3 | N7: 0 | O7: 0 | P7: 1 | Q7: 0 | R7: 0 | S7: 4 | T7: 4 | U7: 0 | V7: =IFERROR(VLOOKUP($A$5,'Equipment List Template'!$1:$1048576,12,FALSE),"0") -> 8 | W7: =+U7*V7 -> 0
A8: 24-A1 | B8: H3 | C8: Air-Cooled Chiller | G8: 40 | H8: 0 | I8: =+H8*G8 -> 0 | J8: 8 | K8: 0 | L8: 0 | M8: 3 | N8: 0 | O8: 0 | P8: 1 | Q8: 0 | R8: 0 | S8: 12 | T8: 0 | U8: 0 | V8: =IFERROR(VLOOKUP($A$5,'Equipment List Template'!$1:$1048576,13,FALSE),"0") -> 0 | W8: 0
A9: 24-A1 | B9: H4 | C9: Centrifugal Chiller | J9: 11 | K9: 0 | L9: 0 | M9: 0 | N9: 0 | O9: 0 | P9: 1 | Q9: 0 | R9: 0 | S9: 12 | T9: 0 | U9: 0 | V9: =IFERROR(VLOOKUP($A$5,'Equipment List Template'!$1:$1048576,14,FALSE),"0") -> 0 | W9: 0
A10: 24-A1 | B10: H5 | C10: Cooling Tower (Induced Draft) | J10: 8 | K10: 0 | L10: 0 | M10: 3 | N10: 0 | O10: 0 | P10: 1 | Q10: 0 | R10: 0 | S10: 12 | T10: 0 | U10: 0 | V10: =IFERROR(VLOOKUP($A$5,'Equipment List Template'!$1:$1048576,15,FALSE),"0") -> 0 | W10: 0
A11: 24-A1 | B11: H6 | C11: Ice Chiller | J11: 8 | K11: 0 | L11: 0 | M11: 3 | N11: 0 | O11: 0 | P11: 1 | Q11: 0 | R11: 0 | S11: 12 | T11: 0 | U11: 0 | V11: =IFERROR(VLOOKUP($A$5,'Equipment List Template'!$1:$1048576,16,FALSE),"0") -> 0 | W11: 0
A12: 24-A1 | B12: H7 | C12: MultiStack (Geothermal) | J12: 0 | K12: 0 | L12: 0 | M12: 0 | N12: 0 | O12: 0 | P12: 1 | Q12: 0 | R12: 0 | S12: 1 | T12: 0 | U12: 0 | V12: =IFERROR(VLOOKUP($A$5,'Equipment List Template'!$1:$1048576,17,FALSE),"0") -> 0 | W12: 0
A13: 24-A1 | B13: H8 | C13: Water Source Heat Pump | J13: 8 | K13: 0 | L13: 0 | M13: 3 | N13: 0 | O13: 0 | P13: 1 | Q13: 0 | R13: 0 | S13: 12 | T13: 0 | U13: 0 | V13: =IFERROR(VLOOKUP($A$5,'Equipment List Template'!$1:$1048576,18,FALSE),"0") -> 0 | W13: 0
A14: 24-A1 | B14: H9 | C14: Fan Coil System | J14: 0 | K14: 0 | L14: 0 | M14: 3 | N14: 0 | O14: 0 | P14: 1 | Q14: 0 | R14: 0 | S14: 4 | T14: 0 | U14: 0 | V14: =IFERROR(VLOOKUP($A$5,'Equipment List Template'!$1:$1048576,19,FALSE),"0") -> 0 | W14: 0
A15: 24-A1 | B15: H10 | C15: Exhaust Fan | J15: 0 | K15: 0 | L15: 0 | M15: 3 | N15: 0 | O15: 0 | P15: 1 | Q15: 0 | R15: 0 | S15: 4 | T15: 0 | U15: 0 | V15: =IFERROR(VLOOKUP($A$5,'Equipment List Template'!$1:$1048576,20,FALSE),"0") -> 0 | W15: 0
A16: 24-A1 | B16: H11 | C16: HVAC Unique System | J16: 8 | K16: 0 | L16: 0 | M16: 3 | N16: 0 | O16: 0 | P16: 1 | Q16: 0 | R16: 0 | S16: 12 | T16: 0 | U16: 0 | V16: =IFERROR(VLOOKUP($A$5,'Equipment List Template'!$1:$1048576,21,FALSE),"0") -> 0 | W16: 0
A17: 24-A1 | B17: E1 | C17: Electrical Panels | J17: 0 | K17: 0 | L17: 0 | M17: 3 | N17: 0 | O17: 0 | P17: 1 | Q17: 0 | R17: 0 | S17: 4 | T17: 0 | U17: 0 | V17: =IFERROR(VLOOKUP($A$5,'Equipment List Template'!$1:$1048576,22,FALSE),"0") -> 0 | W17: 0
A18: 24-A1 | B18: E2 | C18: Emergency Generator | J18: 0 | K18: 0 | L18: 0 | M18: 3 | N18: 0 | O18: 0 | P18: 1 | Q18: 0 | R18: 0 | S18: 4 | T18: 0 | U18: 0 | V18: =IFERROR(VLOOKUP($A$5,'Equipment List Template'!$1:$1048576,23,FALSE),"0") -> 0 | W18: 0
A19: 24-A1 | B19: E3 | C19: Motor Control Center | J19: 0 | K19: 0 | L19: 0 | M19: 4 | N19: 0 | O19: 0 | P19: 0 | Q19: 0 | R19: 0 | S19: 4 | T19: 0 | U19: 0 | V19: =IFERROR(VLOOKUP($A$5,'Equipment List Template'!$1:$1048576,24,FALSE),"0") -> 0 | W19: 0
A20: 24-A1 | B20: E4 | C20: Primary Switch (High) | J20: 8 | K20: 0 | L20: 0 | M20: 3 | N20: 0 | O20: 0 | P20: 1 | Q20: 0 | R20: 0 | S20: 12 | T20: 0 | U20: 0 | V20: =IFERROR(VLOOKUP($A$5,'Equipment List Template'!$1:$1048576,25,FALSE),"0") -> 0 | W20: 0
A21: 24-A1 | B21: E5 | C21: Primary Switch (Low) | J21: 8 | K21: 0 | L21: 0 | M21: 3 | N21: 0 | O21: 0 | P21: 1 | Q21: 0 | R21: 0 | S21: 12 | T21: 0 | U21: 0 | V21: =IFERROR(VLOOKUP($A$5,'Equipment List Template'!$1:$1048576,26,FALSE),"0") -> 0 | W21: 0
A22: 24-A1 | B22: E6 | C22: Transformer (Dry-Type) | J22: 0 | K22: 0 | L22: 0 | M22: 3 | N22: 0 | O22: 0 | P22: 1 | Q22: 0 | R22: 0 | S22: 4 | T22: 0 | U22: 0 | V22: =IFERROR(VLOOKUP($A$5,'Equipment List Template'!$1:$1048576,27,FALSE),"0") -> 0 | W22: 0
A23: 24-A1 | B23: E7 | C23: Uninterruptible Power Supply (UPS) | J23: 0 | K23: 0 | L23: 0 | M23: 0 | N23: 0 | O23: 0 | P23: 1 | Q23: 0 | R23: 0 | S23: 1 | T23: 0 | U23: 0 | V23: =IFERROR(VLOOKUP($A$5,'Equipment List Template'!$1:$1048576,28,FALSE),"0") -> 0 | W23: 0
A24: 24-A1 | B24: E8 | C24: Electrical Unique System | J24: 8 | K24: 0 | L24: 0 | M24: 3 | N24: 0 | O24: 0 | P24: 1 | Q24: 0 | R24: 0 | S24: 12 | T24: 0 | U24: 0 | V24: =IFERROR(VLOOKUP($A$5,'Equipment List Template'!$1:$1048576,29,FALSE),"0") -> 0 | W24: 0
A25: 24-A1 | B25: L1 | C25: Life Safety | J25: 0 | K25: 0 | L25: 0 | M25: 3 | N25: 0 | O25: 0 | P25: 1 | Q25: 0 | R25: 0 | S25: 4 | T25: 4 | U25: 0 | V25: =IFERROR(VLOOKUP($A$5,'Equipment List Template'!$1:$1048576,30,FALSE),"0") -> 1 | W25: =+U25*V25 -> 0
A26: 24-A1 | B26: L2 | C26: Backflow Preventor(s) | J26: 0 | K26: 0 | L26: 0 | M26: 0 | N26: 0 | O26: 0 | P26: 1 | Q26: 0 | R26: 0 | S26: 1 | T26: 1 | U26: 0 | V26: =IFERROR(VLOOKUP($A$5,'Equipment List Template'!$1:$1048576,31,FALSE),"0") -> 3 | W26: =+U26*V26 -> 0
A27: 24-A1 | B27: P1 | C27: Hot Water Boiler | J27: 8 | K27: 0 | L27: 0 | M27: 3 | N27: 0 | O27: 0 | P27: 1 | Q27: 0 | R27: 0 | S27: 12 | T27: 0 | U27: 0 | V27: =IFERROR(VLOOKUP($A$5,'Equipment List Template'!$1:$1048576,32,FALSE),"0") -> 0 | W27: 0
A28: 24-A1 | B28: P2 | C28: Condensing Water Heater | J28: 0 | K28: 0 | L28: 0 | M28: 0 | N28: 0 | O28: 0 | P28: 1 | Q28: 0 | R28: 0 | S28: 1 | T28: 0 | U28: 0 | V28: =IFERROR(VLOOKUP($A$5,'Equipment List Template'!$1:$1048576,33,FALSE),"0") -> 0 | W28: 0
A29: 24-A1 | B29: P3 | C29: Electric Water Heater | J29: 0 | K29: 0 | L29: 0 | M29: 0 | N29: 0 | O29: 0 | P29: 1 | Q29: 0 | R29: 0 | S29: 1 | T29: 1 | U29: 0 | V29: =IFERROR(VLOOKUP($A$5,'Equipment List Template'!$1:$1048576,34,FALSE),"0") -> 1 | W29: 0
A30: 24-A1 | B30: P4 | C30: Plumbing Unique System | J30: 0 | K30: 0 | L30: 0 | M30: 3 | N30: 0 | O30: 0 | P30: 1 | Q30: 0 | R30: 0 | S30: 4 | T30: 0 | U30: 0 | V30: =IFERROR(VLOOKUP($A$5,'Equipment List Template'!$1:$1048576,35,FALSE),"0") -> 0 | W30: 0
A31: 24-A1 | B31: P5 | C31: Steam System | J31: 0 | K31: 0 | L31: 0 | M31: 3 | N31: 0 | O31: 0 | P31: 1 | Q31: 0 | R31: 0 | S31: 4 | T31: 0 | U31: 0 | V31: =IFERROR(VLOOKUP($A$5,'Equipment List Template'!$1:$1048576,36,FALSE),"0") -> 0 | W31: 0
A32: 24-A1 | B32: P6 | C32: Pneumatic Compressor | J32: 11 | K32: 0 | L32: 0 | M32: 0 | N32: 0 | O32: 0 | P32: 1 | Q32: 0 | R32: 0 | S32: 12 | T32: 0 | U32: 0 | V32: =IFERROR(VLOOKUP($A$5,'Equipment List Template'!$1:$1048576,37,FALSE),"0") -> 0 | W32: 0
A33: 24-A1 | B33: R1 | C33: Rounds and Readings | D33: =IFERROR(IF(VLOOKUP($A33,'Equipment List Template'!$1:$1048576,38,FALSE)=260,248,0),0) -> 0 | E33: 0 | F33: =+E33*D33 -> 0 | G33: =IFERROR(IF(VLOOKUP($A33,'Equipment List Template'!$1:$1048576,38,FALSE)=52,40,0),0) -> 40 | H33: 0 | I33: =+H33*G33 -> 0 | J33: 12 | K33: 0 | L33: 0 | S33: 12 | T33: 12 | U33: =+R33+O33+L33+I33+F33 -> 0 | V33: 1 | W33: =+U33*V33 -> 0
A34: 24-A1 | B34: V1 | C34: Vertical Transportation | J34: 8 | K34: 0 | L34: =+K34*J34 -> 0 | M34: 3 | N34: 0 | O34: =+N34*M34 -> 0 | P34: 1 | Q34: 0 | R34: =+Q34*P34 -> 0 | S34: 12 | T34: 0 | U34: =+R34+O34+L34 -> 0 | V34: =IFERROR(VLOOKUP($A$5,'Equipment List Template'!$1:$1048576,39,FALSE),"0") -> 0 | W34: =+U34*V34 -> 0
A35: 24-A1 | B35: W1 | C35: Water Treatment | D35: =IFERROR(IF(VLOOKUP($A35,'Equipment List Template'!$1:$1048576,40,FALSE)=260,260,0),0) -> 0 | E35: 0 | F35: =+E35*D35 -> 0 | S35: 0 | T35: 0 | U35: =+R35+O35+L35+I35+F35 -> 0 | V35: 1 | W35: 0
A36: 24-A1 | B36: B1 | C36: Building Exterior / Hardscape (Monthly) | J36: 12 | K36: 0 | L36: =+K36*J36 -> 0 | S36: 12 | T36: 12 | U36: 0 | V36: 1 | W36: 0
A37: 24-A1 | B37: F1 | C37: Fountain Maintenance (Monthly) | J37: 12 | K37: 0 | L37: 0 | S37: 12 | T37: 12 | U37: 0 | V37: 1 | W37: 0
A38: 24-A1 | B38: F2 | C38: Fuel Storage Tanks (Quarterly) If applicable | M38: 4 | N38: 0 | O38: =+N38*M38 -> 0 | S38: 4 | T38: 4 | U38: 0 | V38: 1 | W38: 0
A39: 24-A1 | B39: G1 | C39: Landscape Maintenance * | G39: 40 | H39: 0 | I39: =+H39*G39 -> 0 | S39: 0 | T39: 0 | U39: 0 | V39: 1 | W39: 0
A40: 24-A1 | B40: C1 | C40: Account Management and Supervision (Monthly) | J40: 12 | K40: 0 | L40: =+K40*J40 -> 0 | S40: 12 | T40: 12 | U40: 0 | V40: 1 | W40: 0
A41: 24-A1 | B41: C2 | C41: Fee (Monthly) | J41: 12 | K41: 0 | L41: 0 | S41: 12 | T41: 12 | U41: 0 | V41: 1 | W41: 0
Q42: JCC ID | R42: =B2 -> 24-A1 | U42: Total | W42: =SUM(W6:W41) -> 0
B43: S1 | C43: Snow Removal - (crew hourly rate) | D43: 0 | U43: Total # of PM's | W43: =SUM(T5:T41) -> 90
B44: I1 | C44: Unclogging Blocked Toilet - In-custody cell (labor-only) | D44: 0
B45: I2 | C45: Unclogging Blocked Toilet - Public/Court Staff (labor-only) | D45: 0
B46: Hr 1 | C46: Hourly Rate (All Labor categories) | D46: 0
B47: M1 | C47: Markup on Materials (Percentage) | D47: 0
B48: Sub1 | C48: Markup on Subcontractors/Third-Parties (Percentage) | D48: 0
B50: * Landscape Maintenance varies by location on the number of weeks per year it can be preformed. For the purpose of the RFP, all facilities are pre-established at 40 weeks of service. The actual amount paid by facility will be based upon the actual weeks that service has been performed, validated and invoiced.

Sheet 24-A8
B1: JCC ID | C1: Facility Name | D1: Address | F1: City / Town | H1: Zip Code | J1: County | L1: Region | N1: RFP | P1: Proposer
B2: 24-A8 | C2: =IFERROR(VLOOKUP($B$2,'Equipment List Template'!$1:$1048576,2,FALSE),"") -> Main Merced Courthouse | D2: =IFERROR(VLOOKUP($B$2,'Equipment List Template'!$1:$1048576,3,FALSE),"") -> 2260 N Street | F2: =IFERROR(VLOOKUP($B$2,'Equipment List Template'!$1:$1048576,4,FALSE),"") -> Merced | H2: =IFERROR(VLOOKUP($B$2,'Equipment List Template'!$1:$1048576,5,FALSE),"") -> 95340 | J2: =IFERROR(VLOOKUP($B$2,'Equipment List Template'!$1:$1048576,6,FALSE),"") -> Merced | L2: =IFERROR(VLOOKUP($B$2,'Equipment List Template'!$1:$1048576,7,FALSE),"") -> NCRO | N2: ='Summary Pricing Sheet'!B2 -> RFP-FS-SP-2019-03-JP | P2: ='Summary Pricing Sheet'!B3 -> TBD
D3: Daily Activity | G3: Weekly Activity | J3: Monthly Activity | M3: Quarterly Activity | P3: Annual Activity | U3: Summary | AG3: System | AH3: HVAC | AS3: Electrical | BA3: Plumbing | BE3: Building Systems | BP3: Corporate | BT3: Fixed Price - Facility Total Annual Cost Year 1
B4: System ID | C4: Subsystem | D4: Quantity | E4: Cost | F4: Daily Total | G4: Quantity | H4: Cost | I4: Weekly Total | J4: Monthly Quantity | K4: Cost | L4: Monthly Total | M4: Quarterly Quantity | N4: Cost | O4: Quarterly Total | P4: Annual Quantity | Q4: Cost | R4: Annual PM Total | T4: Number of PM's | U4: Annual Cost | V4: Quantity | W4: Total Annual Cost | AG4: Subsystem | AH4: Air Cooled DX (Package / Split System) | AI4: Air Handling Unit (Air-cooled DX) | AJ4: Air-Cooled Chiller | AK4: Centrifugal Chiller | AL4: Cooling Tower (Induced Draft) | AM4: Ice Chiller | AN4: Multitask (Geothermal) | AO4: Water Source Heat Pump | AP4: Fan Coil System | AQ4: Exhaust Fan | AR4: HVAC Unique System | AS4: Electrical Panels | AT4: Emergency Generator | AU4: Motor Control Center | AV4: Primary Switch (High) | AW4: Primary Switch (Low) | AX4: Transformer (Dry-Type) | AY4: Uninterruptible Power Supply (UPS) | AZ4: Electrical Unique System | BA4: Hot Water Boiler | BB4: Condensing Water Heater | BC4: Electric Water Heater | BD4: Plumbing Unique System | BE4: Steam System | BF4: Pneumatic Compressor | BG4: Vertical Transportation | BH4: Life Safety | BI4: Backflow Preventor | BJ4: Rounds and Readings | BK4: Access Doors, Gates, Sally Port | BL4: Water Treatment | BM4: Building Exterior / Hardscape (Monthly) | BN4: Fountain Maintenance (Monthly) | BO4: Fuel Storage Tanks (Quarterly) If applicable | BP4: Landscape Maintenance * | BQ4: Account Management and Supervision (Monthly) | BR4: Fee (Monthly) | BV4: Snow Removal - (crew hourly rate) | BW4: Unclogging Blocked Toilet - In-custody holding cell (labor) | BX4: Unclogging Blocked Toilet - Public/Court Staff (labor) | BY4: Hourly Rate | BZ4: Markup on Materials | CA4: Markup on Subcontractors/Third-Parties
A5: =$B$2 -> 24-A8 | B5: A1 | C5: Access Doors, Gates, Sally Port | J5: 11 | K5: 0 | L5: =+K5*J5 -> 0 | M5: 0 | N5: 0 | O5: =+N5*M5 -> 0 | P5: 1 | Q5: 0 | R5: =+Q5*P5 -> 0 | S5: 12 | T5: =IF($V5>0,$S5,0) -> 12 | U5: =+R5+O5+L5+I5+F5 -> 0 | V5: =IFERROR(VLOOKUP($A$5,'Equipment List Template'!$1:$1048576,10,FALSE),"0") -> 1 | W5: =+U5*V5 -> 0 | Z5: JCC ID | AA5: Facility Name | AB5: Address | AC5: City / Town | AD5: County | AE5: Region | AF5: Region | AG5: System ID | AH5: H1 | AI5: H2 | AJ5: H3 | AK5: H4 | AL5: H5 | AM5: H6 | AN5: H7 | AO5: H8 | AP5: H9 | AQ5: H10 | AR5: H11 | AS5: E1 | AT5: E2 | AU5: E3 | AV5: E4 | AW5: E5 | AX5: E6 | AY5: E7 | AZ5: E8 | BA5: P1 | BB5: P2 | BC5: P3 | BD5: P4 | BE5: P5 | BF5: P6 | BG5: V1 | BH5: L1 | BI5: L2 | BJ5: R1 | BK5: A1 | BL5: W1 | BM5: B1 | BN5: F1 | BO5: F2 | BP5: G1 | BQ5: C1 | BR5: C2 | BV5: S1 | BW5: I1 | BX5: I2 | BY5: Hr 1 | BZ5: M1 | CA5: Sub1
A6: =$B$2 -> 24-A8 | B6: H1 | C6: Air Cooled DX (Package / Split System) | J6: 0 | K6: 0 | L6: =+K6*J6 -> 0 | M6: 3 | N6: 0 | O6: =+N6*M6 -> 0 | P6: 1 | Q6: 0 | R6: =+Q6*P6 -> 0 | S6: 4 | T6: =IF($V6>0,$S6,0) -> 4 | U6: =+R6+O6+L6+I6+F6 -> 0 | V6: =IFERROR(VLOOKUP($A$5,'Equipment List Template'!$1:$1048576,11,FALSE),"0") -> 1 | W6: =+U6*V6 -> 0 | Z6: =B2 -> 24-A8 | AA6: =IFERROR(VLOOKUP($Z$6,'Equipment List Template'!$1:$1048576,2,FALSE),"") -> Main Merced Courthouse | AB6: =IFERROR(VLOOKUP($Z$6,'Equipment List Template'!$1:$1048576,3,FALSE),"") -> 2260 N Street | AC6: =IFERROR(VLOOKUP($Z$6,'Equipment List Template'!$1:$1048576,4,FALSE),"") -> Merced | AD6: =IFERROR(VLOOKUP($Z$6,'Equipment List Template'!$1:$1048576,5,FALSE),"") -> 95340 | AE6: =IFERROR(VLOOKUP($Z$6,'Equipment List Template'!$1:$1048576,6,FALSE),"") -> Merced | AF6: =IFERROR(VLOOKUP($Z$6,'Equipment List Template'!$1:$1048576,7,FALSE),"") -> NCRO | AH6: =+$W5 -> 0 | AI6: =+$W6 -> 0 | AJ6: =+$W7 -> 0 | AK6: =+$W8 -> 0 | AL6: =+$W9 -> 0 | AM6: =+$W10 -> 0 | AN6: =+$W11 -> 0 | AO6: =+$W12 -> 0 | AP6: =+$W13 -> 0 | AQ6: =+$W14 -> 0 | AR6: =+$W15 -> 0 | AS6: =+$W16 -> 0 | AT6: =+$W17 -> 0 | AU6: =+$W18 -> 0 | AV6: =+$W19 -> 0 | AW6: =+$W20 -> 0 | AX6: =+$W21 -> 0 | AY6: =+$W22 -> 0 | AZ6: =+$W23 -> 0 | BA6: =+$W24 -> 0 | BB6: =+$W25 -> 0 | BC6: =+$W26 -> 0 | BD6: =+$W27 -> 0 | BE6: =+$W28 -> 0 | BF6: =+$W29 -> 0 | BG6: =+$W30 -> 0 | BH6: =+$W31 -> 0 | BI6: =+$W32 -> 0 | BJ6: =+$W33 -> 0 | BK6: =+$W34 -> 0 | BL6: =+$W35 -> 0 | BM6: =+$W36 -> 0 | BN6: =+$W37 -> 0 | BO6: =+$W38 -> 0 | BP6: =+$W39 -> 0 | BQ6: =+$W40 -> 0 | BR6: =+$W41 -> 0 | BT6: =+W42 -> 0 | BV6: =+D43 -> 0 | BW6: =+D44 -> 0 | BX6: =+D45 -> 0 | BY6: =+D46 -> 0 | BZ6: =+D47 -> 0 | CA6: =+D48 -> 0
A7: 24-A8 | B7: H2 | C7: Air Handling Unit (Air-cooled DX) | J7: 0 | K7: 0 | L7: 0 | M7: 3 | N7: 0 | O7: 0 | P7: 1 | Q7: 0 | R7: 0 | S7: 4 | T7: 4 | U7: 0 | V7: =IFERROR(VLOOKUP($A$5,'Equipment List Template'!$1:$1048576,12,FALSE),"0") -> 2 | W7: =+U7*V7 -> 0
A8: 24-A8 | B8: H3 | C8: Air-Cooled Chiller | G8: 40 | H8: 0 | I8: =+H8*G8 -> 0 | J8: 8 | K8: 0 | L8: 0 | M8: 3 | N8: 0 | O8: 0 | P8: 1 | Q8: 0 | R8: 0 | S8: 12 | T8: 0 | U8: 0 | V8: =IFERROR(VLOOKUP($A$5,'Equipment List Template'!$1:$1048576,13,FALSE),"0") -> 0 | W8: 0
A9: 24-A8 | B9: H4 | C9: Centrifugal Chiller | J9: 11 | K9: 0 | L9: 0 | M9: 0 | N9: 0 | O9: 0 | P9: 1 | Q9: 0 | R9: 0 | S9: 12 | T9: 0 | U9: 0 | V9: =IFERROR(VLOOKUP($A$5,'Equipment List Template'!$1:$1048576,14,FALSE),"0") -> 0 | W9: 0
A10: 24-A8 | B10: H5 | C10: Cooling Tower (Induced Draft) | J10: 8 | K10: 0 | L10: 0 | M10: 3 | N10: 0 | O10: 0 | P10: 1 | Q10: 0 | R10: 0 | S10: 12 | T10: 0 | U10: 0 | V10: =IFERROR(VLOOKUP($A$5,'Equipment List Template'!$1:$1048576,15,FALSE),"0") -> 0 | W10: 0
A11: 24-A8 | B11: H6 | C11: Ice Chiller | J11: 8 | K11: 0 | L11: 0 | M11: 3 | N11: 0 | O11: 0 | P11: 1 | Q11: 0 | R11: 0 | S11: 12 | T11: 0 | U11: 0 | V11: =IFERROR(VLOOKUP($A$5,'Equipment List Template'!$1:$1048576,16,FALSE),"0") -> 0 | W11: 0
A12: 24-A8 | B12: H7 | C12: MultiStack (Geothermal) | J12: 0 | K12: 0 | L12: 0 | M12: 0 | N12: 0 | O12: 0 | P12: 1 | Q12: 0 | R12: 0 | S12: 1 | T12: 0 | U12: 0 | V12: =IFERROR(VLOOKUP($A$5,'Equipment List Template'!$1:$1048576,17,FALSE),"0") -> 0 | W12: 0
A13: 24-A8 | B13: H8 | C13: Water Source Heat Pump | J13: 8 | K13: 0 | L13: 0 | M13: 3 | N13: 0 | O13: 0 | P13: 1 | Q13: 0 | R13: 0 | S13: 12 | T13: 0 | U13: 0 | V13: =IFERROR(VLOOKUP($A$5,'Equipment List Template'!$1:$1048576,18,FALSE),"0") -> 0 | W13: 0
A14: 24-A8 | B14: H9 | C14: Fan Coil System | J14: 0 | K14: 0 | L14: 0 | M14: 3 | N14: 0 | O14: 0 | P14: 1 | Q14: 0 | R14: 0 | S14: 4 | T14: 4 | U14: 0 | V14: =IFERROR(VLOOKUP($A$5,'Equipment List Template'!$1:$1048576,19,FALSE),"0") -> 1 | W14: 0
A15: 24-A8 | B15: H10 | C15: Exhaust Fan | J15: 0 | K15: 0 | L15: 0 | M15: 3 | N15: 0 | O15: 0 | P15: 1 | Q15: 0 | R15: 0 | S15: 4 | T15: 4 | U15: 0 | V15: =IFERROR(VLOOKUP($A$5,'Equipment List Template'!$1:$1048576,20,FALSE),"0") -> 2 | W15: 0
A16: 24-A8 | B16: H11 | C16: HVAC Unique System | J16: 8 | K16: 0 | L16: 0 | M16: 3 | N16: 0 | O16: 0 | P16: 1 | Q16: 0 | R16: 0 | S16: 12 | T16: 0 | U16: 0 | V16: =IFERROR(VLOOKUP($A$5,'Equipment List Template'!$1:$1048576,21,FALSE),"0") -> 0 | W16: 0
A17: 24-A8 | B17: E1 | C17: Electrical Panels | J17: 0 | K17: 0 | L17: 0 | M17: 3 | N17: 0 | O17: 0 | P17: 1 | Q17: 0 | R17: 0 | S17: 4 | T17: 4 | U17: 0 | V17: =IFERROR(VLOOKUP($A$5,'Equipment List Template'!$1:$1048576,22,FALSE),"0") -> 1 | W17: 0
A18: 24-A8 | B18: E2 | C18: Emergency Generator | J18: 0 | K18: 0 | L18: 0 | M18: 3 | N18: 0 | O18: 0 | P18: 1 | Q18: 0 | R18: 0 | S18: 4 | T18: 4 | U18: 0 | V18: =IFERROR(VLOOKUP($A$5,'Equipment List Template'!$1:$1048576,23,FALSE),"0") -> 1 | W18: 0
A19: 24-A8 | B19: E3 | C19: Motor Control Center | J19: 0 | K19: 0 | L19: 0 | M19: 4 | N19: 0 | O19: 0 | P19: 0 | Q19: 0 | R19: 0 | S19: 4 | T19: 0 | U19: 0 | V19: =IFERROR(VLOOKUP($A$5,'Equipment List Template'!$1:$1048576,24,FALSE),"0") -> 0 | W19: 0
A20: 24-A8 | B20: E4 | C20: Primary Switch (High) | J20: 8 | K20: 0 | L20: 0 | M20: 3 | N20: 0 | O20: 0 | P20: 1 | Q20: 0 | R20: 0 | S20: 12 | T20: 0 | U20: 0 | V20: =IFERROR(VLOOKUP($A$5,'Equipment List Template'!$1:$1048576,25,FALSE),"0") -> 0 | W20: 0
A21: 24-A8 | B21: E5 | C21: Primary Switch (Low) | J21: 8 | K21: 0 | L21: 0 | M21: 3 | N21: 0 | O21: 0 | P21: 1 | Q21: 0 | R21: 0 | S21: 12 | T21: 0 | U21: 0 | V21: =IFERROR(VLOOKUP($A$5,'Equipment List Template'!$1:$1048576,26,FALSE),"0") -> 0 | W21: 0
A22: 24-A8 | B22: E6 | C22: Transformer (Dry-Type) | J22: 0 | K22: 0 | L22: 0 | M22: 3 | N22: 0 | O22: 0 | P22: 1 | Q22: 0 | R22: 0 | S22: 4 | T22: 0 | U22: 0 | V22: =IFERROR(VLOOKUP($A$5,'Equipment List Template'!$1:$1048576,27,FALSE),"0") -> 0 | W22: 0
A23: 24-A8 | B23: E7 | C23: Uninterruptible Power Supply (UPS) | J23: 0 | K23: 0 | L23: 0 | M23: 0 | N23: 0 | O23: 0 | P23: 1 | Q23: 0 | R23: 0 | S23: 1 | T23: 0 | U23: 0 | V23: =IFERROR(VLOOKUP($A$5,'Equipment List Template'!$1:$1048576,28,FALSE),"0") -> 0 | W23: 0
A24: 24-A8 | B24: E8 | C24: Electrical Unique System | J24: 8 | K24: 0 | L24: 0 | M24: 3 | N24: 0 | O24: 0 | P24: 1 | Q24: 0 | R24: 0 | S24: 12 | T24: 0 | U24: 0 | V24: =IFERROR(VLOOKUP($A$5,'Equipment List Template'!$1:$1048576,29,FALSE),"0") -> 0 | W24: 0
A25: 24-A8 | B25: L1 | C25: Life Safety | J25: 0 | K25: 0 | L25: 0 | M25: 3 | N25: 0 | O25: 0 | P25: 1 | Q25: 0 | R25: 0 | S25: 4 | T25: 4 | U25: 0 | V25: =IFERROR(VLOOKUP($A$5,'Equipment List Template'!$1:$1048576,30,FALSE),"0") -> 1 | W25: =+U25*V25 -> 0
A26: 24-A8 | B26: L2 | C26: Backflow Preventor(s) | J26: 0 | K26: 0 | L26: 0 | M26: 0 | N26: 0 | O26: 0 | P26: 1 | Q26: 0 | R26: 0 | S26: 1 | T26: 1 | U26: 0 | V26: =IFERROR(VLOOKUP($A$5,'Equipment List Template'!$1:$1048576,31,FALSE),"0") -> 5 | W26: =+U26*V26 -> 0
A27: 24-A8 | B27: P1 | C27: Hot Water Boiler | J27: 8 | K27: 0 | L27: 0 | M27: 3 | N27: 0 | O27: 0 | P27: 1 | Q27: 0 | R27: 0 | S27: 12 | T27: 12 | U27: 0 | V27: =IFERROR(VLOOKUP($A$5,'Equipment List Template'!$1:$1048576,32,FALSE),"0") -> 1 | W27: 0
A28: 24-A8 | B28: P2 | C28: Condensing Water Heater | J28: 0 | K28: 0 | L28: 0 | M28: 0 | N28: 0 | O28: 0 | P28: 1 | Q28: 0 | R28: 0 | S28: 1 | T28: 0 | U28: 0 | V28: =IFERROR(VLOOKUP($A$5,'Equipment List Template'!$1:$1048576,33,FALSE),"0") -> 0 | W28: 0
A29: 24-A8 | B29: P3 | C29: Electric Water Heater | J29: 0 | K29: 0 | L29: 0 | M29: 0 | N29: 0 | O29: 0 | P29: 1 | Q29: 0 | R29: 0 | S29: 1 | T29: 0 | U29: 0 | V29: =IFERROR(VLOOKUP($A$5,'Equipment List Template'!$1:$1048576,34,FALSE),"0") -> 0 | W29: 0
A30: 24-A8 | B30: P4 | C30: Plumbing Unique System | J30: 0 | K30: 0 | L30: 0 | M30: 3 | N30: 0 | O30: 0 | P30: 1 | Q30: 0 | R30: 0 | S30: 4 | T30: 0 | U30: 0 | V30: =IFERROR(VLOOKUP($A$5,'Equipment List Template'!$1:$1048576,35,FALSE),"0") -> 0 | W30: 0
A31: 24-A8 | B31: P5 | C31: Steam System | J31: 0 | K31: 0 | L31: 0 | M31: 3 | N31: 0 | O31: 0 | P31: 1 | Q31: 0 | R31: 0 | S31: 4 | T31: 0 | U31: 0 | V31: =IFERROR(VLOOKUP($A$5,'Equipment List Template'!$1:$1048576,36,FALSE),"0") -> 0 | W31: 0
A32: 24-A8 | B32: P6 | C32: Pneumatic Compressor | J32: 11 | K32: 0 | L32: 0 | M32: 0 | N32: 0 | O32: 0 | P32: 1 | Q32: 0 | R32: 0 | S32: 12 | T32: 0 | U32: 0 | V32: =IFERROR(VLOOKUP($A$5,'Equipment List Template'!$1:$1048576,37,FALSE),"0") -> 0 | W32: 0
A33: 24-A8 | B33: R1 | C33: Rounds and Readings | D33: =IFERROR(IF(VLOOKUP($A33,'Equipment List Template'!$1:$1048576,38,FALSE)=260,248,0),0) -> 0 | E33: 0 | F33: =+E33*D33 -> 0 | G33: =IFERROR(IF(VLOOKUP($A33,'Equipment List Template'!$1:$1048576,38,FALSE)=52,40,0),0) -> 40 | H33: 0 | I33: =+H33*G33 -> 0 | J33: 12 | K33: 0 | L33: 0 | S33: 12 | T33: 12 | U33: =+R33+O33+L33+I33+F33 -> 0 | V33: 1 | W33: =+U33*V33 -> 0
A34: 24-A8 | B34: V1 | C34: Vertical Transportation | J34: 8 | K34: 0 | L34: =+K34*J34 -> 0 | M34: 3 | N34: 0 | O34: =+N34*M34 -> 0 | P34: 1 | Q34: 0 | R34: =+Q34*P34 -> 0 | S34: 12 | T34: 12 | U34: =+R34+O34+L34 -> 0 | V34: =IFERROR(VLOOKUP($A$5,'Equipment List Template'!$1:$1048576,39,FALSE),"0") -> 4 | W34: =+U34*V34 -> 0
A35: 24-A8 | B35: W1 | C35: Water Treatment | D35: =IFERROR(IF(VLOOKUP($A35,'Equipment List Template'!$1:$1048576,40,FALSE)=260,260,0),0) -> 0 | E35: 0 | F35: =+E35*D35 -> 0 | S35: 0 | T35: 0 | U35: =+R35+O35+L35+I35+F35 -> 0 | V35: 1 | W35: 0
A36: 24-A8 | B36: B1 | C36: Building Exterior / Hardscape (Monthly) | J36: 12 | K36: 0 | L36: =+K36*J36 -> 0 | S36: 12 | T36: 12 | U36: 0 | V36: 1 | W36: 0
A37: 24-A8 | B37: F1 | C37: Fountain Maintenance (Monthly) | J37: 12 | K37: 0 | L37: 0 | S37: 12 | T37: 12 | U37: 0 | V37: 1 | W37: 0
A38: 24-A8 | B38: F2 | C38: Fuel Storage Tanks (Quarterly) If applicable | M38: 4 | N38: 0 | O38: =+N38*M38 -> 0 | S38: 4 | T38: 4 | U38: 0 | V38: 1 | W38: 0
A39: 24-A8 | B39: G1 | C39: Landscape Maintenance * | G39: 40 | H39: 0 | I39: =+H39*G39 -> 0 | S39: 0 | T39: 0 | U39: 0 | V39: 1 | W39: 0
A40: 24-A8 | B40: C1 | C40: Account Management and Supervision (Monthly) | J40: 12 | K40: 0 | L40: =+K40*J40 -> 0 | S40: 12 | T40: 12 | U40: 0 | V40: 1 | W40: 0
A41: 24-A8 | B41: C2 | C41: Fee (Monthly) | J41: 12 | K41: 0 | L41: 0 | S41: 12 | T41: 12 | U41: 0 | V41: 1 | W41: 0
Q42: JCC ID | R42: =B2 -> 24-A8 | U42: Total | W42: =SUM(W6:W41) -> 0
B43: S1 | C43: Snow Removal - (crew hourly rate) | D43: 0 | U43: Total # of PM's | W43: =SUM(T5:T41) -> 129
B44: I1 | C44: Unclogging Blocked Toilet - In-custody cell (labor-only) | D44: 0
B45: I2 | C45: Unclogging Blocked Toilet - Public/Court Staff (labor-only) | D45: 0
B46: Hr 1 | C46: Hourly Rate (All Labor categories) | D46: 0
B47: M1 | C47: Markup on Materials (Percentage) | D47: 0
B48: Sub1 | C48: Markup on Subcontractors/Third-Parties (Percentage) | D48: 0
B50: * Landscape Maintenance varies by location on the number of weeks per year it can be preformed. For the purpose of the RFP, all facilities are pre-established at 40 weeks of service. The actual amount paid by facility will be based upon the actual weeks that service has been performed, validated and invoiced.

Sheet 24-G1
B1: JCC ID | C1: Facility Name | D1: Address | F1: City / Town | H1: Zip Code | J1: County | L1: Region | N1: RFP | P1: Proposer
B2: 24-G1 | C2: =IFERROR(VLOOKUP($B$2,'Equipment List Template'!$1:$1048576,2,FALSE),"") -> Robert M. Falasco Justice Center | D2: =IFERROR(VLOOKUP($B$2,'Equipment List Template'!$1:$1048576,3,FALSE),"") -> 1159 G Street | F2: =IFERROR(VLOOKUP($B$2,'Equipment List Template'!$1:$1048576,4,FALSE),"") -> Los Banos | H2: =IFERROR(VLOOKUP($B$2,'Equipment List Template'!$1:$1048576,5,FALSE),"") -> 93635 | J2: =IFERROR(VLOOKUP($B$2,'Equipment List Template'!$1:$1048576,6,FALSE),"") -> Merced | L2: =IFERROR(VLOOKUP($B$2,'Equipment List Template'!$1:$1048576,7,FALSE),"") -> NCRO | N2: ='Summary Pricing Sheet'!B2 -> RFP-FS-SP-2019-03-JP | P2: ='Summary Pricing Sheet'!B3 -> TBD
D3: Daily Activity | G3: Weekly Activity | J3: Monthly Activity | M3: Quarterly Activity | P3: Annual Activity | U3: Summary | AG3: System | AH3: HVAC | AS3: Electrical | BA3: Plumbing | BE3: Building Systems | BP3: Corporate | BT3: Fixed Price - Facility Total Annual Cost Year 1
B4: System ID | C4: Subsystem | D4: Quantity | E4: Cost | F4: Daily Total | G4: Quantity | H4: Cost | I4: Weekly Total | J4: Monthly Quantity | K4: Cost | L4: Monthly Total | M4: Quarterly Quantity | N4: Cost | O4: Quarterly Total | P4: Annual Quantity | Q4: Cost | R4: Annual PM Total | T4: Number of PM's | U4: Annual Cost | V4: Quantity | W4: Total Annual Cost | AG4: Subsystem | AH4: Air Cooled DX (Package / Split System) | AI4: Air Handling Unit (Air-cooled DX) | AJ4: Air-Cooled Chiller | AK4: Centrifugal Chiller | AL4: Cooling Tower (Induced Draft) | AM4: Ice Chiller | AN4: Multitask (Geothermal) | AO4: Water Source Heat Pump | AP4: Fan Coil System | AQ4: Exhaust Fan | AR4: HVAC Unique System | AS4: Electrical Panels | AT4: Emergency Generator | AU4: Motor Control Center | AV4: Primary Switch (High) | AW4: Primary Switch (Low) | AX4: Transformer (Dry-Type) | AY4: Uninterruptible Power Supply (UPS) | AZ4: Electrical Unique System | BA4: Hot Water Boiler | BB4: Condensing Water Heater | BC4: Electric Water Heater | BD4: Plumbing Unique System | BE4: Steam System | BF4: Pneumatic Compressor | BG4: Vertical Transportation | BH4: Life Safety | BI4: Backflow Preventor | BJ4: Rounds and Readings | BK4: Access Doors, Gates, Sally Port | BL4: Water Treatment | BM4: Building Exterior / Hardscape (Monthly) | BN4: Fountain Maintenance (Monthly) | BO4: Fuel Storage Tanks (Quarterly) If applicable | BP4: Landscape Maintenance * | BQ4: Account Management and Supervision (Monthly) | BR4: Fee (Monthly) | BV4: Snow Removal - (crew hourly rate) | BW4: Unclogging Blocked Toilet - In-custody holding cell (labor) | BX4: Unclogging Blocked Toilet - Public/Court Staff (labor) | BY4: Hourly Rate | BZ4: Markup on Materials | CA4: Markup on Subcontractors/Third-Parties
A5: =$B$2 -> 24-G1 | B5: A1 | C5: Access Doors, Gates, Sally Port | J5: 11 | K5: 0 | L5: =+K5*J5 -> 0 | M5: 0 | N5: 0 | O5: =+N5*M5 -> 0 | P5: 1 | Q5: 0 | R5: =+Q5*P5 -> 0 | S5: 12 | T5: =IF($V5>0,$S5,0) -> 12 | U5: =+R5+O5+L5+I5+F5 -> 0 | V5: =IFERROR(VLOOKUP($A$5,'Equipment List Template'!$1:$1048576,10,FALSE),"0") -> 1 | W5: =+U5*V5 -> 0 | Z5: JCC ID | AA5: Facility Name | AB5: Address | AC5: City / Town | AD5: County | AE5: Region | AF5: Region | AG5: System ID | AH5: H1 | AI5: H2 | AJ5: H3 | AK5: H4 | AL5: H5 | AM5: H6 | AN5: H7 | AO5: H8 | AP5: H9 | AQ5: H10 | AR5: H11 | AS5: E1 | AT5: E2 | AU5: E3 | AV5: E4 | AW5: E5 | AX5: E6 | AY5: E7 | AZ5: E8 | BA5: P1 | BB5: P2 | BC5: P3 | BD5: P4 | BE5: P5 | BF5: P6 | BG5: V1 | BH5: L1 | BI5: L2 | BJ5: R1 | BK5: A1 | BL5: W1 | BM5: B1 | BN5: F1 | BO5: F2 | BP5: G1 | BQ5: C1 | BR5: C2 | BV5: S1 | BW5: I1 | BX5: I2 | BY5: Hr 1 | BZ5: M1 | CA5: Sub1
A6: =$B$2 -> 24-G1 | B6: H1 | C6: Air Cooled DX (Package / Split System) | J6: 0 | K6: 0 | L6: =+K6*J6 -> 0 | M6: 3 | N6: 0 | O6: =+N6*M6 -> 0 | P6: 1 | Q6: 0 | R6: =+Q6*P6 -> 0 | S6: 4 | T6: =IF($V6>0,$S6,0) -> 4 | U6: =+R6+O6+L6+I6+F6 -> 0 | V6: =IFERROR(VLOOKUP($A$5,'Equipment List Template'!$1:$1048576,11,FALSE),"0") -> 4 | W6: =+U6*V6 -> 0 | Z6: =B2 -> 24-G1 | AA6: =IFERROR(VLOOKUP($Z$6,'Equipment List Template'!$1:$1048576,2,FALSE),"") -> Robert M. Falasco Justice Center | AB6: =IFERROR(VLOOKUP($Z$6,'Equipment List Template'!$1:$1048576,3,FALSE),"") -> 1159 G Street | AC6: =IFERROR(VLOOKUP($Z$6,'Equipment List Template'!$1:$1048576,4,FALSE),"") -> Los Banos | AD6: =IFERROR(VLOOKUP($Z$6,'Equipment List Template'!$1:$1048576,5,FALSE),"") -> 93635 | AE6: =IFERROR(VLOOKUP($Z$6,'Equipment List Template'!$1:$1048576,6,FALSE),"") -> Merced | AF6: =IFERROR(VLOOKUP($Z$6,'Equipment List Template'!$1:$1048576,7,FALSE),"") -> NCRO | AH6: =+$W5 -> 0 | AI6: =+$W6 -> 0 | AJ6: =+$W7 -> 0 | AK6: =+$W8 -> 0 | AL6: =+$W9 -> 0 | AM6: =+$W10 -> 0 | AN6: =+$W11 -> 0 | AO6: =+$W12 -> 0 | AP6: =+$W13 -> 0 | AQ6: =+$W14 -> 0 | AR6: =+$W15 -> 0 | AS6: =+$W16 -> 0 | AT6: =+$W17 -> 0 | AU6: =+$W18 -> 0 | AV6: =+$W19 -> 0 | AW6: =+$W20 -> 0 | AX6: =+$W21 -> 0 | AY6: =+$W22 -> 0 | AZ6: =+$W23 -> 0 | BA6: =+$W24 -> 0 | BB6: =+$W25 -> 0 | BC6: =+$W26 -> 0 | BD6: =+$W27 -> 0 | BE6: =+$W28 -> 0 | BF6: =+$W29 -> 0 | BG6: =+$W30 -> 0 | BH6: =+$W31 -> 0 | BI6: =+$W32 -> 0 | BJ6: =+$W33 -> 0 | BK6: =+$W34 -> 0 | BL6: =+$W35 -> 0 | BM6: =+$W36 -> 0 | BN6: =+$W37 -> 0 | BO6: =+$W38 -> 0 | BP6: =+$W39 -> 0 | BQ6: =+$W40 -> 0 | BR6: =+$W41 -> 0 | BT6: =+W42 -> 0 | BV6: =+D43 -> 0 | BW6: =+D44 -> 0 | BX6: =+D45 -> 0 | BY6: =+D46 -> 0 | BZ6: =+D47 -> 0 | CA6: =+D48 -> 0
A7: 24-G1 | B7: H2 | C7: Air Handling Unit (Air-cooled DX) | J7: 0 | K7: 0 | L7: 0 | M7: 3 | N7: 0 | O7: 0 | P7: 1 | Q7: 0 | R7: 0 | S7: 4 | T7: 4 | U7: 0 | V7: =IFERROR(VLOOKUP($A$5,'Equipment List Template'!$1:$1048576,12,FALSE),"0") -> 2 | W7: =+U7*V7 -> 0
A8: 24-G1 | B8: H3 | C8: Air-Cooled Chiller | G8: 40 | H8: 0 | I8: =+H8*G8 -> 0 | J8: 8 | K8: 0 | L8: 0 | M8: 3 | N8: 0 | O8: 0 | P8: 1 | Q8: 0 | R8: 0 | S8: 12 | T8: 0 | U8: 0 | V8: =IFERROR(VLOOKUP($A$5,'Equipment List Template'!$1:$1048576,13,FALSE),"0") -> 0 | W8: 0
A9: 24-G1 | B9: H4 | C9: Centrifugal Chiller | J9: 11 | K9: 0 | L9: 0 | M9: 0 | N9: 0 | O9: 0 | P9: 1 | Q9: 0 | R9: 0 | S9: 12 | T9: 0 | U9: 0 | V9: =IFERROR(VLOOKUP($A$5,'Equipment List Template'!$1:$1048576,14,FALSE),"0") -> 0 | W9: 0
A10: 24-G1 | B10: H5 | C10: Cooling Tower (Induced Draft) | J10: 8 | K10: 0 | L10: 0 | M10: 3 | N10: 0 | O10: 0 | P10: 1 | Q10: 0 | R10: 0 | S10: 12 | T10: 0 | U10: 0 | V10: =IFERROR(VLOOKUP($A$5,'Equipment List Template'!$1:$1048576,15,FALSE),"0") -> 0 | W10: 0
A11: 24-G1 | B11: H6 | C11: Ice Chiller | J11: 8 | K11: 0 | L11: 0 | M11: 3 | N11: 0 | O11: 0 | P11: 1 | Q11: 0 | R11: 0 | S11: 12 | T11: 0 | U11: 0 | V11: =IFERROR(VLOOKUP($A$5,'Equipment List Template'!$1:$1048576,16,FALSE),"0") -> 0 | W11: 0
A12: 24-G1 | B12: H7 | C12: MultiStack (Geothermal) | J12: 0 | K12: 0 | L12: 0 | M12: 0 | N12: 0 | O12: 0 | P12: 1 | Q12: 0 | R12: 0 | S12: 1 | T12: 0 | U12: 0 | V12: =IFERROR(VLOOKUP($A$5,'Equipment List Template'!$1:$1048576,17,FALSE),"0") -> 0 | W12: 0
A13: 24-G1 | B13: H8 | C13: Water Source Heat Pump | J13: 8 | K13: 0 | L13: 0 | M13: 3 | N13: 0 | O13: 0 | P13: 1 | Q13: 0 | R13: 0 | S13: 12 | T13: 0 | U13: 0 | V13: =IFERROR(VLOOKUP($A$5,'Equipment List Template'!$1:$1048576,18,FALSE),"0") -> 0 | W13: 0
A14: 24-G1 | B14: H9 | C14: Fan Coil System | J14: 0 | K14: 0 | L14: 0 | M14: 3 | N14: 0 | O14: 0 | P14: 1 | Q14: 0 | R14: 0 | S14: 4 | T14: 0 | U14: 0 | V14: =IFERROR(VLOOKUP($A$5,'Equipment List Template'!$1:$1048576,19,FALSE),"0") -> 0 | W14: 0
A15: 24-G1 | B15: H10 | C15: Exhaust Fan | J15: 0 | K15: 0 | L15: 0 | M15: 3 | N15: 0 | O15: 0 | P15: 1 | Q15: 0 | R15: 0 | S15: 4 | T15: 0 | U15: 0 | V15: =IFERROR(VLOOKUP($A$5,'Equipment List Template'!$1:$1048576,20,FALSE),"0") -> 0 | W15: 0
A16: 24-G1 | B16: H11 | C16: HVAC Unique System | J16: 8 | K16: 0 | L16: 0 | M16: 3 | N16: 0 | O16: 0 | P16: 1 | Q16: 0 | R16: 0 | S16: 12 | T16: 0 | U16: 0 | V16: =IFERROR(VLOOKUP($A$5,'Equipment List Template'!$1:$1048576,21,FALSE),"0") -> 0 | W16: 0
A17: 24-G1 | B17: E1 | C17: Electrical Panels | J17: 0 | K17: 0 | L17: 0 | M17: 3 | N17: 0 | O17: 0 | P17: 1 | Q17: 0 | R17: 0 | S17: 4 | T17: 4 | U17: 0 | V17: =IFERROR(VLOOKUP($A$5,'Equipment List Template'!$1:$1048576,22,FALSE),"0") -> 1 | W17: 0
A18: 24-G1 | B18: E2 | C18: Emergency Generator | J18: 0 | K18: 0 | L18: 0 | M18: 3 | N18: 0 | O18: 0 | P18: 1 | Q18: 0 | R18: 0 | S18: 4 | T18: 4 | U18: 0 | V18: =IFERROR(VLOOKUP($A$5,'Equipment List Template'!$1:$1048576,23,FALSE),"0") -> 1 | W18: 0
A19: 24-G1 | B19: E3 | C19: Motor Control Center | J19: 0 | K19: 0 | L19: 0 | M19: 4 | N19: 0 | O19: 0 | P19: 0 | Q19: 0 | R19: 0 | S19: 4 | T19: 0 | U19: 0 | V19: =IFERROR(VLOOKUP($A$5,'Equipment List Template'!$1:$1048576,24,FALSE),"0") -> 0 | W19: 0
A20: 24-G1 | B20: E4 | C20: Primary Switch (High) | J20: 8 | K20: 0 | L20: 0 | M20: 3 | N20: 0 | O20: 0 | P20: 1 | Q20: 0 | R20: 0 | S20: 12 | T20: 12 | U20: 0 | V20: =IFERROR(VLOOKUP($A$5,'Equipment List Template'!$1:$1048576,25,FALSE),"0") -> 1 | W20: 0
A21: 24-G1 | B21: E5 | C21: Primary Switch (Low) | J21: 8 | K21: 0 | L21: 0 | M21: 3 | N21: 0 | O21: 0 | P21: 1 | Q21: 0 | R21: 0 | S21: 12 | T21: 0 | U21: 0 | V21: =IFERROR(VLOOKUP($A$5,'Equipment List Template'!$1:$1048576,26,FALSE),"0") -> 0 | W21: 0
A22: 24-G1 | B22: E6 | C22: Transformer (Dry-Type) | J22: 0 | K22: 0 | L22: 0 | M22: 3 | N22: 0 | O22: 0 | P22: 1 | Q22: 0 | R22: 0 | S22: 4 | T22: 0 | U22: 0 | V22: =IFERROR(VLOOKUP($A$5,'Equipment List Template'!$1:$1048576,27,FALSE),"0") -> 0 | W22: 0
A23: 24-G1 | B23: E7 | C23: Uninterruptible Power Supply (UPS) | J23: 0 | K23: 0 | L23: 0 | M23: 0 | N23: 0 | O23: 0 | P23: 1 | Q23: 0 | R23: 0 | S23: 1 | T23: 0 | U23: 0 | V23: =IFERROR(VLOOKUP($A$5,'Equipment List Template'!$1:$1048576,28,FALSE),"0") -> 0 | W23: 0
A24: 24-G1 | B24: E8 | C24: Electrical Unique System | J24: 8 | K24: 0 | L24: 0 | M24: 3 | N24: 0 | O24: 0 | P24: 1 | Q24: 0 | R24: 0 | S24: 12 | T24: 0 | U24: 0 | V24: =IFERROR(VLOOKUP($A$5,'Equipment List Template'!$1:$1048576,29,FALSE),"0") -> 0 | W24: 0
A25: 24-G1 | B25: L1 | C25: Life Safety | J25: 0 | K25: 0 | L25: 0 | M25: 3 | N25: 0 | O25: 0 | P25: 1 | Q25: 0 | R25: 0 | S25: 4 | T25: 4 | U25: 0 | V25: =IFERROR(VLOOKUP($A$5,'Equipment List Template'!$1:$1048576,30,FALSE),"0") -> 1 | W25: =+U25*V25 -> 0
A26: 24-G1 | B26: L2 | C26: Backflow Preventor(s) | J26: 0 | K26: 0 | L26: 0 | M26: 0 | N26: 0 | O26: 0 | P26: 1 | Q26: 0 | R26: 0 | S26: 1 | T26: 1 | U26: 0 | V26: =IFERROR(VLOOKUP($A$5,'Equipment List Template'!$1:$1048576,31,FALSE),"0") -> 4 | W26: =+U26*V26 -> 0
A27: 24-G1 | B27: P1 | C27: Hot Water Boiler | J27: 8 | K27: 0 | L27: 0 | M27: 3 | N27: 0 | O27: 0 | P27: 1 | Q27: 0 | R27: 0 | S27: 12 | T27: 12 | U27: 0 | V27: =IFERROR(VLOOKUP($A$5,'Equipment List Template'!$1:$1048576,32,FALSE),"0") -> 2 | W27: 0
A28: 24-G1 | B28: P2 | C28: Condensing Water Heater | J28: 0 | K28: 0 | L28: 0 | M28: 0 | N28: 0 | O28: 0 | P28: 1 | Q28: 0 | R28: 0 | S28: 1 | T28: 0 | U28: 0 | V28: =IFERROR(VLOOKUP($A$5,'Equipment List Template'!$1:$1048576,33,FALSE),"0") -> 0 | W28: 0
A29: 24-G1 | B29: P3 | C29: Electric Water Heater | J29: 0 | K29: 0 | L29: 0 | M29: 0 | N29: 0 | O29: 0 | P29: 1 | Q29: 0 | R29: 0 | S29: 1 | T29: 0 | U29: 0 | V29: =IFERROR(VLOOKUP($A$5,'Equipment List Template'!$1:$1048576,34,FALSE),"0") -> 0 | W29: 0
A30: 24-G1 | B30: P4 | C30: Plumbing Unique System | J30: 0 | K30: 0 | L30: 0 | M30: 3 | N30: 0 | O30: 0 | P30: 1 | Q30: 0 | R30: 0 | S30: 4 | T30: 0 | U30: 0 | V30: =IFERROR(VLOOKUP($A$5,'Equipment List Template'!$1:$1048576,35,FALSE),"0") -> 0 | W30: 0
A31: 24-G1 | B31: P5 | C31: Steam System | J31: 0 | K31: 0 | L31: 0 | M31: 3 | N31: 0 | O31: 0 | P31: 1 | Q31: 0 | R31: 0 | S31: 4 | T31: 0 | U31: 0 | V31: =IFERROR(VLOOKUP($A$5,'Equipment List Template'!$1:$1048576,36,FALSE),"0") -> 0 | W31: 0
A32: 24-G1 | B32: P6 | C32: Pneumatic Compressor | J32: 11 | K32: 0 | L32: 0 | M32: 0 | N32: 0 | O32: 0 | P32: 1 | Q32: 0 | R32: 0 | S32: 12 | T32: 0 | U32: 0 | V32: =IFERROR(VLOOKUP($A$5,'Equipment List Template'!$1:$1048576,37,FALSE),"0") -> 0 | W32: 0
A33: 24-G1 | B33: R1 | C33: Rounds and Readings | D33: =IFERROR(IF(VLOOKUP($A33,'Equipment List Template'!$1:$1048576,38,FALSE)=260,248,0),0) -> 0 | E33: 0 | F33: =+E33*D33 -> 0 | G33: =IFERROR(IF(VLOOKUP($A33,'Equipment List Template'!$1:$1048576,38,FALSE)=52,40,0),0) -> 40 | H33: 0 | I33: =+H33*G33 -> 0 | J33: 12 | K33: 0 | L33: 0 | S33: 12 | T33: 12 | U33: =+R33+O33+L33+I33+F33 -> 0 | V33: 1 | W33: =+U33*V33 -> 0
A34: 24-G1 | B34: V1 | C34: Vertical Transportation | J34: 8 | K34: 0 | L34: =+K34*J34 -> 0 | M34: 3 | N34: 0 | O34: =+N34*M34 -> 0 | P34: 1 | Q34: 0 | R34: =+Q34*P34 -> 0 | S34: 12 | T34: 12 | U34: =+R34+O34+L34 -> 0 | V34: =IFERROR(VLOOKUP($A$5,'Equipment List Template'!$1:$1048576,39,FALSE),"0") -> 3 | W34: =+U34*V34 -> 0
A35: 24-G1 | B35: W1 | C35: Water Treatment | D35: =IFERROR(IF(VLOOKUP($A35,'Equipment List Template'!$1:$1048576,40,FALSE)=260,260,0),0) -> 0 | E35: 0 | F35: =+E35*D35 -> 0 | S35: 0 | T35: 0 | U35: =+R35+O35+L35+I35+F35 -> 0 | V35: 1 | W35: 0
A36: 24-G1 | B36: B1 | C36: Building Exterior / Hardscape (Monthly) | J36: 12 | K36: 0 | L36: =+K36*J36 -> 0 | S36: 12 | T36: 12 | U36: 0 | V36: 1 | W36: 0
A37: 24-G1 | B37: F1 | C37: Fountain Maintenance (Monthly) | J37: 12 | K37: 0 | L37: 0 | S37: 12 | T37: 12 | U37: 0 | V37: 1 | W37: 0
A38: 24-G1 | B38: F2 | C38: Fuel Storage Tanks (Quarterly) If applicable | M38: 4 | N38: 0 | O38: =+N38*M38 -> 0 | S38: 4 | T38: 4 | U38: 0 | V38: 1 | W38: 0
A39: 24-G1 | B39: G1 | C39: Landscape Maintenance * | G39: 40 | H39: 0 | I39: =+H39*G39 -> 0 | S39: 0 | T39: 0 | U39: 0 | V39: 1 | W39: 0
A40: 24-G1 | B40: C1 | C40: Account Management and Supervision (Monthly) | J40: 12 | K40: 0 | L40: =+K40*J40 -> 0 | S40: 12 | T40: 12 | U40: 0 | V40: 1 | W40: 0
A41: 24-G1 | B41: C2 | C41: Fee (Monthly) | J41: 12 | K41: 0 | L41: 0 | S41: 12 | T41: 12 | U41: 0 | V41: 1 | W41: 0
Q42: JCC ID | R42: =B2 -> 24-G1 | U42: Total | W42: =SUM(W6:W41) -> 0
B43: S1 | C43: Snow Removal - (crew hourly rate) | D43: 0 | U43: Total # of PM's | W43: =SUM(T5:T41) -> 133
B44: I1 | C44: Unclogging Blocked Toilet - In-custody cell (labor-only) | D44: 0
B45: I2 | C45: Unclogging Blocked Toilet - Public/Court Staff (labor-only) | D45: 0
B46: Hr 1 | C46: Hourly Rate (All Labor categories) | D46: 0
B47: M1 | C47: Markup on Materials (Percentage) | D47: 0
B48: Sub1 | C48: Markup on Subcontractors/Third-Parties (Percentage) | D48: 0
B50: * Landscape Maintenance varies by location on the number of weeks per year it can be preformed. For the purpose of the RFP, all facilities are pre-established at 40 weeks of service. The actual amount paid by facility will be based upon the actual weeks that service has been performed, validated and invoiced.

Sheet 25-A1
B1: JCC ID | C1: Facility Name | D1: Address | F1: City / Town | H1: Zip Code | J1: County | L1: Region | N1: RFP | P1: Proposer
B2: 25-A1 | C2: =IFERROR(VLOOKUP($B$2,'Equipment List Template'!$1:$1048576,2,FALSE),"") -> Barclay Justice Center | D2: =IFERROR(VLOOKUP($B$2,'Equipment List Template'!$1:$1048576,3,FALSE),"") -> 205 S. East Street | F2: =IFERROR(VLOOKUP($B$2,'Equipment List Template'!$1:$1048576,4,FALSE),"") -> Alturas | H2: =IFERROR(VLOOKUP($B$2,'Equipment List Template'!$1:$1048576,5,FALSE),"") -> 96101 | J2: =IFERROR(VLOOKUP($B$2,'Equipment List Template'!$1:$1048576,6,FALSE),"") -> Modoc | L2: =IFERROR(VLOOKUP($B$2,'Equipment List Template'!$1:$1048576,7,FALSE),"") -> NCRO | N2: ='Summary Pricing Sheet'!B2 -> RFP-FS-SP-2019-03-JP | P2: ='Summary Pricing Sheet'!B3 -> TBD
D3: Daily Activity | G3: Weekly Activity | J3: Monthly Activity | M3: Quarterly Activity | P3: Annual Activity | U3: Summary | AG3: System | AH3: HVAC | AS3: Electrical | BA3: Plumbing | BE3: Building Systems | BP3: Corporate | BT3: Fixed Price - Facility Total Annual Cost Year 1
B4: System ID | C4: Subsystem | D4: Quantity | E4: Cost | F4: Daily Total | G4: Quantity | H4: Cost | I4: Weekly Total | J4: Monthly Quantity | K4: Cost | L4: Monthly Total | M4: Quarterly Quantity | N4: Cost | O4: Quarterly Total | P4: Annual Quantity | Q4: Cost | R4: Annual PM Total | T4: Number of PM's | U4: Annual Cost | V4: Quantity | W4: Total Annual Cost | AG4: Subsystem | AH4: Air Cooled DX (Package / Split System) | AI4: Air Handling Unit (Air-cooled DX) | AJ4: Air-Cooled Chiller | AK4: Centrifugal Chiller | AL4: Cooling Tower (Induced Draft) | AM4: Ice Chiller | AN4: Multitask (Geothermal) | AO4: Water Source Heat Pump | AP4: Fan Coil System | AQ4: Exhaust Fan | AR4: HVAC Unique System | AS4: Electrical Panels | AT4: Emergency Generator | AU4: Motor Control Center | AV4: Primary Switch (High) | AW4: Primary Switch (Low) | AX4: Transformer (Dry-Type) | AY4: Uninterruptible Power Supply (UPS) | AZ4: Electrical Unique System | BA4: Hot Water Boiler | BB4: Condensing Water Heater | BC4: Electric Water Heater | BD4: Plumbing Unique System | BE4: Steam System | BF4: Pneumatic Compressor | BG4: Vertical Transportation | BH4: Life Safety | BI4: Backflow Preventor | BJ4: Rounds and Readings | BK4: Access Doors, Gates, Sally Port | BL4: Water Treatment | BM4: Building Exterior / Hardscape (Monthly) | BN4: Fountain Maintenance (Monthly) | BO4: Fuel Storage Tanks (Quarterly) If applicable | BP4: Landscape Maintenance * | BQ4: Account Management and Supervision (Monthly) | BR4: Fee (Monthly) | BV4: Snow Removal - (crew hourly rate) | BW4: Unclogging Blocked Toilet - In-custody holding cell (labor) | BX4: Unclogging Blocked Toilet - Public/Court Staff (labor) | BY4: Hourly Rate | BZ4: Markup on Materials | CA4: Markup on Subcontractors/Third-Parties
A5: =$B$2 -> 25-A1 | B5: A1 | C5: Access Doors, Gates, Sally Port | J5: 11 | K5: 0 | L5: =+K5*J5 -> 0 | M5: 0 | N5: 0 | O5: =+N5*M5 -> 0 | P5: 1 | Q5: 0 | R5: =+Q5*P5 -> 0 | S5: 12 | T5: =IF($V5>0,$S5,0) -> 12 | U5: =+R5+O5+L5+I5+F5 -> 0 | V5: =IFERROR(VLOOKUP($A$5,'Equipment List Template'!$1:$1048576,10,FALSE),"0") -> 1 | W5: =+U5*V5 -> 0 | Z5: JCC ID | AA5: Facility Name | AB5: Address | AC5: City / Town | AD5: County | AE5: Region | AF5: Region | AG5: System ID | AH5: H1 | AI5: H2 | AJ5: H3 | AK5: H4 | AL5: H5 | AM5: H6 | AN5: H7 | AO5: H8 | AP5: H9 | AQ5: H10 | AR5: H11 | AS5: E1 | AT5: E2 | AU5: E3 | AV5: E4 | AW5: E5 | AX5: E6 | AY5: E7 | AZ5: E8 | BA5: P1 | BB5: P2 | BC5: P3 | BD5: P4 | BE5: P5 | BF5: P6 | BG5: V1 | BH5: L1 | BI5: L2 | BJ5: R1 | BK5: A1 | BL5: W1 | BM5: B1 | BN5: F1 | BO5: F2 | BP5: G1 | BQ5: C1 | BR5: C2 | BV5: S1 | BW5: I1 | BX5: I2 | BY5: Hr 1 | BZ5: M1 | CA5: Sub1
